Workbook

Sheet 入力
B2: ※ この計算は分離譲渡所得等の申告がある場合には使えません。
B3: 計算結果は概算となります。実際の税額と違う場合があります。 | K3: 高崎市 保険年金課 資格賦課担当 | N3: 高崎市 保険年金課 資格賦課担当
B4: 詳細については、保険年金課 資格賦課担当までご連絡ください。 | K4: TEL ０２７－３２１－１２３５（直通） | N4: TEL ０２７－３２１－１２３５（直通）
B6: ※下記の点に注意して入力してください。
B7: ① 生年月日は必ず入力してください。（和暦、もしくは西暦で入力。）
B8: ="※前年（"&"令和"&DBCS(税率・条件!C1-1)&"年）の1月～１２月までの収入や所得金額を入力してください。" -> ※前年（令和４年）の1月～１２月までの収入や所得金額を入力してください。
B9: ② 給与収入は、源泉徴収票の支払金額を入力してください。 ※給与収入850万円超えの所得金額調整控除は対応していません。
B10: ③ 年金収入（公的年金)は、源泉徴収票の支払金額を入力してください。（遺族年金、障害年金は除いてください。）
B11: ※公的年金以外の合計所得が1,000万円を超えた場合は対応していません。
B12: ④その他所得の営業、農業、その他の事業、不動産等の収入金額は必要経費を除いた所得金額を合計して入力してください。 ⑤ 所得に応じた均等割・平等割の軽減判定には対応していません。 ※ 特定同一世帯所属者（旧国保被保険者）の軽減判定及び条例減免には対応していません。
B13: ※生年月日によっては、加入月が1年間でない場合があります。 | S13: 加入月（●：医療･後期、■：介護）
E15: ="R"&税率・条件!C1&"年度" -> R5年度 | F15: ①生年月日 | G15: ②給与収入 | H15: ③年金収入 | I15: ④その他 所得 | J15: ⑤固定 資産税額 | K15: ⑤特例軽減該当 | L15: ⑥年度途中 加入月 | M15: ⑥年度途中 脱退月 | N15: 備考 | O15: ="R"&税率・条件!C1&"/1/1 時点年齢" -> R5/1/1 時点年齢 | P15: 医療･後期 加入月数 | Q15: 介護 加入月数 | S15: 4 月 | T15: 5 月 | U15: 6 月 | V15: 7 月 | W15: 8 月 | X15: 9 月 | Y15: 10 月 | Z15: 11 月 | AA15: 12 月 | AB15: 1 月 | AC15: 2 月 | AD15: 3 月 | AF15: 軽減 判定
B16: 世帯主の 保険証種別 | C16: 国 保 | E16: 1 | N16: =IF(Q16<>"","介護該当",IF(計算!B4="未就学",計算!B4,"")) ->  | O16: =IF(F16="","",IF(F16>=DATE(税率・条件!$C$1+2018,1,1),"誕生前",DATEDIF(F16,DATE(税率・条件!$C$1+2018,1,1),"Y")&"歳")) ->  | P16: =IF(F16="","",IF(計算!AI4=0,"",計算!AI4)) ->  | Q16: =IF(F16="","",IF(計算!AI5=0,"",計算!AI5)) ->  | S16: =計算!AJ4&CHAR(10)&計算!AJ5 ->  | T16: =計算!AK4&CHAR(10)&計算!AK5 ->  | U16: =計算!AL4&CHAR(10)&計算!AL5 ->  | V16: =計算!AM4&CHAR(10)&計算!AM5 ->  | W16: =計算!AN4&CHAR(10)&計算!AN5 ->  | X16: =計算!AO4&CHAR(10)&計算!AO5 ->  | Y16: =計算!AP4&CHAR(10)&計算!AP5 ->  | Z16: =計算!AQ4&CHAR(10)&計算!AQ5 ->  | AA16: =計算!AR4&CHAR(10)&計算!AR5 ->  | AB16: =計算!AS4&CHAR(10)&計算!AS5 ->  | AC16: =計算!AT4&CHAR(10)&計算!AT5 ->  | AD16: =計算!AU4&CHAR(10)&計算!AU5 ->  | AF16: =IF(AND($H$25<>"",$C$19="全員申告済み"),計算!S4,"") -> 
E17: =IF(E16<>"擬 主","２","１") -> ２ | N17: =IF(Q17<>"","介護該当",IF(計算!B6="未就学",計算!B6,"")) ->  | O17: =IF(F17="","",IF(F17>=DATE(税率・条件!$C$1+2018,1,1),"誕生前",DATEDIF(F17,DATE(税率・条件!$C$1+2018,1,1),"Y")&"歳")) ->  | P17: =IF(F17="","",IF(計算!AI6=0,"",計算!AI6)) ->  | Q17: =IF(F17="","",IF(計算!AI7=0,"",計算!AI7)) ->  | S17: =計算!AJ6&CHAR(10)&計算!AJ7 ->  | T17: =計算!AK6&CHAR(10)&計算!AK7 ->  | U17: =計算!AL6&CHAR(10)&計算!AL7 ->  | V17: =計算!AM6&CHAR(10)&計算!AM7 ->  | W17: =計算!AN6&CHAR(10)&計算!AN7 ->  | X17: =計算!AO6&CHAR(10)&計算!AO7 ->  | Y17: =計算!AP6&CHAR(10)&計算!AP7 ->  | Z17: =計算!AQ6&CHAR(10)&計算!AQ7 ->  | AA17: =計算!AR6&CHAR(10)&計算!AR7 ->  | AB17: =計算!AS6&CHAR(10)&計算!AS7 ->  | AC17: =計算!AT6&CHAR(10)&計算!AT7 ->  | AD17: =計算!AU6&CHAR(10)&計算!AU7 ->  | AF17: =IF(AND($H$25<>"",$C$19="全員申告済み"),計算!S6,"") -> 
E18: =IF(E16<>"擬 主","３","２") -> ３ | N18: =IF(Q18<>"","介護該当",IF(計算!B8="未就学",計算!B8,"")) ->  | O18: =IF(F18="","",IF(F18>=DATE(税率・条件!$C$1+2018,1,1),"誕生前",DATEDIF(F18,DATE(税率・条件!$C$1+2018,1,1),"Y")&"歳")) ->  | P18: =IF(F18="","",IF(計算!AI8=0,"",計算!AI8)) ->  | Q18: =IF(F18="","",IF(計算!AI9=0,"",計算!AI9)) ->  | S18: =計算!AJ8&CHAR(10)&計算!AJ9 ->  | T18: =計算!AK8&CHAR(10)&計算!AK9 ->  | U18: =計算!AL8&CHAR(10)&計算!AL9 ->  | V18: =計算!AM8&CHAR(10)&計算!AM9 ->  | W18: =計算!AN8&CHAR(10)&計算!AN9 ->  | X18: =計算!AO8&CHAR(10)&計算!AO9 ->  | Y18: =計算!AP8&CHAR(10)&計算!AP9 ->  | Z18: =計算!AQ8&CHAR(10)&計算!AQ9 ->  | AA18: =計算!AR8&CHAR(10)&計算!AR9 ->  | AB18: =計算!AS8&CHAR(10)&計算!AS9 ->  | AC18: =計算!AT8&CHAR(10)&計算!AT9 ->  | AD18: =計算!AU8&CHAR(10)&計算!AU9 ->  | AF18: =IF(AND($H$25<>"",$C$19="全員申告済み"),計算!S8,"") -> 
B19: 世帯主及び 国保加入者 の申告状況 | C19: 未申告者有り | E19: =IF(E16<>"擬 主","４","３") -> ４ | N19: =IF(Q19<>"","介護該当",IF(計算!B10="未就学",計算!B10,"")) ->  | O19: =IF(F19="","",IF(F19>=DATE(税率・条件!$C$1+2018,1,1),"誕生前",DATEDIF(F19,DATE(税率・条件!$C$1+2018,1,1),"Y")&"歳")) ->  | P19: =IF(F19="","",IF(計算!AI10=0,"",計算!AI10)) ->  | Q19: =IF(F19="","",IF(計算!AI11=0,"",計算!AI11)) ->  | S19: =計算!AJ10&CHAR(10)&計算!AJ11 ->  | T19: =計算!AK10&CHAR(10)&計算!AK11 ->  | U19: =計算!AL10&CHAR(10)&計算!AL11 ->  | V19: =計算!AM10&CHAR(10)&計算!AM11 ->  | W19: =計算!AN10&CHAR(10)&計算!AN11 ->  | X19: =計算!AO10&CHAR(10)&計算!AO11 ->  | Y19: =計算!AP10&CHAR(10)&計算!AP11 ->  | Z19: =計算!AQ10&CHAR(10)&計算!AQ11 ->  | AA19: =計算!AR10&CHAR(10)&計算!AR11 ->  | AB19: =計算!AS10&CHAR(10)&計算!AS11 ->  | AC19: =計算!AT10&CHAR(10)&計算!AT11 ->  | AD19: =計算!AU10&CHAR(10)&計算!AU11 ->  | AF19: =IF(AND($H$25<>"",$C$19="全員申告済み"),計算!S10,"") -> 
E20: =IF(E16<>"擬 主","５","４") -> ５ | N20: =IF(Q20<>"","介護該当",IF(計算!B12="未就学",計算!B12,"")) ->  | O20: =IF(F20="","",IF(F20>=DATE(税率・条件!$C$1+2018,1,1),"誕生前",DATEDIF(F20,DATE(税率・条件!$C$1+2018,1,1),"Y")&"歳")) ->  | P20: =IF(F20="","",IF(計算!AI12=0,"",計算!AI12)) ->  | Q20: =IF(F20="","",IF(計算!AI13=0,"",計算!AI13)) ->  | S20: =計算!AJ12&CHAR(10)&計算!AJ13 ->  | T20: =計算!AK12&CHAR(10)&計算!AK13 ->  | U20: =計算!AL12&CHAR(10)&計算!AL13 ->  | V20: =計算!AM12&CHAR(10)&計算!AM13 ->  | W20: =計算!AN12&CHAR(10)&計算!AN13 ->  | X20: =計算!AO12&CHAR(10)&計算!AO13 ->  | Y20: =計算!AP12&CHAR(10)&計算!AP13 ->  | Z20: =計算!AQ12&CHAR(10)&計算!AQ13 ->  | AA20: =計算!AR12&CHAR(10)&計算!AR13 ->  | AB20: =計算!AS12&CHAR(10)&計算!AS13 ->  | AC20: =計算!AT12&CHAR(10)&計算!AT13 ->  | AD20: =計算!AU12&CHAR(10)&計算!AU13 ->  | AF20: =IF(AND($H$25<>"",$C$19="全員申告済み"),計算!S12,"") -> 
E21: =IF(E16<>"擬 主","６","５") -> ６ | N21: =IF(Q21<>"","介護該当",IF(計算!B14="未就学",計算!B14,"")) ->  | O21: =IF(F21="","",IF(F21>=DATE(税率・条件!$C$1+2018,1,1),"誕生前",DATEDIF(F21,DATE(税率・条件!$C$1+2018,1,1),"Y")&"歳")) ->  | P21: =IF(F21="","",IF(計算!AI14=0,"",計算!AI14)) ->  | Q21: =IF(F21="","",IF(計算!AI15=0,"",計算!AI15)) ->  | S21: =計算!AJ14&CHAR(10)&計算!AJ15 ->  | T21: =計算!AK14&CHAR(10)&計算!AK15 ->  | U21: =計算!AL14&CHAR(10)&計算!AL15 ->  | V21: =計算!AM14&CHAR(10)&計算!AM15 ->  | W21: =計算!AN14&CHAR(10)&計算!AN15 ->  | X21: =計算!AO14&CHAR(10)&計算!AO15 ->  | Y21: =計算!AP14&CHAR(10)&計算!AP15 ->  | Z21: =計算!AQ14&CHAR(10)&計算!AQ15 ->  | AA21: =計算!AR14&CHAR(10)&計算!AR15 ->  | AB21: =計算!AS14&CHAR(10)&計算!AS15 ->  | AC21: =計算!AT14&CHAR(10)&計算!AT15 ->  | AD21: =計算!AU14&CHAR(10)&計算!AU15 ->  | AF21: =IF(AND($H$25<>"",$C$19="全員申告済み"),計算!S14,"") -> 
E22: =IF(E16<>"擬 主","７","６") -> ７ | N22: =IF(Q22<>"","介護該当",IF(計算!B16="未就学",計算!B16,"")) ->  | O22: =IF(F22="","",IF(F22>=DATE(税率・条件!$C$1+2018,1,1),"誕生前",DATEDIF(F22,DATE(税率・条件!$C$1+2018,1,1),"Y")&"歳")) ->  | P22: =IF(F22="","",IF(計算!AI16=0,"",計算!AI16)) ->  | Q22: =IF(F22="","",IF(計算!AI17=0,"",計算!AI17)) ->  | S22: =計算!AJ16&CHAR(10)&計算!AJ17 ->  | T22: =計算!AK16&CHAR(10)&計算!AK17 ->  | U22: =計算!AL16&CHAR(10)&計算!AL17 ->  | V22: =計算!AM16&CHAR(10)&計算!AM17 ->  | W22: =計算!AN16&CHAR(10)&計算!AN17 ->  | X22: =計算!AO16&CHAR(10)&計算!AO17 ->  | Y22: =計算!AP16&CHAR(10)&計算!AP17 ->  | Z22: =計算!AQ16&CHAR(10)&計算!AQ17 ->  | AA22: =計算!AR16&CHAR(10)&計算!AR17 ->  | AB22: =計算!AS16&CHAR(10)&計算!AS17 ->  | AC22: =計算!AT16&CHAR(10)&計算!AT17 ->  | AD22: =計算!AU16&CHAR(10)&計算!AU17 ->  | AF22: =IF(AND($H$25<>"",$C$19="全員申告済み"),計算!S16,"") -> 
E23: =IF(E16<>"擬 主","８","７") -> ８ | N23: =IF(Q23<>"","介護該当",IF(計算!B18="未就学",計算!B18,"")) ->  | O23: =IF(F23="","",IF(F23>=DATE(税率・条件!$C$1+2018,1,1),"誕生前",DATEDIF(F23,DATE(税率・条件!$C$1+2018,1,1),"Y")&"歳")) ->  | P23: =IF(F23="","",IF(計算!AI18=0,"",計算!AI18)) ->  | Q23: =IF(F23="","",IF(計算!AI19=0,"",計算!AI19)) ->  | S23: =計算!AJ18&CHAR(10)&計算!AJ19 ->  | T23: =計算!AK18&CHAR(10)&計算!AK19 ->  | U23: =計算!AL18&CHAR(10)&計算!AL19 ->  | V23: =計算!AM18&CHAR(10)&計算!AM19 ->  | W23: =計算!AN18&CHAR(10)&計算!AN19 ->  | X23: =計算!AO18&CHAR(10)&計算!AO19 ->  | Y23: =計算!AP18&CHAR(10)&計算!AP19 ->  | Z23: =計算!AQ18&CHAR(10)&計算!AQ19 ->  | AA23: =計算!AR18&CHAR(10)&計算!AR19 ->  | AB23: =計算!AS18&CHAR(10)&計算!AS19 ->  | AC23: =計算!AT18&CHAR(10)&計算!AT19 ->  | AD23: =計算!AU18&CHAR(10)&計算!AU19 ->  | AF23: =IF(AND($H$25<>"",$C$19="全員申告済み"),計算!S18,"") -> 
K24: 月別税額（医療+後期+介護） ※端数調整は行っていません | U24: =IF(AND($H$25<>"",$C$19="全員申告済み"),"※黄色のセルが軽減判定対象者","") -> 
B25: 平 等 割 | C25: 軽減なし | F25: 国保加入者数 | H25: =IF(OR(COUNT(P16:P23)=0,F16=""),"",COUNT(P16:P23)) ->  | K25: 4 | L25: =IF(H25="","",計算!Z80) ->  | M25: 10
F26: =IF(計算!M35="","軽 減 該 当","強制軽減該当") -> 軽 減 該 当 | H26: =IF(H25="","",IF(計算!M34=70%,"７割軽減",IF(計算!M34=50%,"５割軽減",IF(計算!M34=20%,"２割軽減","軽減なし")))) ->  | I26: =IF(OR(I27<>"",I28<>"",I29<>""),"※月割限度","") ->  | K26: 5 | L26: =IF(H25="","",計算!AA80) ->  | M26: 11
F27: 医 療 分 税額 | H27: =IF(H25="","",計算!R28) ->  | I27: =IF(COUNTIF(計算!Z50:AQ50,"該当")=0,""," "&COUNTIF(計算!Z50:AQ50,"該当")&"ｶ月該当") ->  | K27: 6 | L27: =IF(H25="","",計算!AB80) ->  | M27: 12
F28: 支援金分 税額 | H28: =IF(H25="","",計算!R33) ->  | I28: =IF(COUNTIF(計算!Z64:AQ64,"該当")=0,""," "&COUNTIF(計算!Z64:AQ64,"該当")&"ｶ月該当") ->  | K28: 7 | L28: =IF(H25="","",計算!AC80) ->  | M28: 1
F29: 介 護 分 税額 | H29: =IF(H25="","",計算!R38) ->  | I29: =IF(COUNTIF(計算!Z78:AQ78,"該当")=0,""," "&COUNTIF(計算!Z78:AQ78,"該当")&"ｶ月該当") ->  | K29: 8 | L29: =IF(H25="","",計算!AD80) ->  | M29: 2
F30: 保険税額（加入月分） | H30: =IF(H25="","",SUM(H27:H29)) ->  | K30: 9 | L30: =IF(H25="","",計算!AE80) ->  | M30: 3
F32: ※月割りしたものを基準に保険税額（加入月分）の計算を行っているため、計算結果が若干ずれる場合があります。
E33: =IF(計算!L47<>"",計算!L47&"加入期間を別々に入力し計算してください。"&CHAR(10),"")&IF(OR(AND(E16<>"擬 主",G16>8500000),G17>8500000,G18>8500000,G19>8500000,G20>8500000,G21>8500000,G22>8500000,G23>8500000),"※注意！！！ 給与収入が850万円を超えた人が存在します。"&CHAR(10)&" 所得金額調整控除が該当となる場合、国保税が高く計算される場合があります。"&CHAR(10),"")&IF(OR(AND(E16="擬 主",K16="該 当")),"※ 「擬主」なのに、特例軽減が「該当」になっています。"&CHAR(10),"")&IF(OR(AND(E16<>"擬 主",G16="",K16="該 当"),AND(G17="",K17="該 当"),AND(G18="",K18="該 当"),AND(G19="",K19="該 当"),AND(G20="",K20="該 当"),AND(G21="",K21="該 当"),AND(G22="",K22="該 当"),AND(G23="",K23="該 当")),"※ 給与収入が入力されていないのに、特例軽減が「該当」になっているものがあります。"&CHAR(10),"")&IF(OR(AND(E16<>"擬 主",LEFT(O16,1)="6",K16="該 当",Q16<>P16),AND(LEFT(O17,1)="6",K17="該 当",Q17<>P17),AND(LEFT(O18,1)="6",K18="該 当",Q18<>P18),AND(LEFT(O19,1)="6",K19="該 当",Q19<>P19),AND(LEFT(O20,1)="6",K20="該 当",Q20<>P20),AND(LEFT(O21,1)="6",K21="該 当",Q21<>P21),AND(LEFT(O22,1)="6",K22="該 当",Q22<>P22),AND(LEFT(O23,1)="6",K23="該 当",Q23<>P23)),"※ 65歳を超えているのに、特例軽減が「該当」になっているものがあります。確認してください。"&CHAR(10),"") -> 
E34: 特定同一世帯の軽減判定が正しく出ない場合があります。 よく確認をし、必要に応じて強制軽減で対応してください。
D37: ="参考：平成"&DBCS(#REF!)&"税率で計算" -> 
G38: 税額 | H38: =税率・条件!C1&"-"&#REF!&"年度" -> 
E39: 医療分年税額 | G39: =IF(H25="","",計算!#REF!) ->  | H39: =IF(H25="","",H27-G39) -> 
E40: 支援金分年税額 | G40: =IF(H25="","",計算!#REF!) ->  | H40: =IF(H25="","",H28-G40) -> 
E41: 介護分年税額 | G41: =IF(H25="","",計算!#REF!) ->  | H41: =IF(H25="","",H29-G41) -> 
E42: 年 税 額 | G42: =IF(H25="","",SUM(G39:G41)) ->  | H42: =IF(H25="","",SUM(H39:H41)) -> 
E48: =IF(OR(AND(E16<>"擬 主",LEFT(O16,1)="6",K16="該 当",Q16<>12),AND(LEFT(O17,1)="6",K17="該 当",Q17<>12),AND(LEFT(O18,1)="6",K18="該 当",Q18<>12),AND(LEFT(O19,1)="6",K19="該 当",Q19<>12),AND(LEFT(O20,1)="6",K20="該 当",Q20<>12),AND(LEFT(O21,1)="6",K21="該 当",Q21<>12),AND(LEFT(O22,1)="6",K22="該 当",Q22<>12),AND(LEFT(O23,1)="6",K23="該 当",Q23<>12)),"※ 65歳を超えているのに、特例軽減が「該当」になっているものがあります。確認してください。"&CHAR(10),"") -> 

Sheet 計算 (hidden)
T1: ="令和"&DBCS(税率・条件!C1)&"年度税率で計算（加入者全員が年間加入の場合で計算。端数調整前。）" -> 令和５年度税率で計算（加入者全員が年間加入の場合で計算。端数調整前。） | AY1: ※全員：加入期間税額計算
B2: 年齢区分 | C2: 給与収入 | I2: 年金収入 | M2: その他所得 | N2: 所得計 | O2: 医療・支援 課税標準 | P2: 介護 課税標準 | Q2: 軽判所得 (年金加算含む) | R2: 給与所得者等該当 | S2: 軽減判定計算該当 | T2: 医療分 | Y2: 後期支援金 | AD2: 介護分 | AI2: 加入月（上段：医療・後期、下段：介護） | AW2: 賦課 期日 判定 欄 | AY2: 月割分で計算。端数処理前
C3: 特例軽減 | D3: 給与所得 | E3: 給与＆年金 あり控除 | F3: 控除後給与所得 | G3: 給与＆年金 あり控除 (軽判所得) | H3: 軽判所得 | I3: 率 | J3: 控除額 | K3: 年金所得 | L3: 軽判所得 | T3: 所得割 | U3: 資産割 | V3: 均等割 | W3: 平等割 | X3: 計 | Y3: 所得割 | Z3: 資産割 | AA3: 均等割 | AB3: 平等割 | AC3: 計 | AD3: 所得割 | AE3: 資産割 | AF3: 均等割 | AG3: 平等割 | AH3: 計 | AI3: 計 | AJ3: 4 | AK3: 5 | AL3: 6 | AM3: 7 | AN3: 8 | AO3: 9 | AP3: 10 | AQ3: 11 | AR3: 12 | AS3: 1 | AT3: 2 | AU3: 3 | AZ3: 4 | BA3: 5 | BB3: 6 | BC3: 7 | BD3: 8 | BE3: 9 | BF3: 10 | BG3: 11 | BH3: 12 | BI3: 1 | BJ3: 2 | BK3: 3 | BL3: 計 （小数2位） | BM3: 計 （調整後）
A4: =IF(LEFT(入力!E16,1)="世","主",LEFT(入力!E16,1)) -> 1 | B4: =IF(入力!F16="","",IF(入力!F16<=DATE(税率・条件!C1+1953,1,1),"65歳以上",IF(入力!F16>DATE(税率・条件!C1+2012,4,1),"未就学","一般"))) ->  | C4: =IF(D4="","",IF(AND(入力!E16<>"擬 主",入力!K16="該 当"),"該当","非該当")) ->  | D4: =IF(入力!G16="","",ROUNDDOWN(VLOOKUP(入力!G16,$B$24:$J$35,2,1)*IF(AND(入力!E16<>"擬 主",入力!K16="該 当"),0.3,1),0)) ->  | E4: =IF(D4="","",IF(OR(D4="",K4=""),0,IF(D4+K4<100000,0,IF(D4<100000,D4,100000)+IF(K4<100000,K4,100000)-100000))) ->  | F4: =IF(D4="","",D4-E4) ->  | G4: =IF(D4="","",IF(OR(D4="",L4=""),0,IF(D4+L4<100000,0,IF(D4<100000,D4,100000)+IF(L4<100000,L4,100000)-100000))) ->  | H4: =IF(D4="","",D4-G4) ->  | I4: =IF(入力!H16="","",IF(B4="65歳以上",VLOOKUP(入力!H16,$B$48:$D$52,2,1),VLOOKUP(入力!H16,$B$40:$D$44,2,1))) ->  | J4: =IF(I4="","",IF(B4="65歳以上",VLOOKUP(入力!H16,$B$48:$D$52,3,1),VLOOKUP(入力!H16,$B$40:$D$44,3,1))) ->  | K4: =IF(I4="","",IF(入力!H16*計算!I4/100-計算!J4<0,0,ROUNDDOWN(入力!H16*計算!I4/100-計算!J4,0))) ->  | L4: =IF(K4="","",IF(B4="65歳以上",IF(K4<税率・条件!$G$9,0,K4-税率・条件!$G$9),K4)) ->  | M4: =IF(入力!I16="","",入力!I16) ->  | N4: =IF(入力!F16="","",SUM(F4,K4,M4)) ->  | O4: =IF(入力!F16="","",IF(入力!P16<>"",IF(計算!N4-430000>0,計算!N4-430000,0),"")) ->  | P4: =IF(入力!F16="","",IF(入力!Q16<>"",IF(計算!N4-430000>0,計算!N4-430000,0),"")) ->  | Q4: =IF(N4="","",SUM(H4,L4,M4)) ->  | R4: =IF(AND(D4="",K4=""),"",IF(OR(入力!G16>550000,AND(B4="65歳以上",入力!H16>1250000),AND(B4<>"65歳以上",入力!H16>600000)),1,"")) ->  | S4: =IF(N4="","",IF(AND(入力!$H$25<>"",入力!$C$19="全員申告済み",$AW$4=$AW$20),"該当","")) ->  | T4: =IF($O4="","",ROUNDDOWN($O4*税率・条件!$C$4/100,0)) ->  | U4: =IF(入力!$P16="","",ROUNDDOWN(入力!$J16*税率・条件!$C$5/100,0)) ->  | V4: =IF(入力!$P16="","",ROUNDDOWN(税率・条件!$C$6*(100%-IF(B4="未就学",税率・条件!$H$11,0%))*(100%-$M$34),0)) ->  | W4: =IF(COUNT(入力!$P$16:$P$23)>0,ROUNDDOWN(税率・条件!$C$7*(100%-$M$34)*IF(入力!$C$25="1/2軽減",0.5,IF(入力!$C$25="1/4軽減",0.75,1)),0),"") ->  | X4: =IF(SUM(T4:W4)>0,SUM(T4:W4),"") ->  | Y4: =IF($O4="","",ROUNDDOWN($O4*税率・条件!$C$9/100,0)) ->  | Z4: =IF(入力!$P16="","",ROUNDDOWN(入力!$J16*税率・条件!$C$10/100,0)) ->  | AA4: =IF(入力!$P16="","",ROUNDDOWN(税率・条件!$C$11*(100%-IF(B4="未就学",税率・条件!$H$11,0%))*(100%-$M$34),0)) ->  | AB4: =IF(COUNT(入力!$P$16:$P$23)>0,ROUNDDOWN(税率・条件!$C$12*(100%-$M$34)*IF(入力!$C$25="1/2軽減",0.5,IF(入力!$C$25="1/4軽減",0.75,1)),0),"") ->  | AC4: =IF(SUM(Y4:AB4)>0,SUM(Y4:AB4),"") ->  | AD4: =IF($P4="","",ROUNDDOWN($P4*税率・条件!$C$14/100,0)) ->  | AE4: =IF(入力!$Q16="","",ROUNDDOWN(入力!$J16*税率・条件!$C$15/100,0)) ->  | AF4: =IF(入力!$Q16="","",ROUNDDOWN(税率・条件!$C$16*(100%-$M$34),0)) ->  | AG4: =IF(COUNT(入力!$Q$16:$Q$23)>0,ROUNDDOWN(税率・条件!$C$17*(100%-$M$34),0),"") ->  | AH4: =IF(SUM(AD4:AG4)>0,SUM(AD4:AG4),"") ->  | AI4: =IF(入力!$F$16="","",IF(入力!C16="社保等","",COUNTIF(AJ4:AU4,"●"))) ->  | AJ4: =IF(入力!$F$16="","",IF(入力!C16="社保等","",IF(入力!$F$16>=DATE(税率・条件!$C$1+2018,計算!AJ$3+1,1),"",IF(入力!$F$16>=DATE(税率・条件!$C$1+2018-75,計算!AJ$3+1,1),IF(OR(AND(入力!L16="",OR(入力!M16="",入力!M16>4,入力!M16<4)),AND(入力!L16=4,OR(入力!M16="",入力!M16>4,入力!M16<4))),"●",""),"")))) ->  | AK4: =IF(入力!$F$16="","",IF(入力!C16="社保等","",IF(入力!$F$16>=DATE(税率・条件!$C$1+2018,計算!AK$3+1,1),"",IF(入力!$F$16>=DATE(税率・条件!$C$1+2018-75,計算!AK$3+1,1),IF(OR(AND(入力!L16="",OR(入力!M16="",入力!M16>5,入力!M16<4)),AND(入力!L16=4,OR(入力!M16="",入力!M16>5,入力!M16<4)),AND(入力!L16=5,OR(入力!M16="",入力!M16>5,入力!M16<4))),"●",""),"")))) ->  | AL4: =IF(入力!$F$16="","",IF(入力!C16="社保等","",IF(入力!$F$16>=DATE(税率・条件!$C$1+2018,計算!AL$3+1,1),"",IF(入力!$F$16>=DATE(税率・条件!$C$1+2018-75,計算!AL$3+1,1),IF(OR(AND(入力!L16="",OR(入力!M16="",入力!M16>6,入力!M16<4)),AND(入力!L16=4,OR(入力!M16="",入力!M16>6,入力!M16<4)),AND(入力!L16=5,OR(入力!M16="",入力!M16>6,入力!M16<4)),AND(入力!L16=6,OR(入力!M16="",入力!M16>6,入力!M16<4))),"●",""),"")))) ->  | AM4: =IF(入力!$F$16="","",IF(入力!C16="社保等","",IF(入力!$F$16>=DATE(税率・条件!$C$1+2018,計算!AM$3+1,1),"",IF(入力!$F$16>=DATE(税率・条件!$C$1+2018-75,計算!AM$3+1,1),IF(OR(AND(入力!L16="",OR(入力!M16="",入力!M16>7,入力!M16<4)),AND(入力!L16=4,OR(入力!M16="",入力!M16>7,入力!M16<4)),AND(入力!L16=5,OR(入力!M16="",入力!M16>7,入力!M16<4)),AND(入力!L16=6,OR(入力!M16="",入力!M16>7,入力!M16<4)),AND(入力!L16=7,OR(入力!M16="",入力!M16>7,入力!M16<4))),"●",""),"")))) ->  | AN4: =IF(入力!$F$16="","",IF(入力!C16="社保等","",IF(入力!$F$16>=DATE(税率・条件!$C$1+2018,計算!AN$3+1,1),"",IF(入力!$F$16>=DATE(税率・条件!$C$1+2018-75,計算!AN$3+1,1),IF(OR(AND(入力!L16="",OR(入力!M16="",入力!M16>8,入力!M16<4)),AND(入力!L16=4,OR(入力!M16="",入力!M16>8,入力!M16<4)),AND(入力!L16=5,OR(入力!M16="",入力!M16>8,入力!M16<4)),AND(入力!L16=6,OR(入力!M16="",入力!M16>8,入力!M16<4)),AND(入力!L16=7,OR(入力!M16="",入力!M16>8,入力!M16<4)),AND(入力!L16=8,OR(入力!M16="",入力!M16>8,入力!M16<4))),"●",""),"")))) ->  | AO4: =IF(入力!$F$16="","",IF(入力!C16="社保等","",IF(入力!$F$16>=DATE(税率・条件!$C$1+2018,計算!AO$3+1,1),"",IF(入力!$F$16>=DATE(税率・条件!$C$1+2018-75,計算!AO$3+1,1),IF(OR(AND(入力!L16="",OR(入力!M16="",入力!M16>9,入力!M16<4)),AND(入力!L16=4,OR(入力!M16="",入力!M16>9,入力!M16<4)),AND(入力!L16=5,OR(入力!M16="",入力!M16>9,入力!M16<4)),AND(入力!L16=6,OR(入力!M16="",入力!M16>9,入力!M16<4)),AND(入力!L16=7,OR(入力!M16="",入力!M16>9,入力!M16<4)),AND(入力!L16=8,OR(入力!M16="",入力!M16>9,入力!M16<4)),AND(入力!L16=9,OR(入力!M16="",入力!M16>9,入力!M16<4))),"●",""),"")))) ->  | AP4: =IF(入力!$F$16="","",IF(入力!C16="社保等","",IF(入力!$F$16>=DATE(税率・条件!$C$1+2018,計算!AP$3+1,1),"",IF(入力!$F$16>=DATE(税率・条件!$C$1+2018-75,計算!AP$3+1,1),IF(OR(AND(入力!L16="",OR(入力!M16="",入力!M16>10,入力!M16<4)),AND(入力!L16=4,OR(入力!M16="",入力!M16>10,入力!M16<4)),AND(入力!L16=5,OR(入力!M16="",入力!M16>10,入力!M16<4)),AND(入力!L16=6,OR(入力!M16="",入力!M16>10,入力!M16<4)),AND(入力!L16=7,OR(入力!M16="",入力!M16>10,入力!M16<4)),AND(入力!L16=8,OR(入力!M16="",入力!M16>10,入力!M16<4)),AND(入力!L16=9,OR(入力!M16="",入力!M16>10,入力!M16<4)),AND(入力!L16=10,OR(入力!M16="",入力!M16>10,入力!M16<4))),"●",""),"")))) ->  | AQ4: =IF(入力!$F$16="","",IF(入力!C16="社保等","",IF(入力!$F$16>=DATE(税率・条件!$C$1+2018,計算!AQ$3+1,1),"",IF(入力!$F$16>=DATE(税率・条件!$C$1+2018-75,計算!AQ$3+1,1),IF(OR(AND(入力!L16="",OR(入力!M16="",入力!M16>11,入力!M16<4)),AND(入力!L16=4,OR(入力!M16="",入力!M16>11,入力!M16<4)),AND(入力!L16=5,OR(入力!M16="",入力!M16>11,入力!M16<4)),AND(入力!L16=6,OR(入力!M16="",入力!M16>11,入力!M16<4)),AND(入力!L16=7,OR(入力!M16="",入力!M16>11,入力!M16<4)),AND(入力!L16=8,OR(入力!M16="",入力!M16>11,入力!M16<4)),AND(入力!L16=9,OR(入力!M16="",入力!M16>11,入力!M16<4)),AND(入力!L16=10,OR(入力!M16="",入力!M16>11,入力!M16<4)),AND(入力!L16=11,OR(入力!M16="",入力!M16>11,入力!M16<4))),"●",""),"")))) ->  | AR4: =IF(入力!$F$16="","",IF(入力!C16="社保等","",IF(入力!$F$16>=DATE(税率・条件!$C$1+2018,計算!AR$3+1,1),"",IF(入力!$F$16>=DATE(税率・条件!$C$1+2018-75,計算!AR$3+1,1),IF(OR(AND(入力!L16="",OR(入力!M16="",入力!M16>12,入力!M16<4)),AND(入力!L16=4,OR(入力!M16="",入力!M16>12,入力!M16<4)),AND(入力!L16=5,OR(入力!M16="",入力!M16>12,入力!M16<4)),AND(入力!L16=6,OR(入力!M16="",入力!M16>12,入力!M16<4)),AND(入力!L16=7,OR(入力!M16="",入力!M16>12,入力!M16<4)),AND(入力!L16=8,OR(入力!M16="",入力!M16>12,入力!M16<4)),AND(入力!L16=9,OR(入力!M16="",入力!M16>12,入力!M16<4)),AND(入力!L16=10,OR(入力!M16="",入力!M16>12,入力!M16<4)),AND(入力!L16=11,OR(入力!M16="",入力!M16>12,入力!M16<4)),AND(入力!L16=12,OR(入力!M16="",入力!M16>12,入力!M16<4))),"●",""),"")))) ->  | AS4: =IF(入力!$F$16="","",IF(入力!C16="社保等","",IF(入力!$F$16>=DATE(税率・条件!$C$1+2019,計算!AS$3+1,1),"",IF(入力!$F$16>=DATE(税率・条件!$C$1+2019-75,計算!AS$3+1,1),IF(OR(AND(入力!L16="",OR(入力!M16="",入力!M16=2,入力!M16=3)),AND(入力!L16=4,OR(入力!M16="",入力!M16=2,入力!M16=3)),AND(入力!L16=5,OR(入力!M16="",入力!M16=2,入力!M16=3)),AND(入力!L16=6,OR(入力!M16="",入力!M16=2,入力!M16=3)),AND(入力!L16=7,OR(入力!M16="",入力!M16=2,入力!M16=3)),AND(入力!L16=8,OR(入力!M16="",入力!M16=2,入力!M16=3)),AND(入力!L16=9,OR(入力!M16="",入力!M16=2,入力!M16=3)),AND(入力!L16=10,OR(入力!M16="",入力!M16=2,入力!M16=3)),AND(入力!L16=11,OR(入力!M16="",入力!M16=2,入力!M16=3)),AND(入力!L16=12,OR(入力!M16="",入力!M16=2,入力!M16=3)),AND(入力!L16=1,OR(入力!M16="",入力!M16=2,入力!M16=3))),"●",""),"")))) ->  | AT4: =IF(入力!$F$16="","",IF(入力!C16="社保等","",IF(入力!$F$16>=DATE(税率・条件!$C$1+2019,計算!AT$3+1,1),"",IF(入力!$F$16>=DATE(税率・条件!$C$1+2019-75,計算!AT$3+1,1),IF(OR(AND(入力!L16="",OR(入力!M16="",入力!M16=3)),AND(入力!L16=4,OR(入力!M16="",入力!M16=3)),AND(入力!L16=5,OR(入力!M16="",入力!M16=3)),AND(入力!L16=6,OR(入力!M16="",入力!M16=3)),AND(入力!L16=7,OR(入力!M16="",入力!M16=3)),AND(入力!L16=8,OR(入力!M16="",入力!M16=3)),AND(入力!L16=9,OR(入力!M16="",入力!M16=3)),AND(入力!L16=10,OR(入力!M16="",入力!M16=3)),AND(入力!L16=11,OR(入力!M16="",入力!M16=3)),AND(入力!L16=12,OR(入力!M16="",入力!M16=3)),AND(入力!L16=1,OR(入力!M16="",入力!M16=3)),AND(入力!L16=2,OR(入力!M16="",入力!M16=3))),"●",""),"")))) ->  | AU4: =IF(入力!$F$16="","",IF(入力!C16="社保等","",IF(入力!$F$16>=DATE(税率・条件!$C$1+2019,計算!AU$3+1,1),"",IF(入力!$F$16>=DATE(税率・条件!$C$1+2019-75,計算!AU$3+1,1),IF(OR(AND(入力!L16="",入力!M16=""),AND(入力!L16=4,入力!M16=""),AND(入力!L16=5,入力!M16=""),AND(入力!L16=6,入力!M16=""),AND(入力!L16=7,入力!M16=""),AND(入力!L16=8,入力!M16=""),AND(入力!L16=9,入力!M16=""),AND(入力!L16=10,入力!M16=""),AND(入力!L16=11,入力!M16=""),AND(入力!L16=12,入力!M16=""),AND(入力!L16=1,入力!M16=""),AND(入力!L16=2,入力!M16=""),AND(入力!L16=3,入力!M16="")),"●",""),"")))) ->  | AW4: =AW20 ->  | AY4: 医療分(所) | AZ4: =ROUND(ROUNDDOWN((IF(AJ$4="",0,$O4)+IF(AJ$6="",0,$O6)+IF(AJ$8="",0,$O8)+IF(AJ$10="",0,$O10)+IF(AJ$12="",0,$O12)+IF(AJ$14="",0,$O14)+IF(AJ$16="",0,$O16)+IF(AJ$18="",0,$O18))*税率・条件!$C$4/100,0)/12,2) -> 0 | BA4: =ROUND(ROUNDDOWN((IF(AK$4="",0,$O4)+IF(AK$6="",0,$O6)+IF(AK$8="",0,$O8)+IF(AK$10="",0,$O10)+IF(AK$12="",0,$O12)+IF(AK$14="",0,$O14)+IF(AK$16="",0,$O16)+IF(AK$18="",0,$O18))*税率・条件!$C$4/100,0)/12,2) -> 0 | BB4: =ROUND(ROUNDDOWN((IF(AL$4="",0,$O4)+IF(AL$6="",0,$O6)+IF(AL$8="",0,$O8)+IF(AL$10="",0,$O10)+IF(AL$12="",0,$O12)+IF(AL$14="",0,$O14)+IF(AL$16="",0,$O16)+IF(AL$18="",0,$O18))*税率・条件!$C$4/100,0)/12,2) -> 0 | BC4: =ROUND(ROUNDDOWN((IF(AM$4="",0,$O4)+IF(AM$6="",0,$O6)+IF(AM$8="",0,$O8)+IF(AM$10="",0,$O10)+IF(AM$12="",0,$O12)+IF(AM$14="",0,$O14)+IF(AM$16="",0,$O16)+IF(AM$18="",0,$O18))*税率・条件!$C$4/100,0)/12,2) -> 0 | BD4: =ROUND(ROUNDDOWN((IF(AN$4="",0,$O4)+IF(AN$6="",0,$O6)+IF(AN$8="",0,$O8)+IF(AN$10="",0,$O10)+IF(AN$12="",0,$O12)+IF(AN$14="",0,$O14)+IF(AN$16="",0,$O16)+IF(AN$18="",0,$O18))*税率・条件!$C$4/100,0)/12,2) -> 0 | BE4: =ROUND(ROUNDDOWN((IF(AO$4="",0,$O4)+IF(AO$6="",0,$O6)+IF(AO$8="",0,$O8)+IF(AO$10="",0,$O10)+IF(AO$12="",0,$O12)+IF(AO$14="",0,$O14)+IF(AO$16="",0,$O16)+IF(AO$18="",0,$O18))*税率・条件!$C$4/100,0)/12,2) -> 0 | BF4: =ROUND(ROUNDDOWN((IF(AP$4="",0,$O4)+IF(AP$6="",0,$O6)+IF(AP$8="",0,$O8)+IF(AP$10="",0,$O10)+IF(AP$12="",0,$O12)+IF(AP$14="",0,$O14)+IF(AP$16="",0,$O16)+IF(AP$18="",0,$O18))*税率・条件!$C$4/100,0)/12,2) -> 0 | BG4: =ROUND(ROUNDDOWN((IF(AQ$4="",0,$O4)+IF(AQ$6="",0,$O6)+IF(AQ$8="",0,$O8)+IF(AQ$10="",0,$O10)+IF(AQ$12="",0,$O12)+IF(AQ$14="",0,$O14)+IF(AQ$16="",0,$O16)+IF(AQ$18="",0,$O18))*税率・条件!$C$4/100,0)/12,2) -> 0 | BH4: =ROUND(ROUNDDOWN((IF(AR$4="",0,$O4)+IF(AR$6="",0,$O6)+IF(AR$8="",0,$O8)+IF(AR$10="",0,$O10)+IF(AR$12="",0,$O12)+IF(AR$14="",0,$O14)+IF(AR$16="",0,$O16)+IF(AR$18="",0,$O18))*税率・条件!$C$4/100,0)/12,2) -> 0 | BI4: =ROUND(ROUNDDOWN((IF(AS$4="",0,$O4)+IF(AS$6="",0,$O6)+IF(AS$8="",0,$O8)+IF(AS$10="",0,$O10)+IF(AS$12="",0,$O12)+IF(AS$14="",0,$O14)+IF(AS$16="",0,$O16)+IF(AS$18="",0,$O18))*税率・条件!$C$4/100,0)/12,2) -> 0 | BJ4: =ROUND(ROUNDDOWN((IF(AT$4="",0,$O4)+IF(AT$6="",0,$O6)+IF(AT$8="",0,$O8)+IF(AT$10="",0,$O10)+IF(AT$12="",0,$O12)+IF(AT$14="",0,$O14)+IF(AT$16="",0,$O16)+IF(AT$18="",0,$O18))*税率・条件!$C$4/100,0)/12,2) -> 0 | BK4: =ROUND(ROUNDDOWN((IF(AU$4="",0,$O4)+IF(AU$6="",0,$O6)+IF(AU$8="",0,$O8)+IF(AU$10="",0,$O10)+IF(AU$12="",0,$O12)+IF(AU$14="",0,$O14)+IF(AU$16="",0,$O16)+IF(AU$18="",0,$O18))*税率・条件!$C$4/100,0)/12,2) -> 0 | BL4: =SUM(AZ4:BK4) -> 0 | BM4: =ROUNDDOWN(ROUND(BL4,1),0) -> 0
AI5: =IF(入力!$F$16="","",IF(入力!C16="社保等","",COUNTIF(AJ5:AU5,"■"))) ->  | AJ5: =IF(入力!$F$16="","",IF(入力!C16="社保等","",IF(AND(入力!$F$16>DATE(税率・条件!$C$1+2018-65,計算!AJ$3+1,1),入力!$F$16<=DATE(税率・条件!$C$1+2018-40,計算!AJ$3+1,1)),IF(OR(AND(入力!L16="",OR(入力!M16="",入力!M16>4,入力!M16<4)),AND(入力!L16=4,OR(入力!M16="",入力!M16>4,入力!M16<4))),"■",""),""))) ->  | AK5: =IF(入力!$F$16="","",IF(入力!C16="社保等","",IF(AND(入力!$F$16>DATE(税率・条件!$C$1+2018-65,計算!AK$3+1,1),入力!$F$16<=DATE(税率・条件!$C$1+2018-40,計算!AK$3+1,1)),IF(OR(AND(入力!L16="",OR(入力!M16="",入力!M16>5,入力!M16<4)),AND(入力!L16=4,OR(入力!M16="",入力!M16>5,入力!M16<4)),AND(入力!L16=5,OR(入力!M16="",入力!M16>5,入力!M16<4))),"■",""),""))) ->  | AL5: =IF(入力!$F$16="","",IF(入力!C16="社保等","",IF(AND(入力!$F$16>DATE(税率・条件!$C$1+2018-65,計算!AL$3+1,1),入力!$F$16<=DATE(税率・条件!$C$1+2018-40,計算!AL$3+1,1)),IF(OR(AND(入力!L16="",OR(入力!M16="",入力!M16>6,入力!M16<4)),AND(入力!L16=4,OR(入力!M16="",入力!M16>6,入力!M16<4)),AND(入力!L16=5,OR(入力!M16="",入力!M16>6,入力!M16<4)),AND(入力!L16=6,OR(入力!M16="",入力!M16>6,入力!M16<4))),"■",""),""))) ->  | AM5: =IF(入力!$F$16="","",IF(入力!C16="社保等","",IF(AND(入力!$F$16>DATE(税率・条件!$C$1+2018-65,計算!AM$3+1,1),入力!$F$16<=DATE(税率・条件!$C$1+2018-40,計算!AM$3+1,1)),IF(OR(AND(入力!L16="",OR(入力!M16="",入力!M16>7,入力!M16<4)),AND(入力!L16=4,OR(入力!M16="",入力!M16>7,入力!M16<4)),AND(入力!L16=5,OR(入力!M16="",入力!M16>7,入力!M16<4)),AND(入力!L16=6,OR(入力!M16="",入力!M16>7,入力!M16<4)),AND(入力!L16=7,OR(入力!M16="",入力!M16>7,入力!M16<4))),"■",""),""))) ->  | AN5: =IF(入力!$F$16="","",IF(入力!C16="社保等","",IF(AND(入力!$F$16>DATE(税率・条件!$C$1+2018-65,計算!AN$3+1,1),入力!$F$16<=DATE(税率・条件!$C$1+2018-40,計算!AN$3+1,1)),IF(OR(AND(入力!L16="",OR(入力!M16="",入力!M16>8,入力!M16<4)),AND(入力!L16=4,OR(入力!M16="",入力!M16>8,入力!M16<4)),AND(入力!L16=5,OR(入力!M16="",入力!M16>8,入力!M16<4)),AND(入力!L16=6,OR(入力!M16="",入力!M16>8,入力!M16<4)),AND(入力!L16=7,OR(入力!M16="",入力!M16>8,入力!M16<4)),AND(入力!L16=8,OR(入力!M16="",入力!M16>8,入力!M16<4))),"■",""),""))) ->  | AO5: =IF(入力!$F$16="","",IF(入力!C16="社保等","",IF(AND(入力!$F$16>DATE(税率・条件!$C$1+2018-65,計算!AO$3+1,1),入力!$F$16<=DATE(税率・条件!$C$1+2018-40,計算!AO$3+1,1)),IF(OR(AND(入力!L16="",OR(入力!M16="",入力!M16>9,入力!M16<4)),AND(入力!L16=4,OR(入力!M16="",入力!M16>9,入力!M16<4)),AND(入力!L16=5,OR(入力!M16="",入力!M16>9,入力!M16<4)),AND(入力!L16=6,OR(入力!M16="",入力!M16>9,入力!M16<4)),AND(入力!L16=7,OR(入力!M16="",入力!M16>9,入力!M16<4)),AND(入力!L16=8,OR(入力!M16="",入力!M16>9,入力!M16<4)),AND(入力!L16=9,OR(入力!M16="",入力!M16>9,入力!M16<4))),"■",""),""))) ->  | AP5: =IF(入力!$F$16="","",IF(入力!C16="社保等","",IF(AND(入力!$F$16>DATE(税率・条件!$C$1+2018-65,計算!AP$3+1,1),入力!$F$16<=DATE(税率・条件!$C$1+2018-40,計算!AP$3+1,1)),IF(OR(AND(入力!L16="",OR(入力!M16="",入力!M16>10,入力!M16<4)),AND(入力!L16=4,OR(入力!M16="",入力!M16>10,入力!M16<4)),AND(入力!L16=5,OR(入力!M16="",入力!M16>10,入力!M16<4)),AND(入力!L16=6,OR(入力!M16="",入力!M16>10,入力!M16<4)),AND(入力!L16=7,OR(入力!M16="",入力!M16>10,入力!M16<4)),AND(入力!L16=8,OR(入力!M16="",入力!M16>10,入力!M16<4)),AND(入力!L16=9,OR(入力!M16="",入力!M16>10,入力!M16<4)),AND(入力!L16=10,OR(入力!M16="",入力!M16>10,入力!M16<4))),"■",""),""))) ->  | AQ5: =IF(入力!$F$16="","",IF(入力!C16="社保等","",IF(AND(入力!$F$16>DATE(税率・条件!$C$1+2018-65,計算!AQ$3+1,1),入力!$F$16<=DATE(税率・条件!$C$1+2018-40,計算!AQ$3+1,1)),IF(OR(AND(入力!L16="",OR(入力!M16="",入力!M16>11,入力!M16<4)),AND(入力!L16=4,OR(入力!M16="",入力!M16>11,入力!M16<4)),AND(入力!L16=5,OR(入力!M16="",入力!M16>11,入力!M16<4)),AND(入力!L16=6,OR(入力!M16="",入力!M16>11,入力!M16<4)),AND(入力!L16=7,OR(入力!M16="",入力!M16>11,入力!M16<4)),AND(入力!L16=8,OR(入力!M16="",入力!M16>11,入力!M16<4)),AND(入力!L16=9,OR(入力!M16="",入力!M16>11,入力!M16<4)),AND(入力!L16=10,OR(入力!M16="",入力!M16>11,入力!M16<4)),AND(入力!L16=11,OR(入力!M16="",入力!M16>11,入力!M16<4))),"■",""),""))) ->  | AR5: =IF(入力!$F$16="","",IF(入力!C16="社保等","",IF(AND(入力!$F$16>DATE(税率・条件!$C$1+2018-65,計算!AR$3+1,1),入力!$F$16<=DATE(税率・条件!$C$1+2018-40,計算!AR$3+1,1)),IF(OR(AND(入力!L16="",OR(入力!M16="",入力!M16>12,入力!M16<4)),AND(入力!L16=4,OR(入力!M16="",入力!M16>12,入力!M16<4)),AND(入力!L16=5,OR(入力!M16="",入力!M16>12,入力!M16<4)),AND(入力!L16=6,OR(入力!M16="",入力!M16>12,入力!M16<4)),AND(入力!L16=7,OR(入力!M16="",入力!M16>12,入力!M16<4)),AND(入力!L16=8,OR(入力!M16="",入力!M16>12,入力!M16<4)),AND(入力!L16=9,OR(入力!M16="",入力!M16>12,入力!M16<4)),AND(入力!L16=10,OR(入力!M16="",入力!M16>12,入力!M16<4)),AND(入力!L16=11,OR(入力!M16="",入力!M16>12,入力!M16<4)),AND(入力!L16=12,OR(入力!M16="",入力!M16>12,入力!M16<4))),"■",""),""))) ->  | AS5: =IF(入力!$F$16="","",IF(入力!C16="社保等","",IF(AND(入力!$F$16>DATE(税率・条件!$C$1+2019-65,計算!AS$3+1,1),入力!$F$16<=DATE(税率・条件!$C$1+2019-40,計算!AS$3+1,1)),IF(OR(AND(入力!L16="",OR(入力!M16="",入力!M16=2,入力!M16=3)),AND(入力!L16=4,OR(入力!M16="",入力!M16=2,入力!M16=3)),AND(入力!L16=5,OR(入力!M16="",入力!M16=2,入力!M16=3)),AND(入力!L16=6,OR(入力!M16="",入力!M16=2,入力!M16=3)),AND(入力!L16=7,OR(入力!M16="",入力!M16=2,入力!M16=3)),AND(入力!L16=8,OR(入力!M16="",入力!M16=2,入力!M16=3)),AND(入力!L16=9,OR(入力!M16="",入力!M16=2,入力!M16=3)),AND(入力!L16=10,OR(入力!M16="",入力!M16=2,入力!M16=3)),AND(入力!L16=11,OR(入力!M16="",入力!M16=2,入力!M16=3)),AND(入力!L16=12,OR(入力!M16="",入力!M16=2,入力!M16=3)),AND(入力!L16=1,OR(入力!M16="",入力!M16=2,入力!M16=3))),"■",""),""))) ->  | AT5: =IF(入力!$F$16="","",IF(入力!C16="社保等","",IF(AND(入力!$F$16>DATE(税率・条件!$C$1+2019-65,計算!AT$3+1,1),入力!$F$16<=DATE(税率・条件!$C$1+2019-40,計算!AT$3+1,1)),IF(OR(AND(入力!L16="",OR(入力!M16="",入力!M16=3)),AND(入力!L16=4,OR(入力!M16="",入力!M16=3)),AND(入力!L16=5,OR(入力!M16="",入力!M16=3)),AND(入力!L16=6,OR(入力!M16="",入力!M16=3)),AND(入力!L16=7,OR(入力!M16="",入力!M16=3)),AND(入力!L16=8,OR(入力!M16="",入力!M16=3)),AND(入力!L16=9,OR(入力!M16="",入力!M16=3)),AND(入力!L16=10,OR(入力!M16="",入力!M16=3)),AND(入力!L16=11,OR(入力!M16="",入力!M16=3)),AND(入力!L16=12,OR(入力!M16="",入力!M16=3)),AND(入力!L16=1,OR(入力!M16="",入力!M16=3)),AND(入力!L16=2,OR(入力!M16="",入力!M16=3))),"■",""),""))) ->  | AU5: =IF(入力!$F$16="","",IF(入力!C16="社保等","",IF(AND(入力!$F$16>DATE(税率・条件!$C$1+2019-65,計算!AU$3+1,1),入力!$F$16<=DATE(税率・条件!$C$1+2019-40,計算!AU$3+1,1)),IF(OR(AND(入力!L16="",入力!M16=""),AND(入力!L16=4,入力!M16=""),AND(入力!L16=5,入力!M16=""),AND(入力!L16=6,入力!M16=""),AND(入力!L16=7,入力!M16=""),AND(入力!L16=8,入力!M16=""),AND(入力!L16=9,入力!M16=""),AND(入力!L16=10,入力!M16=""),AND(入力!L16=11,入力!M16=""),AND(入力!L16=12,入力!M16=""),AND(入力!L16=1,入力!M16=""),AND(入力!L16=2,入力!M16=""),AND(入力!L16=3,入力!M16="")),"■",""),""))) ->  | AY5: 医療分(資) | AZ5: =ROUND(ROUNDDOWN((IF(AJ$4="",0,入力!$J$16)+IF(AJ$6="",0,入力!$J$17)+IF(AJ$8="",0,入力!$J$18)+IF(AJ$10="",0,入力!$J$19)+IF(AJ$12="",0,入力!$J$20)+IF(AJ$14="",0,入力!$J$21)+IF(AJ$16="",0,入力!$J$22)+IF(AJ$18="",0,入力!$J$23))*税率・条件!$C$5/100,0)/12,2) -> 0 | BA5: =ROUND(ROUNDDOWN((IF(AK$4="",0,入力!$J$16)+IF(AK$6="",0,入力!$J$17)+IF(AK$8="",0,入力!$J$18)+IF(AK$10="",0,入力!$J$19)+IF(AK$12="",0,入力!$J$20)+IF(AK$14="",0,入力!$J$21)+IF(AK$16="",0,入力!$J$22)+IF(AK$18="",0,入力!$J$23))*税率・条件!$C$5/100,0)/12,2) -> 0 | BB5: =ROUND(ROUNDDOWN((IF(AL$4="",0,入力!$J$16)+IF(AL$6="",0,入力!$J$17)+IF(AL$8="",0,入力!$J$18)+IF(AL$10="",0,入力!$J$19)+IF(AL$12="",0,入力!$J$20)+IF(AL$14="",0,入力!$J$21)+IF(AL$16="",0,入力!$J$22)+IF(AL$18="",0,入力!$J$23))*税率・条件!$C$5/100,0)/12,2) -> 0 | BC5: =ROUND(ROUNDDOWN((IF(AM$4="",0,入力!$J$16)+IF(AM$6="",0,入力!$J$17)+IF(AM$8="",0,入力!$J$18)+IF(AM$10="",0,入力!$J$19)+IF(AM$12="",0,入力!$J$20)+IF(AM$14="",0,入力!$J$21)+IF(AM$16="",0,入力!$J$22)+IF(AM$18="",0,入力!$J$23))*税率・条件!$C$5/100,0)/12,2) -> 0 | BD5: =ROUND(ROUNDDOWN((IF(AN$4="",0,入力!$J$16)+IF(AN$6="",0,入力!$J$17)+IF(AN$8="",0,入力!$J$18)+IF(AN$10="",0,入力!$J$19)+IF(AN$12="",0,入力!$J$20)+IF(AN$14="",0,入力!$J$21)+IF(AN$16="",0,入力!$J$22)+IF(AN$18="",0,入力!$J$23))*税率・条件!$C$5/100,0)/12,2) -> 0 | BE5: =ROUND(ROUNDDOWN((IF(AO$4="",0,入力!$J$16)+IF(AO$6="",0,入力!$J$17)+IF(AO$8="",0,入力!$J$18)+IF(AO$10="",0,入力!$J$19)+IF(AO$12="",0,入力!$J$20)+IF(AO$14="",0,入力!$J$21)+IF(AO$16="",0,入力!$J$22)+IF(AO$18="",0,入力!$J$23))*税率・条件!$C$5/100,0)/12,2) -> 0 | BF5: =ROUND(ROUNDDOWN((IF(AP$4="",0,入力!$J$16)+IF(AP$6="",0,入力!$J$17)+IF(AP$8="",0,入力!$J$18)+IF(AP$10="",0,入力!$J$19)+IF(AP$12="",0,入力!$J$20)+IF(AP$14="",0,入力!$J$21)+IF(AP$16="",0,入力!$J$22)+IF(AP$18="",0,入力!$J$23))*税率・条件!$C$5/100,0)/12,2) -> 0 | BG5: =ROUND(ROUNDDOWN((IF(AQ$4="",0,入力!$J$16)+IF(AQ$6="",0,入力!$J$17)+IF(AQ$8="",0,入力!$J$18)+IF(AQ$10="",0,入力!$J$19)+IF(AQ$12="",0,入力!$J$20)+IF(AQ$14="",0,入力!$J$21)+IF(AQ$16="",0,入力!$J$22)+IF(AQ$18="",0,入力!$J$23))*税率・条件!$C$5/100,0)/12,2) -> 0 | BH5: =ROUND(ROUNDDOWN((IF(AR$4="",0,入力!$J$16)+IF(AR$6="",0,入力!$J$17)+IF(AR$8="",0,入力!$J$18)+IF(AR$10="",0,入力!$J$19)+IF(AR$12="",0,入力!$J$20)+IF(AR$14="",0,入力!$J$21)+IF(AR$16="",0,入力!$J$22)+IF(AR$18="",0,入力!$J$23))*税率・条件!$C$5/100,0)/12,2) -> 0 | BI5: =ROUND(ROUNDDOWN((IF(AS$4="",0,入力!$J$16)+IF(AS$6="",0,入力!$J$17)+IF(AS$8="",0,入力!$J$18)+IF(AS$10="",0,入力!$J$19)+IF(AS$12="",0,入力!$J$20)+IF(AS$14="",0,入力!$J$21)+IF(AS$16="",0,入力!$J$22)+IF(AS$18="",0,入力!$J$23))*税率・条件!$C$5/100,0)/12,2) -> 0 | BJ5: =ROUND(ROUNDDOWN((IF(AT$4="",0,入力!$J$16)+IF(AT$6="",0,入力!$J$17)+IF(AT$8="",0,入力!$J$18)+IF(AT$10="",0,入力!$J$19)+IF(AT$12="",0,入力!$J$20)+IF(AT$14="",0,入力!$J$21)+IF(AT$16="",0,入力!$J$22)+IF(AT$18="",0,入力!$J$23))*税率・条件!$C$5/100,0)/12,2) -> 0 | BK5: =ROUND(ROUNDDOWN((IF(AU$4="",0,入力!$J$16)+IF(AU$6="",0,入力!$J$17)+IF(AU$8="",0,入力!$J$18)+IF(AU$10="",0,入力!$J$19)+IF(AU$12="",0,入力!$J$20)+IF(AU$14="",0,入力!$J$21)+IF(AU$16="",0,入力!$J$22)+IF(AU$18="",0,入力!$J$23))*税率・条件!$C$5/100,0)/12,2) -> 0 | BL5: =SUM(AZ5:BK5) -> 0 | BM5: =ROUNDDOWN(ROUND(BL5,1),0) -> 0
A6: =入力!E17 -> ２ | B6: =IF(入力!F17="","",IF(入力!F17<=DATE(税率・条件!C1+1953,1,1),"65歳以上",IF(入力!F17>DATE(税率・条件!C1+2012,4,1),"未就学","一般"))) ->  | C6: =IF(D6="","",IF(入力!K17="該 当","該当","非該当")) ->  | D6: =IF(入力!G17="","",ROUNDDOWN(VLOOKUP(入力!G17,$B$24:$J$35,3,1)*IF(入力!K17="該 当",0.3,1),0)) ->  | E6: =IF(D6="","",IF(OR(D6="",K6=""),0,IF(D6+K6<100000,0,IF(D6<100000,D6,100000)+IF(K6<100000,K6,100000)-100000))) ->  | F6: =IF(D6="","",D6-E6) ->  | G6: =IF(D6="","",IF(OR(D6="",L6=""),0,IF(D6+L6<100000,0,IF(D6<100000,D6,100000)+IF(L6<100000,L6,100000)-100000))) ->  | H6: =IF(D6="","",D6-G6) ->  | I6: =IF(入力!H17="","",IF(B6="65歳以上",VLOOKUP(入力!H17,$B$48:$D$52,2,1),VLOOKUP(入力!H17,$B$40:$D$44,2,1))) ->  | J6: =IF(I6="","",IF(B6="65歳以上",VLOOKUP(入力!H17,$B$48:$D$52,3,1),VLOOKUP(入力!H17,$B$40:$D$44,3,1))) ->  | K6: =IF(I6="","",IF(入力!H17*計算!I6/100-計算!J6<0,0,ROUNDDOWN(入力!H17*計算!I6/100-計算!J6,0))) ->  | L6: =IF(K6="","",IF(B6="65歳以上",IF(K6<税率・条件!$G$9,0,K6-税率・条件!$G$9),K6)) ->  | M6: =IF(入力!I17="","",入力!I17) ->  | N6: =IF(入力!F17="","",SUM(F6,K6,M6)) ->  | O6: =IF(入力!P17<>"",IF(計算!N6-430000>0,計算!N6-430000,0),"") ->  | P6: =IF(入力!Q17<>"",IF(計算!N6-430000>0,計算!N6-430000,0),"") ->  | Q6: =IF(N6="","",IF(AW6<>AW20,"",SUM(H6,L6,M6))) ->  | R6: =IF(AND(D6="",K6=""),"",IF(AW6<>AW20,"",IF(OR(入力!G17>550000,AND(B6="65歳以上",入力!H17>1250000),AND(B6<>"65歳以上",入力!H17>600000)),1,""))) ->  | S6: =IF(N6="","",IF(AND(入力!$H$25<>"",入力!$C$19="全員申告済み",$AW$6=$AW$20),"該当","")) ->  | T6: =IF($O6="","",ROUNDDOWN($O6*税率・条件!$C$4/100,0)) ->  | U6: =IF(入力!$P17="","",ROUNDDOWN(入力!$J17*税率・条件!$C$5/100,0)) ->  | V6: =IF(入力!$P17="","",ROUNDDOWN(税率・条件!$C$6*(100%-IF(B6="未就学",税率・条件!$H$11,0%))*(100%-$M$34),0)) ->  | X6: =IF(SUM(T6:W6)>0,SUM(T6:W6),"") ->  | Y6: =IF($O6="","",ROUNDDOWN($O6*税率・条件!$C$9/100,0)) ->  | Z6: =IF(入力!$P17="","",ROUNDDOWN(入力!$J17*税率・条件!$C$10/100,0)) ->  | AA6: =IF(入力!$P17="","",ROUNDDOWN(税率・条件!$C$11*(100%-IF(B6="未就学",税率・条件!$H$11,0%))*(100%-$M$34),0)) ->  | AC6: =IF(SUM(Y6:AB6)>0,SUM(Y6:AB6),"") ->  | AD6: =IF($P6="","",ROUNDDOWN($P6*税率・条件!$C$14/100,0)) ->  | AE6: =IF(入力!$Q17="","",ROUNDDOWN(入力!$J17*税率・条件!$C$15/100,0)) ->  | AF6: =IF(入力!$Q17="","",ROUNDDOWN(税率・条件!$C$16*(100%-$M$34),0)) ->  | AH6: =IF(SUM(AD6:AG6)>0,SUM(AD6:AG6),"") ->  | AI6: =IF(入力!$F$17="","",COUNTIF(AJ6:AU6,"●")) ->  | AJ6: =IF(入力!$F$17="","",IF(入力!$F$17>=DATE(税率・条件!$C$1+2018,計算!AJ$3+1,1),"",IF(入力!$F$17>=DATE(税率・条件!$C$1+2018-75,計算!AJ$3+1,1),IF(OR(AND(入力!L17="",OR(入力!M17="",入力!M17>4,入力!M17<4)),AND(入力!L17=4,OR(入力!M17="",入力!M17>4,入力!M17<4))),"●",""),""))) ->  | AK6: =IF(入力!$F$17="","",IF(入力!$F$17>=DATE(税率・条件!$C$1+2018,計算!AK$3+1,1),"",IF(入力!$F$17>=DATE(税率・条件!$C$1+2018-75,計算!AK$3+1,1),IF(OR(AND(入力!L17="",OR(入力!M17="",入力!M17>5,入力!M17<4)),AND(入力!L17=4,OR(入力!M17="",入力!M17>5,入力!M17<4)),AND(入力!L17=5,OR(入力!M17="",入力!M17>5,入力!M17<4))),"●",""),""))) ->  | AL6: =IF(入力!$F$17="","",IF(入力!$F$17>=DATE(税率・条件!$C$1+2018,計算!AL$3+1,1),"",IF(入力!$F$17>=DATE(税率・条件!$C$1+2018-75,計算!AL$3+1,1),IF(OR(AND(入力!L17="",OR(入力!M17="",入力!M17>6,入力!M17<4)),AND(入力!L17=4,OR(入力!M17="",入力!M17>6,入力!M17<4)),AND(入力!L17=5,OR(入力!M17="",入力!M17>6,入力!M17<4)),AND(入力!L17=6,OR(入力!M17="",入力!M17>6,入力!M17<4))),"●",""),""))) ->  | AM6: =IF(入力!$F$17="","",IF(入力!$F$17>=DATE(税率・条件!$C$1+2018,計算!AM$3+1,1),"",IF(入力!$F$17>=DATE(税率・条件!$C$1+2018-75,計算!AM$3+1,1),IF(OR(AND(入力!L17="",OR(入力!M17="",入力!M17>7,入力!M17<4)),AND(入力!L17=4,OR(入力!M17="",入力!M17>7,入力!M17<4)),AND(入力!L17=5,OR(入力!M17="",入力!M17>7,入力!M17<4)),AND(入力!L17=6,OR(入力!M17="",入力!M17>7,入力!M17<4)),AND(入力!L17=7,OR(入力!M17="",入力!M17>7,入力!M17<4))),"●",""),""))) ->  | AN6: =IF(入力!$F$17="","",IF(入力!$F$17>=DATE(税率・条件!$C$1+2018,計算!AN$3+1,1),"",IF(入力!$F$17>=DATE(税率・条件!$C$1+2018-75,計算!AN$3+1,1),IF(OR(AND(入力!L17="",OR(入力!M17="",入力!M17>8,入力!M17<4)),AND(入力!L17=4,OR(入力!M17="",入力!M17>8,入力!M17<4)),AND(入力!L17=5,OR(入力!M17="",入力!M17>8,入力!M17<4)),AND(入力!L17=6,OR(入力!M17="",入力!M17>8,入力!M17<4)),AND(入力!L17=7,OR(入力!M17="",入力!M17>8,入力!M17<4)),AND(入力!L17=8,OR(入力!M17="",入力!M17>8,入力!M17<4))),"●",""),""))) ->  | AO6: =IF(入力!$F$17="","",IF(入力!$F$17>=DATE(税率・条件!$C$1+2018,計算!AO$3+1,1),"",IF(入力!$F$17>=DATE(税率・条件!$C$1+2018-75,計算!AO$3+1,1),IF(OR(AND(入力!L17="",OR(入力!M17="",入力!M17>9,入力!M17<4)),AND(入力!L17=4,OR(入力!M17="",入力!M17>9,入力!M17<4)),AND(入力!L17=5,OR(入力!M17="",入力!M17>9,入力!M17<4)),AND(入力!L17=6,OR(入力!M17="",入力!M17>9,入力!M17<4)),AND(入力!L17=7,OR(入力!M17="",入力!M17>9,入力!M17<4)),AND(入力!L17=8,OR(入力!M17="",入力!M17>9,入力!M17<4)),AND(入力!L17=9,OR(入力!M17="",入力!M17>9,入力!M17<4))),"●",""),""))) ->  | AP6: =IF(入力!$F$17="","",IF(入力!$F$17>=DATE(税率・条件!$C$1+2018,計算!AP$3+1,1),"",IF(入力!$F$17>=DATE(税率・条件!$C$1+2018-75,計算!AP$3+1,1),IF(OR(AND(入力!L17="",OR(入力!M17="",入力!M17>10,入力!M17<4)),AND(入力!L17=4,OR(入力!M17="",入力!M17>10,入力!M17<4)),AND(入力!L17=5,OR(入力!M17="",入力!M17>10,入力!M17<4)),AND(入力!L17=6,OR(入力!M17="",入力!M17>10,入力!M17<4)),AND(入力!L17=7,OR(入力!M17="",入力!M17>10,入力!M17<4)),AND(入力!L17=8,OR(入力!M17="",入力!M17>10,入力!M17<4)),AND(入力!L17=9,OR(入力!M17="",入力!M17>10,入力!M17<4)),AND(入力!L17=10,OR(入力!M17="",入力!M17>10,入力!M17<4))),"●",""),""))) ->  | AQ6: =IF(入力!$F$17="","",IF(入力!$F$17>=DATE(税率・条件!$C$1+2018,計算!AQ$3+1,1),"",IF(入力!$F$17>=DATE(税率・条件!$C$1+2018-75,計算!AQ$3+1,1),IF(OR(AND(入力!L17="",OR(入力!M17="",入力!M17>11,入力!M17<4)),AND(入力!L17=4,OR(入力!M17="",入力!M17>11,入力!M17<4)),AND(入力!L17=5,OR(入力!M17="",入力!M17>11,入力!M17<4)),AND(入力!L17=6,OR(入力!M17="",入力!M17>11,入力!M17<4)),AND(入力!L17=7,OR(入力!M17="",入力!M17>11,入力!M17<4)),AND(入力!L17=8,OR(入力!M17="",入力!M17>11,入力!M17<4)),AND(入力!L17=9,OR(入力!M17="",入力!M17>11,入力!M17<4)),AND(入力!L17=10,OR(入力!M17="",入力!M17>11,入力!M17<4)),AND(入力!L17=11,OR(入力!M17="",入力!M17>11,入力!M17<4))),"●",""),""))) ->  | AR6: =IF(入力!$F$17="","",IF(入力!$F$17>=DATE(税率・条件!$C$1+2018,計算!AR$3+1,1),"",IF(入力!$F$17>=DATE(税率・条件!$C$1+2018-75,計算!AR$3+1,1),IF(OR(AND(入力!L17="",OR(入力!M17="",入力!M17>12,入力!M17<4)),AND(入力!L17=4,OR(入力!M17="",入力!M17>12,入力!M17<4)),AND(入力!L17=5,OR(入力!M17="",入力!M17>12,入力!M17<4)),AND(入力!L17=6,OR(入力!M17="",入力!M17>12,入力!M17<4)),AND(入力!L17=7,OR(入力!M17="",入力!M17>12,入力!M17<4)),AND(入力!L17=8,OR(入力!M17="",入力!M17>12,入力!M17<4)),AND(入力!L17=9,OR(入力!M17="",入力!M17>12,入力!M17<4)),AND(入力!L17=10,OR(入力!M17="",入力!M17>12,入力!M17<4)),AND(入力!L17=11,OR(入力!M17="",入力!M17>12,入力!M17<4)),AND(入力!L17=12,OR(入力!M17="",入力!M17>12,入力!M17<4))),"●",""),""))) ->  | AS6: =IF(入力!$F$17="","",IF(入力!$F$17>=DATE(税率・条件!$C$1+2019,計算!AS$3+1,1),"",IF(入力!$F$17>=DATE(税率・条件!$C$1+2019-75,計算!AS$3+1,1),IF(OR(AND(入力!L17="",OR(入力!M17="",入力!M17=2,入力!M17=3)),AND(入力!L17=4,OR(入力!M17="",入力!M17=2,入力!M17=3)),AND(入力!L17=5,OR(入力!M17="",入力!M17=2,入力!M17=3)),AND(入力!L17=6,OR(入力!M17="",入力!M17=2,入力!M17=3)),AND(入力!L17=7,OR(入力!M17="",入力!M17=2,入力!M17=3)),AND(入力!L17=8,OR(入力!M17="",入力!M17=2,入力!M17=3)),AND(入力!L17=9,OR(入力!M17="",入力!M17=2,入力!M17=3)),AND(入力!L17=10,OR(入力!M17="",入力!M17=2,入力!M17=3)),AND(入力!L17=11,OR(入力!M17="",入力!M17=2,入力!M17=3)),AND(入力!L17=12,OR(入力!M17="",入力!M17=2,入力!M17=3)),AND(入力!L17=1,OR(入力!M17="",入力!M17=2,入力!M17=3))),"●",""),""))) ->  | AT6: =IF(入力!$F$17="","",IF(入力!$F$17>=DATE(税率・条件!$C$1+2019,計算!AT$3+1,1),"",IF(入力!$F$17>=DATE(税率・条件!$C$1+2019-75,計算!AT$3+1,1),IF(OR(AND(入力!L17="",OR(入力!M17="",入力!M17=3)),AND(入力!L17=4,OR(入力!M17="",入力!M17=3)),AND(入力!L17=5,OR(入力!M17="",入力!M17=3)),AND(入力!L17=6,OR(入力!M17="",入力!M17=3)),AND(入力!L17=7,OR(入力!M17="",入力!M17=3)),AND(入力!L17=8,OR(入力!M17="",入力!M17=3)),AND(入力!L17=9,OR(入力!M17="",入力!M17=3)),AND(入力!L17=10,OR(入力!M17="",入力!M17=3)),AND(入力!L17=11,OR(入力!M17="",入力!M17=3)),AND(入力!L17=12,OR(入力!M17="",入力!M17=3)),AND(入力!L17=1,OR(入力!M17="",入力!M17=3)),AND(入力!L17=2,OR(入力!M17="",入力!M17=3))),"●",""),""))) ->  | AU6: =IF(入力!$F$17="","",IF(入力!$F$17>=DATE(税率・条件!$C$1+2019,計算!AU$3+1,1),"",IF(入力!$F$17>=DATE(税率・条件!$C$1+2019-75,計算!AU$3+1,1),IF(OR(AND(入力!L17="",入力!M17=""),AND(入力!L17=4,入力!M17=""),AND(入力!L17=5,入力!M17=""),AND(入力!L17=6,入力!M17=""),AND(入力!L17=7,入力!M17=""),AND(入力!L17=8,入力!M17=""),AND(入力!L17=9,入力!M17=""),AND(入力!L17=10,入力!M17=""),AND(入力!L17=11,入力!M17=""),AND(入力!L17=12,入力!M17=""),AND(入力!L17=1,入力!M17=""),AND(入力!L17=2,入力!M17=""),AND(入力!L17=3,入力!M17="")),"●",""),""))) ->  | AW6: =IF(AND(AJ$20=1,AJ6="●"),4,IF(AND(AK$20=1,AK6="●"),5,IF(AND(AL$20=1,AL6="●"),6,IF(AND(AM$20=1,AM6="●"),7,IF(AND(AN$20=1,AN6="●"),8,IF(AND(AO$20=1,AO6="●"),9,IF(AND(AP$20=1,AP6="●"),10,IF(AND(AQ$20=1,AQ6="●"),11,IF(AND(AR$20=1,AR6="●"),12,IF(AND(AS$20=1,AS6="●"),1,IF(AND(AT$20=1,AT6="●"),2,IF(AND(AU$20=1,AU6="●"),3,"")))))))))))) ->  | AY6: 医療分(均) | AZ6: =ROUND(ROUNDDOWN((IF(AJ$4="",0,$V4)+IF(AJ$6="",0,$V6)+IF(AJ$8="",0,$V8)+IF(AJ$10="",0,$V10)+IF(AJ$12="",0,$V12)+IF(AJ$14="",0,$V14)+IF(AJ$16="",0,$V16)+IF(AJ$18="",0,$V18)),0)/12,2) -> 0 | BA6: =ROUND(ROUNDDOWN((IF(AK$4="",0,$V4)+IF(AK$6="",0,$V6)+IF(AK$8="",0,$V8)+IF(AK$10="",0,$V10)+IF(AK$12="",0,$V12)+IF(AK$14="",0,$V14)+IF(AK$16="",0,$V16)+IF(AK$18="",0,$V18)),0)/12,2) -> 0 | BB6: 0 | BC6: 0 | BD6: 0 | BE6: 0 | BF6: 0 | BG6: 0 | BH6: 0 | BI6: 0 | BJ6: 0 | BK6: 0 | BL6: 0 | BM6: 0
AI7: =IF(入力!$F$17="","",COUNTIF(AJ7:AU7,"■")) ->  | AJ7: =IF(入力!$F$17="","",IF(AND(入力!$F$17>DATE(税率・条件!$C$1+2018-65,計算!AJ$3+1,1),入力!$F$17<=DATE(税率・条件!$C$1+2018-40,計算!AJ$3+1,1)),IF(OR(AND(入力!L17="",OR(入力!M17="",入力!M17>4,入力!M17<4)),AND(入力!L17=4,OR(入力!M17="",入力!M17>4,入力!M17<4))),"■",""),"")) ->  | AK7: =IF(入力!$F$17="","",IF(AND(入力!$F$17>DATE(税率・条件!$C$1+2018-65,計算!AK$3+1,1),入力!$F$17<=DATE(税率・条件!$C$1+2018-40,計算!AK$3+1,1)),IF(OR(AND(入力!L17="",OR(入力!M17="",入力!M17>5,入力!M17<4)),AND(入力!L17=4,OR(入力!M17="",入力!M17>5,入力!M17<4)),AND(入力!L17=5,OR(入力!M17="",入力!M17>5,入力!M17<4))),"■",""),"")) ->  | AL7: =IF(入力!$F$17="","",IF(AND(入力!$F$17>DATE(税率・条件!$C$1+2018-65,計算!AL$3+1,1),入力!$F$17<=DATE(税率・条件!$C$1+2018-40,計算!AL$3+1,1)),IF(OR(AND(入力!L17="",OR(入力!M17="",入力!M17>6,入力!M17<4)),AND(入力!L17=4,OR(入力!M17="",入力!M17>6,入力!M17<4)),AND(入力!L17=5,OR(入力!M17="",入力!M17>6,入力!M17<4)),AND(入力!L17=6,OR(入力!M17="",入力!M17>6,入力!M17<4))),"■",""),"")) ->  | AM7: =IF(入力!$F$17="","",IF(AND(入力!$F$17>DATE(税率・条件!$C$1+2018-65,計算!AM$3+1,1),入力!$F$17<=DATE(税率・条件!$C$1+2018-40,計算!AM$3+1,1)),IF(OR(AND(入力!L17="",OR(入力!M17="",入力!M17>7,入力!M17<4)),AND(入力!L17=4,OR(入力!M17="",入力!M17>7,入力!M17<4)),AND(入力!L17=5,OR(入力!M17="",入力!M17>7,入力!M17<4)),AND(入力!L17=6,OR(入力!M17="",入力!M17>7,入力!M17<4)),AND(入力!L17=7,OR(入力!M17="",入力!M17>7,入力!M17<4))),"■",""),"")) ->  | AN7: =IF(入力!$F$17="","",IF(AND(入力!$F$17>DATE(税率・条件!$C$1+2018-65,計算!AN$3+1,1),入力!$F$17<=DATE(税率・条件!$C$1+2018-40,計算!AN$3+1,1)),IF(OR(AND(入力!L17="",OR(入力!M17="",入力!M17>8,入力!M17<4)),AND(入力!L17=4,OR(入力!M17="",入力!M17>8,入力!M17<4)),AND(入力!L17=5,OR(入力!M17="",入力!M17>8,入力!M17<4)),AND(入力!L17=6,OR(入力!M17="",入力!M17>8,入力!M17<4)),AND(入力!L17=7,OR(入力!M17="",入力!M17>8,入力!M17<4)),AND(入力!L17=8,OR(入力!M17="",入力!M17>8,入力!M17<4))),"■",""),"")) ->  | AO7: =IF(入力!$F$17="","",IF(AND(入力!$F$17>DATE(税率・条件!$C$1+2018-65,計算!AO$3+1,1),入力!$F$17<=DATE(税率・条件!$C$1+2018-40,計算!AO$3+1,1)),IF(OR(AND(入力!L17="",OR(入力!M17="",入力!M17>9,入力!M17<4)),AND(入力!L17=4,OR(入力!M17="",入力!M17>9,入力!M17<4)),AND(入力!L17=5,OR(入力!M17="",入力!M17>9,入力!M17<4)),AND(入力!L17=6,OR(入力!M17="",入力!M17>9,入力!M17<4)),AND(入力!L17=7,OR(入力!M17="",入力!M17>9,入力!M17<4)),AND(入力!L17=8,OR(入力!M17="",入力!M17>9,入力!M17<4)),AND(入力!L17=9,OR(入力!M17="",入力!M17>9,入力!M17<4))),"■",""),"")) ->  | AP7: =IF(入力!$F$17="","",IF(AND(入力!$F$17>DATE(税率・条件!$C$1+2018-65,計算!AP$3+1,1),入力!$F$17<=DATE(税率・条件!$C$1+2018-40,計算!AP$3+1,1)),IF(OR(AND(入力!L17="",OR(入力!M17="",入力!M17>10,入力!M17<4)),AND(入力!L17=4,OR(入力!M17="",入力!M17>10,入力!M17<4)),AND(入力!L17=5,OR(入力!M17="",入力!M17>10,入力!M17<4)),AND(入力!L17=6,OR(入力!M17="",入力!M17>10,入力!M17<4)),AND(入力!L17=7,OR(入力!M17="",入力!M17>10,入力!M17<4)),AND(入力!L17=8,OR(入力!M17="",入力!M17>10,入力!M17<4)),AND(入力!L17=9,OR(入力!M17="",入力!M17>10,入力!M17<4)),AND(入力!L17=10,OR(入力!M17="",入力!M17>10,入力!M17<4))),"■",""),"")) ->  | AQ7: =IF(入力!$F$17="","",IF(AND(入力!$F$17>DATE(税率・条件!$C$1+2018-65,計算!AQ$3+1,1),入力!$F$17<=DATE(税率・条件!$C$1+2018-40,計算!AQ$3+1,1)),IF(OR(AND(入力!L17="",OR(入力!M17="",入力!M17>11,入力!M17<4)),AND(入力!L17=4,OR(入力!M17="",入力!M17>11,入力!M17<4)),AND(入力!L17=5,OR(入力!M17="",入力!M17>11,入力!M17<4)),AND(入力!L17=6,OR(入力!M17="",入力!M17>11,入力!M17<4)),AND(入力!L17=7,OR(入力!M17="",入力!M17>11,入力!M17<4)),AND(入力!L17=8,OR(入力!M17="",入力!M17>11,入力!M17<4)),AND(入力!L17=9,OR(入力!M17="",入力!M17>11,入力!M17<4)),AND(入力!L17=10,OR(入力!M17="",入力!M17>11,入力!M17<4)),AND(入力!L17=11,OR(入力!M17="",入力!M17>11,入力!M17<4))),"■",""),"")) ->  | AR7: =IF(入力!$F$17="","",IF(AND(入力!$F$17>DATE(税率・条件!$C$1+2018-65,計算!AR$3+1,1),入力!$F$17<=DATE(税率・条件!$C$1+2018-40,計算!AR$3+1,1)),IF(OR(AND(入力!L17="",OR(入力!M17="",入力!M17>12,入力!M17<4)),AND(入力!L17=4,OR(入力!M17="",入力!M17>12,入力!M17<4)),AND(入力!L17=5,OR(入力!M17="",入力!M17>12,入力!M17<4)),AND(入力!L17=6,OR(入力!M17="",入力!M17>12,入力!M17<4)),AND(入力!L17=7,OR(入力!M17="",入力!M17>12,入力!M17<4)),AND(入力!L17=8,OR(入力!M17="",入力!M17>12,入力!M17<4)),AND(入力!L17=9,OR(入力!M17="",入力!M17>12,入力!M17<4)),AND(入力!L17=10,OR(入力!M17="",入力!M17>12,入力!M17<4)),AND(入力!L17=11,OR(入力!M17="",入力!M17>12,入力!M17<4)),AND(入力!L17=12,OR(入力!M17="",入力!M17>12,入力!M17<4))),"■",""),"")) ->  | AS7: =IF(入力!$F$17="","",IF(AND(入力!$F$17>DATE(税率・条件!$C$1+2019-65,計算!AS$3+1,1),入力!$F$17<=DATE(税率・条件!$C$1+2019-40,計算!AS$3+1,1)),IF(OR(AND(入力!L17="",OR(入力!M17="",入力!M17=2,入力!M17=3)),AND(入力!L17=4,OR(入力!M17="",入力!M17=2,入力!M17=3)),AND(入力!L17=5,OR(入力!M17="",入力!M17=2,入力!M17=3)),AND(入力!L17=6,OR(入力!M17="",入力!M17=2,入力!M17=3)),AND(入力!L17=7,OR(入力!M17="",入力!M17=2,入力!M17=3)),AND(入力!L17=8,OR(入力!M17="",入力!M17=2,入力!M17=3)),AND(入力!L17=9,OR(入力!M17="",入力!M17=2,入力!M17=3)),AND(入力!L17=10,OR(入力!M17="",入力!M17=2,入力!M17=3)),AND(入力!L17=11,OR(入力!M17="",入力!M17=2,入力!M17=3)),AND(入力!L17=12,OR(入力!M17="",入力!M17=2,入力!M17=3)),AND(入力!L17=1,OR(入力!M17="",入力!M17=2,入力!M17=3))),"■",""),"")) ->  | AT7: =IF(入力!$F$17="","",IF(AND(入力!$F$17>DATE(税率・条件!$C$1+2019-65,計算!AT$3+1,1),入力!$F$17<=DATE(税率・条件!$C$1+2019-40,計算!AT$3+1,1)),IF(OR(AND(入力!L17="",OR(入力!M17="",入力!M17=3)),AND(入力!L17=4,OR(入力!M17="",入力!M17=3)),AND(入力!L17=5,OR(入力!M17="",入力!M17=3)),AND(入力!L17=6,OR(入力!M17="",入力!M17=3)),AND(入力!L17=7,OR(入力!M17="",入力!M17=3)),AND(入力!L17=8,OR(入力!M17="",入力!M17=3)),AND(入力!L17=9,OR(入力!M17="",入力!M17=3)),AND(入力!L17=10,OR(入力!M17="",入力!M17=3)),AND(入力!L17=11,OR(入力!M17="",入力!M17=3)),AND(入力!L17=12,OR(入力!M17="",入力!M17=3)),AND(入力!L17=1,OR(入力!M17="",入力!M17=3)),AND(入力!L17=2,OR(入力!M17="",入力!M17=3))),"■",""),"")) ->  | AU7: =IF(入力!$F$17="","",IF(AND(入力!$F$17>DATE(税率・条件!$C$1+2019-65,計算!AU$3+1,1),入力!$F$17<=DATE(税率・条件!$C$1+2019-40,計算!AU$3+1,1)),IF(OR(AND(入力!L17="",入力!M17=""),AND(入力!L17=4,入力!M17=""),AND(入力!L17=5,入力!M17=""),AND(入力!L17=6,入力!M17=""),AND(入力!L17=7,入力!M17=""),AND(入力!L17=8,入力!M17=""),AND(入力!L17=9,入力!M17=""),AND(入力!L17=10,入力!M17=""),AND(入力!L17=11,入力!M17=""),AND(入力!L17=12,入力!M17=""),AND(入力!L17=1,入力!M17=""),AND(入力!L17=2,入力!M17=""),AND(入力!L17=3,入力!M17="")),"■",""),"")) ->  | AY7: 医療分(平) | AZ7: =ROUND(ROUNDDOWN(IF(AJ$20="",0,$W4),0)/12,2) -> 0 | BA7: =ROUND(ROUNDDOWN(IF(AK$20="",0,$W4),0)/12,2) -> 0 | BB7: 0 | BC7: 0 | BD7: 0 | BE7: 0 | BF7: 0 | BG7: 0 | BH7: 0 | BI7: 0 | BJ7: 0 | BK7: 0 | BL7: 0 | BM7: 0
A8: =入力!E18 -> ３ | B8: =IF(入力!F18="","",IF(入力!F18<=DATE(税率・条件!C1+1953,1,1),"65歳以上",IF(入力!F18>DATE(税率・条件!C1+2012,4,1),"未就学","一般"))) ->  | C8: =IF(D8="","",IF(入力!K18="該 当","該当","非該当")) ->  | D8: =IF(入力!G18="","",ROUNDDOWN(VLOOKUP(入力!G18,$B$24:$J$35,4,1)*IF(入力!K18="該 当",0.3,1),0)) ->  | E8: =IF(D8="","",IF(OR(D8="",K8=""),0,IF(D8+K8<100000,0,IF(D8<100000,D8,100000)+IF(K8<100000,K8,100000)-100000))) ->  | F8: =IF(D8="","",D8-E8) ->  | G8: =IF(D8="","",IF(OR(D8="",L8=""),0,IF(D8+L8<100000,0,IF(D8<100000,D8,100000)+IF(L8<100000,L8,100000)-100000))) ->  | H8: =IF(D8="","",D8-G8) ->  | I8: =IF(入力!H18="","",IF(B8="65歳以上",VLOOKUP(入力!H18,$B$48:$D$52,2,1),VLOOKUP(入力!H18,$B$40:$D$44,2,1))) ->  | J8: =IF(I8="","",IF(B8="65歳以上",VLOOKUP(入力!H18,$B$48:$D$52,3,1),VLOOKUP(入力!H18,$B$40:$D$44,3,1))) ->  | K8: =IF(I8="","",IF(入力!H18*計算!I8/100-計算!J8<0,0,ROUNDDOWN(入力!H18*計算!I8/100-計算!J8,0))) ->  | L8: =IF(K8="","",IF(B8="65歳以上",IF(K8<税率・条件!$G$9,0,K8-税率・条件!$G$9),K8)) ->  | M8: =IF(入力!I18="","",入力!I18) ->  | N8: =IF(入力!F18="","",SUM(F8,K8,M8)) ->  | O8: =IF(入力!P18<>"",IF(計算!N8-430000>0,計算!N8-430000,0),"") ->  | P8: =IF(入力!Q18<>"",IF(計算!N8-430000>0,計算!N8-430000,0),"") ->  | Q8: =IF(N8="","",IF(AW8<>AW20,"",SUM(H8,L8,M8))) ->  | R8: =IF(AND(D8="",K8=""),"",IF(AW8<>AW20,"",IF(OR(入力!G18>550000,AND(B8="65歳以上",入力!H18>1250000),AND(B8<>"65歳以上",入力!H18>600000)),1,""))) ->  | S8: =IF(N8="","",IF(AND(入力!$H$25<>"",入力!$C$19="全員申告済み",$AW$8=$AW$20),"該当","")) ->  | T8: =IF($O8="","",ROUNDDOWN($O8*税率・条件!$C$4/100,0)) ->  | U8: =IF(入力!$P18="","",ROUNDDOWN(入力!$J18*税率・条件!$C$5/100,0)) ->  | V8: =IF(入力!$P18="","",ROUNDDOWN(税率・条件!$C$6*(100%-IF(B8="未就学",税率・条件!$H$11,0%))*(100%-$M$34),0)) ->  | Y8: =IF($O8="","",ROUNDDOWN($O8*税率・条件!$C$9/100,0)) ->  | Z8: =IF(入力!$P18="","",ROUNDDOWN(入力!$J18*税率・条件!$C$10/100,0)) ->  | AA8: =IF(入力!$P18="","",ROUNDDOWN(税率・条件!$C$11*(100%-IF(B8="未就学",税率・条件!$H$11,0%))*(100%-$M$34),0)) ->  | AC8: =IF(SUM(Y8:AB8)>0,SUM(Y8:AB8),"") ->  | AD8: =IF($P8="","",ROUNDDOWN($P8*税率・条件!$C$14/100,0)) ->  | AE8: =IF(入力!$Q18="","",ROUNDDOWN(入力!$J18*税率・条件!$C$15/100,0)) ->  | AF8: =IF(入力!$Q18="","",ROUNDDOWN(税率・条件!$C$16*(100%-$M$34),0)) ->  | AI8: =IF(入力!$F$18="","",COUNTIF(AJ8:AU8,"●")) ->  | AJ8: =IF(入力!$F$18="","",IF(入力!$F$18>=DATE(税率・条件!$C$1+2018,計算!AJ$3+1,1),"",IF(入力!$F$18>=DATE(税率・条件!$C$1+2018-75,計算!AJ$3+1,1),IF(OR(AND(入力!L18="",OR(入力!M18="",入力!M18>4,入力!M18<4)),AND(入力!L18=4,OR(入力!M18="",入力!M18>4,入力!M18<4))),"●",""),""))) ->  | AK8: =IF(入力!$F$18="","",IF(入力!$F$18>=DATE(税率・条件!$C$1+2018,計算!AK$3+1,1),"",IF(入力!$F$18>=DATE(税率・条件!$C$1+2018-75,計算!AK$3+1,1),IF(OR(AND(入力!L18="",OR(入力!M18="",入力!M18>5,入力!M18<4)),AND(入力!L18=4,OR(入力!M18="",入力!M18>5,入力!M18<4)),AND(入力!L18=5,OR(入力!M18="",入力!M18>5,入力!M18<4))),"●",""),""))) ->  | AL8: =IF(入力!$F$18="","",IF(入力!$F$18>=DATE(税率・条件!$C$1+2018,計算!AL$3+1,1),"",IF(入力!$F$18>=DATE(税率・条件!$C$1+2018-75,計算!AL$3+1,1),IF(OR(AND(入力!L18="",OR(入力!M18="",入力!M18>6,入力!M18<4)),AND(入力!L18=4,OR(入力!M18="",入力!M18>6,入力!M18<4)),AND(入力!L18=5,OR(入力!M18="",入力!M18>6,入力!M18<4)),AND(入力!L18=6,OR(入力!M18="",入力!M18>6,入力!M18<4))),"●",""),""))) ->  | AM8: =IF(入力!$F$18="","",IF(入力!$F$18>=DATE(税率・条件!$C$1+2018,計算!AM$3+1,1),"",IF(入力!$F$18>=DATE(税率・条件!$C$1+2018-75,計算!AM$3+1,1),IF(OR(AND(入力!L18="",OR(入力!M18="",入力!M18>7,入力!M18<4)),AND(入力!L18=4,OR(入力!M18="",入力!M18>7,入力!M18<4)),AND(入力!L18=5,OR(入力!M18="",入力!M18>7,入力!M18<4)),AND(入力!L18=6,OR(入力!M18="",入力!M18>7,入力!M18<4)),AND(入力!L18=7,OR(入力!M18="",入力!M18>7,入力!M18<4))),"●",""),""))) ->  | AN8: =IF(入力!$F$18="","",IF(入力!$F$18>=DATE(税率・条件!$C$1+2018,計算!AN$3+1,1),"",IF(入力!$F$18>=DATE(税率・条件!$C$1+2018-75,計算!AN$3+1,1),IF(OR(AND(入力!L18="",OR(入力!M18="",入力!M18>8,入力!M18<4)),AND(入力!L18=4,OR(入力!M18="",入力!M18>8,入力!M18<4)),AND(入力!L18=5,OR(入力!M18="",入力!M18>8,入力!M18<4)),AND(入力!L18=6,OR(入力!M18="",入力!M18>8,入力!M18<4)),AND(入力!L18=7,OR(入力!M18="",入力!M18>8,入力!M18<4)),AND(入力!L18=8,OR(入力!M18="",入力!M18>8,入力!M18<4))),"●",""),""))) ->  | AO8: =IF(入力!$F$18="","",IF(入力!$F$18>=DATE(税率・条件!$C$1+2018,計算!AO$3+1,1),"",IF(入力!$F$18>=DATE(税率・条件!$C$1+2018-75,計算!AO$3+1,1),IF(OR(AND(入力!L18="",OR(入力!M18="",入力!M18>9,入力!M18<4)),AND(入力!L18=4,OR(入力!M18="",入力!M18>9,入力!M18<4)),AND(入力!L18=5,OR(入力!M18="",入力!M18>9,入力!M18<4)),AND(入力!L18=6,OR(入力!M18="",入力!M18>9,入力!M18<4)),AND(入力!L18=7,OR(入力!M18="",入力!M18>9,入力!M18<4)),AND(入力!L18=8,OR(入力!M18="",入力!M18>9,入力!M18<4)),AND(入力!L18=9,OR(入力!M18="",入力!M18>9,入力!M18<4))),"●",""),""))) ->  | AP8: =IF(入力!$F$18="","",IF(入力!$F$18>=DATE(税率・条件!$C$1+2018,計算!AP$3+1,1),"",IF(入力!$F$18>=DATE(税率・条件!$C$1+2018-75,計算!AP$3+1,1),IF(OR(AND(入力!L18="",OR(入力!M18="",入力!M18>10,入力!M18<4)),AND(入力!L18=4,OR(入力!M18="",入力!M18>10,入力!M18<4)),AND(入力!L18=5,OR(入力!M18="",入力!M18>10,入力!M18<4)),AND(入力!L18=6,OR(入力!M18="",入力!M18>10,入力!M18<4)),AND(入力!L18=7,OR(入力!M18="",入力!M18>10,入力!M18<4)),AND(入力!L18=8,OR(入力!M18="",入力!M18>10,入力!M18<4)),AND(入力!L18=9,OR(入力!M18="",入力!M18>10,入力!M18<4)),AND(入力!L18=10,OR(入力!M18="",入力!M18>10,入力!M18<4))),"●",""),""))) ->  | AQ8: =IF(入力!$F$18="","",IF(入力!$F$18>=DATE(税率・条件!$C$1+2018,計算!AQ$3+1,1),"",IF(入力!$F$18>=DATE(税率・条件!$C$1+2018-75,計算!AQ$3+1,1),IF(OR(AND(入力!L18="",OR(入力!M18="",入力!M18>11,入力!M18<4)),AND(入力!L18=4,OR(入力!M18="",入力!M18>11,入力!M18<4)),AND(入力!L18=5,OR(入力!M18="",入力!M18>11,入力!M18<4)),AND(入力!L18=6,OR(入力!M18="",入力!M18>11,入力!M18<4)),AND(入力!L18=7,OR(入力!M18="",入力!M18>11,入力!M18<4)),AND(入力!L18=8,OR(入力!M18="",入力!M18>11,入力!M18<4)),AND(入力!L18=9,OR(入力!M18="",入力!M18>11,入力!M18<4)),AND(入力!L18=10,OR(入力!M18="",入力!M18>11,入力!M18<4)),AND(入力!L18=11,OR(入力!M18="",入力!M18>11,入力!M18<4))),"●",""),""))) ->  | AR8: =IF(入力!$F$18="","",IF(入力!$F$18>=DATE(税率・条件!$C$1+2018,計算!AR$3+1,1),"",IF(入力!$F$18>=DATE(税率・条件!$C$1+2018-75,計算!AR$3+1,1),IF(OR(AND(入力!L18="",OR(入力!M18="",入力!M18>12,入力!M18<4)),AND(入力!L18=4,OR(入力!M18="",入力!M18>12,入力!M18<4)),AND(入力!L18=5,OR(入力!M18="",入力!M18>12,入力!M18<4)),AND(入力!L18=6,OR(入力!M18="",入力!M18>12,入力!M18<4)),AND(入力!L18=7,OR(入力!M18="",入力!M18>12,入力!M18<4)),AND(入力!L18=8,OR(入力!M18="",入力!M18>12,入力!M18<4)),AND(入力!L18=9,OR(入力!M18="",入力!M18>12,入力!M18<4)),AND(入力!L18=10,OR(入力!M18="",入力!M18>12,入力!M18<4)),AND(入力!L18=11,OR(入力!M18="",入力!M18>12,入力!M18<4)),AND(入力!L18=12,OR(入力!M18="",入力!M18>12,入力!M18<4))),"●",""),""))) ->  | AS8: =IF(入力!$F$18="","",IF(入力!$F$18>=DATE(税率・条件!$C$1+2019,計算!AS$3+1,1),"",IF(入力!$F$18>=DATE(税率・条件!$C$1+2019-75,計算!AS$3+1,1),IF(OR(AND(入力!L18="",OR(入力!M18="",入力!M18=2,入力!M18=3)),AND(入力!L18=4,OR(入力!M18="",入力!M18=2,入力!M18=3)),AND(入力!L18=5,OR(入力!M18="",入力!M18=2,入力!M18=3)),AND(入力!L18=6,OR(入力!M18="",入力!M18=2,入力!M18=3)),AND(入力!L18=7,OR(入力!M18="",入力!M18=2,入力!M18=3)),AND(入力!L18=8,OR(入力!M18="",入力!M18=2,入力!M18=3)),AND(入力!L18=9,OR(入力!M18="",入力!M18=2,入力!M18=3)),AND(入力!L18=10,OR(入力!M18="",入力!M18=2,入力!M18=3)),AND(入力!L18=11,OR(入力!M18="",入力!M18=2,入力!M18=3)),AND(入力!L18=12,OR(入力!M18="",入力!M18=2,入力!M18=3)),AND(入力!L18=1,OR(入力!M18="",入力!M18=2,入力!M18=3))),"●",""),""))) ->  | AT8: =IF(入力!$F$18="","",IF(入力!$F$18>=DATE(税率・条件!$C$1+2019,計算!AT$3+1,1),"",IF(入力!$F$18>=DATE(税率・条件!$C$1+2019-75,計算!AT$3+1,1),IF(OR(AND(入力!L18="",OR(入力!M18="",入力!M18=3)),AND(入力!L18=4,OR(入力!M18="",入力!M18=3)),AND(入力!L18=5,OR(入力!M18="",入力!M18=3)),AND(入力!L18=6,OR(入力!M18="",入力!M18=3)),AND(入力!L18=7,OR(入力!M18="",入力!M18=3)),AND(入力!L18=8,OR(入力!M18="",入力!M18=3)),AND(入力!L18=9,OR(入力!M18="",入力!M18=3)),AND(入力!L18=10,OR(入力!M18="",入力!M18=3)),AND(入力!L18=11,OR(入力!M18="",入力!M18=3)),AND(入力!L18=12,OR(入力!M18="",入力!M18=3)),AND(入力!L18=1,OR(入力!M18="",入力!M18=3)),AND(入力!L18=2,OR(入力!M18="",入力!M18=3))),"●",""),""))) ->  | AU8: =IF(入力!$F$18="","",IF(入力!$F$18>=DATE(税率・条件!$C$1+2019,計算!AU$3+1,1),"",IF(入力!$F$18>=DATE(税率・条件!$C$1+2019-75,計算!AU$3+1,1),IF(OR(AND(入力!L18="",入力!M18=""),AND(入力!L18=4,入力!M18=""),AND(入力!L18=5,入力!M18=""),AND(入力!L18=6,入力!M18=""),AND(入力!L18=7,入力!M18=""),AND(入力!L18=8,入力!M18=""),AND(入力!L18=9,入力!M18=""),AND(入力!L18=10,入力!M18=""),AND(入力!L18=11,入力!M18=""),AND(入力!L18=12,入力!M18=""),AND(入力!L18=1,入力!M18=""),AND(入力!L18=2,入力!M18=""),AND(入力!L18=3,入力!M18="")),"●",""),""))) ->  | AW8: =IF(AND(AJ$20=1,AJ8="●"),4,IF(AND(AK$20=1,AK8="●"),5,IF(AND(AL$20=1,AL8="●"),6,IF(AND(AM$20=1,AM8="●"),7,IF(AND(AN$20=1,AN8="●"),8,IF(AND(AO$20=1,AO8="●"),9,IF(AND(AP$20=1,AP8="●"),10,IF(AND(AQ$20=1,AQ8="●"),11,IF(AND(AR$20=1,AR8="●"),12,IF(AND(AS$20=1,AS8="●"),1,IF(AND(AT$20=1,AT8="●"),2,IF(AND(AU$20=1,AU8="●"),3,"")))))))))))) ->  | AY8: 計(小数2位) | AZ8: =SUM(AZ4:AZ7) -> 0 | BA8: =SUM(BA4:BA7) -> 0 | BB8: 0 | BC8: 0 | BD8: 0 | BE8: 0 | BF8: 0 | BG8: 0 | BH8: 0 | BI8: 0 | BJ8: 0 | BK8: 0 | BL8: =SUM(AZ8:BK8) -> 0 | BM8: =ROUNDDOWN(ROUND(BL8,1),0) -> 0
AI9: =IF(入力!$F$18="","",COUNTIF(AJ9:AU9,"■")) ->  | AJ9: =IF(入力!$F$18="","",IF(AND(入力!$F$18>DATE(税率・条件!$C$1+2018-65,計算!AJ$3+1,1),入力!$F$18<=DATE(税率・条件!$C$1+2018-40,計算!AJ$3+1,1)),IF(OR(AND(入力!L18="",OR(入力!M18="",入力!M18>4,入力!M18<4)),AND(入力!L18=4,OR(入力!M18="",入力!M18>4,入力!M18<4))),"■",""),"")) ->  | AK9: =IF(入力!$F$18="","",IF(AND(入力!$F$18>DATE(税率・条件!$C$1+2018-65,計算!AK$3+1,1),入力!$F$18<=DATE(税率・条件!$C$1+2018-40,計算!AK$3+1,1)),IF(OR(AND(入力!L18="",OR(入力!M18="",入力!M18>5,入力!M18<4)),AND(入力!L18=4,OR(入力!M18="",入力!M18>5,入力!M18<4)),AND(入力!L18=5,OR(入力!M18="",入力!M18>5,入力!M18<4))),"■",""),"")) ->  | AL9: =IF(入力!$F$18="","",IF(AND(入力!$F$18>DATE(税率・条件!$C$1+2018-65,計算!AL$3+1,1),入力!$F$18<=DATE(税率・条件!$C$1+2018-40,計算!AL$3+1,1)),IF(OR(AND(入力!L18="",OR(入力!M18="",入力!M18>6,入力!M18<4)),AND(入力!L18=4,OR(入力!M18="",入力!M18>6,入力!M18<4)),AND(入力!L18=5,OR(入力!M18="",入力!M18>6,入力!M18<4)),AND(入力!L18=6,OR(入力!M18="",入力!M18>6,入力!M18<4))),"■",""),"")) ->  | AM9: =IF(入力!$F$18="","",IF(AND(入力!$F$18>DATE(税率・条件!$C$1+2018-65,計算!AM$3+1,1),入力!$F$18<=DATE(税率・条件!$C$1+2018-40,計算!AM$3+1,1)),IF(OR(AND(入力!L18="",OR(入力!M18="",入力!M18>7,入力!M18<4)),AND(入力!L18=4,OR(入力!M18="",入力!M18>7,入力!M18<4)),AND(入力!L18=5,OR(入力!M18="",入力!M18>7,入力!M18<4)),AND(入力!L18=6,OR(入力!M18="",入力!M18>7,入力!M18<4)),AND(入力!L18=7,OR(入力!M18="",入力!M18>7,入力!M18<4))),"■",""),"")) ->  | AN9: =IF(入力!$F$18="","",IF(AND(入力!$F$18>DATE(税率・条件!$C$1+2018-65,計算!AN$3+1,1),入力!$F$18<=DATE(税率・条件!$C$1+2018-40,計算!AN$3+1,1)),IF(OR(AND(入力!L18="",OR(入力!M18="",入力!M18>8,入力!M18<4)),AND(入力!L18=4,OR(入力!M18="",入力!M18>8,入力!M18<4)),AND(入力!L18=5,OR(入力!M18="",入力!M18>8,入力!M18<4)),AND(入力!L18=6,OR(入力!M18="",入力!M18>8,入力!M18<4)),AND(入力!L18=7,OR(入力!M18="",入力!M18>8,入力!M18<4)),AND(入力!L18=8,OR(入力!M18="",入力!M18>8,入力!M18<4))),"■",""),"")) ->  | AO9: =IF(入力!$F$18="","",IF(AND(入力!$F$18>DATE(税率・条件!$C$1+2018-65,計算!AO$3+1,1),入力!$F$18<=DATE(税率・条件!$C$1+2018-40,計算!AO$3+1,1)),IF(OR(AND(入力!L18="",OR(入力!M18="",入力!M18>9,入力!M18<4)),AND(入力!L18=4,OR(入力!M18="",入力!M18>9,入力!M18<4)),AND(入力!L18=5,OR(入力!M18="",入力!M18>9,入力!M18<4)),AND(入力!L18=6,OR(入力!M18="",入力!M18>9,入力!M18<4)),AND(入力!L18=7,OR(入力!M18="",入力!M18>9,入力!M18<4)),AND(入力!L18=8,OR(入力!M18="",入力!M18>9,入力!M18<4)),AND(入力!L18=9,OR(入力!M18="",入力!M18>9,入力!M18<4))),"■",""),"")) ->  | AP9: =IF(入力!$F$18="","",IF(AND(入力!$F$18>DATE(税率・条件!$C$1+2018-65,計算!AP$3+1,1),入力!$F$18<=DATE(税率・条件!$C$1+2018-40,計算!AP$3+1,1)),IF(OR(AND(入力!L18="",OR(入力!M18="",入力!M18>10,入力!M18<4)),AND(入力!L18=4,OR(入力!M18="",入力!M18>10,入力!M18<4)),AND(入力!L18=5,OR(入力!M18="",入力!M18>10,入力!M18<4)),AND(入力!L18=6,OR(入力!M18="",入力!M18>10,入力!M18<4)),AND(入力!L18=7,OR(入力!M18="",入力!M18>10,入力!M18<4)),AND(入力!L18=8,OR(入力!M18="",入力!M18>10,入力!M18<4)),AND(入力!L18=9,OR(入力!M18="",入力!M18>10,入力!M18<4)),AND(入力!L18=10,OR(入力!M18="",入力!M18>10,入力!M18<4))),"■",""),"")) ->  | AQ9: =IF(入力!$F$18="","",IF(AND(入力!$F$18>DATE(税率・条件!$C$1+2018-65,計算!AQ$3+1,1),入力!$F$18<=DATE(税率・条件!$C$1+2018-40,計算!AQ$3+1,1)),IF(OR(AND(入力!L18="",OR(入力!M18="",入力!M18>11,入力!M18<4)),AND(入力!L18=4,OR(入力!M18="",入力!M18>11,入力!M18<4)),AND(入力!L18=5,OR(入力!M18="",入力!M18>11,入力!M18<4)),AND(入力!L18=6,OR(入力!M18="",入力!M18>11,入力!M18<4)),AND(入力!L18=7,OR(入力!M18="",入力!M18>11,入力!M18<4)),AND(入力!L18=8,OR(入力!M18="",入力!M18>11,入力!M18<4)),AND(入力!L18=9,OR(入力!M18="",入力!M18>11,入力!M18<4)),AND(入力!L18=10,OR(入力!M18="",入力!M18>11,入力!M18<4)),AND(入力!L18=11,OR(入力!M18="",入力!M18>11,入力!M18<4))),"■",""),"")) ->  | AR9: =IF(入力!$F$18="","",IF(AND(入力!$F$18>DATE(税率・条件!$C$1+2018-65,計算!AR$3+1,1),入力!$F$18<=DATE(税率・条件!$C$1+2018-40,計算!AR$3+1,1)),IF(OR(AND(入力!L18="",OR(入力!M18="",入力!M18>12,入力!M18<4)),AND(入力!L18=4,OR(入力!M18="",入力!M18>12,入力!M18<4)),AND(入力!L18=5,OR(入力!M18="",入力!M18>12,入力!M18<4)),AND(入力!L18=6,OR(入力!M18="",入力!M18>12,入力!M18<4)),AND(入力!L18=7,OR(入力!M18="",入力!M18>12,入力!M18<4)),AND(入力!L18=8,OR(入力!M18="",入力!M18>12,入力!M18<4)),AND(入力!L18=9,OR(入力!M18="",入力!M18>12,入力!M18<4)),AND(入力!L18=10,OR(入力!M18="",入力!M18>12,入力!M18<4)),AND(入力!L18=11,OR(入力!M18="",入力!M18>12,入力!M18<4)),AND(入力!L18=12,OR(入力!M18="",入力!M18>12,入力!M18<4))),"■",""),"")) ->  | AS9: =IF(入力!$F$18="","",IF(AND(入力!$F$18>DATE(税率・条件!$C$1+2019-65,計算!AS$3+1,1),入力!$F$18<=DATE(税率・条件!$C$1+2019-40,計算!AS$3+1,1)),IF(OR(AND(入力!L18="",OR(入力!M18="",入力!M18=2,入力!M18=3)),AND(入力!L18=4,OR(入力!M18="",入力!M18=2,入力!M18=3)),AND(入力!L18=5,OR(入力!M18="",入力!M18=2,入力!M18=3)),AND(入力!L18=6,OR(入力!M18="",入力!M18=2,入力!M18=3)),AND(入力!L18=7,OR(入力!M18="",入力!M18=2,入力!M18=3)),AND(入力!L18=8,OR(入力!M18="",入力!M18=2,入力!M18=3)),AND(入力!L18=9,OR(入力!M18="",入力!M18=2,入力!M18=3)),AND(入力!L18=10,OR(入力!M18="",入力!M18=2,入力!M18=3)),AND(入力!L18=11,OR(入力!M18="",入力!M18=2,入力!M18=3)),AND(入力!L18=12,OR(入力!M18="",入力!M18=2,入力!M18=3)),AND(入力!L18=1,OR(入力!M18="",入力!M18=2,入力!M18=3))),"■",""),"")) ->  | AT9: =IF(入力!$F$18="","",IF(AND(入力!$F$18>DATE(税率・条件!$C$1+2019-65,計算!AT$3+1,1),入力!$F$18<=DATE(税率・条件!$C$1+2019-40,計算!AT$3+1,1)),IF(OR(AND(入力!L18="",OR(入力!M18="",入力!M18=3)),AND(入力!L18=4,OR(入力!M18="",入力!M18=3)),AND(入力!L18=5,OR(入力!M18="",入力!M18=3)),AND(入力!L18=6,OR(入力!M18="",入力!M18=3)),AND(入力!L18=7,OR(入力!M18="",入力!M18=3)),AND(入力!L18=8,OR(入力!M18="",入力!M18=3)),AND(入力!L18=9,OR(入力!M18="",入力!M18=3)),AND(入力!L18=10,OR(入力!M18="",入力!M18=3)),AND(入力!L18=11,OR(入力!M18="",入力!M18=3)),AND(入力!L18=12,OR(入力!M18="",入力!M18=3)),AND(入力!L18=1,OR(入力!M18="",入力!M18=3)),AND(入力!L18=2,OR(入力!M18="",入力!M18=3))),"■",""),"")) ->  | AU9: =IF(入力!$F$18="","",IF(AND(入力!$F$18>DATE(税率・条件!$C$1+2019-65,計算!AU$3+1,1),入力!$F$18<=DATE(税率・条件!$C$1+2019-40,計算!AU$3+1,1)),IF(OR(AND(入力!L18="",入力!M18=""),AND(入力!L18=4,入力!M18=""),AND(入力!L18=5,入力!M18=""),AND(入力!L18=6,入力!M18=""),AND(入力!L18=7,入力!M18=""),AND(入力!L18=8,入力!M18=""),AND(入力!L18=9,入力!M18=""),AND(入力!L18=10,入力!M18=""),AND(入力!L18=11,入力!M18=""),AND(入力!L18=12,入力!M18=""),AND(入力!L18=1,入力!M18=""),AND(入力!L18=2,入力!M18=""),AND(入力!L18=3,入力!M18="")),"■",""),"")) ->  | AY9: 後期分(所) | AZ9: =ROUND(ROUNDDOWN((IF(AJ$4="",0,$O4)+IF(AJ$6="",0,$O6)+IF(AJ$8="",0,$O8)+IF(AJ$10="",0,$O10)+IF(AJ$12="",0,$O12)+IF(AJ$14="",0,$O14)+IF(AJ$16="",0,$O16)+IF(AJ$18="",0,$O18))*税率・条件!$C$9/100,0)/12,2) -> 0 | BA9: =ROUND(ROUNDDOWN((IF(AK$4="",0,$O4)+IF(AK$6="",0,$O6)+IF(AK$8="",0,$O8)+IF(AK$10="",0,$O10)+IF(AK$12="",0,$O12)+IF(AK$14="",0,$O14)+IF(AK$16="",0,$O16)+IF(AK$18="",0,$O18))*税率・条件!$C$9/100,0)/12,2) -> 0 | BB9: =ROUND(ROUNDDOWN((IF(AL$4="",0,$O4)+IF(AL$6="",0,$O6)+IF(AL$8="",0,$O8)+IF(AL$10="",0,$O10)+IF(AL$12="",0,$O12)+IF(AL$14="",0,$O14)+IF(AL$16="",0,$O16)+IF(AL$18="",0,$O18))*税率・条件!$C$9/100,0)/12,2) -> 0 | BC9: =ROUND(ROUNDDOWN((IF(AM$4="",0,$O4)+IF(AM$6="",0,$O6)+IF(AM$8="",0,$O8)+IF(AM$10="",0,$O10)+IF(AM$12="",0,$O12)+IF(AM$14="",0,$O14)+IF(AM$16="",0,$O16)+IF(AM$18="",0,$O18))*税率・条件!$C$9/100,0)/12,2) -> 0 | BD9: =ROUND(ROUNDDOWN((IF(AN$4="",0,$O4)+IF(AN$6="",0,$O6)+IF(AN$8="",0,$O8)+IF(AN$10="",0,$O10)+IF(AN$12="",0,$O12)+IF(AN$14="",0,$O14)+IF(AN$16="",0,$O16)+IF(AN$18="",0,$O18))*税率・条件!$C$9/100,0)/12,2) -> 0 | BE9: =ROUND(ROUNDDOWN((IF(AO$4="",0,$O4)+IF(AO$6="",0,$O6)+IF(AO$8="",0,$O8)+IF(AO$10="",0,$O10)+IF(AO$12="",0,$O12)+IF(AO$14="",0,$O14)+IF(AO$16="",0,$O16)+IF(AO$18="",0,$O18))*税率・条件!$C$9/100,0)/12,2) -> 0 | BF9: =ROUND(ROUNDDOWN((IF(AP$4="",0,$O4)+IF(AP$6="",0,$O6)+IF(AP$8="",0,$O8)+IF(AP$10="",0,$O10)+IF(AP$12="",0,$O12)+IF(AP$14="",0,$O14)+IF(AP$16="",0,$O16)+IF(AP$18="",0,$O18))*税率・条件!$C$9/100,0)/12,2) -> 0 | BG9: =ROUND(ROUNDDOWN((IF(AQ$4="",0,$O4)+IF(AQ$6="",0,$O6)+IF(AQ$8="",0,$O8)+IF(AQ$10="",0,$O10)+IF(AQ$12="",0,$O12)+IF(AQ$14="",0,$O14)+IF(AQ$16="",0,$O16)+IF(AQ$18="",0,$O18))*税率・条件!$C$9/100,0)/12,2) -> 0 | BH9: =ROUND(ROUNDDOWN((IF(AR$4="",0,$O4)+IF(AR$6="",0,$O6)+IF(AR$8="",0,$O8)+IF(AR$10="",0,$O10)+IF(AR$12="",0,$O12)+IF(AR$14="",0,$O14)+IF(AR$16="",0,$O16)+IF(AR$18="",0,$O18))*税率・条件!$C$9/100,0)/12,2) -> 0 | BI9: =ROUND(ROUNDDOWN((IF(AS$4="",0,$O4)+IF(AS$6="",0,$O6)+IF(AS$8="",0,$O8)+IF(AS$10="",0,$O10)+IF(AS$12="",0,$O12)+IF(AS$14="",0,$O14)+IF(AS$16="",0,$O16)+IF(AS$18="",0,$O18))*税率・条件!$C$9/100,0)/12,2) -> 0 | BJ9: =ROUND(ROUNDDOWN((IF(AT$4="",0,$O4)+IF(AT$6="",0,$O6)+IF(AT$8="",0,$O8)+IF(AT$10="",0,$O10)+IF(AT$12="",0,$O12)+IF(AT$14="",0,$O14)+IF(AT$16="",0,$O16)+IF(AT$18="",0,$O18))*税率・条件!$C$9/100,0)/12,2) -> 0 | BK9: =ROUND(ROUNDDOWN((IF(AU$4="",0,$O4)+IF(AU$6="",0,$O6)+IF(AU$8="",0,$O8)+IF(AU$10="",0,$O10)+IF(AU$12="",0,$O12)+IF(AU$14="",0,$O14)+IF(AU$16="",0,$O16)+IF(AU$18="",0,$O18))*税率・条件!$C$9/100,0)/12,2) -> 0 | BL9: =SUM(AZ9:BK9) -> 0 | BM9: =ROUNDDOWN(ROUND(BL9,1),0) -> 0
A10: =入力!E19 -> ４ | B10: =IF(入力!F19="","",IF(入力!F19<=DATE(税率・条件!C1+1953,1,1),"65歳以上",IF(入力!F19>DATE(税率・条件!C1+2012,4,1),"未就学","一般"))) ->  | C10: =IF(D10="","",IF(入力!K19="該 当","該当","非該当")) ->  | D10: =IF(入力!G19="","",ROUNDDOWN(VLOOKUP(入力!G19,$B$24:$J$35,5,1)*IF(入力!K19="該 当",0.3,1),0)) ->  | E10: =IF(D10="","",IF(OR(D10="",K10=""),0,IF(D10+K10<100000,0,IF(D10<100000,D10,100000)+IF(K10<100000,K10,100000)-100000))) ->  | F10: =IF(D10="","",D10-E10) ->  | G10: =IF(D10="","",IF(OR(D10="",L10=""),0,IF(D10+L10<100000,0,IF(D10<100000,D10,100000)+IF(L10<100000,L10,100000)-100000))) ->  | H10: =IF(D10="","",D10-G10) ->  | I10: =IF(入力!H19="","",IF(B10="65歳以上",VLOOKUP(入力!H19,$B$48:$D$52,2,1),VLOOKUP(入力!H19,$B$40:$D$44,2,1))) ->  | J10: =IF(I10="","",IF(B10="65歳以上",VLOOKUP(入力!H19,$B$48:$D$52,3,1),VLOOKUP(入力!H19,$B$40:$D$44,3,1))) ->  | K10: =IF(I10="","",IF(入力!H19*計算!I10/100-計算!J10<0,0,ROUNDDOWN(入力!H19*計算!I10/100-計算!J10,0))) ->  | L10: =IF(K10="","",IF(B10="65歳以上",IF(K10<税率・条件!$G$9,0,K10-税率・条件!$G$9),K10)) ->  | M10: =IF(入力!I19="","",入力!I19) ->  | N10: =IF(入力!F19="","",SUM(F10,K10,M10)) ->  | O10: =IF(入力!P19<>"",IF(計算!N10-430000>0,計算!N10-430000,0),"") ->  | P10: =IF(入力!Q19<>"",IF(計算!N10-430000>0,計算!N10-430000,0),"") ->  | Q10: =IF(N10="","",IF(AW10<>AW20,"",SUM(H10,L10,M10))) ->  | R10: =IF(AND(D10="",K10=""),"",IF(AW10<>AW20,"",IF(OR(入力!G19>550000,AND(B10="65歳以上",入力!H19>1250000),AND(B10<>"65歳以上",入力!H19>600000)),1,""))) ->  | S10: =IF(N10="","",IF(AND(入力!$H$25<>"",入力!$C$19="全員申告済み",$AW$10=$AW$20),"該当","")) ->  | T10: =IF($O10="","",ROUNDDOWN($O10*税率・条件!$C$4/100,0)) ->  | U10: =IF(入力!$P19="","",ROUNDDOWN(入力!$J19*税率・条件!$C$5/100,0)) ->  | V10: =IF(入力!$P19="","",ROUNDDOWN(税率・条件!$C$6*(100%-IF(B10="未就学",税率・条件!$H$11,0%))*(100%-$M$34),0)) ->  | Y10: =IF($O10="","",ROUNDDOWN($O10*税率・条件!$C$9/100,0)) ->  | Z10: =IF(入力!$P19="","",ROUNDDOWN(入力!$J19*税率・条件!$C$10/100,0)) ->  | AA10: =IF(入力!$P19="","",ROUNDDOWN(税率・条件!$C$11*(100%-IF(B10="未就学",税率・条件!$H$11,0%))*(100%-$M$34),0)) ->  | AD10: =IF($P10="","",ROUNDDOWN($P10*税率・条件!$C$14/100,0)) ->  | AE10: =IF(入力!$Q19="","",ROUNDDOWN(入力!$J19*税率・条件!$C$15/100,0)) ->  | AF10: =IF(入力!$Q19="","",ROUNDDOWN(税率・条件!$C$16*(100%-$M$34),0)) ->  | AI10: =IF(入力!$F$19="","",COUNTIF(AJ10:AU10,"●")) ->  | AJ10: =IF(入力!$F$19="","",IF(入力!$F$19>=DATE(税率・条件!$C$1+2018,計算!AJ$3+1,1),"",IF(入力!$F$19>=DATE(税率・条件!$C$1+2018-75,計算!AJ$3+1,1),IF(OR(AND(入力!L19="",OR(入力!M19="",入力!M19>4,入力!M19<4)),AND(入力!L19=4,OR(入力!M19="",入力!M19>4,入力!M19<4))),"●",""),""))) ->  | AK10: =IF(入力!$F$19="","",IF(入力!$F$19>=DATE(税率・条件!$C$1+2018,計算!AK$3+1,1),"",IF(入力!$F$19>=DATE(税率・条件!$C$1+2018-75,計算!AK$3+1,1),IF(OR(AND(入力!L19="",OR(入力!M19="",入力!M19>5,入力!M19<4)),AND(入力!L19=4,OR(入力!M19="",入力!M19>5,入力!M19<4)),AND(入力!L19=5,OR(入力!M19="",入力!M19>5,入力!M19<4))),"●",""),""))) ->  | AL10: =IF(入力!$F$19="","",IF(入力!$F$19>=DATE(税率・条件!$C$1+2018,計算!AL$3+1,1),"",IF(入力!$F$19>=DATE(税率・条件!$C$1+2018-75,計算!AL$3+1,1),IF(OR(AND(入力!L19="",OR(入力!M19="",入力!M19>6,入力!M19<4)),AND(入力!L19=4,OR(入力!M19="",入力!M19>6,入力!M19<4)),AND(入力!L19=5,OR(入力!M19="",入力!M19>6,入力!M19<4)),AND(入力!L19=6,OR(入力!M19="",入力!M19>6,入力!M19<4))),"●",""),""))) ->  | AM10: =IF(入力!$F$19="","",IF(入力!$F$19>=DATE(税率・条件!$C$1+2018,計算!AM$3+1,1),"",IF(入力!$F$19>=DATE(税率・条件!$C$1+2018-75,計算!AM$3+1,1),IF(OR(AND(入力!L19="",OR(入力!M19="",入力!M19>7,入力!M19<4)),AND(入力!L19=4,OR(入力!M19="",入力!M19>7,入力!M19<4)),AND(入力!L19=5,OR(入力!M19="",入力!M19>7,入力!M19<4)),AND(入力!L19=6,OR(入力!M19="",入力!M19>7,入力!M19<4)),AND(入力!L19=7,OR(入力!M19="",入力!M19>7,入力!M19<4))),"●",""),""))) ->  | AN10: =IF(入力!$F$19="","",IF(入力!$F$19>=DATE(税率・条件!$C$1+2018,計算!AN$3+1,1),"",IF(入力!$F$19>=DATE(税率・条件!$C$1+2018-75,計算!AN$3+1,1),IF(OR(AND(入力!L19="",OR(入力!M19="",入力!M19>8,入力!M19<4)),AND(入力!L19=4,OR(入力!M19="",入力!M19>8,入力!M19<4)),AND(入力!L19=5,OR(入力!M19="",入力!M19>8,入力!M19<4)),AND(入力!L19=6,OR(入力!M19="",入力!M19>8,入力!M19<4)),AND(入力!L19=7,OR(入力!M19="",入力!M19>8,入力!M19<4)),AND(入力!L19=8,OR(入力!M19="",入力!M19>8,入力!M19<4))),"●",""),""))) ->  | AO10: =IF(入力!$F$19="","",IF(入力!$F$19>=DATE(税率・条件!$C$1+2018,計算!AO$3+1,1),"",IF(入力!$F$19>=DATE(税率・条件!$C$1+2018-75,計算!AO$3+1,1),IF(OR(AND(入力!L19="",OR(入力!M19="",入力!M19>9,入力!M19<4)),AND(入力!L19=4,OR(入力!M19="",入力!M19>9,入力!M19<4)),AND(入力!L19=5,OR(入力!M19="",入力!M19>9,入力!M19<4)),AND(入力!L19=6,OR(入力!M19="",入力!M19>9,入力!M19<4)),AND(入力!L19=7,OR(入力!M19="",入力!M19>9,入力!M19<4)),AND(入力!L19=8,OR(入力!M19="",入力!M19>9,入力!M19<4)),AND(入力!L19=9,OR(入力!M19="",入力!M19>9,入力!M19<4))),"●",""),""))) ->  | AP10: =IF(入力!$F$19="","",IF(入力!$F$19>=DATE(税率・条件!$C$1+2018,計算!AP$3+1,1),"",IF(入力!$F$19>=DATE(税率・条件!$C$1+2018-75,計算!AP$3+1,1),IF(OR(AND(入力!L19="",OR(入力!M19="",入力!M19>10,入力!M19<4)),AND(入力!L19=4,OR(入力!M19="",入力!M19>10,入力!M19<4)),AND(入力!L19=5,OR(入力!M19="",入力!M19>10,入力!M19<4)),AND(入力!L19=6,OR(入力!M19="",入力!M19>10,入力!M19<4)),AND(入力!L19=7,OR(入力!M19="",入力!M19>10,入力!M19<4)),AND(入力!L19=8,OR(入力!M19="",入力!M19>10,入力!M19<4)),AND(入力!L19=9,OR(入力!M19="",入力!M19>10,入力!M19<4)),AND(入力!L19=10,OR(入力!M19="",入力!M19>10,入力!M19<4))),"●",""),""))) ->  | AQ10: =IF(入力!$F$19="","",IF(入力!$F$19>=DATE(税率・条件!$C$1+2018,計算!AQ$3+1,1),"",IF(入力!$F$19>=DATE(税率・条件!$C$1+2018-75,計算!AQ$3+1,1),IF(OR(AND(入力!L19="",OR(入力!M19="",入力!M19>11,入力!M19<4)),AND(入力!L19=4,OR(入力!M19="",入力!M19>11,入力!M19<4)),AND(入力!L19=5,OR(入力!M19="",入力!M19>11,入力!M19<4)),AND(入力!L19=6,OR(入力!M19="",入力!M19>11,入力!M19<4)),AND(入力!L19=7,OR(入力!M19="",入力!M19>11,入力!M19<4)),AND(入力!L19=8,OR(入力!M19="",入力!M19>11,入力!M19<4)),AND(入力!L19=9,OR(入力!M19="",入力!M19>11,入力!M19<4)),AND(入力!L19=10,OR(入力!M19="",入力!M19>11,入力!M19<4)),AND(入力!L19=11,OR(入力!M19="",入力!M19>11,入力!M19<4))),"●",""),""))) ->  | AR10: =IF(入力!$F$19="","",IF(入力!$F$19>=DATE(税率・条件!$C$1+2018,計算!AR$3+1,1),"",IF(入力!$F$19>=DATE(税率・条件!$C$1+2018-75,計算!AR$3+1,1),IF(OR(AND(入力!L19="",OR(入力!M19="",入力!M19>12,入力!M19<4)),AND(入力!L19=4,OR(入力!M19="",入力!M19>12,入力!M19<4)),AND(入力!L19=5,OR(入力!M19="",入力!M19>12,入力!M19<4)),AND(入力!L19=6,OR(入力!M19="",入力!M19>12,入力!M19<4)),AND(入力!L19=7,OR(入力!M19="",入力!M19>12,入力!M19<4)),AND(入力!L19=8,OR(入力!M19="",入力!M19>12,入力!M19<4)),AND(入力!L19=9,OR(入力!M19="",入力!M19>12,入力!M19<4)),AND(入力!L19=10,OR(入力!M19="",入力!M19>12,入力!M19<4)),AND(入力!L19=11,OR(入力!M19="",入力!M19>12,入力!M19<4)),AND(入力!L19=12,OR(入力!M19="",入力!M19>12,入力!M19<4))),"●",""),""))) ->  | AS10: =IF(入力!$F$19="","",IF(入力!$F$19>=DATE(税率・条件!$C$1+2019,計算!AS$3+1,1),"",IF(入力!$F$19>=DATE(税率・条件!$C$1+2019-75,計算!AS$3+1,1),IF(OR(AND(入力!L19="",OR(入力!M19="",入力!M19=2,入力!M19=3)),AND(入力!L19=4,OR(入力!M19="",入力!M19=2,入力!M19=3)),AND(入力!L19=5,OR(入力!M19="",入力!M19=2,入力!M19=3)),AND(入力!L19=6,OR(入力!M19="",入力!M19=2,入力!M19=3)),AND(入力!L19=7,OR(入力!M19="",入力!M19=2,入力!M19=3)),AND(入力!L19=8,OR(入力!M19="",入力!M19=2,入力!M19=3)),AND(入力!L19=9,OR(入力!M19="",入力!M19=2,入力!M19=3)),AND(入力!L19=10,OR(入力!M19="",入力!M19=2,入力!M19=3)),AND(入力!L19=11,OR(入力!M19="",入力!M19=2,入力!M19=3)),AND(入力!L19=12,OR(入力!M19="",入力!M19=2,入力!M19=3)),AND(入力!L19=1,OR(入力!M19="",入力!M19=2,入力!M19=3))),"●",""),""))) ->  | AT10: =IF(入力!$F$19="","",IF(入力!$F$19>=DATE(税率・条件!$C$1+2019,計算!AT$3+1,1),"",IF(入力!$F$19>=DATE(税率・条件!$C$1+2019-75,計算!AT$3+1,1),IF(OR(AND(入力!L19="",OR(入力!M19="",入力!M19=3)),AND(入力!L19=4,OR(入力!M19="",入力!M19=3)),AND(入力!L19=5,OR(入力!M19="",入力!M19=3)),AND(入力!L19=6,OR(入力!M19="",入力!M19=3)),AND(入力!L19=7,OR(入力!M19="",入力!M19=3)),AND(入力!L19=8,OR(入力!M19="",入力!M19=3)),AND(入力!L19=9,OR(入力!M19="",入力!M19=3)),AND(入力!L19=10,OR(入力!M19="",入力!M19=3)),AND(入力!L19=11,OR(入力!M19="",入力!M19=3)),AND(入力!L19=12,OR(入力!M19="",入力!M19=3)),AND(入力!L19=1,OR(入力!M19="",入力!M19=3)),AND(入力!L19=2,OR(入力!M19="",入力!M19=3))),"●",""),""))) ->  | AU10: =IF(入力!$F$19="","",IF(入力!$F$19>=DATE(税率・条件!$C$1+2019,計算!AU$3+1,1),"",IF(入力!$F$19>=DATE(税率・条件!$C$1+2019-75,計算!AU$3+1,1),IF(OR(AND(入力!L19="",入力!M19=""),AND(入力!L19=4,入力!M19=""),AND(入力!L19=5,入力!M19=""),AND(入力!L19=6,入力!M19=""),AND(入力!L19=7,入力!M19=""),AND(入力!L19=8,入力!M19=""),AND(入力!L19=9,入力!M19=""),AND(入力!L19=10,入力!M19=""),AND(入力!L19=11,入力!M19=""),AND(入力!L19=12,入力!M19=""),AND(入力!L19=1,入力!M19=""),AND(入力!L19=2,入力!M19=""),AND(入力!L19=3,入力!M19="")),"●",""),""))) ->  | AW10: =IF(AND(AJ$20=1,AJ10="●"),4,IF(AND(AK$20=1,AK10="●"),5,IF(AND(AL$20=1,AL10="●"),6,IF(AND(AM$20=1,AM10="●"),7,IF(AND(AN$20=1,AN10="●"),8,IF(AND(AO$20=1,AO10="●"),9,IF(AND(AP$20=1,AP10="●"),10,IF(AND(AQ$20=1,AQ10="●"),11,IF(AND(AR$20=1,AR10="●"),12,IF(AND(AS$20=1,AS10="●"),1,IF(AND(AT$20=1,AT10="●"),2,IF(AND(AU$20=1,AU10="●"),3,"")))))))))))) ->  | AY10: 後期分(資) | AZ10: =ROUND(ROUNDDOWN((IF(AJ$4="",0,入力!$J$16)+IF(AJ$6="",0,入力!$J$17)+IF(AJ$8="",0,入力!$J$18)+IF(AJ$10="",0,入力!$J$19)+IF(AJ$12="",0,入力!$J$20)+IF(AJ$14="",0,入力!$J$21)+IF(AJ$16="",0,入力!$J$22)+IF(AJ$18="",0,入力!$J$23))*税率・条件!$C$10/100,0)/12,2) -> 0 | BA10: =ROUND(ROUNDDOWN((IF(AK$4="",0,入力!$J$16)+IF(AK$6="",0,入力!$J$17)+IF(AK$8="",0,入力!$J$18)+IF(AK$10="",0,入力!$J$19)+IF(AK$12="",0,入力!$J$20)+IF(AK$14="",0,入力!$J$21)+IF(AK$16="",0,入力!$J$22)+IF(AK$18="",0,入力!$J$23))*税率・条件!$C$10/100,0)/12,2) -> 0 | BB10: =ROUND(ROUNDDOWN((IF(AL$4="",0,入力!$J$16)+IF(AL$6="",0,入力!$J$17)+IF(AL$8="",0,入力!$J$18)+IF(AL$10="",0,入力!$J$19)+IF(AL$12="",0,入力!$J$20)+IF(AL$14="",0,入力!$J$21)+IF(AL$16="",0,入力!$J$22)+IF(AL$18="",0,入力!$J$23))*税率・条件!$C$10/100,0)/12,2) -> 0 | BC10: =ROUND(ROUNDDOWN((IF(AM$4="",0,入力!$J$16)+IF(AM$6="",0,入力!$J$17)+IF(AM$8="",0,入力!$J$18)+IF(AM$10="",0,入力!$J$19)+IF(AM$12="",0,入力!$J$20)+IF(AM$14="",0,入力!$J$21)+IF(AM$16="",0,入力!$J$22)+IF(AM$18="",0,入力!$J$23))*税率・条件!$C$10/100,0)/12,2) -> 0 | BD10: =ROUND(ROUNDDOWN((IF(AN$4="",0,入力!$J$16)+IF(AN$6="",0,入力!$J$17)+IF(AN$8="",0,入力!$J$18)+IF(AN$10="",0,入力!$J$19)+IF(AN$12="",0,入力!$J$20)+IF(AN$14="",0,入力!$J$21)+IF(AN$16="",0,入力!$J$22)+IF(AN$18="",0,入力!$J$23))*税率・条件!$C$10/100,0)/12,2) -> 0 | BE10: =ROUND(ROUNDDOWN((IF(AO$4="",0,入力!$J$16)+IF(AO$6="",0,入力!$J$17)+IF(AO$8="",0,入力!$J$18)+IF(AO$10="",0,入力!$J$19)+IF(AO$12="",0,入力!$J$20)+IF(AO$14="",0,入力!$J$21)+IF(AO$16="",0,入力!$J$22)+IF(AO$18="",0,入力!$J$23))*税率・条件!$C$10/100,0)/12,2) -> 0 | BF10: =ROUND(ROUNDDOWN((IF(AP$4="",0,入力!$J$16)+IF(AP$6="",0,入力!$J$17)+IF(AP$8="",0,入力!$J$18)+IF(AP$10="",0,入力!$J$19)+IF(AP$12="",0,入力!$J$20)+IF(AP$14="",0,入力!$J$21)+IF(AP$16="",0,入力!$J$22)+IF(AP$18="",0,入力!$J$23))*税率・条件!$C$10/100,0)/12,2) -> 0 | BG10: =ROUND(ROUNDDOWN((IF(AQ$4="",0,入力!$J$16)+IF(AQ$6="",0,入力!$J$17)+IF(AQ$8="",0,入力!$J$18)+IF(AQ$10="",0,入力!$J$19)+IF(AQ$12="",0,入力!$J$20)+IF(AQ$14="",0,入力!$J$21)+IF(AQ$16="",0,入力!$J$22)+IF(AQ$18="",0,入力!$J$23))*税率・条件!$C$10/100,0)/12,2) -> 0 | BH10: =ROUND(ROUNDDOWN((IF(AR$4="",0,入力!$J$16)+IF(AR$6="",0,入力!$J$17)+IF(AR$8="",0,入力!$J$18)+IF(AR$10="",0,入力!$J$19)+IF(AR$12="",0,入力!$J$20)+IF(AR$14="",0,入力!$J$21)+IF(AR$16="",0,入力!$J$22)+IF(AR$18="",0,入力!$J$23))*税率・条件!$C$10/100,0)/12,2) -> 0 | BI10: =ROUND(ROUNDDOWN((IF(AS$4="",0,入力!$J$16)+IF(AS$6="",0,入力!$J$17)+IF(AS$8="",0,入力!$J$18)+IF(AS$10="",0,入力!$J$19)+IF(AS$12="",0,入力!$J$20)+IF(AS$14="",0,入力!$J$21)+IF(AS$16="",0,入力!$J$22)+IF(AS$18="",0,入力!$J$23))*税率・条件!$C$10/100,0)/12,2) -> 0 | BJ10: =ROUND(ROUNDDOWN((IF(AT$4="",0,入力!$J$16)+IF(AT$6="",0,入力!$J$17)+IF(AT$8="",0,入力!$J$18)+IF(AT$10="",0,入力!$J$19)+IF(AT$12="",0,入力!$J$20)+IF(AT$14="",0,入力!$J$21)+IF(AT$16="",0,入力!$J$22)+IF(AT$18="",0,入力!$J$23))*税率・条件!$C$10/100,0)/12,2) -> 0 | BK10: =ROUND(ROUNDDOWN((IF(AU$4="",0,入力!$J$16)+IF(AU$6="",0,入力!$J$17)+IF(AU$8="",0,入力!$J$18)+IF(AU$10="",0,入力!$J$19)+IF(AU$12="",0,入力!$J$20)+IF(AU$14="",0,入力!$J$21)+IF(AU$16="",0,入力!$J$22)+IF(AU$18="",0,入力!$J$23))*税率・条件!$C$10/100,0)/12,2) -> 0 | BL10: 0 | BM10: =ROUNDDOWN(ROUND(BL10,1),0) -> 0
AI11: =IF(入力!$F$19="","",COUNTIF(AJ11:AU11,"■")) ->  | AJ11: =IF(入力!$F$19="","",IF(AND(入力!$F$19>DATE(税率・条件!$C$1+2018-65,計算!AJ$3+1,1),入力!$F$19<=DATE(税率・条件!$C$1+2018-40,計算!AJ$3+1,1)),IF(OR(AND(入力!L19="",OR(入力!M19="",入力!M19>4,入力!M19<4)),AND(入力!L19=4,OR(入力!M19="",入力!M19>4,入力!M19<4))),"■",""),"")) ->  | AK11: =IF(入力!$F$19="","",IF(AND(入力!$F$19>DATE(税率・条件!$C$1+2018-65,計算!AK$3+1,1),入力!$F$19<=DATE(税率・条件!$C$1+2018-40,計算!AK$3+1,1)),IF(OR(AND(入力!L19="",OR(入力!M19="",入力!M19>5,入力!M19<4)),AND(入力!L19=4,OR(入力!M19="",入力!M19>5,入力!M19<4)),AND(入力!L19=5,OR(入力!M19="",入力!M19>5,入力!M19<4))),"■",""),"")) ->  | AL11: =IF(入力!$F$19="","",IF(AND(入力!$F$19>DATE(税率・条件!$C$1+2018-65,計算!AL$3+1,1),入力!$F$19<=DATE(税率・条件!$C$1+2018-40,計算!AL$3+1,1)),IF(OR(AND(入力!L19="",OR(入力!M19="",入力!M19>6,入力!M19<4)),AND(入力!L19=4,OR(入力!M19="",入力!M19>6,入力!M19<4)),AND(入力!L19=5,OR(入力!M19="",入力!M19>6,入力!M19<4)),AND(入力!L19=6,OR(入力!M19="",入力!M19>6,入力!M19<4))),"■",""),"")) ->  | AM11: =IF(入力!$F$19="","",IF(AND(入力!$F$19>DATE(税率・条件!$C$1+2018-65,計算!AM$3+1,1),入力!$F$19<=DATE(税率・条件!$C$1+2018-40,計算!AM$3+1,1)),IF(OR(AND(入力!L19="",OR(入力!M19="",入力!M19>7,入力!M19<4)),AND(入力!L19=4,OR(入力!M19="",入力!M19>7,入力!M19<4)),AND(入力!L19=5,OR(入力!M19="",入力!M19>7,入力!M19<4)),AND(入力!L19=6,OR(入力!M19="",入力!M19>7,入力!M19<4)),AND(入力!L19=7,OR(入力!M19="",入力!M19>7,入力!M19<4))),"■",""),"")) ->  | AN11: =IF(入力!$F$19="","",IF(AND(入力!$F$19>DATE(税率・条件!$C$1+2018-65,計算!AN$3+1,1),入力!$F$19<=DATE(税率・条件!$C$1+2018-40,計算!AN$3+1,1)),IF(OR(AND(入力!L19="",OR(入力!M19="",入力!M19>8,入力!M19<4)),AND(入力!L19=4,OR(入力!M19="",入力!M19>8,入力!M19<4)),AND(入力!L19=5,OR(入力!M19="",入力!M19>8,入力!M19<4)),AND(入力!L19=6,OR(入力!M19="",入力!M19>8,入力!M19<4)),AND(入力!L19=7,OR(入力!M19="",入力!M19>8,入力!M19<4)),AND(入力!L19=8,OR(入力!M19="",入力!M19>8,入力!M19<4))),"■",""),"")) ->  | AO11: =IF(入力!$F$19="","",IF(AND(入力!$F$19>DATE(税率・条件!$C$1+2018-65,計算!AO$3+1,1),入力!$F$19<=DATE(税率・条件!$C$1+2018-40,計算!AO$3+1,1)),IF(OR(AND(入力!L19="",OR(入力!M19="",入力!M19>9,入力!M19<4)),AND(入力!L19=4,OR(入力!M19="",入力!M19>9,入力!M19<4)),AND(入力!L19=5,OR(入力!M19="",入力!M19>9,入力!M19<4)),AND(入力!L19=6,OR(入力!M19="",入力!M19>9,入力!M19<4)),AND(入力!L19=7,OR(入力!M19="",入力!M19>9,入力!M19<4)),AND(入力!L19=8,OR(入力!M19="",入力!M19>9,入力!M19<4)),AND(入力!L19=9,OR(入力!M19="",入力!M19>9,入力!M19<4))),"■",""),"")) ->  | AP11: =IF(入力!$F$19="","",IF(AND(入力!$F$19>DATE(税率・条件!$C$1+2018-65,計算!AP$3+1,1),入力!$F$19<=DATE(税率・条件!$C$1+2018-40,計算!AP$3+1,1)),IF(OR(AND(入力!L19="",OR(入力!M19="",入力!M19>10,入力!M19<4)),AND(入力!L19=4,OR(入力!M19="",入力!M19>10,入力!M19<4)),AND(入力!L19=5,OR(入力!M19="",入力!M19>10,入力!M19<4)),AND(入力!L19=6,OR(入力!M19="",入力!M19>10,入力!M19<4)),AND(入力!L19=7,OR(入力!M19="",入力!M19>10,入力!M19<4)),AND(入力!L19=8,OR(入力!M19="",入力!M19>10,入力!M19<4)),AND(入力!L19=9,OR(入力!M19="",入力!M19>10,入力!M19<4)),AND(入力!L19=10,OR(入力!M19="",入力!M19>10,入力!M19<4))),"■",""),"")) ->  | AQ11: =IF(入力!$F$19="","",IF(AND(入力!$F$19>DATE(税率・条件!$C$1+2018-65,計算!AQ$3+1,1),入力!$F$19<=DATE(税率・条件!$C$1+2018-40,計算!AQ$3+1,1)),IF(OR(AND(入力!L19="",OR(入力!M19="",入力!M19>11,入力!M19<4)),AND(入力!L19=4,OR(入力!M19="",入力!M19>11,入力!M19<4)),AND(入力!L19=5,OR(入力!M19="",入力!M19>11,入力!M19<4)),AND(入力!L19=6,OR(入力!M19="",入力!M19>11,入力!M19<4)),AND(入力!L19=7,OR(入力!M19="",入力!M19>11,入力!M19<4)),AND(入力!L19=8,OR(入力!M19="",入力!M19>11,入力!M19<4)),AND(入力!L19=9,OR(入力!M19="",入力!M19>11,入力!M19<4)),AND(入力!L19=10,OR(入力!M19="",入力!M19>11,入力!M19<4)),AND(入力!L19=11,OR(入力!M19="",入力!M19>11,入力!M19<4))),"■",""),"")) ->  | AR11: =IF(入力!$F$19="","",IF(AND(入力!$F$19>DATE(税率・条件!$C$1+2018-65,計算!AR$3+1,1),入力!$F$19<=DATE(税率・条件!$C$1+2018-40,計算!AR$3+1,1)),IF(OR(AND(入力!L19="",OR(入力!M19="",入力!M19>12,入力!M19<4)),AND(入力!L19=4,OR(入力!M19="",入力!M19>12,入力!M19<4)),AND(入力!L19=5,OR(入力!M19="",入力!M19>12,入力!M19<4)),AND(入力!L19=6,OR(入力!M19="",入力!M19>12,入力!M19<4)),AND(入力!L19=7,OR(入力!M19="",入力!M19>12,入力!M19<4)),AND(入力!L19=8,OR(入力!M19="",入力!M19>12,入力!M19<4)),AND(入力!L19=9,OR(入力!M19="",入力!M19>12,入力!M19<4)),AND(入力!L19=10,OR(入力!M19="",入力!M19>12,入力!M19<4)),AND(入力!L19=11,OR(入力!M19="",入力!M19>12,入力!M19<4)),AND(入力!L19=12,OR(入力!M19="",入力!M19>12,入力!M19<4))),"■",""),"")) ->  | AS11: =IF(入力!$F$19="","",IF(AND(入力!$F$19>DATE(税率・条件!$C$1+2019-65,計算!AS$3+1,1),入力!$F$19<=DATE(税率・条件!$C$1+2019-40,計算!AS$3+1,1)),IF(OR(AND(入力!L19="",OR(入力!M19="",入力!M19=2,入力!M19=3)),AND(入力!L19=4,OR(入力!M19="",入力!M19=2,入力!M19=3)),AND(入力!L19=5,OR(入力!M19="",入力!M19=2,入力!M19=3)),AND(入力!L19=6,OR(入力!M19="",入力!M19=2,入力!M19=3)),AND(入力!L19=7,OR(入力!M19="",入力!M19=2,入力!M19=3)),AND(入力!L19=8,OR(入力!M19="",入力!M19=2,入力!M19=3)),AND(入力!L19=9,OR(入力!M19="",入力!M19=2,入力!M19=3)),AND(入力!L19=10,OR(入力!M19="",入力!M19=2,入力!M19=3)),AND(入力!L19=11,OR(入力!M19="",入力!M19=2,入力!M19=3)),AND(入力!L19=12,OR(入力!M19="",入力!M19=2,入力!M19=3)),AND(入力!L19=1,OR(入力!M19="",入力!M19=2,入力!M19=3))),"■",""),"")) ->  | AT11: =IF(入力!$F$19="","",IF(AND(入力!$F$19>DATE(税率・条件!$C$1+2019-65,計算!AT$3+1,1),入力!$F$19<=DATE(税率・条件!$C$1+2019-40,計算!AT$3+1,1)),IF(OR(AND(入力!L19="",OR(入力!M19="",入力!M19=3)),AND(入力!L19=4,OR(入力!M19="",入力!M19=3)),AND(入力!L19=5,OR(入力!M19="",入力!M19=3)),AND(入力!L19=6,OR(入力!M19="",入力!M19=3)),AND(入力!L19=7,OR(入力!M19="",入力!M19=3)),AND(入力!L19=8,OR(入力!M19="",入力!M19=3)),AND(入力!L19=9,OR(入力!M19="",入力!M19=3)),AND(入力!L19=10,OR(入力!M19="",入力!M19=3)),AND(入力!L19=11,OR(入力!M19="",入力!M19=3)),AND(入力!L19=12,OR(入力!M19="",入力!M19=3)),AND(入力!L19=1,OR(入力!M19="",入力!M19=3)),AND(入力!L19=2,OR(入力!M19="",入力!M19=3))),"■",""),"")) ->  | AU11: =IF(入力!$F$19="","",IF(AND(入力!$F$19>DATE(税率・条件!$C$1+2019-65,計算!AU$3+1,1),入力!$F$19<=DATE(税率・条件!$C$1+2019-40,計算!AU$3+1,1)),IF(OR(AND(入力!L19="",入力!M19=""),AND(入力!L19=4,入力!M19=""),AND(入力!L19=5,入力!M19=""),AND(入力!L19=6,入力!M19=""),AND(入力!L19=7,入力!M19=""),AND(入力!L19=8,入力!M19=""),AND(入力!L19=9,入力!M19=""),AND(入力!L19=10,入力!M19=""),AND(入力!L19=11,入力!M19=""),AND(入力!L19=12,入力!M19=""),AND(入力!L19=1,入力!M19=""),AND(入力!L19=2,入力!M19=""),AND(入力!L19=3,入力!M19="")),"■",""),"")) ->  | AY11: 後期分(均) | AZ11: =ROUND(ROUNDDOWN((IF(AJ$4="",0,$AA4)+IF(AJ$6="",0,$AA6)+IF(AJ$8="",0,$AA8)+IF(AJ$10="",0,$AA10)+IF(AJ$12="",0,$AA12)+IF(AJ$14="",0,$AA14)+IF(AJ$16="",0,$AA16)+IF(AJ$18="",0,$AA18)),0)/12,2) -> 0 | BA11: 0 | BB11: 0 | BC11: 0 | BD11: 0 | BE11: 0 | BF11: 0 | BG11: 0 | BH11: 0 | BI11: 0 | BJ11: 0 | BK11: 0 | BL11: 0 | BM11: =ROUNDDOWN(ROUND(BL11,1),0) -> 0
A12: =入力!E20 -> ５ | B12: =IF(入力!F20="","",IF(入力!F20<=DATE(税率・条件!C1+1953,1,1),"65歳以上",IF(入力!F20>DATE(税率・条件!C1+2012,4,1),"未就学","一般"))) ->  | C12: =IF(D12="","",IF(入力!K20="該 当","該当","非該当")) ->  | D12: =IF(入力!G20="","",ROUNDDOWN(VLOOKUP(入力!G20,$B$24:$J$35,6,1)*IF(入力!K20="該 当",0.3,1),0)) ->  | E12: =IF(D12="","",IF(OR(D12="",K12=""),0,IF(D12+K12<100000,0,IF(D12<100000,D12,100000)+IF(K12<100000,K12,100000)-100000))) ->  | F12: =IF(D12="","",D12-E12) ->  | G12: =IF(D12="","",IF(OR(D12="",L12=""),0,IF(D12+L12<100000,0,IF(D12<100000,D12,100000)+IF(L12<100000,L12,100000)-100000))) ->  | H12: =IF(D12="","",D12-G12) ->  | I12: =IF(入力!H20="","",IF(B12="65歳以上",VLOOKUP(入力!H20,$B$48:$D$52,2,1),VLOOKUP(入力!H20,$B$40:$D$44,2,1))) ->  | J12: =IF(I12="","",IF(B12="65歳以上",VLOOKUP(入力!H20,$B$48:$D$52,3,1),VLOOKUP(入力!H20,$B$40:$D$44,3,1))) ->  | K12: =IF(I12="","",IF(入力!H20*計算!I12/100-計算!J12<0,0,ROUNDDOWN(入力!H20*計算!I12/100-計算!J12,0))) ->  | L12: =IF(K12="","",IF(B12="65歳以上",IF(K12<税率・条件!$G$9,0,K12-税率・条件!$G$9),K12)) ->  | M12: =IF(入力!I20="","",入力!I20) ->  | N12: =IF(入力!F20="","",SUM(F12,K12,M12)) ->  | O12: =IF(入力!P20<>"",IF(計算!N12-430000>0,計算!N12-430000,0),"") ->  | P12: =IF(入力!Q20<>"",IF(計算!N12-430000>0,計算!N12-430000,0),"") ->  | Q12: =IF(N12="","",IF(AW12<>AW20,"",SUM(H12,L12,M12))) ->  | R12: =IF(AND(D12="",K12=""),"",IF(AW12<>AW20,"",IF(OR(入力!G20>550000,AND(B12="65歳以上",入力!H20>1250000),AND(B12<>"65歳以上",入力!H20>600000)),1,""))) ->  | S12: =IF(N12="","",IF(AND(入力!$H$25<>"",入力!$C$19="全員申告済み",$AW$12=$AW$20),"該当","")) ->  | T12: =IF($O12="","",ROUNDDOWN($O12*税率・条件!$C$4/100,0)) ->  | U12: =IF(入力!$P20="","",ROUNDDOWN(入力!$J20*税率・条件!$C$5/100,0)) ->  | V12: =IF(入力!$P20="","",ROUNDDOWN(税率・条件!$C$6*(100%-IF(B12="未就学",税率・条件!$H$11,0%))*(100%-$M$34),0)) ->  | Y12: =IF($O12="","",ROUNDDOWN($O12*税率・条件!$C$9/100,0)) ->  | Z12: =IF(入力!$P20="","",ROUNDDOWN(入力!$J20*税率・条件!$C$10/100,0)) ->  | AA12: =IF(入力!$P20="","",ROUNDDOWN(税率・条件!$C$11*(100%-IF(B12="未就学",税率・条件!$H$11,0%))*(100%-$M$34),0)) ->  | AD12: =IF($P12="","",ROUNDDOWN($P12*税率・条件!$C$14/100,0)) ->  | AE12: =IF(入力!$Q20="","",ROUNDDOWN(入力!$J20*税率・条件!$C$15/100,0)) ->  | AF12: =IF(入力!$Q20="","",ROUNDDOWN(税率・条件!$C$16*(100%-$M$34),0)) ->  | AI12: =IF(入力!$F$20="","",COUNTIF(AJ12:AU12,"●")) ->  | AJ12: =IF(入力!$F$20="","",IF(入力!$F$20>=DATE(税率・条件!$C$1+2018,計算!AJ$3+1,1),"",IF(入力!$F$20>=DATE(税率・条件!$C$1+2018-75,計算!AJ$3+1,1),IF(OR(AND(入力!L20="",OR(入力!M20="",入力!M20>4,入力!M20<4)),AND(入力!L20=4,OR(入力!M20="",入力!M20>4,入力!M20<4))),"●",""),""))) ->  | AK12: =IF(入力!$F$20="","",IF(入力!$F$20>=DATE(税率・条件!$C$1+2018,計算!AK$3+1,1),"",IF(入力!$F$20>=DATE(税率・条件!$C$1+2018-75,計算!AK$3+1,1),IF(OR(AND(入力!L20="",OR(入力!M20="",入力!M20>5,入力!M20<4)),AND(入力!L20=4,OR(入力!M20="",入力!M20>5,入力!M20<4)),AND(入力!L20=5,OR(入力!M20="",入力!M20>5,入力!M20<4))),"●",""),""))) ->  | AL12: =IF(入力!$F$20="","",IF(入力!$F$20>=DATE(税率・条件!$C$1+2018,計算!AL$3+1,1),"",IF(入力!$F$20>=DATE(税率・条件!$C$1+2018-75,計算!AL$3+1,1),IF(OR(AND(入力!L20="",OR(入力!M20="",入力!M20>6,入力!M20<4)),AND(入力!L20=4,OR(入力!M20="",入力!M20>6,入力!M20<4)),AND(入力!L20=5,OR(入力!M20="",入力!M20>6,入力!M20<4)),AND(入力!L20=6,OR(入力!M20="",入力!M20>6,入力!M20<4))),"●",""),""))) ->  | AM12: =IF(入力!$F$20="","",IF(入力!$F$20>=DATE(税率・条件!$C$1+2018,計算!AM$3+1,1),"",IF(入力!$F$20>=DATE(税率・条件!$C$1+2018-75,計算!AM$3+1,1),IF(OR(AND(入力!L20="",OR(入力!M20="",入力!M20>7,入力!M20<4)),AND(入力!L20=4,OR(入力!M20="",入力!M20>7,入力!M20<4)),AND(入力!L20=5,OR(入力!M20="",入力!M20>7,入力!M20<4)),AND(入力!L20=6,OR(入力!M20="",入力!M20>7,入力!M20<4)),AND(入力!L20=7,OR(入力!M20="",入力!M20>7,入力!M20<4))),"●",""),""))) ->  | AN12: =IF(入力!$F$20="","",IF(入力!$F$20>=DATE(税率・条件!$C$1+2018,計算!AN$3+1,1),"",IF(入力!$F$20>=DATE(税率・条件!$C$1+2018-75,計算!AN$3+1,1),IF(OR(AND(入力!L20="",OR(入力!M20="",入力!M20>8,入力!M20<4)),AND(入力!L20=4,OR(入力!M20="",入力!M20>8,入力!M20<4)),AND(入力!L20=5,OR(入力!M20="",入力!M20>8,入力!M20<4)),AND(入力!L20=6,OR(入力!M20="",入力!M20>8,入力!M20<4)),AND(入力!L20=7,OR(入力!M20="",入力!M20>8,入力!M20<4)),AND(入力!L20=8,OR(入力!M20="",入力!M20>8,入力!M20<4))),"●",""),""))) ->  | AO12: =IF(入力!$F$20="","",IF(入力!$F$20>=DATE(税率・条件!$C$1+2018,計算!AO$3+1,1),"",IF(入力!$F$20>=DATE(税率・条件!$C$1+2018-75,計算!AO$3+1,1),IF(OR(AND(入力!L20="",OR(入力!M20="",入力!M20>9,入力!M20<4)),AND(入力!L20=4,OR(入力!M20="",入力!M20>9,入力!M20<4)),AND(入力!L20=5,OR(入力!M20="",入力!M20>9,入力!M20<4)),AND(入力!L20=6,OR(入力!M20="",入力!M20>9,入力!M20<4)),AND(入力!L20=7,OR(入力!M20="",入力!M20>9,入力!M20<4)),AND(入力!L20=8,OR(入力!M20="",入力!M20>9,入力!M20<4)),AND(入力!L20=9,OR(入力!M20="",入力!M20>9,入力!M20<4))),"●",""),""))) ->  | AP12: =IF(入力!$F$20="","",IF(入力!$F$20>=DATE(税率・条件!$C$1+2018,計算!AP$3+1,1),"",IF(入力!$F$20>=DATE(税率・条件!$C$1+2018-75,計算!AP$3+1,1),IF(OR(AND(入力!L20="",OR(入力!M20="",入力!M20>10,入力!M20<4)),AND(入力!L20=4,OR(入力!M20="",入力!M20>10,入力!M20<4)),AND(入力!L20=5,OR(入力!M20="",入力!M20>10,入力!M20<4)),AND(入力!L20=6,OR(入力!M20="",入力!M20>10,入力!M20<4)),AND(入力!L20=7,OR(入力!M20="",入力!M20>10,入力!M20<4)),AND(入力!L20=8,OR(入力!M20="",入力!M20>10,入力!M20<4)),AND(入力!L20=9,OR(入力!M20="",入力!M20>10,入力!M20<4)),AND(入力!L20=10,OR(入力!M20="",入力!M20>10,入力!M20<4))),"●",""),""))) ->  | AQ12: =IF(入力!$F$20="","",IF(入力!$F$20>=DATE(税率・条件!$C$1+2018,計算!AQ$3+1,1),"",IF(入力!$F$20>=DATE(税率・条件!$C$1+2018-75,計算!AQ$3+1,1),IF(OR(AND(入力!L20="",OR(入力!M20="",入力!M20>11,入力!M20<4)),AND(入力!L20=4,OR(入力!M20="",入力!M20>11,入力!M20<4)),AND(入力!L20=5,OR(入力!M20="",入力!M20>11,入力!M20<4)),AND(入力!L20=6,OR(入力!M20="",入力!M20>11,入力!M20<4)),AND(入力!L20=7,OR(入力!M20="",入力!M20>11,入力!M20<4)),AND(入力!L20=8,OR(入力!M20="",入力!M20>11,入力!M20<4)),AND(入力!L20=9,OR(入力!M20="",入力!M20>11,入力!M20<4)),AND(入力!L20=10,OR(入力!M20="",入力!M20>11,入力!M20<4)),AND(入力!L20=11,OR(入力!M20="",入力!M20>11,入力!M20<4))),"●",""),""))) ->  | AR12: =IF(入力!$F$20="","",IF(入力!$F$20>=DATE(税率・条件!$C$1+2018,計算!AR$3+1,1),"",IF(入力!$F$20>=DATE(税率・条件!$C$1+2018-75,計算!AR$3+1,1),IF(OR(AND(入力!L20="",OR(入力!M20="",入力!M20>12,入力!M20<4)),AND(入力!L20=4,OR(入力!M20="",入力!M20>12,入力!M20<4)),AND(入力!L20=5,OR(入力!M20="",入力!M20>12,入力!M20<4)),AND(入力!L20=6,OR(入力!M20="",入力!M20>12,入力!M20<4)),AND(入力!L20=7,OR(入力!M20="",入力!M20>12,入力!M20<4)),AND(入力!L20=8,OR(入力!M20="",入力!M20>12,入力!M20<4)),AND(入力!L20=9,OR(入力!M20="",入力!M20>12,入力!M20<4)),AND(入力!L20=10,OR(入力!M20="",入力!M20>12,入力!M20<4)),AND(入力!L20=11,OR(入力!M20="",入力!M20>12,入力!M20<4)),AND(入力!L20=12,OR(入力!M20="",入力!M20>12,入力!M20<4))),"●",""),""))) ->  | AS12: =IF(入力!$F$20="","",IF(入力!$F$20>=DATE(税率・条件!$C$1+2019,計算!AS$3+1,1),"",IF(入力!$F$20>=DATE(税率・条件!$C$1+2019-75,計算!AS$3+1,1),IF(OR(AND(入力!L20="",OR(入力!M20="",入力!M20=2,入力!M20=3)),AND(入力!L20=4,OR(入力!M20="",入力!M20=2,入力!M20=3)),AND(入力!L20=5,OR(入力!M20="",入力!M20=2,入力!M20=3)),AND(入力!L20=6,OR(入力!M20="",入力!M20=2,入力!M20=3)),AND(入力!L20=7,OR(入力!M20="",入力!M20=2,入力!M20=3)),AND(入力!L20=8,OR(入力!M20="",入力!M20=2,入力!M20=3)),AND(入力!L20=9,OR(入力!M20="",入力!M20=2,入力!M20=3)),AND(入力!L20=10,OR(入力!M20="",入力!M20=2,入力!M20=3)),AND(入力!L20=11,OR(入力!M20="",入力!M20=2,入力!M20=3)),AND(入力!L20=12,OR(入力!M20="",入力!M20=2,入力!M20=3)),AND(入力!L20=1,OR(入力!M20="",入力!M20=2,入力!M20=3))),"●",""),""))) ->  | AT12: =IF(入力!$F$20="","",IF(入力!$F$20>=DATE(税率・条件!$C$1+2019,計算!AT$3+1,1),"",IF(入力!$F$20>=DATE(税率・条件!$C$1+2019-75,計算!AT$3+1,1),IF(OR(AND(入力!L20="",OR(入力!M20="",入力!M20=3)),AND(入力!L20=4,OR(入力!M20="",入力!M20=3)),AND(入力!L20=5,OR(入力!M20="",入力!M20=3)),AND(入力!L20=6,OR(入力!M20="",入力!M20=3)),AND(入力!L20=7,OR(入力!M20="",入力!M20=3)),AND(入力!L20=8,OR(入力!M20="",入力!M20=3)),AND(入力!L20=9,OR(入力!M20="",入力!M20=3)),AND(入力!L20=10,OR(入力!M20="",入力!M20=3)),AND(入力!L20=11,OR(入力!M20="",入力!M20=3)),AND(入力!L20=12,OR(入力!M20="",入力!M20=3)),AND(入力!L20=1,OR(入力!M20="",入力!M20=3)),AND(入力!L20=2,OR(入力!M20="",入力!M20=3))),"●",""),""))) ->  | AU12: =IF(入力!$F$20="","",IF(入力!$F$20>=DATE(税率・条件!$C$1+2019,計算!AU$3+1,1),"",IF(入力!$F$20>=DATE(税率・条件!$C$1+2019-75,計算!AU$3+1,1),IF(OR(AND(入力!L20="",入力!M20=""),AND(入力!L20=4,入力!M20=""),AND(入力!L20=5,入力!M20=""),AND(入力!L20=6,入力!M20=""),AND(入力!L20=7,入力!M20=""),AND(入力!L20=8,入力!M20=""),AND(入力!L20=9,入力!M20=""),AND(入力!L20=10,入力!M20=""),AND(入力!L20=11,入力!M20=""),AND(入力!L20=12,入力!M20=""),AND(入力!L20=1,入力!M20=""),AND(入力!L20=2,入力!M20=""),AND(入力!L20=3,入力!M20="")),"●",""),""))) ->  | AW12: =IF(AND(AJ$20=1,AJ12="●"),4,IF(AND(AK$20=1,AK12="●"),5,IF(AND(AL$20=1,AL12="●"),6,IF(AND(AM$20=1,AM12="●"),7,IF(AND(AN$20=1,AN12="●"),8,IF(AND(AO$20=1,AO12="●"),9,IF(AND(AP$20=1,AP12="●"),10,IF(AND(AQ$20=1,AQ12="●"),11,IF(AND(AR$20=1,AR12="●"),12,IF(AND(AS$20=1,AS12="●"),1,IF(AND(AT$20=1,AT12="●"),2,IF(AND(AU$20=1,AU12="●"),3,"")))))))))))) ->  | AY12: 後期分(平) | AZ12: =ROUND(ROUNDDOWN(IF(AJ$20="",0,$AB4),0)/12,2) -> 0 | BA12: 0 | BB12: 0 | BC12: 0 | BD12: 0 | BE12: 0 | BF12: 0 | BG12: 0 | BH12: 0 | BI12: 0 | BJ12: 0 | BK12: 0 | BL12: 0 | BM12: =ROUNDDOWN(ROUND(BL12,1),0) -> 0
AI13: =IF(入力!$F$20="","",COUNTIF(AJ13:AU13,"■")) ->  | AJ13: =IF(入力!$F$20="","",IF(AND(入力!$F$20>DATE(税率・条件!$C$1+2018-65,計算!AJ$3+1,1),入力!$F$20<=DATE(税率・条件!$C$1+2018-40,計算!AJ$3+1,1)),IF(OR(AND(入力!L20="",OR(入力!M20="",入力!M20>4,入力!M20<4)),AND(入力!L20=4,OR(入力!M20="",入力!M20>4,入力!M20<4))),"■",""),"")) ->  | AK13: =IF(入力!$F$20="","",IF(AND(入力!$F$20>DATE(税率・条件!$C$1+2018-65,計算!AK$3+1,1),入力!$F$20<=DATE(税率・条件!$C$1+2018-40,計算!AK$3+1,1)),IF(OR(AND(入力!L20="",OR(入力!M20="",入力!M20>5,入力!M20<4)),AND(入力!L20=4,OR(入力!M20="",入力!M20>5,入力!M20<4)),AND(入力!L20=5,OR(入力!M20="",入力!M20>5,入力!M20<4))),"■",""),"")) ->  | AL13: =IF(入力!$F$20="","",IF(AND(入力!$F$20>DATE(税率・条件!$C$1+2018-65,計算!AL$3+1,1),入力!$F$20<=DATE(税率・条件!$C$1+2018-40,計算!AL$3+1,1)),IF(OR(AND(入力!L20="",OR(入力!M20="",入力!M20>6,入力!M20<4)),AND(入力!L20=4,OR(入力!M20="",入力!M20>6,入力!M20<4)),AND(入力!L20=5,OR(入力!M20="",入力!M20>6,入力!M20<4)),AND(入力!L20=6,OR(入力!M20="",入力!M20>6,入力!M20<4))),"■",""),"")) ->  | AM13: =IF(入力!$F$20="","",IF(AND(入力!$F$20>DATE(税率・条件!$C$1+2018-65,計算!AM$3+1,1),入力!$F$20<=DATE(税率・条件!$C$1+2018-40,計算!AM$3+1,1)),IF(OR(AND(入力!L20="",OR(入力!M20="",入力!M20>7,入力!M20<4)),AND(入力!L20=4,OR(入力!M20="",入力!M20>7,入力!M20<4)),AND(入力!L20=5,OR(入力!M20="",入力!M20>7,入力!M20<4)),AND(入力!L20=6,OR(入力!M20="",入力!M20>7,入力!M20<4)),AND(入力!L20=7,OR(入力!M20="",入力!M20>7,入力!M20<4))),"■",""),"")) ->  | AN13: =IF(入力!$F$20="","",IF(AND(入力!$F$20>DATE(税率・条件!$C$1+2018-65,計算!AN$3+1,1),入力!$F$20<=DATE(税率・条件!$C$1+2018-40,計算!AN$3+1,1)),IF(OR(AND(入力!L20="",OR(入力!M20="",入力!M20>8,入力!M20<4)),AND(入力!L20=4,OR(入力!M20="",入力!M20>8,入力!M20<4)),AND(入力!L20=5,OR(入力!M20="",入力!M20>8,入力!M20<4)),AND(入力!L20=6,OR(入力!M20="",入力!M20>8,入力!M20<4)),AND(入力!L20=7,OR(入力!M20="",入力!M20>8,入力!M20<4)),AND(入力!L20=8,OR(入力!M20="",入力!M20>8,入力!M20<4))),"■",""),"")) ->  | AO13: =IF(入力!$F$20="","",IF(AND(入力!$F$20>DATE(税率・条件!$C$1+2018-65,計算!AO$3+1,1),入力!$F$20<=DATE(税率・条件!$C$1+2018-40,計算!AO$3+1,1)),IF(OR(AND(入力!L20="",OR(入力!M20="",入力!M20>9,入力!M20<4)),AND(入力!L20=4,OR(入力!M20="",入力!M20>9,入力!M20<4)),AND(入力!L20=5,OR(入力!M20="",入力!M20>9,入力!M20<4)),AND(入力!L20=6,OR(入力!M20="",入力!M20>9,入力!M20<4)),AND(入力!L20=7,OR(入力!M20="",入力!M20>9,入力!M20<4)),AND(入力!L20=8,OR(入力!M20="",入力!M20>9,入力!M20<4)),AND(入力!L20=9,OR(入力!M20="",入力!M20>9,入力!M20<4))),"■",""),"")) ->  | AP13: =IF(入力!$F$20="","",IF(AND(入力!$F$20>DATE(税率・条件!$C$1+2018-65,計算!AP$3+1,1),入力!$F$20<=DATE(税率・条件!$C$1+2018-40,計算!AP$3+1,1)),IF(OR(AND(入力!L20="",OR(入力!M20="",入力!M20>10,入力!M20<4)),AND(入力!L20=4,OR(入力!M20="",入力!M20>10,入力!M20<4)),AND(入力!L20=5,OR(入力!M20="",入力!M20>10,入力!M20<4)),AND(入力!L20=6,OR(入力!M20="",入力!M20>10,入力!M20<4)),AND(入力!L20=7,OR(入力!M20="",入力!M20>10,入力!M20<4)),AND(入力!L20=8,OR(入力!M20="",入力!M20>10,入力!M20<4)),AND(入力!L20=9,OR(入力!M20="",入力!M20>10,入力!M20<4)),AND(入力!L20=10,OR(入力!M20="",入力!M20>10,入力!M20<4))),"■",""),"")) ->  | AQ13: =IF(入力!$F$20="","",IF(AND(入力!$F$20>DATE(税率・条件!$C$1+2018-65,計算!AQ$3+1,1),入力!$F$20<=DATE(税率・条件!$C$1+2018-40,計算!AQ$3+1,1)),IF(OR(AND(入力!L20="",OR(入力!M20="",入力!M20>11,入力!M20<4)),AND(入力!L20=4,OR(入力!M20="",入力!M20>11,入力!M20<4)),AND(入力!L20=5,OR(入力!M20="",入力!M20>11,入力!M20<4)),AND(入力!L20=6,OR(入力!M20="",入力!M20>11,入力!M20<4)),AND(入力!L20=7,OR(入力!M20="",入力!M20>11,入力!M20<4)),AND(入力!L20=8,OR(入力!M20="",入力!M20>11,入力!M20<4)),AND(入力!L20=9,OR(入力!M20="",入力!M20>11,入力!M20<4)),AND(入力!L20=10,OR(入力!M20="",入力!M20>11,入力!M20<4)),AND(入力!L20=11,OR(入力!M20="",入力!M20>11,入力!M20<4))),"■",""),"")) ->  | AR13: =IF(入力!$F$20="","",IF(AND(入力!$F$20>DATE(税率・条件!$C$1+2018-65,計算!AR$3+1,1),入力!$F$20<=DATE(税率・条件!$C$1+2018-40,計算!AR$3+1,1)),IF(OR(AND(入力!L20="",OR(入力!M20="",入力!M20>12,入力!M20<4)),AND(入力!L20=4,OR(入力!M20="",入力!M20>12,入力!M20<4)),AND(入力!L20=5,OR(入力!M20="",入力!M20>12,入力!M20<4)),AND(入力!L20=6,OR(入力!M20="",入力!M20>12,入力!M20<4)),AND(入力!L20=7,OR(入力!M20="",入力!M20>12,入力!M20<4)),AND(入力!L20=8,OR(入力!M20="",入力!M20>12,入力!M20<4)),AND(入力!L20=9,OR(入力!M20="",入力!M20>12,入力!M20<4)),AND(入力!L20=10,OR(入力!M20="",入力!M20>12,入力!M20<4)),AND(入力!L20=11,OR(入力!M20="",入力!M20>12,入力!M20<4)),AND(入力!L20=12,OR(入力!M20="",入力!M20>12,入力!M20<4))),"■",""),"")) ->  | AS13: =IF(入力!$F$20="","",IF(AND(入力!$F$20>DATE(税率・条件!$C$1+2019-65,計算!AS$3+1,1),入力!$F$20<=DATE(税率・条件!$C$1+2019-40,計算!AS$3+1,1)),IF(OR(AND(入力!L20="",OR(入力!M20="",入力!M20=2,入力!M20=3)),AND(入力!L20=4,OR(入力!M20="",入力!M20=2,入力!M20=3)),AND(入力!L20=5,OR(入力!M20="",入力!M20=2,入力!M20=3)),AND(入力!L20=6,OR(入力!M20="",入力!M20=2,入力!M20=3)),AND(入力!L20=7,OR(入力!M20="",入力!M20=2,入力!M20=3)),AND(入力!L20=8,OR(入力!M20="",入力!M20=2,入力!M20=3)),AND(入力!L20=9,OR(入力!M20="",入力!M20=2,入力!M20=3)),AND(入力!L20=10,OR(入力!M20="",入力!M20=2,入力!M20=3)),AND(入力!L20=11,OR(入力!M20="",入力!M20=2,入力!M20=3)),AND(入力!L20=12,OR(入力!M20="",入力!M20=2,入力!M20=3)),AND(入力!L20=1,OR(入力!M20="",入力!M20=2,入力!M20=3))),"■",""),"")) ->  | AT13: =IF(入力!$F$20="","",IF(AND(入力!$F$20>DATE(税率・条件!$C$1+2019-65,計算!AT$3+1,1),入力!$F$20<=DATE(税率・条件!$C$1+2019-40,計算!AT$3+1,1)),IF(OR(AND(入力!L20="",OR(入力!M20="",入力!M20=3)),AND(入力!L20=4,OR(入力!M20="",入力!M20=3)),AND(入力!L20=5,OR(入力!M20="",入力!M20=3)),AND(入力!L20=6,OR(入力!M20="",入力!M20=3)),AND(入力!L20=7,OR(入力!M20="",入力!M20=3)),AND(入力!L20=8,OR(入力!M20="",入力!M20=3)),AND(入力!L20=9,OR(入力!M20="",入力!M20=3)),AND(入力!L20=10,OR(入力!M20="",入力!M20=3)),AND(入力!L20=11,OR(入力!M20="",入力!M20=3)),AND(入力!L20=12,OR(入力!M20="",入力!M20=3)),AND(入力!L20=1,OR(入力!M20="",入力!M20=3)),AND(入力!L20=2,OR(入力!M20="",入力!M20=3))),"■",""),"")) ->  | AU13: =IF(入力!$F$20="","",IF(AND(入力!$F$20>DATE(税率・条件!$C$1+2019-65,計算!AU$3+1,1),入力!$F$20<=DATE(税率・条件!$C$1+2019-40,計算!AU$3+1,1)),IF(OR(AND(入力!L20="",入力!M20=""),AND(入力!L20=4,入力!M20=""),AND(入力!L20=5,入力!M20=""),AND(入力!L20=6,入力!M20=""),AND(入力!L20=7,入力!M20=""),AND(入力!L20=8,入力!M20=""),AND(入力!L20=9,入力!M20=""),AND(入力!L20=10,入力!M20=""),AND(入力!L20=11,入力!M20=""),AND(入力!L20=12,入力!M20=""),AND(入力!L20=1,入力!M20=""),AND(入力!L20=2,入力!M20=""),AND(入力!L20=3,入力!M20="")),"■",""),"")) ->  | AY13: 計(小数2位) | AZ13: =SUM(AZ9:AZ12) -> 0 | BA13: =SUM(BA9:BA12) -> 0 | BB13: =SUM(BB9:BB12) -> 0 | BC13: =SUM(BC9:BC12) -> 0 | BD13: =SUM(BD9:BD12) -> 0 | BE13: =SUM(BE9:BE12) -> 0 | BF13: =SUM(BF9:BF12) -> 0 | BG13: =SUM(BG9:BG12) -> 0 | BH13: =SUM(BH9:BH12) -> 0 | BI13: =SUM(BI9:BI12) -> 0 | BJ13: =SUM(BJ9:BJ12) -> 0 | BK13: =SUM(BK9:BK12) -> 0 | BL13: =SUM(AZ13:BK13) -> 0 | BM13: 0
A14: =入力!E21 -> ６ | B14: =IF(入力!F21="","",IF(入力!F21<=DATE(税率・条件!C1+1953,1,1),"65歳以上",IF(入力!F21>DATE(税率・条件!C1+2012,4,1),"未就学","一般"))) ->  | C14: =IF(D14="","",IF(入力!K21="該 当","該当","非該当")) ->  | D14: =IF(入力!G21="","",ROUNDDOWN(VLOOKUP(入力!G21,$B$24:$J$35,7,1)*IF(入力!K21="該 当",0.3,1),0)) ->  | E14: =IF(D14="","",IF(OR(D14="",K14=""),0,IF(D14+K14<100000,0,IF(D14<100000,D14,100000)+IF(K14<100000,K14,100000)-100000))) ->  | F14: =IF(D14="","",D14-E14) ->  | G14: =IF(D14="","",IF(OR(D14="",L14=""),0,IF(D14+L14<100000,0,IF(D14<100000,D14,100000)+IF(L14<100000,L14,100000)-100000))) ->  | H14: =IF(D14="","",D14-G14) ->  | I14: =IF(入力!H21="","",IF(B14="65歳以上",VLOOKUP(入力!H21,$B$48:$D$52,2,1),VLOOKUP(入力!H21,$B$40:$D$44,2,1))) ->  | J14: =IF(I14="","",IF(B14="65歳以上",VLOOKUP(入力!H21,$B$48:$D$52,3,1),VLOOKUP(入力!H21,$B$40:$D$44,3,1))) ->  | K14: =IF(I14="","",IF(入力!H21*計算!I14/100-計算!J14<0,0,ROUNDDOWN(入力!H21*計算!I14/100-計算!J14,0))) ->  | L14: =IF(K14="","",IF(B14="65歳以上",IF(K14<税率・条件!$G$9,0,K14-税率・条件!$G$9),K14)) ->  | M14: =IF(入力!I21="","",入力!I21) ->  | N14: =IF(入力!F21="","",SUM(F14,K14,M14)) ->  | O14: =IF(入力!P21<>"",IF(計算!N14-430000>0,計算!N14-430000,0),"") ->  | P14: =IF(入力!Q21<>"",IF(計算!N14-430000>0,計算!N14-430000,0),"") ->  | Q14: =IF(N14="","",IF(AW14<>AW20,"",SUM(H14,L14,M14))) ->  | R14: =IF(AND(D14="",K14=""),"",IF(AW14<>AW20,"",IF(OR(入力!G21>550000,AND(B14="65歳以上",入力!H21>1250000),AND(B14<>"65歳以上",入力!H21>600000)),1,""))) ->  | S14: =IF(N14="","",IF(AND(入力!$H$25<>"",入力!$C$19="全員申告済み",$AW$14=$AW$20),"該当","")) ->  | T14: =IF($O14="","",ROUNDDOWN($O14*税率・条件!$C$4/100,0)) ->  | U14: =IF(入力!$P21="","",ROUNDDOWN(入力!$J21*税率・条件!$C$5/100,0)) ->  | V14: =IF(入力!$P21="","",ROUNDDOWN(税率・条件!$C$6*(100%-IF(B14="未就学",税率・条件!$H$11,0%))*(100%-$M$34),0)) ->  | X14: =IF(SUM(T14:W14)>0,SUM(T14:W14),"") ->  | Y14: =IF($O14="","",ROUNDDOWN($O14*税率・条件!$C$9/100,0)) ->  | Z14: =IF(入力!$P21="","",ROUNDDOWN(入力!$J21*税率・条件!$C$10/100,0)) ->  | AA14: =IF(入力!$P21="","",ROUNDDOWN(税率・条件!$C$11*(100%-IF(B14="未就学",税率・条件!$H$11,0%))*(100%-$M$34),0)) ->  | AD14: =IF($P14="","",ROUNDDOWN($P14*税率・条件!$C$14/100,0)) ->  | AE14: =IF(入力!$Q21="","",ROUNDDOWN(入力!$J21*税率・条件!$C$15/100,0)) ->  | AF14: =IF(入力!$Q21="","",ROUNDDOWN(税率・条件!$C$16*(100%-$M$34),0)) ->  | AI14: =IF(入力!$F$21="","",COUNTIF(AJ14:AU14,"●")) ->  | AJ14: =IF(入力!$F$21="","",IF(入力!$F$21>=DATE(税率・条件!$C$1+2018,計算!AJ$3+1,1),"",IF(入力!$F$21>=DATE(税率・条件!$C$1+2018-75,計算!AJ$3+1,1),IF(OR(AND(入力!L21="",OR(入力!M21="",入力!M21>4,入力!M21<4)),AND(入力!L21=4,OR(入力!M21="",入力!M21>4,入力!M21<4))),"●",""),""))) ->  | AK14: =IF(入力!$F$21="","",IF(入力!$F$21>=DATE(税率・条件!$C$1+2018,計算!AK$3+1,1),"",IF(入力!$F$21>=DATE(税率・条件!$C$1+2018-75,計算!AK$3+1,1),IF(OR(AND(入力!L21="",OR(入力!M21="",入力!M21>5,入力!M21<4)),AND(入力!L21=4,OR(入力!M21="",入力!M21>5,入力!M21<4)),AND(入力!L21=5,OR(入力!M21="",入力!M21>5,入力!M21<4))),"●",""),""))) ->  | AL14: =IF(入力!$F$21="","",IF(入力!$F$21>=DATE(税率・条件!$C$1+2018,計算!AL$3+1,1),"",IF(入力!$F$21>=DATE(税率・条件!$C$1+2018-75,計算!AL$3+1,1),IF(OR(AND(入力!L21="",OR(入力!M21="",入力!M21>6,入力!M21<4)),AND(入力!L21=4,OR(入力!M21="",入力!M21>6,入力!M21<4)),AND(入力!L21=5,OR(入力!M21="",入力!M21>6,入力!M21<4)),AND(入力!L21=6,OR(入力!M21="",入力!M21>6,入力!M21<4))),"●",""),""))) ->  | AM14: =IF(入力!$F$21="","",IF(入力!$F$21>=DATE(税率・条件!$C$1+2018,計算!AM$3+1,1),"",IF(入力!$F$21>=DATE(税率・条件!$C$1+2018-75,計算!AM$3+1,1),IF(OR(AND(入力!L21="",OR(入力!M21="",入力!M21>7,入力!M21<4)),AND(入力!L21=4,OR(入力!M21="",入力!M21>7,入力!M21<4)),AND(入力!L21=5,OR(入力!M21="",入力!M21>7,入力!M21<4)),AND(入力!L21=6,OR(入力!M21="",入力!M21>7,入力!M21<4)),AND(入力!L21=7,OR(入力!M21="",入力!M21>7,入力!M21<4))),"●",""),""))) ->  | AN14: =IF(入力!$F$21="","",IF(入力!$F$21>=DATE(税率・条件!$C$1+2018,計算!AN$3+1,1),"",IF(入力!$F$21>=DATE(税率・条件!$C$1+2018-75,計算!AN$3+1,1),IF(OR(AND(入力!L21="",OR(入力!M21="",入力!M21>8,入力!M21<4)),AND(入力!L21=4,OR(入力!M21="",入力!M21>8,入力!M21<4)),AND(入力!L21=5,OR(入力!M21="",入力!M21>8,入力!M21<4)),AND(入力!L21=6,OR(入力!M21="",入力!M21>8,入力!M21<4)),AND(入力!L21=7,OR(入力!M21="",入力!M21>8,入力!M21<4)),AND(入力!L21=8,OR(入力!M21="",入力!M21>8,入力!M21<4))),"●",""),""))) ->  | AO14: =IF(入力!$F$21="","",IF(入力!$F$21>=DATE(税率・条件!$C$1+2018,計算!AO$3+1,1),"",IF(入力!$F$21>=DATE(税率・条件!$C$1+2018-75,計算!AO$3+1,1),IF(OR(AND(入力!L21="",OR(入力!M21="",入力!M21>9,入力!M21<4)),AND(入力!L21=4,OR(入力!M21="",入力!M21>9,入力!M21<4)),AND(入力!L21=5,OR(入力!M21="",入力!M21>9,入力!M21<4)),AND(入力!L21=6,OR(入力!M21="",入力!M21>9,入力!M21<4)),AND(入力!L21=7,OR(入力!M21="",入力!M21>9,入力!M21<4)),AND(入力!L21=8,OR(入力!M21="",入力!M21>9,入力!M21<4)),AND(入力!L21=9,OR(入力!M21="",入力!M21>9,入力!M21<4))),"●",""),""))) ->  | AP14: =IF(入力!$F$21="","",IF(入力!$F$21>=DATE(税率・条件!$C$1+2018,計算!AP$3+1,1),"",IF(入力!$F$21>=DATE(税率・条件!$C$1+2018-75,計算!AP$3+1,1),IF(OR(AND(入力!L21="",OR(入力!M21="",入力!M21>10,入力!M21<4)),AND(入力!L21=4,OR(入力!M21="",入力!M21>10,入力!M21<4)),AND(入力!L21=5,OR(入力!M21="",入力!M21>10,入力!M21<4)),AND(入力!L21=6,OR(入力!M21="",入力!M21>10,入力!M21<4)),AND(入力!L21=7,OR(入力!M21="",入力!M21>10,入力!M21<4)),AND(入力!L21=8,OR(入力!M21="",入力!M21>10,入力!M21<4)),AND(入力!L21=9,OR(入力!M21="",入力!M21>10,入力!M21<4)),AND(入力!L21=10,OR(入力!M21="",入力!M21>10,入力!M21<4))),"●",""),""))) ->  | AQ14: =IF(入力!$F$21="","",IF(入力!$F$21>=DATE(税率・条件!$C$1+2018,計算!AQ$3+1,1),"",IF(入力!$F$21>=DATE(税率・条件!$C$1+2018-75,計算!AQ$3+1,1),IF(OR(AND(入力!L21="",OR(入力!M21="",入力!M21>11,入力!M21<4)),AND(入力!L21=4,OR(入力!M21="",入力!M21>11,入力!M21<4)),AND(入力!L21=5,OR(入力!M21="",入力!M21>11,入力!M21<4)),AND(入力!L21=6,OR(入力!M21="",入力!M21>11,入力!M21<4)),AND(入力!L21=7,OR(入力!M21="",入力!M21>11,入力!M21<4)),AND(入力!L21=8,OR(入力!M21="",入力!M21>11,入力!M21<4)),AND(入力!L21=9,OR(入力!M21="",入力!M21>11,入力!M21<4)),AND(入力!L21=10,OR(入力!M21="",入力!M21>11,入力!M21<4)),AND(入力!L21=11,OR(入力!M21="",入力!M21>11,入力!M21<4))),"●",""),""))) ->  | AR14: =IF(入力!$F$21="","",IF(入力!$F$21>=DATE(税率・条件!$C$1+2018,計算!AR$3+1,1),"",IF(入力!$F$21>=DATE(税率・条件!$C$1+2018-75,計算!AR$3+1,1),IF(OR(AND(入力!L21="",OR(入力!M21="",入力!M21>12,入力!M21<4)),AND(入力!L21=4,OR(入力!M21="",入力!M21>12,入力!M21<4)),AND(入力!L21=5,OR(入力!M21="",入力!M21>12,入力!M21<4)),AND(入力!L21=6,OR(入力!M21="",入力!M21>12,入力!M21<4)),AND(入力!L21=7,OR(入力!M21="",入力!M21>12,入力!M21<4)),AND(入力!L21=8,OR(入力!M21="",入力!M21>12,入力!M21<4)),AND(入力!L21=9,OR(入力!M21="",入力!M21>12,入力!M21<4)),AND(入力!L21=10,OR(入力!M21="",入力!M21>12,入力!M21<4)),AND(入力!L21=11,OR(入力!M21="",入力!M21>12,入力!M21<4)),AND(入力!L21=12,OR(入力!M21="",入力!M21>12,入力!M21<4))),"●",""),""))) ->  | AS14: =IF(入力!$F$21="","",IF(入力!$F$21>=DATE(税率・条件!$C$1+2019,計算!AS$3+1,1),"",IF(入力!$F$21>=DATE(税率・条件!$C$1+2019-75,計算!AS$3+1,1),IF(OR(AND(入力!L21="",OR(入力!M21="",入力!M21=2,入力!M21=3)),AND(入力!L21=4,OR(入力!M21="",入力!M21=2,入力!M21=3)),AND(入力!L21=5,OR(入力!M21="",入力!M21=2,入力!M21=3)),AND(入力!L21=6,OR(入力!M21="",入力!M21=2,入力!M21=3)),AND(入力!L21=7,OR(入力!M21="",入力!M21=2,入力!M21=3)),AND(入力!L21=8,OR(入力!M21="",入力!M21=2,入力!M21=3)),AND(入力!L21=9,OR(入力!M21="",入力!M21=2,入力!M21=3)),AND(入力!L21=10,OR(入力!M21="",入力!M21=2,入力!M21=3)),AND(入力!L21=11,OR(入力!M21="",入力!M21=2,入力!M21=3)),AND(入力!L21=12,OR(入力!M21="",入力!M21=2,入力!M21=3)),AND(入力!L21=1,OR(入力!M21="",入力!M21=2,入力!M21=3))),"●",""),""))) ->  | AT14: =IF(入力!$F$21="","",IF(入力!$F$21>=DATE(税率・条件!$C$1+2019,計算!AT$3+1,1),"",IF(入力!$F$21>=DATE(税率・条件!$C$1+2019-75,計算!AT$3+1,1),IF(OR(AND(入力!L21="",OR(入力!M21="",入力!M21=3)),AND(入力!L21=4,OR(入力!M21="",入力!M21=3)),AND(入力!L21=5,OR(入力!M21="",入力!M21=3)),AND(入力!L21=6,OR(入力!M21="",入力!M21=3)),AND(入力!L21=7,OR(入力!M21="",入力!M21=3)),AND(入力!L21=8,OR(入力!M21="",入力!M21=3)),AND(入力!L21=9,OR(入力!M21="",入力!M21=3)),AND(入力!L21=10,OR(入力!M21="",入力!M21=3)),AND(入力!L21=11,OR(入力!M21="",入力!M21=3)),AND(入力!L21=12,OR(入力!M21="",入力!M21=3)),AND(入力!L21=1,OR(入力!M21="",入力!M21=3)),AND(入力!L21=2,OR(入力!M21="",入力!M21=3))),"●",""),""))) ->  | AU14: =IF(入力!$F$21="","",IF(入力!$F$21>=DATE(税率・条件!$C$1+2019,計算!AU$3+1,1),"",IF(入力!$F$21>=DATE(税率・条件!$C$1+2019-75,計算!AU$3+1,1),IF(OR(AND(入力!L21="",入力!M21=""),AND(入力!L21=4,入力!M21=""),AND(入力!L21=5,入力!M21=""),AND(入力!L21=6,入力!M21=""),AND(入力!L21=7,入力!M21=""),AND(入力!L21=8,入力!M21=""),AND(入力!L21=9,入力!M21=""),AND(入力!L21=10,入力!M21=""),AND(入力!L21=11,入力!M21=""),AND(入力!L21=12,入力!M21=""),AND(入力!L21=1,入力!M21=""),AND(入力!L21=2,入力!M21=""),AND(入力!L21=3,入力!M21="")),"●",""),""))) ->  | AW14: =IF(AND(AJ$20=1,AJ14="●"),4,IF(AND(AK$20=1,AK14="●"),5,IF(AND(AL$20=1,AL14="●"),6,IF(AND(AM$20=1,AM14="●"),7,IF(AND(AN$20=1,AN14="●"),8,IF(AND(AO$20=1,AO14="●"),9,IF(AND(AP$20=1,AP14="●"),10,IF(AND(AQ$20=1,AQ14="●"),11,IF(AND(AR$20=1,AR14="●"),12,IF(AND(AS$20=1,AS14="●"),1,IF(AND(AT$20=1,AT14="●"),2,IF(AND(AU$20=1,AU14="●"),3,"")))))))))))) ->  | AY14: 介護分(所) | AZ14: =ROUND(ROUNDDOWN((IF(AJ$5="",0,$P4)+IF(AJ$7="",0,$P6)+IF(AJ$9="",0,$P8)+IF(AJ$11="",0,$P10)+IF(AJ$13="",0,$P12)+IF(AJ$15="",0,$P14)+IF(AJ$17="",0,$P16)+IF(AJ$19="",0,$P18))*税率・条件!$C$14/100,0)/12,2) -> 0 | BA14: =ROUND(ROUNDDOWN((IF(AK$5="",0,$P4)+IF(AK$7="",0,$P6)+IF(AK$9="",0,$P8)+IF(AK$11="",0,$P10)+IF(AK$13="",0,$P12)+IF(AK$15="",0,$P14)+IF(AK$17="",0,$P16)+IF(AK$19="",0,$P18))*税率・条件!$C$14/100,0)/12,2) -> 0 | BB14: =ROUND(ROUNDDOWN((IF(AL$5="",0,$P4)+IF(AL$7="",0,$P6)+IF(AL$9="",0,$P8)+IF(AL$11="",0,$P10)+IF(AL$13="",0,$P12)+IF(AL$15="",0,$P14)+IF(AL$17="",0,$P16)+IF(AL$19="",0,$P18))*税率・条件!$C$14/100,0)/12,2) -> 0 | BC14: =ROUND(ROUNDDOWN((IF(AM$5="",0,$P4)+IF(AM$7="",0,$P6)+IF(AM$9="",0,$P8)+IF(AM$11="",0,$P10)+IF(AM$13="",0,$P12)+IF(AM$15="",0,$P14)+IF(AM$17="",0,$P16)+IF(AM$19="",0,$P18))*税率・条件!$C$14/100,0)/12,2) -> 0 | BD14: =ROUND(ROUNDDOWN((IF(AN$5="",0,$P4)+IF(AN$7="",0,$P6)+IF(AN$9="",0,$P8)+IF(AN$11="",0,$P10)+IF(AN$13="",0,$P12)+IF(AN$15="",0,$P14)+IF(AN$17="",0,$P16)+IF(AN$19="",0,$P18))*税率・条件!$C$14/100,0)/12,2) -> 0 | BE14: =ROUND(ROUNDDOWN((IF(AO$5="",0,$P4)+IF(AO$7="",0,$P6)+IF(AO$9="",0,$P8)+IF(AO$11="",0,$P10)+IF(AO$13="",0,$P12)+IF(AO$15="",0,$P14)+IF(AO$17="",0,$P16)+IF(AO$19="",0,$P18))*税率・条件!$C$14/100,0)/12,2) -> 0 | BF14: =ROUND(ROUNDDOWN((IF(AP$5="",0,$P4)+IF(AP$7="",0,$P6)+IF(AP$9="",0,$P8)+IF(AP$11="",0,$P10)+IF(AP$13="",0,$P12)+IF(AP$15="",0,$P14)+IF(AP$17="",0,$P16)+IF(AP$19="",0,$P18))*税率・条件!$C$14/100,0)/12,2) -> 0 | BG14: =ROUND(ROUNDDOWN((IF(AQ$5="",0,$P4)+IF(AQ$7="",0,$P6)+IF(AQ$9="",0,$P8)+IF(AQ$11="",0,$P10)+IF(AQ$13="",0,$P12)+IF(AQ$15="",0,$P14)+IF(AQ$17="",0,$P16)+IF(AQ$19="",0,$P18))*税率・条件!$C$14/100,0)/12,2) -> 0 | BH14: =ROUND(ROUNDDOWN((IF(AR$5="",0,$P4)+IF(AR$7="",0,$P6)+IF(AR$9="",0,$P8)+IF(AR$11="",0,$P10)+IF(AR$13="",0,$P12)+IF(AR$15="",0,$P14)+IF(AR$17="",0,$P16)+IF(AR$19="",0,$P18))*税率・条件!$C$14/100,0)/12,2) -> 0 | BI14: =ROUND(ROUNDDOWN((IF(AS$5="",0,$P4)+IF(AS$7="",0,$P6)+IF(AS$9="",0,$P8)+IF(AS$11="",0,$P10)+IF(AS$13="",0,$P12)+IF(AS$15="",0,$P14)+IF(AS$17="",0,$P16)+IF(AS$19="",0,$P18))*税率・条件!$C$14/100,0)/12,2) -> 0 | BJ14: =ROUND(ROUNDDOWN((IF(AT$5="",0,$P4)+IF(AT$7="",0,$P6)+IF(AT$9="",0,$P8)+IF(AT$11="",0,$P10)+IF(AT$13="",0,$P12)+IF(AT$15="",0,$P14)+IF(AT$17="",0,$P16)+IF(AT$19="",0,$P18))*税率・条件!$C$14/100,0)/12,2) -> 0 | BK14: =ROUND(ROUNDDOWN((IF(AU$5="",0,$P4)+IF(AU$7="",0,$P6)+IF(AU$9="",0,$P8)+IF(AU$11="",0,$P10)+IF(AU$13="",0,$P12)+IF(AU$15="",0,$P14)+IF(AU$17="",0,$P16)+IF(AU$19="",0,$P18))*税率・条件!$C$14/100,0)/12,2) -> 0 | BL14: =SUM(AZ14:BK14) -> 0 | BM14: =ROUNDDOWN(ROUND(BL14,1),0) -> 0
AI15: =IF(入力!$F$21="","",COUNTIF(AJ15:AU15,"■")) ->  | AJ15: =IF(入力!$F$21="","",IF(AND(入力!$F$21>DATE(税率・条件!$C$1+2018-65,計算!AJ$3+1,1),入力!$F$21<=DATE(税率・条件!$C$1+2018-40,計算!AJ$3+1,1)),IF(OR(AND(入力!L21="",OR(入力!M21="",入力!M21>4,入力!M21<4)),AND(入力!L21=4,OR(入力!M21="",入力!M21>4,入力!M21<4))),"■",""),"")) ->  | AK15: =IF(入力!$F$21="","",IF(AND(入力!$F$21>DATE(税率・条件!$C$1+2018-65,計算!AK$3+1,1),入力!$F$21<=DATE(税率・条件!$C$1+2018-40,計算!AK$3+1,1)),IF(OR(AND(入力!L21="",OR(入力!M21="",入力!M21>5,入力!M21<4)),AND(入力!L21=4,OR(入力!M21="",入力!M21>5,入力!M21<4)),AND(入力!L21=5,OR(入力!M21="",入力!M21>5,入力!M21<4))),"■",""),"")) ->  | AL15: =IF(入力!$F$21="","",IF(AND(入力!$F$21>DATE(税率・条件!$C$1+2018-65,計算!AL$3+1,1),入力!$F$21<=DATE(税率・条件!$C$1+2018-40,計算!AL$3+1,1)),IF(OR(AND(入力!L21="",OR(入力!M21="",入力!M21>6,入力!M21<4)),AND(入力!L21=4,OR(入力!M21="",入力!M21>6,入力!M21<4)),AND(入力!L21=5,OR(入力!M21="",入力!M21>6,入力!M21<4)),AND(入力!L21=6,OR(入力!M21="",入力!M21>6,入力!M21<4))),"■",""),"")) ->  | AM15: =IF(入力!$F$21="","",IF(AND(入力!$F$21>DATE(税率・条件!$C$1+2018-65,計算!AM$3+1,1),入力!$F$21<=DATE(税率・条件!$C$1+2018-40,計算!AM$3+1,1)),IF(OR(AND(入力!L21="",OR(入力!M21="",入力!M21>7,入力!M21<4)),AND(入力!L21=4,OR(入力!M21="",入力!M21>7,入力!M21<4)),AND(入力!L21=5,OR(入力!M21="",入力!M21>7,入力!M21<4)),AND(入力!L21=6,OR(入力!M21="",入力!M21>7,入力!M21<4)),AND(入力!L21=7,OR(入力!M21="",入力!M21>7,入力!M21<4))),"■",""),"")) ->  | AN15: =IF(入力!$F$21="","",IF(AND(入力!$F$21>DATE(税率・条件!$C$1+2018-65,計算!AN$3+1,1),入力!$F$21<=DATE(税率・条件!$C$1+2018-40,計算!AN$3+1,1)),IF(OR(AND(入力!L21="",OR(入力!M21="",入力!M21>8,入力!M21<4)),AND(入力!L21=4,OR(入力!M21="",入力!M21>8,入力!M21<4)),AND(入力!L21=5,OR(入力!M21="",入力!M21>8,入力!M21<4)),AND(入力!L21=6,OR(入力!M21="",入力!M21>8,入力!M21<4)),AND(入力!L21=7,OR(入力!M21="",入力!M21>8,入力!M21<4)),AND(入力!L21=8,OR(入力!M21="",入力!M21>8,入力!M21<4))),"■",""),"")) ->  | AO15: =IF(入力!$F$21="","",IF(AND(入力!$F$21>DATE(税率・条件!$C$1+2018-65,計算!AO$3+1,1),入力!$F$21<=DATE(税率・条件!$C$1+2018-40,計算!AO$3+1,1)),IF(OR(AND(入力!L21="",OR(入力!M21="",入力!M21>9,入力!M21<4)),AND(入力!L21=4,OR(入力!M21="",入力!M21>9,入力!M21<4)),AND(入力!L21=5,OR(入力!M21="",入力!M21>9,入力!M21<4)),AND(入力!L21=6,OR(入力!M21="",入力!M21>9,入力!M21<4)),AND(入力!L21=7,OR(入力!M21="",入力!M21>9,入力!M21<4)),AND(入力!L21=8,OR(入力!M21="",入力!M21>9,入力!M21<4)),AND(入力!L21=9,OR(入力!M21="",入力!M21>9,入力!M21<4))),"■",""),"")) ->  | AP15: =IF(入力!$F$21="","",IF(AND(入力!$F$21>DATE(税率・条件!$C$1+2018-65,計算!AP$3+1,1),入力!$F$21<=DATE(税率・条件!$C$1+2018-40,計算!AP$3+1,1)),IF(OR(AND(入力!L21="",OR(入力!M21="",入力!M21>10,入力!M21<4)),AND(入力!L21=4,OR(入力!M21="",入力!M21>10,入力!M21<4)),AND(入力!L21=5,OR(入力!M21="",入力!M21>10,入力!M21<4)),AND(入力!L21=6,OR(入力!M21="",入力!M21>10,入力!M21<4)),AND(入力!L21=7,OR(入力!M21="",入力!M21>10,入力!M21<4)),AND(入力!L21=8,OR(入力!M21="",入力!M21>10,入力!M21<4)),AND(入力!L21=9,OR(入力!M21="",入力!M21>10,入力!M21<4)),AND(入力!L21=10,OR(入力!M21="",入力!M21>10,入力!M21<4))),"■",""),"")) ->  | AQ15: =IF(入力!$F$21="","",IF(AND(入力!$F$21>DATE(税率・条件!$C$1+2018-65,計算!AQ$3+1,1),入力!$F$21<=DATE(税率・条件!$C$1+2018-40,計算!AQ$3+1,1)),IF(OR(AND(入力!L21="",OR(入力!M21="",入力!M21>11,入力!M21<4)),AND(入力!L21=4,OR(入力!M21="",入力!M21>11,入力!M21<4)),AND(入力!L21=5,OR(入力!M21="",入力!M21>11,入力!M21<4)),AND(入力!L21=6,OR(入力!M21="",入力!M21>11,入力!M21<4)),AND(入力!L21=7,OR(入力!M21="",入力!M21>11,入力!M21<4)),AND(入力!L21=8,OR(入力!M21="",入力!M21>11,入力!M21<4)),AND(入力!L21=9,OR(入力!M21="",入力!M21>11,入力!M21<4)),AND(入力!L21=10,OR(入力!M21="",入力!M21>11,入力!M21<4)),AND(入力!L21=11,OR(入力!M21="",入力!M21>11,入力!M21<4))),"■",""),"")) ->  | AR15: =IF(入力!$F$21="","",IF(AND(入力!$F$21>DATE(税率・条件!$C$1+2018-65,計算!AR$3+1,1),入力!$F$21<=DATE(税率・条件!$C$1+2018-40,計算!AR$3+1,1)),IF(OR(AND(入力!L21="",OR(入力!M21="",入力!M21>12,入力!M21<4)),AND(入力!L21=4,OR(入力!M21="",入力!M21>12,入力!M21<4)),AND(入力!L21=5,OR(入力!M21="",入力!M21>12,入力!M21<4)),AND(入力!L21=6,OR(入力!M21="",入力!M21>12,入力!M21<4)),AND(入力!L21=7,OR(入力!M21="",入力!M21>12,入力!M21<4)),AND(入力!L21=8,OR(入力!M21="",入力!M21>12,入力!M21<4)),AND(入力!L21=9,OR(入力!M21="",入力!M21>12,入力!M21<4)),AND(入力!L21=10,OR(入力!M21="",入力!M21>12,入力!M21<4)),AND(入力!L21=11,OR(入力!M21="",入力!M21>12,入力!M21<4)),AND(入力!L21=12,OR(入力!M21="",入力!M21>12,入力!M21<4))),"■",""),"")) ->  | AS15: =IF(入力!$F$21="","",IF(AND(入力!$F$21>DATE(税率・条件!$C$1+2019-65,計算!AS$3+1,1),入力!$F$21<=DATE(税率・条件!$C$1+2019-40,計算!AS$3+1,1)),IF(OR(AND(入力!L21="",OR(入力!M21="",入力!M21=2,入力!M21=3)),AND(入力!L21=4,OR(入力!M21="",入力!M21=2,入力!M21=3)),AND(入力!L21=5,OR(入力!M21="",入力!M21=2,入力!M21=3)),AND(入力!L21=6,OR(入力!M21="",入力!M21=2,入力!M21=3)),AND(入力!L21=7,OR(入力!M21="",入力!M21=2,入力!M21=3)),AND(入力!L21=8,OR(入力!M21="",入力!M21=2,入力!M21=3)),AND(入力!L21=9,OR(入力!M21="",入力!M21=2,入力!M21=3)),AND(入力!L21=10,OR(入力!M21="",入力!M21=2,入力!M21=3)),AND(入力!L21=11,OR(入力!M21="",入力!M21=2,入力!M21=3)),AND(入力!L21=12,OR(入力!M21="",入力!M21=2,入力!M21=3)),AND(入力!L21=1,OR(入力!M21="",入力!M21=2,入力!M21=3))),"■",""),"")) ->  | AT15: =IF(入力!$F$21="","",IF(AND(入力!$F$21>DATE(税率・条件!$C$1+2019-65,計算!AT$3+1,1),入力!$F$21<=DATE(税率・条件!$C$1+2019-40,計算!AT$3+1,1)),IF(OR(AND(入力!L21="",OR(入力!M21="",入力!M21=3)),AND(入力!L21=4,OR(入力!M21="",入力!M21=3)),AND(入力!L21=5,OR(入力!M21="",入力!M21=3)),AND(入力!L21=6,OR(入力!M21="",入力!M21=3)),AND(入力!L21=7,OR(入力!M21="",入力!M21=3)),AND(入力!L21=8,OR(入力!M21="",入力!M21=3)),AND(入力!L21=9,OR(入力!M21="",入力!M21=3)),AND(入力!L21=10,OR(入力!M21="",入力!M21=3)),AND(入力!L21=11,OR(入力!M21="",入力!M21=3)),AND(入力!L21=12,OR(入力!M21="",入力!M21=3)),AND(入力!L21=1,OR(入力!M21="",入力!M21=3)),AND(入力!L21=2,OR(入力!M21="",入力!M21=3))),"■",""),"")) ->  | AU15: =IF(入力!$F$21="","",IF(AND(入力!$F$21>DATE(税率・条件!$C$1+2019-65,計算!AU$3+1,1),入力!$F$21<=DATE(税率・条件!$C$1+2019-40,計算!AU$3+1,1)),IF(OR(AND(入力!L21="",入力!M21=""),AND(入力!L21=4,入力!M21=""),AND(入力!L21=5,入力!M21=""),AND(入力!L21=6,入力!M21=""),AND(入力!L21=7,入力!M21=""),AND(入力!L21=8,入力!M21=""),AND(入力!L21=9,入力!M21=""),AND(入力!L21=10,入力!M21=""),AND(入力!L21=11,入力!M21=""),AND(入力!L21=12,入力!M21=""),AND(入力!L21=1,入力!M21=""),AND(入力!L21=2,入力!M21=""),AND(入力!L21=3,入力!M21="")),"■",""),"")) ->  | AY15: 介護分(資) | AZ15: =ROUND(ROUNDDOWN((IF(AJ$5="",0,入力!$J$16)+IF(AJ$7="",0,入力!$J$17)+IF(AJ$9="",0,入力!$J$18)+IF(AJ$11="",0,入力!$J$19)+IF(AJ$13="",0,入力!$J$20)+IF(AJ$15="",0,入力!$J$21)+IF(AJ$17="",0,入力!$J$22)+IF(AJ$19="",0,入力!$J$23))*税率・条件!$C$15/100,0)/12,2) -> 0 | BA15: =ROUND(ROUNDDOWN((IF(AK$5="",0,入力!$J$16)+IF(AK$7="",0,入力!$J$17)+IF(AK$9="",0,入力!$J$18)+IF(AK$11="",0,入力!$J$19)+IF(AK$13="",0,入力!$J$20)+IF(AK$15="",0,入力!$J$21)+IF(AK$17="",0,入力!$J$22)+IF(AK$19="",0,入力!$J$23))*税率・条件!$C$15/100,0)/12,2) -> 0 | BB15: =ROUND(ROUNDDOWN((IF(AL$5="",0,入力!$J$16)+IF(AL$7="",0,入力!$J$17)+IF(AL$9="",0,入力!$J$18)+IF(AL$11="",0,入力!$J$19)+IF(AL$13="",0,入力!$J$20)+IF(AL$15="",0,入力!$J$21)+IF(AL$17="",0,入力!$J$22)+IF(AL$19="",0,入力!$J$23))*税率・条件!$C$15/100,0)/12,2) -> 0 | BC15: =ROUND(ROUNDDOWN((IF(AM$5="",0,入力!$J$16)+IF(AM$7="",0,入力!$J$17)+IF(AM$9="",0,入力!$J$18)+IF(AM$11="",0,入力!$J$19)+IF(AM$13="",0,入力!$J$20)+IF(AM$15="",0,入力!$J$21)+IF(AM$17="",0,入力!$J$22)+IF(AM$19="",0,入力!$J$23))*税率・条件!$C$15/100,0)/12,2) -> 0 | BD15: =ROUND(ROUNDDOWN((IF(AN$5="",0,入力!$J$16)+IF(AN$7="",0,入力!$J$17)+IF(AN$9="",0,入力!$J$18)+IF(AN$11="",0,入力!$J$19)+IF(AN$13="",0,入力!$J$20)+IF(AN$15="",0,入力!$J$21)+IF(AN$17="",0,入力!$J$22)+IF(AN$19="",0,入力!$J$23))*税率・条件!$C$15/100,0)/12,2) -> 0 | BE15: =ROUND(ROUNDDOWN((IF(AO$5="",0,入力!$J$16)+IF(AO$7="",0,入力!$J$17)+IF(AO$9="",0,入力!$J$18)+IF(AO$11="",0,入力!$J$19)+IF(AO$13="",0,入力!$J$20)+IF(AO$15="",0,入力!$J$21)+IF(AO$17="",0,入力!$J$22)+IF(AO$19="",0,入力!$J$23))*税率・条件!$C$15/100,0)/12,2) -> 0 | BF15: =ROUND(ROUNDDOWN((IF(AP$5="",0,入力!$J$16)+IF(AP$7="",0,入力!$J$17)+IF(AP$9="",0,入力!$J$18)+IF(AP$11="",0,入力!$J$19)+IF(AP$13="",0,入力!$J$20)+IF(AP$15="",0,入力!$J$21)+IF(AP$17="",0,入力!$J$22)+IF(AP$19="",0,入力!$J$23))*税率・条件!$C$15/100,0)/12,2) -> 0 | BG15: =ROUND(ROUNDDOWN((IF(AQ$5="",0,入力!$J$16)+IF(AQ$7="",0,入力!$J$17)+IF(AQ$9="",0,入力!$J$18)+IF(AQ$11="",0,入力!$J$19)+IF(AQ$13="",0,入力!$J$20)+IF(AQ$15="",0,入力!$J$21)+IF(AQ$17="",0,入力!$J$22)+IF(AQ$19="",0,入力!$J$23))*税率・条件!$C$15/100,0)/12,2) -> 0 | BH15: =ROUND(ROUNDDOWN((IF(AR$5="",0,入力!$J$16)+IF(AR$7="",0,入力!$J$17)+IF(AR$9="",0,入力!$J$18)+IF(AR$11="",0,入力!$J$19)+IF(AR$13="",0,入力!$J$20)+IF(AR$15="",0,入力!$J$21)+IF(AR$17="",0,入力!$J$22)+IF(AR$19="",0,入力!$J$23))*税率・条件!$C$15/100,0)/12,2) -> 0 | BI15: =ROUND(ROUNDDOWN((IF(AS$5="",0,入力!$J$16)+IF(AS$7="",0,入力!$J$17)+IF(AS$9="",0,入力!$J$18)+IF(AS$11="",0,入力!$J$19)+IF(AS$13="",0,入力!$J$20)+IF(AS$15="",0,入力!$J$21)+IF(AS$17="",0,入力!$J$22)+IF(AS$19="",0,入力!$J$23))*税率・条件!$C$15/100,0)/12,2) -> 0 | BJ15: =ROUND(ROUNDDOWN((IF(AT$5="",0,入力!$J$16)+IF(AT$7="",0,入力!$J$17)+IF(AT$9="",0,入力!$J$18)+IF(AT$11="",0,入力!$J$19)+IF(AT$13="",0,入力!$J$20)+IF(AT$15="",0,入力!$J$21)+IF(AT$17="",0,入力!$J$22)+IF(AT$19="",0,入力!$J$23))*税率・条件!$C$15/100,0)/12,2) -> 0 | BK15: =ROUND(ROUNDDOWN((IF(AU$5="",0,入力!$J$16)+IF(AU$7="",0,入力!$J$17)+IF(AU$9="",0,入力!$J$18)+IF(AU$11="",0,入力!$J$19)+IF(AU$13="",0,入力!$J$20)+IF(AU$15="",0,入力!$J$21)+IF(AU$17="",0,入力!$J$22)+IF(AU$19="",0,入力!$J$23))*税率・条件!$C$15/100,0)/12,2) -> 0 | BL15: 0 | BM15: =ROUNDDOWN(ROUND(BL15,1),0) -> 0
A16: =入力!E22 -> ７ | B16: =IF(入力!F22="","",IF(入力!F22<=DATE(税率・条件!C1+1953,1,1),"65歳以上",IF(入力!F22>DATE(税率・条件!C1+2012,4,1),"未就学","一般"))) ->  | C16: =IF(D16="","",IF(入力!K22="該 当","該当","非該当")) ->  | D16: =IF(入力!G22="","",ROUNDDOWN(VLOOKUP(入力!G22,$B$24:$J$35,8,1)*IF(入力!K22="該 当",0.3,1),0)) ->  | E16: =IF(D16="","",IF(OR(D16="",K16=""),0,IF(D16+K16<100000,0,IF(D16<100000,D16,100000)+IF(K16<100000,K16,100000)-100000))) ->  | F16: =IF(D16="","",D16-E16) ->  | G16: =IF(D16="","",IF(OR(D16="",L16=""),0,IF(D16+L16<100000,0,IF(D16<100000,D16,100000)+IF(L16<100000,L16,100000)-100000))) ->  | H16: =IF(D16="","",D16-G16) ->  | I16: =IF(入力!H22="","",IF(B16="65歳以上",VLOOKUP(入力!H22,$B$48:$D$52,2,1),VLOOKUP(入力!H22,$B$40:$D$44,2,1))) ->  | J16: =IF(I16="","",IF(B16="65歳以上",VLOOKUP(入力!H22,$B$48:$D$52,3,1),VLOOKUP(入力!H22,$B$40:$D$44,3,1))) ->  | K16: =IF(I16="","",IF(入力!H22*計算!I16/100-計算!J16<0,0,ROUNDDOWN(入力!H22*計算!I16/100-計算!J16,0))) ->  | L16: =IF(K16="","",IF(B16="65歳以上",IF(K16<税率・条件!$G$9,0,K16-税率・条件!$G$9),K16)) ->  | M16: =IF(入力!I22="","",入力!I22) ->  | N16: =IF(入力!F22="","",SUM(F16,K16,M16)) ->  | O16: =IF(入力!P22<>"",IF(計算!N16-430000>0,計算!N16-430000,0),"") ->  | P16: =IF(入力!Q22<>"",IF(計算!N16-430000>0,計算!N16-430000,0),"") ->  | Q16: =IF(N16="","",IF(AW16<>AW20,"",SUM(H16,L16,M16))) ->  | R16: =IF(AND(D16="",K16=""),"",IF(AW16<>AW20,"",IF(OR(入力!G22>550000,AND(B16="65歳以上",入力!H22>1250000),AND(B16<>"65歳以上",入力!H22>600000)),1,""))) ->  | S16: =IF(N16="","",IF(AND(入力!$H$25<>"",入力!$C$19="全員申告済み",$AW$16=$AW$20),"該当","")) ->  | T16: =IF($O16="","",ROUNDDOWN($O16*税率・条件!$C$4/100,0)) ->  | U16: =IF(入力!$P22="","",ROUNDDOWN(入力!$J22*税率・条件!$C$5/100,0)) ->  | V16: =IF(入力!$P22="","",ROUNDDOWN(税率・条件!$C$6*(100%-IF(B16="未就学",税率・条件!$H$11,0%))*(100%-$M$34),0)) ->  | Y16: =IF($O16="","",ROUNDDOWN($O16*税率・条件!$C$9/100,0)) ->  | Z16: =IF(入力!$P22="","",ROUNDDOWN(入力!$J22*税率・条件!$C$10/100,0)) ->  | AA16: =IF(入力!$P22="","",ROUNDDOWN(税率・条件!$C$11*(100%-IF(B16="未就学",税率・条件!$H$11,0%))*(100%-$M$34),0)) ->  | AD16: =IF($P16="","",ROUNDDOWN($P16*税率・条件!$C$14/100,0)) ->  | AE16: =IF(入力!$Q22="","",ROUNDDOWN(入力!$J22*税率・条件!$C$15/100,0)) ->  | AF16: =IF(入力!$Q22="","",ROUNDDOWN(税率・条件!$C$16*(100%-$M$34),0)) ->  | AI16: =IF(入力!$F$22="","",COUNTIF(AJ16:AU16,"●")) ->  | AJ16: =IF(入力!$F$22="","",IF(入力!$F$22>=DATE(税率・条件!$C$1+2018,計算!AJ$3+1,1),"",IF(入力!$F$22>=DATE(税率・条件!$C$1+2018-75,計算!AJ$3+1,1),IF(OR(AND(入力!L22="",OR(入力!M22="",入力!M22>4,入力!M22<4)),AND(入力!L22=4,OR(入力!M22="",入力!M22>4,入力!M22<4))),"●",""),""))) ->  | AK16: =IF(入力!$F$22="","",IF(入力!$F$22>=DATE(税率・条件!$C$1+2018,計算!AK$3+1,1),"",IF(入力!$F$22>=DATE(税率・条件!$C$1+2018-75,計算!AK$3+1,1),IF(OR(AND(入力!L22="",OR(入力!M22="",入力!M22>5,入力!M22<4)),AND(入力!L22=4,OR(入力!M22="",入力!M22>5,入力!M22<4)),AND(入力!L22=5,OR(入力!M22="",入力!M22>5,入力!M22<4))),"●",""),""))) ->  | AL16: =IF(入力!$F$22="","",IF(入力!$F$22>=DATE(税率・条件!$C$1+2018,計算!AL$3+1,1),"",IF(入力!$F$22>=DATE(税率・条件!$C$1+2018-75,計算!AL$3+1,1),IF(OR(AND(入力!L22="",OR(入力!M22="",入力!M22>6,入力!M22<4)),AND(入力!L22=4,OR(入力!M22="",入力!M22>6,入力!M22<4)),AND(入力!L22=5,OR(入力!M22="",入力!M22>6,入力!M22<4)),AND(入力!L22=6,OR(入力!M22="",入力!M22>6,入力!M22<4))),"●",""),""))) ->  | AM16: =IF(入力!$F$22="","",IF(入力!$F$22>=DATE(税率・条件!$C$1+2018,計算!AM$3+1,1),"",IF(入力!$F$22>=DATE(税率・条件!$C$1+2018-75,計算!AM$3+1,1),IF(OR(AND(入力!L22="",OR(入力!M22="",入力!M22>7,入力!M22<4)),AND(入力!L22=4,OR(入力!M22="",入力!M22>7,入力!M22<4)),AND(入力!L22=5,OR(入力!M22="",入力!M22>7,入力!M22<4)),AND(入力!L22=6,OR(入力!M22="",入力!M22>7,入力!M22<4)),AND(入力!L22=7,OR(入力!M22="",入力!M22>7,入力!M22<4))),"●",""),""))) ->  | AN16: =IF(入力!$F$22="","",IF(入力!$F$22>=DATE(税率・条件!$C$1+2018,計算!AN$3+1,1),"",IF(入力!$F$22>=DATE(税率・条件!$C$1+2018-75,計算!AN$3+1,1),IF(OR(AND(入力!L22="",OR(入力!M22="",入力!M22>8,入力!M22<4)),AND(入力!L22=4,OR(入力!M22="",入力!M22>8,入力!M22<4)),AND(入力!L22=5,OR(入力!M22="",入力!M22>8,入力!M22<4)),AND(入力!L22=6,OR(入力!M22="",入力!M22>8,入力!M22<4)),AND(入力!L22=7,OR(入力!M22="",入力!M22>8,入力!M22<4)),AND(入力!L22=8,OR(入力!M22="",入力!M22>8,入力!M22<4))),"●",""),""))) ->  | AO16: =IF(入力!$F$22="","",IF(入力!$F$22>=DATE(税率・条件!$C$1+2018,計算!AO$3+1,1),"",IF(入力!$F$22>=DATE(税率・条件!$C$1+2018-75,計算!AO$3+1,1),IF(OR(AND(入力!L22="",OR(入力!M22="",入力!M22>9,入力!M22<4)),AND(入力!L22=4,OR(入力!M22="",入力!M22>9,入力!M22<4)),AND(入力!L22=5,OR(入力!M22="",入力!M22>9,入力!M22<4)),AND(入力!L22=6,OR(入力!M22="",入力!M22>9,入力!M22<4)),AND(入力!L22=7,OR(入力!M22="",入力!M22>9,入力!M22<4)),AND(入力!L22=8,OR(入力!M22="",入力!M22>9,入力!M22<4)),AND(入力!L22=9,OR(入力!M22="",入力!M22>9,入力!M22<4))),"●",""),""))) ->  | AP16: =IF(入力!$F$22="","",IF(入力!$F$22>=DATE(税率・条件!$C$1+2018,計算!AP$3+1,1),"",IF(入力!$F$22>=DATE(税率・条件!$C$1+2018-75,計算!AP$3+1,1),IF(OR(AND(入力!L22="",OR(入力!M22="",入力!M22>10,入力!M22<4)),AND(入力!L22=4,OR(入力!M22="",入力!M22>10,入力!M22<4)),AND(入力!L22=5,OR(入力!M22="",入力!M22>10,入力!M22<4)),AND(入力!L22=6,OR(入力!M22="",入力!M22>10,入力!M22<4)),AND(入力!L22=7,OR(入力!M22="",入力!M22>10,入力!M22<4)),AND(入力!L22=8,OR(入力!M22="",入力!M22>10,入力!M22<4)),AND(入力!L22=9,OR(入力!M22="",入力!M22>10,入力!M22<4)),AND(入力!L22=10,OR(入力!M22="",入力!M22>10,入力!M22<4))),"●",""),""))) ->  | AQ16: =IF(入力!$F$22="","",IF(入力!$F$22>=DATE(税率・条件!$C$1+2018,計算!AQ$3+1,1),"",IF(入力!$F$22>=DATE(税率・条件!$C$1+2018-75,計算!AQ$3+1,1),IF(OR(AND(入力!L22="",OR(入力!M22="",入力!M22>11,入力!M22<4)),AND(入力!L22=4,OR(入力!M22="",入力!M22>11,入力!M22<4)),AND(入力!L22=5,OR(入力!M22="",入力!M22>11,入力!M22<4)),AND(入力!L22=6,OR(入力!M22="",入力!M22>11,入力!M22<4)),AND(入力!L22=7,OR(入力!M22="",入力!M22>11,入力!M22<4)),AND(入力!L22=8,OR(入力!M22="",入力!M22>11,入力!M22<4)),AND(入力!L22=9,OR(入力!M22="",入力!M22>11,入力!M22<4)),AND(入力!L22=10,OR(入力!M22="",入力!M22>11,入力!M22<4)),AND(入力!L22=11,OR(入力!M22="",入力!M22>11,入力!M22<4))),"●",""),""))) ->  | AR16: =IF(入力!$F$22="","",IF(入力!$F$22>=DATE(税率・条件!$C$1+2018,計算!AR$3+1,1),"",IF(入力!$F$22>=DATE(税率・条件!$C$1+2018-75,計算!AR$3+1,1),IF(OR(AND(入力!L22="",OR(入力!M22="",入力!M22>12,入力!M22<4)),AND(入力!L22=4,OR(入力!M22="",入力!M22>12,入力!M22<4)),AND(入力!L22=5,OR(入力!M22="",入力!M22>12,入力!M22<4)),AND(入力!L22=6,OR(入力!M22="",入力!M22>12,入力!M22<4)),AND(入力!L22=7,OR(入力!M22="",入力!M22>12,入力!M22<4)),AND(入力!L22=8,OR(入力!M22="",入力!M22>12,入力!M22<4)),AND(入力!L22=9,OR(入力!M22="",入力!M22>12,入力!M22<4)),AND(入力!L22=10,OR(入力!M22="",入力!M22>12,入力!M22<4)),AND(入力!L22=11,OR(入力!M22="",入力!M22>12,入力!M22<4)),AND(入力!L22=12,OR(入力!M22="",入力!M22>12,入力!M22<4))),"●",""),""))) ->  | AS16: =IF(入力!$F$22="","",IF(入力!$F$22>=DATE(税率・条件!$C$1+2019,計算!AS$3+1,1),"",IF(入力!$F$22>=DATE(税率・条件!$C$1+2019-75,計算!AS$3+1,1),IF(OR(AND(入力!L22="",OR(入力!M22="",入力!M22=2,入力!M22=3)),AND(入力!L22=4,OR(入力!M22="",入力!M22=2,入力!M22=3)),AND(入力!L22=5,OR(入力!M22="",入力!M22=2,入力!M22=3)),AND(入力!L22=6,OR(入力!M22="",入力!M22=2,入力!M22=3)),AND(入力!L22=7,OR(入力!M22="",入力!M22=2,入力!M22=3)),AND(入力!L22=8,OR(入力!M22="",入力!M22=2,入力!M22=3)),AND(入力!L22=9,OR(入力!M22="",入力!M22=2,入力!M22=3)),AND(入力!L22=10,OR(入力!M22="",入力!M22=2,入力!M22=3)),AND(入力!L22=11,OR(入力!M22="",入力!M22=2,入力!M22=3)),AND(入力!L22=12,OR(入力!M22="",入力!M22=2,入力!M22=3)),AND(入力!L22=1,OR(入力!M22="",入力!M22=2,入力!M22=3))),"●",""),""))) ->  | AT16: =IF(入力!$F$22="","",IF(入力!$F$22>=DATE(税率・条件!$C$1+2019,計算!AT$3+1,1),"",IF(入力!$F$22>=DATE(税率・条件!$C$1+2019-75,計算!AT$3+1,1),IF(OR(AND(入力!L22="",OR(入力!M22="",入力!M22=3)),AND(入力!L22=4,OR(入力!M22="",入力!M22=3)),AND(入力!L22=5,OR(入力!M22="",入力!M22=3)),AND(入力!L22=6,OR(入力!M22="",入力!M22=3)),AND(入力!L22=7,OR(入力!M22="",入力!M22=3)),AND(入力!L22=8,OR(入力!M22="",入力!M22=3)),AND(入力!L22=9,OR(入力!M22="",入力!M22=3)),AND(入力!L22=10,OR(入力!M22="",入力!M22=3)),AND(入力!L22=11,OR(入力!M22="",入力!M22=3)),AND(入力!L22=12,OR(入力!M22="",入力!M22=3)),AND(入力!L22=1,OR(入力!M22="",入力!M22=3)),AND(入力!L22=2,OR(入力!M22="",入力!M22=3))),"●",""),""))) ->  | AU16: =IF(入力!$F$22="","",IF(入力!$F$22>=DATE(税率・条件!$C$1+2019,計算!AU$3+1,1),"",IF(入力!$F$22>=DATE(税率・条件!$C$1+2019-75,計算!AU$3+1,1),IF(OR(AND(入力!L22="",入力!M22=""),AND(入力!L22=4,入力!M22=""),AND(入力!L22=5,入力!M22=""),AND(入力!L22=6,入力!M22=""),AND(入力!L22=7,入力!M22=""),AND(入力!L22=8,入力!M22=""),AND(入力!L22=9,入力!M22=""),AND(入力!L22=10,入力!M22=""),AND(入力!L22=11,入力!M22=""),AND(入力!L22=12,入力!M22=""),AND(入力!L22=1,入力!M22=""),AND(入力!L22=2,入力!M22=""),AND(入力!L22=3,入力!M22="")),"●",""),""))) ->  | AW16: =IF(AND(AJ$20=1,AJ16="●"),4,IF(AND(AK$20=1,AK16="●"),5,IF(AND(AL$20=1,AL16="●"),6,IF(AND(AM$20=1,AM16="●"),7,IF(AND(AN$20=1,AN16="●"),8,IF(AND(AO$20=1,AO16="●"),9,IF(AND(AP$20=1,AP16="●"),10,IF(AND(AQ$20=1,AQ16="●"),11,IF(AND(AR$20=1,AR16="●"),12,IF(AND(AS$20=1,AS16="●"),1,IF(AND(AT$20=1,AT16="●"),2,IF(AND(AU$20=1,AU16="●"),3,"")))))))))))) ->  | AY16: 介護分(均) | AZ16: =ROUND(ROUNDDOWN((IF(AJ$5="",0,$AF4)+IF(AJ$7="",0,$AF6)+IF(AJ$9="",0,$AF8)+IF(AJ$11="",0,$AF10)+IF(AJ$13="",0,$AF12)+IF(AJ$15="",0,$AF14)+IF(AJ$17="",0,$AF16)+IF(AJ$19="",0,$AF18)),0)/12,2) -> 0 | BA16: 0 | BB16: 0 | BC16: 0 | BD16: 0 | BE16: 0 | BF16: 0 | BG16: 0 | BH16: 0 | BI16: 0 | BJ16: 0 | BK16: 0 | BL16: 0 | BM16: =ROUNDDOWN(ROUND(BL16,1),0) -> 0
AI17: =IF(入力!$F$22="","",COUNTIF(AJ17:AU17,"■")) ->  | AJ17: =IF(入力!$F$22="","",IF(AND(入力!$F$22>DATE(税率・条件!$C$1+2018-65,計算!AJ$3+1,1),入力!$F$22<=DATE(税率・条件!$C$1+2018-40,計算!AJ$3+1,1)),IF(OR(AND(入力!L22="",OR(入力!M22="",入力!M22>4,入力!M22<4)),AND(入力!L22=4,OR(入力!M22="",入力!M22>4,入力!M22<4))),"■",""),"")) ->  | AK17: =IF(入力!$F$22="","",IF(AND(入力!$F$22>DATE(税率・条件!$C$1+2018-65,計算!AK$3+1,1),入力!$F$22<=DATE(税率・条件!$C$1+2018-40,計算!AK$3+1,1)),IF(OR(AND(入力!L22="",OR(入力!M22="",入力!M22>5,入力!M22<4)),AND(入力!L22=4,OR(入力!M22="",入力!M22>5,入力!M22<4)),AND(入力!L22=5,OR(入力!M22="",入力!M22>5,入力!M22<4))),"■",""),"")) ->  | AL17: =IF(入力!$F$22="","",IF(AND(入力!$F$22>DATE(税率・条件!$C$1+2018-65,計算!AL$3+1,1),入力!$F$22<=DATE(税率・条件!$C$1+2018-40,計算!AL$3+1,1)),IF(OR(AND(入力!L22="",OR(入力!M22="",入力!M22>6,入力!M22<4)),AND(入力!L22=4,OR(入力!M22="",入力!M22>6,入力!M22<4)),AND(入力!L22=5,OR(入力!M22="",入力!M22>6,入力!M22<4)),AND(入力!L22=6,OR(入力!M22="",入力!M22>6,入力!M22<4))),"■",""),"")) ->  | AM17: =IF(入力!$F$22="","",IF(AND(入力!$F$22>DATE(税率・条件!$C$1+2018-65,計算!AM$3+1,1),入力!$F$22<=DATE(税率・条件!$C$1+2018-40,計算!AM$3+1,1)),IF(OR(AND(入力!L22="",OR(入力!M22="",入力!M22>7,入力!M22<4)),AND(入力!L22=4,OR(入力!M22="",入力!M22>7,入力!M22<4)),AND(入力!L22=5,OR(入力!M22="",入力!M22>7,入力!M22<4)),AND(入力!L22=6,OR(入力!M22="",入力!M22>7,入力!M22<4)),AND(入力!L22=7,OR(入力!M22="",入力!M22>7,入力!M22<4))),"■",""),"")) ->  | AN17: =IF(入力!$F$22="","",IF(AND(入力!$F$22>DATE(税率・条件!$C$1+2018-65,計算!AN$3+1,1),入力!$F$22<=DATE(税率・条件!$C$1+2018-40,計算!AN$3+1,1)),IF(OR(AND(入力!L22="",OR(入力!M22="",入力!M22>8,入力!M22<4)),AND(入力!L22=4,OR(入力!M22="",入力!M22>8,入力!M22<4)),AND(入力!L22=5,OR(入力!M22="",入力!M22>8,入力!M22<4)),AND(入力!L22=6,OR(入力!M22="",入力!M22>8,入力!M22<4)),AND(入力!L22=7,OR(入力!M22="",入力!M22>8,入力!M22<4)),AND(入力!L22=8,OR(入力!M22="",入力!M22>8,入力!M22<4))),"■",""),"")) ->  | AO17: =IF(入力!$F$22="","",IF(AND(入力!$F$22>DATE(税率・条件!$C$1+2018-65,計算!AO$3+1,1),入力!$F$22<=DATE(税率・条件!$C$1+2018-40,計算!AO$3+1,1)),IF(OR(AND(入力!L22="",OR(入力!M22="",入力!M22>9,入力!M22<4)),AND(入力!L22=4,OR(入力!M22="",入力!M22>9,入力!M22<4)),AND(入力!L22=5,OR(入力!M22="",入力!M22>9,入力!M22<4)),AND(入力!L22=6,OR(入力!M22="",入力!M22>9,入力!M22<4)),AND(入力!L22=7,OR(入力!M22="",入力!M22>9,入力!M22<4)),AND(入力!L22=8,OR(入力!M22="",入力!M22>9,入力!M22<4)),AND(入力!L22=9,OR(入力!M22="",入力!M22>9,入力!M22<4))),"■",""),"")) ->  | AP17: =IF(入力!$F$22="","",IF(AND(入力!$F$22>DATE(税率・条件!$C$1+2018-65,計算!AP$3+1,1),入力!$F$22<=DATE(税率・条件!$C$1+2018-40,計算!AP$3+1,1)),IF(OR(AND(入力!L22="",OR(入力!M22="",入力!M22>10,入力!M22<4)),AND(入力!L22=4,OR(入力!M22="",入力!M22>10,入力!M22<4)),AND(入力!L22=5,OR(入力!M22="",入力!M22>10,入力!M22<4)),AND(入力!L22=6,OR(入力!M22="",入力!M22>10,入力!M22<4)),AND(入力!L22=7,OR(入力!M22="",入力!M22>10,入力!M22<4)),AND(入力!L22=8,OR(入力!M22="",入力!M22>10,入力!M22<4)),AND(入力!L22=9,OR(入力!M22="",入力!M22>10,入力!M22<4)),AND(入力!L22=10,OR(入力!M22="",入力!M22>10,入力!M22<4))),"■",""),"")) ->  | AQ17: =IF(入力!$F$22="","",IF(AND(入力!$F$22>DATE(税率・条件!$C$1+2018-65,計算!AQ$3+1,1),入力!$F$22<=DATE(税率・条件!$C$1+2018-40,計算!AQ$3+1,1)),IF(OR(AND(入力!L22="",OR(入力!M22="",入力!M22>11,入力!M22<4)),AND(入力!L22=4,OR(入力!M22="",入力!M22>11,入力!M22<4)),AND(入力!L22=5,OR(入力!M22="",入力!M22>11,入力!M22<4)),AND(入力!L22=6,OR(入力!M22="",入力!M22>11,入力!M22<4)),AND(入力!L22=7,OR(入力!M22="",入力!M22>11,入力!M22<4)),AND(入力!L22=8,OR(入力!M22="",入力!M22>11,入力!M22<4)),AND(入力!L22=9,OR(入力!M22="",入力!M22>11,入力!M22<4)),AND(入力!L22=10,OR(入力!M22="",入力!M22>11,入力!M22<4)),AND(入力!L22=11,OR(入力!M22="",入力!M22>11,入力!M22<4))),"■",""),"")) ->  | AR17: =IF(入力!$F$22="","",IF(AND(入力!$F$22>DATE(税率・条件!$C$1+2018-65,計算!AR$3+1,1),入力!$F$22<=DATE(税率・条件!$C$1+2018-40,計算!AR$3+1,1)),IF(OR(AND(入力!L22="",OR(入力!M22="",入力!M22>12,入力!M22<4)),AND(入力!L22=4,OR(入力!M22="",入力!M22>12,入力!M22<4)),AND(入力!L22=5,OR(入力!M22="",入力!M22>12,入力!M22<4)),AND(入力!L22=6,OR(入力!M22="",入力!M22>12,入力!M22<4)),AND(入力!L22=7,OR(入力!M22="",入力!M22>12,入力!M22<4)),AND(入力!L22=8,OR(入力!M22="",入力!M22>12,入力!M22<4)),AND(入力!L22=9,OR(入力!M22="",入力!M22>12,入力!M22<4)),AND(入力!L22=10,OR(入力!M22="",入力!M22>12,入力!M22<4)),AND(入力!L22=11,OR(入力!M22="",入力!M22>12,入力!M22<4)),AND(入力!L22=12,OR(入力!M22="",入力!M22>12,入力!M22<4))),"■",""),"")) ->  | AS17: =IF(入力!$F$22="","",IF(AND(入力!$F$22>DATE(税率・条件!$C$1+2019-65,計算!AS$3+1,1),入力!$F$22<=DATE(税率・条件!$C$1+2019-40,計算!AS$3+1,1)),IF(OR(AND(入力!L22="",OR(入力!M22="",入力!M22=2,入力!M22=3)),AND(入力!L22=4,OR(入力!M22="",入力!M22=2,入力!M22=3)),AND(入力!L22=5,OR(入力!M22="",入力!M22=2,入力!M22=3)),AND(入力!L22=6,OR(入力!M22="",入力!M22=2,入力!M22=3)),AND(入力!L22=7,OR(入力!M22="",入力!M22=2,入力!M22=3)),AND(入力!L22=8,OR(入力!M22="",入力!M22=2,入力!M22=3)),AND(入力!L22=9,OR(入力!M22="",入力!M22=2,入力!M22=3)),AND(入力!L22=10,OR(入力!M22="",入力!M22=2,入力!M22=3)),AND(入力!L22=11,OR(入力!M22="",入力!M22=2,入力!M22=3)),AND(入力!L22=12,OR(入力!M22="",入力!M22=2,入力!M22=3)),AND(入力!L22=1,OR(入力!M22="",入力!M22=2,入力!M22=3))),"■",""),"")) ->  | AT17: =IF(入力!$F$22="","",IF(AND(入力!$F$22>DATE(税率・条件!$C$1+2019-65,計算!AT$3+1,1),入力!$F$22<=DATE(税率・条件!$C$1+2019-40,計算!AT$3+1,1)),IF(OR(AND(入力!L22="",OR(入力!M22="",入力!M22=3)),AND(入力!L22=4,OR(入力!M22="",入力!M22=3)),AND(入力!L22=5,OR(入力!M22="",入力!M22=3)),AND(入力!L22=6,OR(入力!M22="",入力!M22=3)),AND(入力!L22=7,OR(入力!M22="",入力!M22=3)),AND(入力!L22=8,OR(入力!M22="",入力!M22=3)),AND(入力!L22=9,OR(入力!M22="",入力!M22=3)),AND(入力!L22=10,OR(入力!M22="",入力!M22=3)),AND(入力!L22=11,OR(入力!M22="",入力!M22=3)),AND(入力!L22=12,OR(入力!M22="",入力!M22=3)),AND(入力!L22=1,OR(入力!M22="",入力!M22=3)),AND(入力!L22=2,OR(入力!M22="",入力!M22=3))),"■",""),"")) ->  | AU17: =IF(入力!$F$22="","",IF(AND(入力!$F$22>DATE(税率・条件!$C$1+2019-65,計算!AU$3+1,1),入力!$F$22<=DATE(税率・条件!$C$1+2019-40,計算!AU$3+1,1)),IF(OR(AND(入力!L22="",入力!M22=""),AND(入力!L22=4,入力!M22=""),AND(入力!L22=5,入力!M22=""),AND(入力!L22=6,入力!M22=""),AND(入力!L22=7,入力!M22=""),AND(入力!L22=8,入力!M22=""),AND(入力!L22=9,入力!M22=""),AND(入力!L22=10,入力!M22=""),AND(入力!L22=11,入力!M22=""),AND(入力!L22=12,入力!M22=""),AND(入力!L22=1,入力!M22=""),AND(入力!L22=2,入力!M22=""),AND(入力!L22=3,入力!M22="")),"■",""),"")) ->  | AY17: 介護分(平) | AZ17: =ROUND(ROUNDDOWN(IF(AJ$21="",0,$AG4),0)/12,2) -> 0 | BA17: 0 | BB17: 0 | BC17: 0 | BD17: 0 | BE17: 0 | BF17: 0 | BG17: 0 | BH17: 0 | BI17: 0 | BJ17: 0 | BK17: 0 | BL17: 0 | BM17: =ROUNDDOWN(ROUND(BL17,1),0) -> 0
A18: =入力!E23 -> ８ | B18: =IF(入力!F23="","",IF(入力!F23<=DATE(税率・条件!C1+1953,1,1),"65歳以上",IF(入力!F23>DATE(税率・条件!C1+2012,4,1),"未就学","一般"))) ->  | C18: =IF(D18="","",IF(入力!K23="該 当","該当","非該当")) ->  | D18: =IF(入力!G23="","",ROUNDDOWN(VLOOKUP(入力!G23,$B$24:$J$35,9,1)*IF(入力!K23="該 当",0.3,1),0)) ->  | E18: =IF(D18="","",IF(OR(D18="",K18=""),0,IF(D18+K18<100000,0,IF(D18<100000,D18,100000)+IF(K18<100000,K18,100000)-100000))) ->  | F18: =IF(D18="","",D18-E18) ->  | G18: =IF(D18="","",IF(OR(D18="",L18=""),0,IF(D18+L18<100000,0,IF(D18<100000,D18,100000)+IF(L18<100000,L18,100000)-100000))) ->  | H18: =IF(D18="","",D18-G18) ->  | I18: =IF(入力!H23="","",IF(B18="65歳以上",VLOOKUP(入力!H23,$B$48:$D$52,2,1),VLOOKUP(入力!H23,$B$40:$D$44,2,1))) ->  | J18: =IF(I18="","",IF(B18="65歳以上",VLOOKUP(入力!H23,$B$48:$D$52,3,1),VLOOKUP(入力!H23,$B$40:$D$44,3,1))) ->  | K18: =IF(I18="","",IF(入力!H23*計算!I18/100-計算!J18<0,0,ROUNDDOWN(入力!H23*計算!I18/100-計算!J18,0))) ->  | L18: =IF(K18="","",IF(B18="65歳以上",IF(K18<税率・条件!$G$9,0,K18-税率・条件!$G$9),K18)) ->  | M18: =IF(入力!I23="","",入力!I23) ->  | N18: =IF(入力!F23="","",SUM(F18,K18,M18)) ->  | O18: =IF(入力!P23<>"",IF(計算!N18-430000>0,計算!N18-430000,0),"") ->  | P18: =IF(入力!Q23<>"",IF(計算!N18-430000>0,計算!N18-430000,0),"") ->  | Q18: =IF(N18="","",IF(AW18<>AW20,"",SUM(H18,L18,M18))) ->  | R18: =IF(AND(D18="",K18=""),"",IF(AW18<>AW20,"",IF(OR(入力!G23>550000,AND(B18="65歳以上",入力!H23>1250000),AND(B18<>"65歳以上",入力!H23>600000)),1,""))) ->  | S18: =IF(N18="","",IF(AND(入力!$H$25<>"",入力!$C$19="全員申告済み",$AW$18=$AW$20),"該当","")) ->  | T18: =IF($O18="","",ROUNDDOWN($O18*税率・条件!$C$4/100,0)) ->  | U18: =IF(入力!$P23="","",ROUNDDOWN(入力!$J23*税率・条件!$C$5/100,0)) ->  | V18: =IF(入力!$P23="","",ROUNDDOWN(税率・条件!$C$6*(100%-IF(B18="未就学",税率・条件!$H$11,0%))*(100%-$M$34),0)) ->  | Y18: =IF($O18="","",ROUNDDOWN($O18*税率・条件!$C$9/100,0)) ->  | Z18: =IF(入力!$P23="","",ROUNDDOWN(入力!$J23*税率・条件!$C$10/100,0)) ->  | AA18: =IF(入力!$P23="","",ROUNDDOWN(税率・条件!$C$11*(100%-IF(B18="未就学",税率・条件!$H$11,0%))*(100%-$M$34),0)) ->  | AD18: =IF($P18="","",ROUNDDOWN($P18*税率・条件!$C$14/100,0)) ->  | AE18: =IF(入力!$Q23="","",ROUNDDOWN(入力!$J23*税率・条件!$C$15/100,0)) ->  | AF18: =IF(入力!$Q23="","",ROUNDDOWN(税率・条件!$C$16*(100%-$M$34),0)) ->  | AI18: =IF(入力!$F$23="","",COUNTIF(AJ18:AU18,"●")) ->  | AJ18: =IF(入力!$F$23="","",IF(入力!$F$23>=DATE(税率・条件!$C$1+2018,計算!AJ$3+1,1),"",IF(入力!$F$23>=DATE(税率・条件!$C$1+2018-75,計算!AJ$3+1,1),IF(OR(AND(入力!L23="",OR(入力!M23="",入力!M23>4,入力!M23<4)),AND(入力!L23=4,OR(入力!M23="",入力!M23>4,入力!M23<4))),"●",""),""))) ->  | AK18: =IF(入力!$F$23="","",IF(入力!$F$23>=DATE(税率・条件!$C$1+2018,計算!AK$3+1,1),"",IF(入力!$F$23>=DATE(税率・条件!$C$1+2018-75,計算!AK$3+1,1),IF(OR(AND(入力!L23="",OR(入力!M23="",入力!M23>5,入力!M23<4)),AND(入力!L23=4,OR(入力!M23="",入力!M23>5,入力!M23<4)),AND(入力!L23=5,OR(入力!M23="",入力!M23>5,入力!M23<4))),"●",""),""))) ->  | AL18: =IF(入力!$F$23="","",IF(入力!$F$23>=DATE(税率・条件!$C$1+2018,計算!AL$3+1,1),"",IF(入力!$F$23>=DATE(税率・条件!$C$1+2018-75,計算!AL$3+1,1),IF(OR(AND(入力!L23="",OR(入力!M23="",入力!M23>6,入力!M23<4)),AND(入力!L23=4,OR(入力!M23="",入力!M23>6,入力!M23<4)),AND(入力!L23=5,OR(入力!M23="",入力!M23>6,入力!M23<4)),AND(入力!L23=6,OR(入力!M23="",入力!M23>6,入力!M23<4))),"●",""),""))) ->  | AM18: =IF(入力!$F$23="","",IF(入力!$F$23>=DATE(税率・条件!$C$1+2018,計算!AM$3+1,1),"",IF(入力!$F$23>=DATE(税率・条件!$C$1+2018-75,計算!AM$3+1,1),IF(OR(AND(入力!L23="",OR(入力!M23="",入力!M23>7,入力!M23<4)),AND(入力!L23=4,OR(入力!M23="",入力!M23>7,入力!M23<4)),AND(入力!L23=5,OR(入力!M23="",入力!M23>7,入力!M23<4)),AND(入力!L23=6,OR(入力!M23="",入力!M23>7,入力!M23<4)),AND(入力!L23=7,OR(入力!M23="",入力!M23>7,入力!M23<4))),"●",""),""))) ->  | AN18: =IF(入力!$F$23="","",IF(入力!$F$23>=DATE(税率・条件!$C$1+2018,計算!AN$3+1,1),"",IF(入力!$F$23>=DATE(税率・条件!$C$1+2018-75,計算!AN$3+1,1),IF(OR(AND(入力!L23="",OR(入力!M23="",入力!M23>8,入力!M23<4)),AND(入力!L23=4,OR(入力!M23="",入力!M23>8,入力!M23<4)),AND(入力!L23=5,OR(入力!M23="",入力!M23>8,入力!M23<4)),AND(入力!L23=6,OR(入力!M23="",入力!M23>8,入力!M23<4)),AND(入力!L23=7,OR(入力!M23="",入力!M23>8,入力!M23<4)),AND(入力!L23=8,OR(入力!M23="",入力!M23>8,入力!M23<4))),"●",""),""))) ->  | AO18: =IF(入力!$F$23="","",IF(入力!$F$23>=DATE(税率・条件!$C$1+2018,計算!AO$3+1,1),"",IF(入力!$F$23>=DATE(税率・条件!$C$1+2018-75,計算!AO$3+1,1),IF(OR(AND(入力!L23="",OR(入力!M23="",入力!M23>9,入力!M23<4)),AND(入力!L23=4,OR(入力!M23="",入力!M23>9,入力!M23<4)),AND(入力!L23=5,OR(入力!M23="",入力!M23>9,入力!M23<4)),AND(入力!L23=6,OR(入力!M23="",入力!M23>9,入力!M23<4)),AND(入力!L23=7,OR(入力!M23="",入力!M23>9,入力!M23<4)),AND(入力!L23=8,OR(入力!M23="",入力!M23>9,入力!M23<4)),AND(入力!L23=9,OR(入力!M23="",入力!M23>9,入力!M23<4))),"●",""),""))) ->  | AP18: =IF(入力!$F$23="","",IF(入力!$F$23>=DATE(税率・条件!$C$1+2018,計算!AP$3+1,1),"",IF(入力!$F$23>=DATE(税率・条件!$C$1+2018-75,計算!AP$3+1,1),IF(OR(AND(入力!L23="",OR(入力!M23="",入力!M23>10,入力!M23<4)),AND(入力!L23=4,OR(入力!M23="",入力!M23>10,入力!M23<4)),AND(入力!L23=5,OR(入力!M23="",入力!M23>10,入力!M23<4)),AND(入力!L23=6,OR(入力!M23="",入力!M23>10,入力!M23<4)),AND(入力!L23=7,OR(入力!M23="",入力!M23>10,入力!M23<4)),AND(入力!L23=8,OR(入力!M23="",入力!M23>10,入力!M23<4)),AND(入力!L23=9,OR(入力!M23="",入力!M23>10,入力!M23<4)),AND(入力!L23=10,OR(入力!M23="",入力!M23>10,入力!M23<4))),"●",""),""))) ->  | AQ18: =IF(入力!$F$23="","",IF(入力!$F$23>=DATE(税率・条件!$C$1+2018,計算!AQ$3+1,1),"",IF(入力!$F$23>=DATE(税率・条件!$C$1+2018-75,計算!AQ$3+1,1),IF(OR(AND(入力!L23="",OR(入力!M23="",入力!M23>11,入力!M23<4)),AND(入力!L23=4,OR(入力!M23="",入力!M23>11,入力!M23<4)),AND(入力!L23=5,OR(入力!M23="",入力!M23>11,入力!M23<4)),AND(入力!L23=6,OR(入力!M23="",入力!M23>11,入力!M23<4)),AND(入力!L23=7,OR(入力!M23="",入力!M23>11,入力!M23<4)),AND(入力!L23=8,OR(入力!M23="",入力!M23>11,入力!M23<4)),AND(入力!L23=9,OR(入力!M23="",入力!M23>11,入力!M23<4)),AND(入力!L23=10,OR(入力!M23="",入力!M23>11,入力!M23<4)),AND(入力!L23=11,OR(入力!M23="",入力!M23>11,入力!M23<4))),"●",""),""))) ->  | AR18: =IF(入力!$F$23="","",IF(入力!$F$23>=DATE(税率・条件!$C$1+2018,計算!AR$3+1,1),"",IF(入力!$F$23>=DATE(税率・条件!$C$1+2018-75,計算!AR$3+1,1),IF(OR(AND(入力!L23="",OR(入力!M23="",入力!M23>12,入力!M23<4)),AND(入力!L23=4,OR(入力!M23="",入力!M23>12,入力!M23<4)),AND(入力!L23=5,OR(入力!M23="",入力!M23>12,入力!M23<4)),AND(入力!L23=6,OR(入力!M23="",入力!M23>12,入力!M23<4)),AND(入力!L23=7,OR(入力!M23="",入力!M23>12,入力!M23<4)),AND(入力!L23=8,OR(入力!M23="",入力!M23>12,入力!M23<4)),AND(入力!L23=9,OR(入力!M23="",入力!M23>12,入力!M23<4)),AND(入力!L23=10,OR(入力!M23="",入力!M23>12,入力!M23<4)),AND(入力!L23=11,OR(入力!M23="",入力!M23>12,入力!M23<4)),AND(入力!L23=12,OR(入力!M23="",入力!M23>12,入力!M23<4))),"●",""),""))) ->  | AS18: =IF(入力!$F$23="","",IF(入力!$F$23>=DATE(税率・条件!$C$1+2019,計算!AS$3+1,1),"",IF(入力!$F$23>=DATE(税率・条件!$C$1+2019-75,計算!AS$3+1,1),IF(OR(AND(入力!L23="",OR(入力!M23="",入力!M23=2,入力!M23=3)),AND(入力!L23=4,OR(入力!M23="",入力!M23=2,入力!M23=3)),AND(入力!L23=5,OR(入力!M23="",入力!M23=2,入力!M23=3)),AND(入力!L23=6,OR(入力!M23="",入力!M23=2,入力!M23=3)),AND(入力!L23=7,OR(入力!M23="",入力!M23=2,入力!M23=3)),AND(入力!L23=8,OR(入力!M23="",入力!M23=2,入力!M23=3)),AND(入力!L23=9,OR(入力!M23="",入力!M23=2,入力!M23=3)),AND(入力!L23=10,OR(入力!M23="",入力!M23=2,入力!M23=3)),AND(入力!L23=11,OR(入力!M23="",入力!M23=2,入力!M23=3)),AND(入力!L23=12,OR(入力!M23="",入力!M23=2,入力!M23=3)),AND(入力!L23=1,OR(入力!M23="",入力!M23=2,入力!M23=3))),"●",""),""))) ->  | AT18: =IF(入力!$F$23="","",IF(入力!$F$23>=DATE(税率・条件!$C$1+2019,計算!AT$3+1,1),"",IF(入力!$F$23>=DATE(税率・条件!$C$1+2019-75,計算!AT$3+1,1),IF(OR(AND(入力!L23="",OR(入力!M23="",入力!M23=3)),AND(入力!L23=4,OR(入力!M23="",入力!M23=3)),AND(入力!L23=5,OR(入力!M23="",入力!M23=3)),AND(入力!L23=6,OR(入力!M23="",入力!M23=3)),AND(入力!L23=7,OR(入力!M23="",入力!M23=3)),AND(入力!L23=8,OR(入力!M23="",入力!M23=3)),AND(入力!L23=9,OR(入力!M23="",入力!M23=3)),AND(入力!L23=10,OR(入力!M23="",入力!M23=3)),AND(入力!L23=11,OR(入力!M23="",入力!M23=3)),AND(入力!L23=12,OR(入力!M23="",入力!M23=3)),AND(入力!L23=1,OR(入力!M23="",入力!M23=3)),AND(入力!L23=2,OR(入力!M23="",入力!M23=3))),"●",""),""))) ->  | AU18: =IF(入力!$F$23="","",IF(入力!$F$23>=DATE(税率・条件!$C$1+2019,計算!AU$3+1,1),"",IF(入力!$F$23>=DATE(税率・条件!$C$1+2019-75,計算!AU$3+1,1),IF(OR(AND(入力!L23="",入力!M23=""),AND(入力!L23=4,入力!M23=""),AND(入力!L23=5,入力!M23=""),AND(入力!L23=6,入力!M23=""),AND(入力!L23=7,入力!M23=""),AND(入力!L23=8,入力!M23=""),AND(入力!L23=9,入力!M23=""),AND(入力!L23=10,入力!M23=""),AND(入力!L23=11,入力!M23=""),AND(入力!L23=12,入力!M23=""),AND(入力!L23=1,入力!M23=""),AND(入力!L23=2,入力!M23=""),AND(入力!L23=3,入力!M23="")),"●",""),""))) ->  | AW18: =IF(AND(AJ$20=1,AJ18="●"),4,IF(AND(AK$20=1,AK18="●"),5,IF(AND(AL$20=1,AL18="●"),6,IF(AND(AM$20=1,AM18="●"),7,IF(AND(AN$20=1,AN18="●"),8,IF(AND(AO$20=1,AO18="●"),9,IF(AND(AP$20=1,AP18="●"),10,IF(AND(AQ$20=1,AQ18="●"),11,IF(AND(AR$20=1,AR18="●"),12,IF(AND(AS$20=1,AS18="●"),1,IF(AND(AT$20=1,AT18="●"),2,IF(AND(AU$20=1,AU18="●"),3,"")))))))))))) ->  | AY18: 計(小数2位) | AZ18: =SUM(AZ14:AZ17) -> 0 | BA18: =SUM(BA14:BA17) -> 0 | BB18: =SUM(BB14:BB17) -> 0 | BC18: =SUM(BC14:BC17) -> 0 | BD18: =SUM(BD14:BD17) -> 0 | BE18: =SUM(BE14:BE17) -> 0 | BF18: =SUM(BF14:BF17) -> 0 | BG18: =SUM(BG14:BG17) -> 0 | BH18: =SUM(BH14:BH17) -> 0 | BI18: =SUM(BI14:BI17) -> 0 | BJ18: =SUM(BJ14:BJ17) -> 0 | BK18: =SUM(BK14:BK17) -> 0 | BL18: =SUM(AZ18:BK18) -> 0 | BM18: =ROUNDDOWN(ROUND(BL18,1),0) -> 0
AI19: =IF(入力!$F$23="","",COUNTIF(AJ19:AU19,"■")) ->  | AJ19: =IF(入力!$F$23="","",IF(AND(入力!$F$23>DATE(税率・条件!$C$1+2018-65,計算!AJ$3+1,1),入力!$F$23<=DATE(税率・条件!$C$1+2018-40,計算!AJ$3+1,1)),IF(OR(AND(入力!L23="",OR(入力!M23="",入力!M23>4,入力!M23<4)),AND(入力!L23=4,OR(入力!M23="",入力!M23>4,入力!M23<4))),"■",""),"")) ->  | AK19: =IF(入力!$F$23="","",IF(AND(入力!$F$23>DATE(税率・条件!$C$1+2018-65,計算!AK$3+1,1),入力!$F$23<=DATE(税率・条件!$C$1+2018-40,計算!AK$3+1,1)),IF(OR(AND(入力!L23="",OR(入力!M23="",入力!M23>5,入力!M23<4)),AND(入力!L23=4,OR(入力!M23="",入力!M23>5,入力!M23<4)),AND(入力!L23=5,OR(入力!M23="",入力!M23>5,入力!M23<4))),"■",""),"")) ->  | AL19: =IF(入力!$F$23="","",IF(AND(入力!$F$23>DATE(税率・条件!$C$1+2018-65,計算!AL$3+1,1),入力!$F$23<=DATE(税率・条件!$C$1+2018-40,計算!AL$3+1,1)),IF(OR(AND(入力!L23="",OR(入力!M23="",入力!M23>6,入力!M23<4)),AND(入力!L23=4,OR(入力!M23="",入力!M23>6,入力!M23<4)),AND(入力!L23=5,OR(入力!M23="",入力!M23>6,入力!M23<4)),AND(入力!L23=6,OR(入力!M23="",入力!M23>6,入力!M23<4))),"■",""),"")) ->  | AM19: =IF(入力!$F$23="","",IF(AND(入力!$F$23>DATE(税率・条件!$C$1+2018-65,計算!AM$3+1,1),入力!$F$23<=DATE(税率・条件!$C$1+2018-40,計算!AM$3+1,1)),IF(OR(AND(入力!L23="",OR(入力!M23="",入力!M23>7,入力!M23<4)),AND(入力!L23=4,OR(入力!M23="",入力!M23>7,入力!M23<4)),AND(入力!L23=5,OR(入力!M23="",入力!M23>7,入力!M23<4)),AND(入力!L23=6,OR(入力!M23="",入力!M23>7,入力!M23<4)),AND(入力!L23=7,OR(入力!M23="",入力!M23>7,入力!M23<4))),"■",""),"")) ->  | AN19: =IF(入力!$F$23="","",IF(AND(入力!$F$23>DATE(税率・条件!$C$1+2018-65,計算!AN$3+1,1),入力!$F$23<=DATE(税率・条件!$C$1+2018-40,計算!AN$3+1,1)),IF(OR(AND(入力!L23="",OR(入力!M23="",入力!M23>8,入力!M23<4)),AND(入力!L23=4,OR(入力!M23="",入力!M23>8,入力!M23<4)),AND(入力!L23=5,OR(入力!M23="",入力!M23>8,入力!M23<4)),AND(入力!L23=6,OR(入力!M23="",入力!M23>8,入力!M23<4)),AND(入力!L23=7,OR(入力!M23="",入力!M23>8,入力!M23<4)),AND(入力!L23=8,OR(入力!M23="",入力!M23>8,入力!M23<4))),"■",""),"")) ->  | AO19: =IF(入力!$F$23="","",IF(AND(入力!$F$23>DATE(税率・条件!$C$1+2018-65,計算!AO$3+1,1),入力!$F$23<=DATE(税率・条件!$C$1+2018-40,計算!AO$3+1,1)),IF(OR(AND(入力!L23="",OR(入力!M23="",入力!M23>9,入力!M23<4)),AND(入力!L23=4,OR(入力!M23="",入力!M23>9,入力!M23<4)),AND(入力!L23=5,OR(入力!M23="",入力!M23>9,入力!M23<4)),AND(入力!L23=6,OR(入力!M23="",入力!M23>9,入力!M23<4)),AND(入力!L23=7,OR(入力!M23="",入力!M23>9,入力!M23<4)),AND(入力!L23=8,OR(入力!M23="",入力!M23>9,入力!M23<4)),AND(入力!L23=9,OR(入力!M23="",入力!M23>9,入力!M23<4))),"■",""),"")) ->  | AP19: =IF(入力!$F$23="","",IF(AND(入力!$F$23>DATE(税率・条件!$C$1+2018-65,計算!AP$3+1,1),入力!$F$23<=DATE(税率・条件!$C$1+2018-40,計算!AP$3+1,1)),IF(OR(AND(入力!L23="",OR(入力!M23="",入力!M23>10,入力!M23<4)),AND(入力!L23=4,OR(入力!M23="",入力!M23>10,入力!M23<4)),AND(入力!L23=5,OR(入力!M23="",入力!M23>10,入力!M23<4)),AND(入力!L23=6,OR(入力!M23="",入力!M23>10,入力!M23<4)),AND(入力!L23=7,OR(入力!M23="",入力!M23>10,入力!M23<4)),AND(入力!L23=8,OR(入力!M23="",入力!M23>10,入力!M23<4)),AND(入力!L23=9,OR(入力!M23="",入力!M23>10,入力!M23<4)),AND(入力!L23=10,OR(入力!M23="",入力!M23>10,入力!M23<4))),"■",""),"")) ->  | AQ19: =IF(入力!$F$23="","",IF(AND(入力!$F$23>DATE(税率・条件!$C$1+2018-65,計算!AQ$3+1,1),入力!$F$23<=DATE(税率・条件!$C$1+2018-40,計算!AQ$3+1,1)),IF(OR(AND(入力!L23="",OR(入力!M23="",入力!M23>11,入力!M23<4)),AND(入力!L23=4,OR(入力!M23="",入力!M23>11,入力!M23<4)),AND(入力!L23=5,OR(入力!M23="",入力!M23>11,入力!M23<4)),AND(入力!L23=6,OR(入力!M23="",入力!M23>11,入力!M23<4)),AND(入力!L23=7,OR(入力!M23="",入力!M23>11,入力!M23<4)),AND(入力!L23=8,OR(入力!M23="",入力!M23>11,入力!M23<4)),AND(入力!L23=9,OR(入力!M23="",入力!M23>11,入力!M23<4)),AND(入力!L23=10,OR(入力!M23="",入力!M23>11,入力!M23<4)),AND(入力!L23=11,OR(入力!M23="",入力!M23>11,入力!M23<4))),"■",""),"")) ->  | AR19: =IF(入力!$F$23="","",IF(AND(入力!$F$23>DATE(税率・条件!$C$1+2018-65,計算!AR$3+1,1),入力!$F$23<=DATE(税率・条件!$C$1+2018-40,計算!AR$3+1,1)),IF(OR(AND(入力!L23="",OR(入力!M23="",入力!M23>12,入力!M23<4)),AND(入力!L23=4,OR(入力!M23="",入力!M23>12,入力!M23<4)),AND(入力!L23=5,OR(入力!M23="",入力!M23>12,入力!M23<4)),AND(入力!L23=6,OR(入力!M23="",入力!M23>12,入力!M23<4)),AND(入力!L23=7,OR(入力!M23="",入力!M23>12,入力!M23<4)),AND(入力!L23=8,OR(入力!M23="",入力!M23>12,入力!M23<4)),AND(入力!L23=9,OR(入力!M23="",入力!M23>12,入力!M23<4)),AND(入力!L23=10,OR(入力!M23="",入力!M23>12,入力!M23<4)),AND(入力!L23=11,OR(入力!M23="",入力!M23>12,入力!M23<4)),AND(入力!L23=12,OR(入力!M23="",入力!M23>12,入力!M23<4))),"■",""),"")) ->  | AS19: =IF(入力!$F$23="","",IF(AND(入力!$F$23>DATE(税率・条件!$C$1+2019-65,計算!AS$3+1,1),入力!$F$23<=DATE(税率・条件!$C$1+2019-40,計算!AS$3+1,1)),IF(OR(AND(入力!L23="",OR(入力!M23="",入力!M23=2,入力!M23=3)),AND(入力!L23=4,OR(入力!M23="",入力!M23=2,入力!M23=3)),AND(入力!L23=5,OR(入力!M23="",入力!M23=2,入力!M23=3)),AND(入力!L23=6,OR(入力!M23="",入力!M23=2,入力!M23=3)),AND(入力!L23=7,OR(入力!M23="",入力!M23=2,入力!M23=3)),AND(入力!L23=8,OR(入力!M23="",入力!M23=2,入力!M23=3)),AND(入力!L23=9,OR(入力!M23="",入力!M23=2,入力!M23=3)),AND(入力!L23=10,OR(入力!M23="",入力!M23=2,入力!M23=3)),AND(入力!L23=11,OR(入力!M23="",入力!M23=2,入力!M23=3)),AND(入力!L23=12,OR(入力!M23="",入力!M23=2,入力!M23=3)),AND(入力!L23=1,OR(入力!M23="",入力!M23=2,入力!M23=3))),"■",""),"")) ->  | AT19: =IF(入力!$F$23="","",IF(AND(入力!$F$23>DATE(税率・条件!$C$1+2019-65,計算!AT$3+1,1),入力!$F$23<=DATE(税率・条件!$C$1+2019-40,計算!AT$3+1,1)),IF(OR(AND(入力!L23="",OR(入力!M23="",入力!M23=3)),AND(入力!L23=4,OR(入力!M23="",入力!M23=3)),AND(入力!L23=5,OR(入力!M23="",入力!M23=3)),AND(入力!L23=6,OR(入力!M23="",入力!M23=3)),AND(入力!L23=7,OR(入力!M23="",入力!M23=3)),AND(入力!L23=8,OR(入力!M23="",入力!M23=3)),AND(入力!L23=9,OR(入力!M23="",入力!M23=3)),AND(入力!L23=10,OR(入力!M23="",入力!M23=3)),AND(入力!L23=11,OR(入力!M23="",入力!M23=3)),AND(入力!L23=12,OR(入力!M23="",入力!M23=3)),AND(入力!L23=1,OR(入力!M23="",入力!M23=3)),AND(入力!L23=2,OR(入力!M23="",入力!M23=3))),"■",""),"")) ->  | AU19: =IF(入力!$F$23="","",IF(AND(入力!$F$23>DATE(税率・条件!$C$1+2019-65,計算!AU$3+1,1),入力!$F$23<=DATE(税率・条件!$C$1+2019-40,計算!AU$3+1,1)),IF(OR(AND(入力!L23="",入力!M23=""),AND(入力!L23=4,入力!M23=""),AND(入力!L23=5,入力!M23=""),AND(入力!L23=6,入力!M23=""),AND(入力!L23=7,入力!M23=""),AND(入力!L23=8,入力!M23=""),AND(入力!L23=9,入力!M23=""),AND(入力!L23=10,入力!M23=""),AND(入力!L23=11,入力!M23=""),AND(入力!L23=12,入力!M23=""),AND(入力!L23=1,入力!M23=""),AND(入力!L23=2,入力!M23=""),AND(入力!L23=3,入力!M23="")),"■",""),"")) -> 
N20: =SUM(N4:N18) -> 0 | O20: 0 | P20: 0 | Q20: =SUM(Q4:Q19) -> 0 | R20: 0 | T20: 0 | U20: 0 | V20: 0 | W20: 0 | X20: 0 | Y20: 0 | Z20: 0 | AA20: 0 | AB20: 0 | AC20: 0 | AD20: 0 | AE20: 0 | AF20: 0 | AG20: 0 | AH20: 0 | AI20: =SUM(AJ20:AU20) -> 0 | AJ20: =IF(COUNTIF(AJ4:AJ19,"●")>0,1,"") ->  | AW20: =IF(AJ20=1,AJ3,IF(AK20=1,AK3,IF(AL20=1,AL3,IF(AM20=1,AM3,IF(AN20=1,AN3,IF(AO20=1,AO3,IF(AP20=1,AP3,IF(AQ20=1,AQ3,IF(AR20=1,AR3,IF(AS20=1,AS3,IF(AT20=1,AT3,IF(AU20=1,AU3,"")))))))))))) ->  | AY20: 月割限度等考調整後
AI21: =SUM(AJ21:AU21) -> 0 | AJ21: =IF(COUNTIF(AJ4:AJ19,"■")>0,1,"") ->  | AY21: 医療分(所) | AZ21: =IF(AZ8>ROUND(税率・条件!$C$8/12,2),ROUND(税率・条件!$C$8/12,2)-SUM(AZ22:AZ24),AZ4) -> 0 | BA21: =IF(BA8>ROUNDDOWN(税率・条件!$C$8/12,2),ROUNDDOWN(税率・条件!$C$8/12,2)-SUM(BA22:BA24),BA4) -> 0 | BB21: =IF(BB8>ROUNDDOWN(税率・条件!$C$8/12,2),ROUNDDOWN(税率・条件!$C$8/12,2)-SUM(BB22:BB24),BB4) -> 0 | BC21: =IF(BC8>ROUNDDOWN(税率・条件!$C$8/12,2),ROUNDDOWN(税率・条件!$C$8/12,2)-SUM(BC22:BC24),BC4) -> 0 | BD21: =IF(BD8>ROUNDDOWN(税率・条件!$C$8/12,2),ROUNDDOWN(税率・条件!$C$8/12,2)-SUM(BD22:BD24),BD4) -> 0 | BE21: =IF(BE8>ROUNDDOWN(税率・条件!$C$8/12,2),ROUNDDOWN(税率・条件!$C$8/12,2)-SUM(BE22:BE24),BE4) -> 0 | BF21: =IF(BF8>ROUNDDOWN(税率・条件!$C$8/12,2),ROUNDDOWN(税率・条件!$C$8/12,2)-SUM(BF22:BF24),BF4) -> 0 | BG21: =IF(BG8>ROUNDDOWN(税率・条件!$C$8/12,2),ROUNDDOWN(税率・条件!$C$8/12,2)-SUM(BG22:BG24),BG4) -> 0 | BH21: =IF(BH8>ROUNDDOWN(税率・条件!$C$8/12,2),ROUNDDOWN(税率・条件!$C$8/12,2)-SUM(BH22:BH24),BH4) -> 0 | BI21: =IF(BI8>ROUNDDOWN(税率・条件!$C$8/12,2),ROUNDDOWN(税率・条件!$C$8/12,2)-SUM(BI22:BI24),BI4) -> 0 | BJ21: =IF(BJ8>ROUNDDOWN(税率・条件!$C$8/12,2),ROUNDDOWN(税率・条件!$C$8/12,2)-SUM(BJ22:BJ24),BJ4) -> 0 | BK21: =IF(BK8>ROUNDDOWN(税率・条件!$C$8/12,2),ROUNDDOWN(税率・条件!$C$8/12,2)-SUM(BK22:BK24),BK4) -> 0 | BL21: =SUM(AZ21:BK21) -> 0 | BM21: =ROUND(BL21,0) -> 0
AI22: 月別加入被保険者数 | AJ22: =IF(COUNTIF(AJ4:AJ19,"●")>0,COUNTIF(AJ4:AJ19,"●"),"") ->  | AK22: =IF(COUNTIF(AK4:AK19,"●")>0,COUNTIF(AK4:AK19,"●"),"") ->  | AW22: =IF(AJ20=1,AJ22,IF(AK20=1,AK22,IF(AL20=1,AL22,IF(AM20=1,AM22,IF(AN20=1,AN22,IF(AO20=1,AO22,IF(AP20=1,AP22,IF(AQ20=1,AQ22,IF(AR20=1,AR22,IF(AS20=1,AS22,IF(AT20=1,AT22,IF(AU20=1,AU22,"")))))))))))) ->  | AY22: 医療分(資) | AZ22: =IF(AZ8>ROUND(税率・条件!$C$8/12,2),ROUND(((ROUND(税率・条件!$C$8/12,2))-SUM(AZ23:AZ24))/(AZ8-SUM(AZ6:AZ7))*AZ5,2),AZ5) -> 0 | BA22: =IF(BA8>ROUNDDOWN(税率・条件!$C$8/12,2),ROUNDDOWN(((ROUNDDOWN(税率・条件!$C$8/12,2))-SUM(BA23:BA24))/(BA8-SUM(BA6:BA7))*BA5,2),BA5) -> 0 | BB22: =IF(BB8>ROUNDDOWN(税率・条件!$C$8/12,2),ROUNDDOWN(((ROUNDDOWN(税率・条件!$C$8/12,2))-SUM(BB23:BB24))/(BB8-SUM(BB6:BB7))*BB5,2),BB5) -> 0 | BC22: =IF(BC8>ROUNDDOWN(税率・条件!$C$8/12,2),ROUNDDOWN(((ROUNDDOWN(税率・条件!$C$8/12,2))-SUM(BC23:BC24))/(BC8-SUM(BC6:BC7))*BC5,2),BC5) -> 0 | BD22: =IF(BD8>ROUNDDOWN(税率・条件!$C$8/12,2),ROUNDDOWN(((ROUNDDOWN(税率・条件!$C$8/12,2))-SUM(BD23:BD24))/(BD8-SUM(BD6:BD7))*BD5,2),BD5) -> 0 | BE22: =IF(BE8>ROUNDDOWN(税率・条件!$C$8/12,2),ROUNDDOWN(((ROUNDDOWN(税率・条件!$C$8/12,2))-SUM(BE23:BE24))/(BE8-SUM(BE6:BE7))*BE5,2),BE5) -> 0 | BF22: =IF(BF8>ROUNDDOWN(税率・条件!$C$8/12,2),ROUNDDOWN(((ROUNDDOWN(税率・条件!$C$8/12,2))-SUM(BF23:BF24))/(BF8-SUM(BF6:BF7))*BF5,2),BF5) -> 0 | BG22: =IF(BG8>ROUNDDOWN(税率・条件!$C$8/12,2),ROUNDDOWN(((ROUNDDOWN(税率・条件!$C$8/12,2))-SUM(BG23:BG24))/(BG8-SUM(BG6:BG7))*BG5,2),BG5) -> 0 | BH22: =IF(BH8>ROUNDDOWN(税率・条件!$C$8/12,2),ROUNDDOWN(((ROUNDDOWN(税率・条件!$C$8/12,2))-SUM(BH23:BH24))/(BH8-SUM(BH6:BH7))*BH5,2),BH5) -> 0 | BI22: =IF(BI8>ROUNDDOWN(税率・条件!$C$8/12,2),ROUNDDOWN(((ROUNDDOWN(税率・条件!$C$8/12,2))-SUM(BI23:BI24))/(BI8-SUM(BI6:BI7))*BI5,2),BI5) -> 0 | BJ22: =IF(BJ8>ROUNDDOWN(税率・条件!$C$8/12,2),ROUNDDOWN(((ROUNDDOWN(税率・条件!$C$8/12,2))-SUM(BJ23:BJ24))/(BJ8-SUM(BJ6:BJ7))*BJ5,2),BJ5) -> 0 | BK22: =IF(BK8>ROUNDDOWN(税率・条件!$C$8/12,2),ROUNDDOWN(((ROUNDDOWN(税率・条件!$C$8/12,2))-SUM(BK23:BK24))/(BK8-SUM(BK6:BK7))*BK5,2),BK5) -> 0 | BL22: =SUM(AZ22:BK22) -> 0 | BM22: 0
B23: 給与所得控除の計算式 | L23: 軽減該当要件 | P23: ="令和"&DBCS(税率・条件!C1)&"年度 年税額" -> 令和５年度 年税額 | X23: ="各個人保険税額計（令和"&DBCS(税率・条件!C1)&"年度税率&月割税額）" -> 各個人保険税額計（令和５年度税率&月割税額） | AY23: 医療分(均) | AZ23: =AZ6 -> 0 | BA23: =BA6 -> 0 | BB23: 0 | BC23: 0 | BD23: 0 | BE23: 0 | BF23: 0 | BG23: 0 | BH23: 0 | BI23: 0 | BJ23: 0 | BK23: 0 | BL23: 0 | BM23: =BM25-BM21-BM22-BM24 -> 0 | BN23: =IF(ROUND(BL23,0)=BM23,"","←調整後数値") -> 
B24: 収入の範囲 | C24: =X26 -> 1 | D24: =X27 -> ２ | E24: =X28 -> ３ | F24: =X29 -> ４ | G24: =X30 -> ５ | H24: =X31 -> ６ | I24: =X32 -> ７ | J24: =X33 -> ８ | L24: 軽減判定人数 | M24: =COUNT(Q4:Q19) -> 0 | P24: 医療分 | Q24: 所得割 | R24: =BM21 -> 0 | U24: =IF(AND(R24>0,COUNTIF($Z$50:$AQ$50,"該当")>0),"月割限度。調整前:"&TEXT(ROUND(BM4,0),"#,##0"&"円"),"") ->  | Y24: 年齢 区分 | Z24: 保険税（調整後数値） | AY24: 医療分(平) | AZ24: =AZ7 -> 0 | BA24: =BA7 -> 0 | BB24: 0 | BC24: 0 | BD24: 0 | BE24: 0 | BF24: 0 | BG24: 0 | BH24: 0 | BI24: 0 | BJ24: 0 | BK24: 0 | BL24: 0 | BM24: 0
B25: 1 | C25: =IF(AND(入力!G16>=B25,入力!G16<B26),0,"") ->  | D25: =IF(AND(入力!G17>=B25,入力!G17<B26),0,"") ->  | E25: =IF(AND(入力!G18>=B25,入力!G18<B26),0,"") ->  | F25: =IF(AND(入力!G19>=B25,入力!G19<B26),0,"") ->  | G25: =IF(AND(入力!G20>=B25,入力!G20<B26),0,"") ->  | H25: =IF(AND(入力!G21>=B25,入力!G21<B26),0,"") ->  | I25: =IF(AND(入力!G22>=B25,入力!G22<B26),0,"") ->  | J25: =IF(AND(入力!G23>=B25,入力!G23<B26),0,"") ->  | L25: 被保険者数 | M25: =IF(AW22="",0,AW22) -> 0 | Q25: 資産割 | R25: =BM22 -> 0 | U25: =IF(AND(R25>0,COUNTIF($Z$50:$AQ$50,"該当")>0),"月割限度。調整前:"&TEXT(ROUND(BM5,0),"#,##0"&"円"),"") ->  | Z25: 医療 | AA25: 後期 | AB25: 介護 | AC25: 計 | AY25: 計(小数2位) | AZ25: =SUM(AZ21:AZ24) -> 0 | BA25: =SUM(BA21:BA24) -> 0 | BB25: 0 | BC25: 0 | BD25: 0 | BE25: 0 | BF25: 0 | BG25: 0 | BH25: 0 | BI25: 0 | BJ25: 0 | BK25: 0 | BL25: =SUM(AZ25:BK25) -> 0 | BM25: =ROUND(BL25,0) -> 0
B26: 551000 | C26: =IF(AND(入力!G16>=B26,入力!G16<B27),入力!G16-550000,"") ->  | D26: =IF(AND(入力!G17>=B26,入力!G17<B27),入力!G17-550000,"") ->  | E26: =IF(AND(入力!G18>=B26,入力!G18<B27),入力!G18-550000,"") ->  | F26: =IF(AND(入力!G19>=B26,入力!G19<B27),入力!G19-550000,"") ->  | G26: =IF(AND(入力!G20>=B26,入力!G20<B27),入力!G20-550000,"") ->  | H26: =IF(AND(入力!G21>=B26,入力!G21<B27),入力!G21-550000,"") ->  | I26: =IF(AND(入力!G22>=B26,入力!G22<B27),入力!G22-550000,"") ->  | J26: =IF(AND(入力!G23>=B26,入力!G23<B27),入力!G23-550000,"") ->  | L26: 給与所得者等数 | M26: =COUNT(R4:R19) -> 0 | Q26: 均等割 | R26: 0 | X26: =入力!E16 -> 1 | Y26: =IF(B4="","",B4) ->  | Z26: =IF(AR41="","",AR41) ->  | AA26: =IF(AR55="","",AR55) ->  | AB26: =IF(AR69="","",AR69) ->  | AC26: =IF(SUM(Z26:AB26)>0,SUM(Z26:AB26),"") ->  | AF26: ※平等割額は、主の国保加入の有無及び介護保険分該当・非該当に | AY26: 後期分(所) | AZ26: =IF(AZ13>ROUNDDOWN(税率・条件!$C$13/12,2),ROUNDDOWN(税率・条件!$C$13/12,2)-SUM(AZ27:AZ29),AZ9) -> 0 | BA26: =IF(BA13>ROUNDDOWN(税率・条件!$C$13/12,2),ROUNDDOWN(税率・条件!$C$13/12,2)-SUM(BA27:BA29),BA9) -> 0 | BB26: =IF(BB13>ROUNDDOWN(税率・条件!$C$13/12,2),ROUNDDOWN(税率・条件!$C$13/12,2)-SUM(BB27:BB29),BB9) -> 0 | BC26: =IF(BC13>ROUNDDOWN(税率・条件!$C$13/12,2),ROUNDDOWN(税率・条件!$C$13/12,2)-SUM(BC27:BC29),BC9) -> 0 | BD26: =IF(BD13>ROUNDDOWN(税率・条件!$C$13/12,2),ROUNDDOWN(税率・条件!$C$13/12,2)-SUM(BD27:BD29),BD9) -> 0 | BE26: =IF(BE13>ROUNDDOWN(税率・条件!$C$13/12,2),ROUNDDOWN(税率・条件!$C$13/12,2)-SUM(BE27:BE29),BE9) -> 0 | BF26: =IF(BF13>ROUNDDOWN(税率・条件!$C$13/12,2),ROUNDDOWN(税率・条件!$C$13/12,2)-SUM(BF27:BF29),BF9) -> 0 | BG26: =IF(BG13>ROUNDDOWN(税率・条件!$C$13/12,2),ROUNDDOWN(税率・条件!$C$13/12,2)-SUM(BG27:BG29),BG9) -> 0 | BH26: =IF(BH13>ROUNDDOWN(税率・条件!$C$13/12,2),ROUNDDOWN(税率・条件!$C$13/12,2)-SUM(BH27:BH29),BH9) -> 0 | BI26: =IF(BI13>ROUNDDOWN(税率・条件!$C$13/12,2),ROUNDDOWN(税率・条件!$C$13/12,2)-SUM(BI27:BI29),BI9) -> 0 | BJ26: =IF(BJ13>ROUNDDOWN(税率・条件!$C$13/12,2),ROUNDDOWN(税率・条件!$C$13/12,2)-SUM(BJ27:BJ29),BJ9) -> 0 | BK26: =IF(BK13>ROUNDDOWN(税率・条件!$C$13/12,2),ROUNDDOWN(税率・条件!$C$13/12,2)-SUM(BK27:BK29),BK9) -> 0 | BL26: =SUM(AZ26:BK26) -> 0 | BM26: 0
B27: 1619000 | C27: =IF(AND(入力!G16>=B27,入力!G16<B28),1069000,"") ->  | D27: =IF(AND(入力!G17>=B27,入力!G17<B28),1069000,"") ->  | E27: =IF(AND(入力!G18>=B27,入力!G18<B28),1069000,"") ->  | F27: =IF(AND(入力!G19>=B27,入力!G19<B28),1069000,"") ->  | G27: =IF(AND(入力!G20>=B27,入力!G20<B28),1069000,"") ->  | H27: =IF(AND(入力!G21>=B27,入力!G21<B28),1069000,"") ->  | I27: =IF(AND(入力!G22>=B27,入力!G22<B28),1069000,"") ->  | J27: =IF(AND(入力!G23>=B27,入力!G23<B28),1069000,"") ->  | L27: 7割軽減 | M27: =IF(M25=0,"",税率・条件!F5+IF(R20=0,0,(R20-1)*100000)) ->  | Q27: 平等割 | R27: 0 | X27: =入力!E17 -> ２ | Y27: =IF(B6="","",B6) ->  | Z27: =IF(AR42="","",AR42) ->  | AA27: =IF(AR56="","",AR56) ->  | AB27: =IF(AR70="","",AR70) ->  | AC27: =IF(SUM(Z27:AB27)>0,SUM(Z27:AB27),"") ->  | AF27: 関わらず世帯主に計上しています。 | AY27: 後期分(資) | AZ27: =IF(AZ13>ROUNDDOWN(税率・条件!$C$13/12,2),ROUNDDOWN(((ROUNDDOWN(税率・条件!$C$13/12,2))-SUM(AZ28:AZ29))/(AZ13-SUM(AZ11:AZ12))*AZ10,2),AZ10) -> 0 | BA27: =IF(BA13>ROUNDDOWN(税率・条件!$C$13/12,2),ROUNDDOWN(((ROUNDDOWN(税率・条件!$C$13/12,2))-SUM(BA28:BA29))/(BA13-SUM(BA11:BA12))*BA10,2),BA10) -> 0 | BB27: =IF(BB13>ROUNDDOWN(税率・条件!$C$13/12,2),ROUNDDOWN(((ROUNDDOWN(税率・条件!$C$13/12,2))-SUM(BB28:BB29))/(BB13-SUM(BB11:BB12))*BB10,2),BB10) -> 0 | BC27: =IF(BC13>ROUNDDOWN(税率・条件!$C$13/12,2),ROUNDDOWN(((ROUNDDOWN(税率・条件!$C$13/12,2))-SUM(BC28:BC29))/(BC13-SUM(BC11:BC12))*BC10,2),BC10) -> 0 | BD27: =IF(BD13>ROUNDDOWN(税率・条件!$C$13/12,2),ROUNDDOWN(((ROUNDDOWN(税率・条件!$C$13/12,2))-SUM(BD28:BD29))/(BD13-SUM(BD11:BD12))*BD10,2),BD10) -> 0 | BE27: =IF(BE13>ROUNDDOWN(税率・条件!$C$13/12,2),ROUNDDOWN(((ROUNDDOWN(税率・条件!$C$13/12,2))-SUM(BE28:BE29))/(BE13-SUM(BE11:BE12))*BE10,2),BE10) -> 0 | BF27: =IF(BF13>ROUNDDOWN(税率・条件!$C$13/12,2),ROUNDDOWN(((ROUNDDOWN(税率・条件!$C$13/12,2))-SUM(BF28:BF29))/(BF13-SUM(BF11:BF12))*BF10,2),BF10) -> 0 | BG27: =IF(BG13>ROUNDDOWN(税率・条件!$C$13/12,2),ROUNDDOWN(((ROUNDDOWN(税率・条件!$C$13/12,2))-SUM(BG28:BG29))/(BG13-SUM(BG11:BG12))*BG10,2),BG10) -> 0 | BH27: =IF(BH13>ROUNDDOWN(税率・条件!$C$13/12,2),ROUNDDOWN(((ROUNDDOWN(税率・条件!$C$13/12,2))-SUM(BH28:BH29))/(BH13-SUM(BH11:BH12))*BH10,2),BH10) -> 0 | BI27: =IF(BI13>ROUNDDOWN(税率・条件!$C$13/12,2),ROUNDDOWN(((ROUNDDOWN(税率・条件!$C$13/12,2))-SUM(BI28:BI29))/(BI13-SUM(BI11:BI12))*BI10,2),BI10) -> 0 | BJ27: =IF(BJ13>ROUNDDOWN(税率・条件!$C$13/12,2),ROUNDDOWN(((ROUNDDOWN(税率・条件!$C$13/12,2))-SUM(BJ28:BJ29))/(BJ13-SUM(BJ11:BJ12))*BJ10,2),BJ10) -> 0 | BK27: =IF(BK13>ROUNDDOWN(税率・条件!$C$13/12,2),ROUNDDOWN(((ROUNDDOWN(税率・条件!$C$13/12,2))-SUM(BK28:BK29))/(BK13-SUM(BK11:BK12))*BK10,2),BK10) -> 0 | BL27: 0 | BM27: 0
B28: 1620000 | C28: =IF(AND(入力!G16>=B28,入力!G16<B29),1070000,"") ->  | D28: =IF(AND(入力!G17>=B28,入力!G17<B29),1070000,"") ->  | E28: =IF(AND(入力!G18>=B28,入力!G18<B29),1070000,"") ->  | F28: =IF(AND(入力!G19>=B28,入力!G19<B29),1070000,"") ->  | G28: =IF(AND(入力!G20>=B28,入力!G20<B29),1070000,"") ->  | H28: =IF(AND(入力!G21>=B28,入力!G21<B29),1070000,"") ->  | I28: =IF(AND(入力!G22>=B28,入力!G22<B29),1070000,"") ->  | J28: =IF(AND(入力!G23>=B28,入力!G23<B29),1070000,"") ->  | L28: 5割軽減 | M28: =IF(M25=0,"",税率・条件!F6+IF(M26=0,0,(M26-1)*100000)+税率・条件!G6*M25) ->  | Q28: 計 | R28: =ROUNDDOWN(SUM(R24:T27),-2) -> 0 | X28: =入力!E18 -> ３ | Y28: =IF(B8="","",B8) ->  | AF28: なお、擬主もしくは主が介護非該当なのに平等割のみかかる場合、 | AY28: 後期分(均) | AZ28: =AZ11 -> 0 | BA28: =BA11 -> 0 | BB28: 0 | BC28: 0 | BD28: 0 | BE28: 0 | BF28: 0 | BG28: 0 | BH28: 0 | BI28: 0 | BJ28: 0 | BK28: 0 | BL28: 0 | BM28: =BM30-BM26-BM27-BM29 -> 0 | BN28: =IF(ROUND(BL28,0)=BM28,"","←調整後数値") -> 
B29: 1622000 | C29: =IF(AND(入力!G16>=B29,入力!G16<B30),1072000,"") ->  | D29: =IF(AND(入力!G17>=B29,入力!G17<B30),1072000,"") ->  | E29: =IF(AND(入力!G18>=B29,入力!G18<B30),1072000,"") ->  | F29: =IF(AND(入力!G19>=B29,入力!G19<B30),1072000,"") ->  | G29: =IF(AND(入力!G20>=B29,入力!G20<B30),1072000,"") ->  | H29: =IF(AND(入力!G21>=B29,入力!G21<B30),1072000,"") ->  | I29: =IF(AND(入力!G22>=B29,入力!G22<B30),1072000,"") ->  | J29: =IF(AND(入力!G23>=B29,入力!G23<B30),1072000,"") ->  | L29: 2割軽減 | M29: =IF(M25=0,"",税率・条件!F7+IF(M26=0,0,(M26-1)*100000)+税率・条件!G7*M25) ->  | P29: 支援金 | Q29: 所得割 | R29: =BM26 -> 0 | U29: =IF(AND(R29>0,COUNTIF($Z$64:$AQ$64,"該当")>0),"月割限度。調整前:"&TEXT(ROUND(BM9,0),"#,##0"&"円"),"") ->  | X29: =入力!E19 -> ４ | Y29: =IF(B10="","",B10) ->  | AF29: 該当部分が網掛けとなります。 | AY29: 後期分(平) | AZ29: =AZ12 -> 0 | BA29: =BA12 -> 0 | BB29: 0 | BC29: 0 | BD29: 0 | BE29: 0 | BF29: 0 | BG29: 0 | BH29: 0 | BI29: 0 | BJ29: 0 | BK29: 0 | BL29: 0 | BM29: 0
B30: 1624000 | C30: =IF(AND(入力!G16>=B30,入力!G16<B31),1074000,"") ->  | D30: =IF(AND(入力!G17>=B30,入力!G17<B31),1074000,"") ->  | E30: =IF(AND(入力!G18>=B30,入力!G18<B31),1074000,"") ->  | F30: =IF(AND(入力!G19>=B30,入力!G19<B31),1074000,"") ->  | G30: =IF(AND(入力!G20>=B30,入力!G20<B31),1074000,"") ->  | H30: =IF(AND(入力!G21>=B30,入力!G21<B31),1074000,"") ->  | I30: =IF(AND(入力!G22>=B30,入力!G22<B31),1074000,"") ->  | J30: =IF(AND(入力!G23>=B30,入力!G23<B31),1074000,"") ->  | Q30: 資産割 | R30: =BM27 -> 0 | U30: =IF(AND(R30>0,COUNTA($Z$78:$AQ$78)>0),"月割限度。調整前:"&TEXT(ROUND(BM10,0),"#,##0"&"円"),"") ->  | X30: =入力!E20 -> ５ | Y30: =IF(B12="","",B12) ->  | AY30: 計(小数2位) | AZ30: =SUM(AZ26:AZ29) -> 0 | BA30: =SUM(BA26:BA29) -> 0 | BB30: 0 | BC30: 0 | BD30: 0 | BE30: 0 | BF30: 0 | BG30: 0 | BH30: 0 | BI30: 0 | BJ30: 0 | BK30: 0 | BL30: =SUM(AZ30:BK30) -> 0 | BM30: =ROUND(BL30,0) -> 0
B31: 1628000 | C31: =IF(AND(入力!G16>=B31,入力!G16<B32),ROUNDDOWN(入力!G16/4,-3)*4*0.6+100000,"") ->  | D31: =IF(AND(入力!G17>=B31,入力!G17<B32),ROUNDDOWN(入力!G17/4,-3)*4*0.6+100000,"") ->  | E31: =IF(AND(入力!G18>=B31,入力!G18<B32),ROUNDDOWN(入力!G18/4,-3)*4*0.6+100000,"") ->  | F31: =IF(AND(入力!G19>=B31,入力!G19<B32),ROUNDDOWN(入力!G19/4,-3)*4*0.6+100000,"") ->  | G31: =IF(AND(入力!G20>=B31,入力!G20<B32),ROUNDDOWN(入力!G20/4,-3)*4*0.6+100000,"") ->  | H31: =IF(AND(入力!G21>=B31,入力!G21<B32),ROUNDDOWN(入力!G21/4,-3)*4*0.6+100000,"") ->  | I31: =IF(AND(入力!G22>=B31,入力!G22<B32),ROUNDDOWN(入力!G22/4,-3)*4*0.6+100000,"") ->  | J31: =IF(AND(入力!G23>=B31,入力!G23<B32),ROUNDDOWN(入力!G23/4,-3)*4*0.6+100000,"") ->  | L31: 軽減判定 所得合計 | M31: =SUM(Q4:Q19) -> 0 | Q31: 均等割 | R31: 0 | X31: =入力!E21 -> ６ | Y31: =IF(B14="","",B14) ->  | AY31: 介護分(所) | AZ31: =IF(AZ18>ROUNDDOWN(税率・条件!$C$18/12,2),ROUNDDOWN(税率・条件!$C$18/12,2)-SUM(AZ32:AZ34),AZ14) -> 0 | BA31: =IF(BA18>ROUNDDOWN(税率・条件!$C$18/12,2),ROUNDDOWN(税率・条件!$C$18/12,2)-SUM(BA32:BA34),BA14) -> 0 | BB31: =IF(BB18>ROUNDDOWN(税率・条件!$C$18/12,2),ROUNDDOWN(税率・条件!$C$18/12,2)-SUM(BB32:BB34),BB14) -> 0 | BC31: =IF(BC18>ROUNDDOWN(税率・条件!$C$18/12,2),ROUNDDOWN(税率・条件!$C$18/12,2)-SUM(BC32:BC34),BC14) -> 0 | BD31: =IF(BD18>ROUNDDOWN(税率・条件!$C$18/12,2),ROUNDDOWN(税率・条件!$C$18/12,2)-SUM(BD32:BD34),BD14) -> 0 | BE31: =IF(BE18>ROUNDDOWN(税率・条件!$C$18/12,2),ROUNDDOWN(税率・条件!$C$18/12,2)-SUM(BE32:BE34),BE14) -> 0 | BF31: =IF(BF18>ROUNDDOWN(税率・条件!$C$18/12,2),ROUNDDOWN(税率・条件!$C$18/12,2)-SUM(BF32:BF34),BF14) -> 0 | BG31: =IF(BG18>ROUNDDOWN(税率・条件!$C$18/12,2),ROUNDDOWN(税率・条件!$C$18/12,2)-SUM(BG32:BG34),BG14) -> 0 | BH31: =IF(BH18>ROUNDDOWN(税率・条件!$C$18/12,2),ROUNDDOWN(税率・条件!$C$18/12,2)-SUM(BH32:BH34),BH14) -> 0 | BI31: =IF(BI18>ROUNDDOWN(税率・条件!$C$18/12,2),ROUNDDOWN(税率・条件!$C$18/12,2)-SUM(BI32:BI34),BI14) -> 0 | BJ31: =IF(BJ18>ROUNDDOWN(税率・条件!$C$18/12,2),ROUNDDOWN(税率・条件!$C$18/12,2)-SUM(BJ32:BJ34),BJ14) -> 0 | BK31: =IF(BK18>ROUNDDOWN(税率・条件!$C$18/12,2),ROUNDDOWN(税率・条件!$C$18/12,2)-SUM(BK32:BK34),BK14) -> 0 | BL31: =SUM(AZ31:BK31) -> 0 | BM31: 0
B32: 1800000 | C32: =IF(AND(入力!G16>=B32,入力!G16<B33),ROUNDDOWN(入力!G16/4,-3)*4*0.7-80000,"") ->  | D32: =IF(AND(入力!G17>=B32,入力!G17<B33),ROUNDDOWN(入力!G17/4,-3)*4*0.7-80000,"") ->  | E32: =IF(AND(入力!G18>=B32,入力!G18<B33),ROUNDDOWN(入力!G18/4,-3)*4*0.7-80000,"") ->  | F32: =IF(AND(入力!G19>=B32,入力!G19<B33),ROUNDDOWN(入力!G19/4,-3)*4*0.7-80000,"") ->  | G32: =IF(AND(入力!G20>=B32,入力!G20<B33),ROUNDDOWN(入力!G20/4,-3)*4*0.7-80000,"") ->  | H32: =IF(AND(入力!G21>=B32,入力!G21<B33),ROUNDDOWN(入力!G21/4,-3)*4*0.7-80000,"") ->  | I32: =IF(AND(入力!G22>=B32,入力!G22<B33),ROUNDDOWN(入力!G22/4,-3)*4*0.7-80000,"") ->  | J32: =IF(AND(入力!G23>=B32,入力!G23<B33),ROUNDDOWN(入力!G23/4,-3)*4*0.7-80000,"") ->  | Q32: 平等割 | R32: 0 | X32: =入力!E22 -> ７ | Y32: =IF(B16="","",B16) ->  | AY32: 介護分(資) | AZ32: =IF(AZ18>ROUNDDOWN(税率・条件!$C$18/12,2),ROUNDDOWN(((ROUNDDOWN(税率・条件!$C$18/12,2))-SUM(AZ33:AZ34))/(AZ18-SUM(AZ16:AZ17))*AZ15,2),AZ15) -> 0 | BA32: =IF(BA18>ROUNDDOWN(税率・条件!$C$18/12,2),ROUNDDOWN(((ROUNDDOWN(税率・条件!$C$18/12,2))-SUM(BA33:BA34))/(BA18-SUM(BA16:BA17))*BA15,2),BA15) -> 0 | BB32: =IF(BB18>ROUNDDOWN(税率・条件!$C$18/12,2),ROUNDDOWN(((ROUNDDOWN(税率・条件!$C$18/12,2))-SUM(BB33:BB34))/(BB18-SUM(BB16:BB17))*BB15,2),BB15) -> 0 | BC32: =IF(BC18>ROUNDDOWN(税率・条件!$C$18/12,2),ROUNDDOWN(((ROUNDDOWN(税率・条件!$C$18/12,2))-SUM(BC33:BC34))/(BC18-SUM(BC16:BC17))*BC15,2),BC15) -> 0 | BD32: =IF(BD18>ROUNDDOWN(税率・条件!$C$18/12,2),ROUNDDOWN(((ROUNDDOWN(税率・条件!$C$18/12,2))-SUM(BD33:BD34))/(BD18-SUM(BD16:BD17))*BD15,2),BD15) -> 0 | BE32: =IF(BE18>ROUNDDOWN(税率・条件!$C$18/12,2),ROUNDDOWN(((ROUNDDOWN(税率・条件!$C$18/12,2))-SUM(BE33:BE34))/(BE18-SUM(BE16:BE17))*BE15,2),BE15) -> 0 | BF32: =IF(BF18>ROUNDDOWN(税率・条件!$C$18/12,2),ROUNDDOWN(((ROUNDDOWN(税率・条件!$C$18/12,2))-SUM(BF33:BF34))/(BF18-SUM(BF16:BF17))*BF15,2),BF15) -> 0 | BG32: =IF(BG18>ROUNDDOWN(税率・条件!$C$18/12,2),ROUNDDOWN(((ROUNDDOWN(税率・条件!$C$18/12,2))-SUM(BG33:BG34))/(BG18-SUM(BG16:BG17))*BG15,2),BG15) -> 0 | BH32: =IF(BH18>ROUNDDOWN(税率・条件!$C$18/12,2),ROUNDDOWN(((ROUNDDOWN(税率・条件!$C$18/12,2))-SUM(BH33:BH34))/(BH18-SUM(BH16:BH17))*BH15,2),BH15) -> 0 | BI32: =IF(BI18>ROUNDDOWN(税率・条件!$C$18/12,2),ROUNDDOWN(((ROUNDDOWN(税率・条件!$C$18/12,2))-SUM(BI33:BI34))/(BI18-SUM(BI16:BI17))*BI15,2),BI15) -> 0 | BJ32: =IF(BJ18>ROUNDDOWN(税率・条件!$C$18/12,2),ROUNDDOWN(((ROUNDDOWN(税率・条件!$C$18/12,2))-SUM(BJ33:BJ34))/(BJ18-SUM(BJ16:BJ17))*BJ15,2),BJ15) -> 0 | BK32: =IF(BK18>ROUNDDOWN(税率・条件!$C$18/12,2),ROUNDDOWN(((ROUNDDOWN(税率・条件!$C$18/12,2))-SUM(BK33:BK34))/(BK18-SUM(BK16:BK17))*BK15,2),BK15) -> 0 | BL32: 0 | BM32: 0
B33: 3600000 | C33: =IF(AND(入力!G16>=B33,入力!G16<B34),ROUNDDOWN(入力!G16/4,-3)*4*0.8-440000,"") ->  | D33: =IF(AND(入力!G17>=B33,入力!G17<B34),ROUNDDOWN(入力!G17/4,-3)*4*0.8-440000,"") ->  | E33: =IF(AND(入力!G18>=B33,入力!G18<B34),ROUNDDOWN(入力!G18/4,-3)*4*0.8-440000,"") ->  | F33: =IF(AND(入力!G19>=B33,入力!G19<B34),ROUNDDOWN(入力!G19/4,-3)*4*0.8-440000,"") ->  | G33: =IF(AND(入力!G20>=B33,入力!G20<B34),ROUNDDOWN(入力!G20/4,-3)*4*0.8-440000,"") ->  | H33: =IF(AND(入力!G21>=B33,入力!G21<B34),ROUNDDOWN(入力!G21/4,-3)*4*0.8-440000,"") ->  | I33: =IF(AND(入力!G22>=B33,入力!G22<B34),ROUNDDOWN(入力!G22/4,-3)*4*0.8-440000,"") ->  | J33: =IF(AND(入力!G23>=B33,入力!G23<B34),ROUNDDOWN(入力!G23/4,-3)*4*0.8-440000,"") ->  | L33: 申告区分 | M33: =IF(入力!C19="全員申告済み","申告有","未申告") -> 未申告 | Q33: 計 | R33: =ROUNDDOWN(SUM(R29:T32),-2) -> 0 | X33: =入力!E23 -> ８ | Y33: =IF(B18="","",B18) ->  | AY33: 介護分(均) | AZ33: =AZ16 -> 0 | BA33: =BA16 -> 0 | BB33: 0 | BC33: 0 | BD33: 0 | BE33: 0 | BF33: 0 | BG33: 0 | BH33: 0 | BI33: 0 | BJ33: 0 | BK33: 0 | BL33: 0 | BM33: =BM35-BM31-BM32-BM34 -> 0 | BN33: =IF(ROUND(BL33,0)=BM33,"","←調整後数値") -> 
B34: 6600000 | C34: =IF(AND(入力!G16>=B34,入力!G16<B35),入力!G16*0.9-1100000,"") ->  | D34: =IF(AND(入力!G17>=B34,入力!G17<B35),入力!G17*0.9-1100000,"") ->  | E34: =IF(AND(入力!G18>=B34,入力!G18<B35),入力!G18*0.9-1100000,"") ->  | F34: =IF(AND(入力!G19>=B34,入力!G19<B35),入力!G19*0.9-1100000,"") ->  | G34: =IF(AND(入力!G20>=B34,入力!G20<B35),入力!G20*0.9-1100000,"") ->  | H34: =IF(AND(入力!G21>=B34,入力!G21<B35),入力!G21*0.9-1100000,"") ->  | I34: =IF(AND(入力!G22>=B34,入力!G22<B35),入力!G22*0.9-1100000,"") ->  | J34: =IF(AND(入力!G23>=B34,入力!G23<B35),入力!G23*0.9-1100000,"") ->  | L34: 適用軽減率 | M34: =IF(M35<>"",M35,IF(M33="未申告",0%,IF(M31<=M27,70%,IF(M31<=M28,50%,IF(M31<=M29,20%,0%))))) -> 0 | P34: 介 護 | Q34: 所得割 | R34: =BM31 -> 0 | U34: =IF(AND(R34>0,COUNTIF($Z$78:$AQ$78,"該当")>0),"月割限度。調整前:"&TEXT(ROUND(BM14,0),"#,##0"&"円"),"") ->  | Z34: =SUM(Z26:Z33) -> 0 | AA34: =SUM(AA26:AA33) -> 0 | AB34: =SUM(AB26:AB33) -> 0 | AC34: =SUM(AC26:AC33) -> 0 | AY34: 介護分(平) | AZ34: =AZ17 -> 0 | BA34: =BA17 -> 0 | BB34: 0 | BC34: 0 | BD34: 0 | BE34: 0 | BF34: 0 | BG34: 0 | BH34: 0 | BI34: 0 | BJ34: 0 | BK34: 0 | BL34: 0 | BM34: 0
B35: 8500000 | C35: =IF(入力!G16>=B35,入力!G16-1950000,"") ->  | D35: =IF(入力!G17>=B35,入力!G17-1950000,"") ->  | E35: =IF(入力!G18>=B35,入力!G18-1950000,"") ->  | F35: =IF(入力!G19>=B35,入力!G19-1950000,"") ->  | G35: =IF(入力!G20>=B35,入力!G20-1950000,"") ->  | H35: =IF(入力!G21>=B35,入力!G21-1950000,"") ->  | I35: =IF(入力!G22>=B35,入力!G22-1950000,"") ->  | J35: =IF(入力!G23>=B35,入力!G23-1950000,"") ->  | L35: 強制軽減適用 | Q35: 資産割 | R35: =BM32 -> 0 | U35: =IF(AND(R35>0,COUNTIF($Z$78:$AQ$78,"該当")>0),"月割限度。調整前:"&TEXT(ROUND(BM15,0),"#,##0"&"円"),"") ->  | AY35: 計(小数2位) | AZ35: =SUM(AZ31:AZ34) -> 0 | BA35: =SUM(BA31:BA34) -> 0 | BB35: 0 | BC35: 0 | BD35: 0 | BE35: 0 | BF35: 0 | BG35: 0 | BH35: 0 | BI35: 0 | BJ35: 0 | BK35: 0 | BL35: =SUM(AZ35:BK35) -> 0 | BM35: =ROUND(BL35,0) -> 0
Q36: 均等割 | R36: 0 | BM36: ↑年税額の数字
B37: ※公的年金以外の合計所得が1,000万円以下の場合で計算 | Q37: 平等割 | R37: 0
B38: 65歳未満 | Q38: 計 | R38: =ROUNDDOWN(SUM(R34:T37),-2) -> 0 | X38: ="医療分各個人月別計（令和"&DBCS(税率・条件!C1)&"年度税率）" -> 医療分各個人月別計（令和５年度税率） | AD38: ※主は未加入だが、平等割のみ計上している場合、網掛けとなります。
B39: 収入の範囲 | C39: 率 | D39: 控除額 | P39: 年 税 額 | R39: =R28+R33+R38 -> 0 | Y39: 年齢 区分 | Z39: 保険税（調整後数値）
B40: 1 | C40: 100 | D40: 600000 | P40: ※加入期間に合わせ計算しています。 | Z40: ４月 | AA40: ５月 | AB40: ６月 | AC40: ７月 | AD40: ８月 | AE40: ９月 | AF40: １０月 | AG40: １１月 | AH40: １２月 | AI40: １月 | AL40: ２月 | AO40: ３月 | AR40: 計
B41: 1300000 | C41: 75 | D41: 275000 | P41: =IF(OR(U24<>"",U25<>"",U29<>"",U30<>"",U34<>"",U35<>""),"注意：所得割及び資産割欄の右に「月割限度。」と表示されている場合、月割り限度額を超えた月が存在しており、上限額を超えた部分を所得割と資産割の算出額を再按分し調整を行った後の額となっております。","") ->  | X41: =X26 -> 1 | Z41: =IF(AZ46="","",ROUND(IF(AZ$63<ROUNDDOWN(税率・条件!$C$8/12,0),AZ45+AZ46,AZ45*(((税率・条件!$C$8/12)-AZ$62)/AZ$61)+AZ46),0)) ->  | AA41: =IF(BA46="","",ROUND(IF(BA$63<ROUNDDOWN(税率・条件!$C$8/12,0),BA45+BA46,BA45*(((税率・条件!$C$8/12)-BA$62)/BA$61)+BA46),0)) ->  | AB41: =IF(BB46="","",ROUND(IF(BB$63<ROUNDDOWN(税率・条件!$C$8/12,0),BB45+BB46,BB45*(((税率・条件!$C$8/12)-BB$62)/BB$61)+BB46),0)) ->  | AC41: =IF(BC46="","",ROUND(IF(BC$63<ROUNDDOWN(税率・条件!$C$8/12,0),BC45+BC46,BC45*(((税率・条件!$C$8/12)-BC$62)/BC$61)+BC46),0)) ->  | AD41: =IF(BD46="","",ROUND(IF(BD$63<ROUNDDOWN(税率・条件!$C$8/12,0),BD45+BD46,BD45*(((税率・条件!$C$8/12)-BD$62)/BD$61)+BD46),0)) ->  | AE41: =IF(BE46="","",ROUND(IF(BE$63<ROUNDDOWN(税率・条件!$C$8/12,0),BE45+BE46,BE45*(((税率・条件!$C$8/12)-BE$62)/BE$61)+BE46),0)) ->  | AF41: =IF(BF46="","",ROUND(IF(BF$63<ROUNDDOWN(税率・条件!$C$8/12,0),BF45+BF46,BF45*(((税率・条件!$C$8/12)-BF$62)/BF$61)+BF46),0)) ->  | AG41: =IF(BG46="","",ROUND(IF(BG$63<ROUNDDOWN(税率・条件!$C$8/12,0),BG45+BG46,BG45*(((税率・条件!$C$8/12)-BG$62)/BG$61)+BG46),0)) ->  | AH41: =IF(BH46="","",ROUND(IF(BH$63<ROUNDDOWN(税率・条件!$C$8/12,0),BH45+BH46,BH45*(((税率・条件!$C$8/12)-BH$62)/BH$61)+BH46),0)) ->  | AI41: =IF(BI46="","",ROUND(IF(BI$63<ROUNDDOWN(税率・条件!$C$8/12,0),BI45+BI46,BI45*(((税率・条件!$C$8/12)-BI$62)/BI$61)+BI46),0)) ->  | AL41: =IF(BJ46="","",ROUND(IF(BJ$63<ROUNDDOWN(税率・条件!$C$8/12,0),BJ45+BJ46,BJ45*(((税率・条件!$C$8/12)-BJ$62)/BJ$61)+BJ46),0)) ->  | AO41: =IF(BK46="","",ROUND(IF(BK$63<ROUNDDOWN(税率・条件!$C$8/12,0),BK45+BK46,BK45*(((税率・条件!$C$8/12)-BK$62)/BK$61)+BK46),0)) ->  | AR41: =IF(X4="","",SUM(Z41:AQ41)) -> 
B42: 4100000 | C42: 85 | D42: 685000 | X42: =X27 -> ２ | Z42: =IF(AZ48="","",ROUND(IF(AZ$63<ROUNDDOWN(税率・条件!$C$8/12,0),AZ47+AZ48,AZ47*(((税率・条件!$C$8/12)-AZ$62)/AZ$61)+AZ48),0)) ->  | AA42: =IF(BA48="","",ROUND(IF(BA$63<ROUNDDOWN(税率・条件!$C$8/12,0),BA47+BA48,BA47*(((税率・条件!$C$8/12)-BA$62)/BA$61)+BA48),0)) ->  | AB42: =IF(BB48="","",ROUND(IF(BB$63<ROUNDDOWN(税率・条件!$C$8/12,0),BB47+BB48,BB47*(((税率・条件!$C$8/12)-BB$62)/BB$61)+BB48),0)) ->  | AC42: =IF(BC48="","",ROUND(IF(BC$63<ROUNDDOWN(税率・条件!$C$8/12,0),BC47+BC48,BC47*(((税率・条件!$C$8/12)-BC$62)/BC$61)+BC48),0)) ->  | AD42: =IF(BD48="","",ROUND(IF(BD$63<ROUNDDOWN(税率・条件!$C$8/12,0),BD47+BD48,BD47*(((税率・条件!$C$8/12)-BD$62)/BD$61)+BD48),0)) ->  | AE42: =IF(BE48="","",ROUND(IF(BE$63<ROUNDDOWN(税率・条件!$C$8/12,0),BE47+BE48,BE47*(((税率・条件!$C$8/12)-BE$62)/BE$61)+BE48),0)) ->  | AF42: =IF(BF48="","",ROUND(IF(BF$63<ROUNDDOWN(税率・条件!$C$8/12,0),BF47+BF48,BF47*(((税率・条件!$C$8/12)-BF$62)/BF$61)+BF48),0)) ->  | AG42: =IF(BG48="","",ROUND(IF(BG$63<ROUNDDOWN(税率・条件!$C$8/12,0),BG47+BG48,BG47*(((税率・条件!$C$8/12)-BG$62)/BG$61)+BG48),0)) ->  | AH42: =IF(BH48="","",ROUND(IF(BH$63<ROUNDDOWN(税率・条件!$C$8/12,0),BH47+BH48,BH47*(((税率・条件!$C$8/12)-BH$62)/BH$61)+BH48),0)) ->  | AI42: =IF(BI48="","",ROUND(IF(BI$63<ROUNDDOWN(税率・条件!$C$8/12,0),BI47+BI48,BI47*(((税率・条件!$C$8/12)-BI$62)/BI$61)+BI48),0)) ->  | AL42: =IF(BJ48="","",ROUND(IF(BJ$63<ROUNDDOWN(税率・条件!$C$8/12,0),BJ47+BJ48,BJ47*(((税率・条件!$C$8/12)-BJ$62)/BJ$61)+BJ48),0)) ->  | AO42: =IF(BK48="","",ROUND(IF(BK$63<ROUNDDOWN(税率・条件!$C$8/12,0),BK47+BK48,BK47*(((税率・条件!$C$8/12)-BK$62)/BK$61)+BK48),0)) ->  | AR42: =IF(X6="","",SUM(Z42:AQ42)) ->  | AY42: ※個人単位：月割り限度額等計算
B43: 7700000 | C43: 95 | D43: 1455000 | X43: ３ | Z43: =IF(AZ50="","",ROUND(IF(AZ$63<ROUNDDOWN(税率・条件!$C$8/12,0),AZ49+AZ50,AZ49*(((税率・条件!$C$8/12)-AZ$62)/AZ$61)+AZ50),0)) ->  | AA43: =IF(BA50="","",ROUND(IF(BA$63<ROUNDDOWN(税率・条件!$C$8/12,0),BA49+BA50,BA49*(((税率・条件!$C$8/12)-BA$62)/BA$61)+BA50),0)) ->  | AB43: =IF(BB50="","",ROUND(IF(BB$63<ROUNDDOWN(税率・条件!$C$8/12,0),BB49+BB50,BB49*(((税率・条件!$C$8/12)-BB$62)/BB$61)+BB50),0)) ->  | AC43: =IF(BC50="","",ROUND(IF(BC$63<ROUNDDOWN(税率・条件!$C$8/12,0),BC49+BC50,BC49*(((税率・条件!$C$8/12)-BC$62)/BC$61)+BC50),0)) ->  | AD43: =IF(BD50="","",ROUND(IF(BD$63<ROUNDDOWN(税率・条件!$C$8/12,0),BD49+BD50,BD49*(((税率・条件!$C$8/12)-BD$62)/BD$61)+BD50),0)) ->  | AE43: =IF(BE50="","",ROUND(IF(BE$63<ROUNDDOWN(税率・条件!$C$8/12,0),BE49+BE50,BE49*(((税率・条件!$C$8/12)-BE$62)/BE$61)+BE50),0)) ->  | AF43: =IF(BF50="","",ROUND(IF(BF$63<ROUNDDOWN(税率・条件!$C$8/12,0),BF49+BF50,BF49*(((税率・条件!$C$8/12)-BF$62)/BF$61)+BF50),0)) ->  | AG43: =IF(BG50="","",ROUND(IF(BG$63<ROUNDDOWN(税率・条件!$C$8/12,0),BG49+BG50,BG49*(((税率・条件!$C$8/12)-BG$62)/BG$61)+BG50),0)) ->  | AH43: =IF(BH50="","",ROUND(IF(BH$63<ROUNDDOWN(税率・条件!$C$8/12,0),BH49+BH50,BH49*(((税率・条件!$C$8/12)-BH$62)/BH$61)+BH50),0)) ->  | AI43: =IF(BI50="","",ROUND(IF(BI$63<ROUNDDOWN(税率・条件!$C$8/12,0),BI49+BI50,BI49*(((税率・条件!$C$8/12)-BI$62)/BI$61)+BI50),0)) ->  | AL43: =IF(BJ50="","",ROUND(IF(BJ$63<ROUNDDOWN(税率・条件!$C$8/12,0),BJ49+BJ50,BJ49*(((税率・条件!$C$8/12)-BJ$62)/BJ$61)+BJ50),0)) ->  | AO43: =IF(BK50="","",ROUND(IF(BK$63<ROUNDDOWN(税率・条件!$C$8/12,0),BK49+BK50,BK49*(((税率・条件!$C$8/12)-BK$62)/BK$61)+BK50),0)) ->  | AR43: =IF(X8="","",SUM(Z43:AQ43)) ->  | AZ43: 医療税額（月割分で計算。端数処理前）
B44: 10000001 | C44: 100 | D44: 1955000 | X44: ４ | Z44: =IF(AZ52="","",ROUND(IF(AZ$63<ROUNDDOWN(税率・条件!$C$8/12,0),AZ51+AZ52,AZ51*(((税率・条件!$C$8/12)-AZ$62)/AZ$61)+AZ52),0)) ->  | AA44: =IF(BA52="","",ROUND(IF(BA$63<ROUNDDOWN(税率・条件!$C$8/12,0),BA51+BA52,BA51*(((税率・条件!$C$8/12)-BA$62)/BA$61)+BA52),0)) ->  | AB44: =IF(BB52="","",ROUND(IF(BB$63<ROUNDDOWN(税率・条件!$C$8/12,0),BB51+BB52,BB51*(((税率・条件!$C$8/12)-BB$62)/BB$61)+BB52),0)) ->  | AC44: =IF(BC52="","",ROUND(IF(BC$63<ROUNDDOWN(税率・条件!$C$8/12,0),BC51+BC52,BC51*(((税率・条件!$C$8/12)-BC$62)/BC$61)+BC52),0)) ->  | AD44: =IF(BD52="","",ROUND(IF(BD$63<ROUNDDOWN(税率・条件!$C$8/12,0),BD51+BD52,BD51*(((税率・条件!$C$8/12)-BD$62)/BD$61)+BD52),0)) ->  | AE44: =IF(BE52="","",ROUND(IF(BE$63<ROUNDDOWN(税率・条件!$C$8/12,0),BE51+BE52,BE51*(((税率・条件!$C$8/12)-BE$62)/BE$61)+BE52),0)) ->  | AF44: =IF(BF52="","",ROUND(IF(BF$63<ROUNDDOWN(税率・条件!$C$8/12,0),BF51+BF52,BF51*(((税率・条件!$C$8/12)-BF$62)/BF$61)+BF52),0)) ->  | AG44: =IF(BG52="","",ROUND(IF(BG$63<ROUNDDOWN(税率・条件!$C$8/12,0),BG51+BG52,BG51*(((税率・条件!$C$8/12)-BG$62)/BG$61)+BG52),0)) ->  | AH44: =IF(BH52="","",ROUND(IF(BH$63<ROUNDDOWN(税率・条件!$C$8/12,0),BH51+BH52,BH51*(((税率・条件!$C$8/12)-BH$62)/BH$61)+BH52),0)) ->  | AI44: =IF(BI52="","",ROUND(IF(BI$63<ROUNDDOWN(税率・条件!$C$8/12,0),BI51+BI52,BI51*(((税率・条件!$C$8/12)-BI$62)/BI$61)+BI52),0)) ->  | AL44: =IF(BJ52="","",ROUND(IF(BJ$63<ROUNDDOWN(税率・条件!$C$8/12,0),BJ51+BJ52,BJ51*(((税率・条件!$C$8/12)-BJ$62)/BJ$61)+BJ52),0)) ->  | AO44: =IF(BK52="","",ROUND(IF(BK$63<ROUNDDOWN(税率・条件!$C$8/12,0),BK51+BK52,BK51*(((税率・条件!$C$8/12)-BK$62)/BK$61)+BK52),0)) ->  | AR44: =IF(X10="","",SUM(Z44:AQ44)) ->  | AZ44: 4 | BA44: 5 | BB44: 6 | BC44: 7 | BD44: 8 | BE44: 9 | BF44: 10 | BG44: 11 | BH44: 12 | BI44: 1 | BJ44: 2 | BK44: 3
X45: ５ | Z45: =IF(AZ54="","",ROUND(IF(AZ$63<ROUNDDOWN(税率・条件!$C$8/12,0),AZ53+AZ54,AZ53*(((税率・条件!$C$8/12)-AZ$62)/AZ$61)+AZ54),0)) ->  | AA45: =IF(BA54="","",ROUND(IF(BA$63<ROUNDDOWN(税率・条件!$C$8/12,0),BA53+BA54,BA53*(((税率・条件!$C$8/12)-BA$62)/BA$61)+BA54),0)) ->  | AB45: =IF(BB54="","",ROUND(IF(BB$63<ROUNDDOWN(税率・条件!$C$8/12,0),BB53+BB54,BB53*(((税率・条件!$C$8/12)-BB$62)/BB$61)+BB54),0)) ->  | AC45: =IF(BC54="","",ROUND(IF(BC$63<ROUNDDOWN(税率・条件!$C$8/12,0),BC53+BC54,BC53*(((税率・条件!$C$8/12)-BC$62)/BC$61)+BC54),0)) ->  | AD45: =IF(BD54="","",ROUND(IF(BD$63<ROUNDDOWN(税率・条件!$C$8/12,0),BD53+BD54,BD53*(((税率・条件!$C$8/12)-BD$62)/BD$61)+BD54),0)) ->  | AE45: =IF(BE54="","",ROUND(IF(BE$63<ROUNDDOWN(税率・条件!$C$8/12,0),BE53+BE54,BE53*(((税率・条件!$C$8/12)-BE$62)/BE$61)+BE54),0)) ->  | AF45: =IF(BF54="","",ROUND(IF(BF$63<ROUNDDOWN(税率・条件!$C$8/12,0),BF53+BF54,BF53*(((税率・条件!$C$8/12)-BF$62)/BF$61)+BF54),0)) ->  | AG45: =IF(BG54="","",ROUND(IF(BG$63<ROUNDDOWN(税率・条件!$C$8/12,0),BG53+BG54,BG53*(((税率・条件!$C$8/12)-BG$62)/BG$61)+BG54),0)) ->  | AH45: =IF(BH54="","",ROUND(IF(BH$63<ROUNDDOWN(税率・条件!$C$8/12,0),BH53+BH54,BH53*(((税率・条件!$C$8/12)-BH$62)/BH$61)+BH54),0)) ->  | AI45: =IF(BI54="","",ROUND(IF(BI$63<ROUNDDOWN(税率・条件!$C$8/12,0),BI53+BI54,BI53*(((税率・条件!$C$8/12)-BI$62)/BI$61)+BI54),0)) ->  | AL45: =IF(BJ54="","",ROUND(IF(BJ$63<ROUNDDOWN(税率・条件!$C$8/12,0),BJ53+BJ54,BJ53*(((税率・条件!$C$8/12)-BJ$62)/BJ$61)+BJ54),0)) ->  | AO45: =IF(BK54="","",ROUND(IF(BK$63<ROUNDDOWN(税率・条件!$C$8/12,0),BK53+BK54,BK53*(((税率・条件!$C$8/12)-BK$62)/BK$61)+BK54),0)) ->  | AR45: =IF(X12="","",SUM(Z45:AQ45)) ->  | AY45: １応能 | AZ45: =IF(AND(AJ4="",AJ20=1),0,IF(AJ4="","",ROUND((SUM($T4:$U5)/12),0))) -> 
B46: 65歳以上 | X46: ６ | Z46: =IF(AZ56="","",ROUND(IF(AZ$63<ROUNDDOWN(税率・条件!$C$8/12,0),AZ55+AZ56,AZ55*(((税率・条件!$C$8/12)-AZ$62)/AZ$61)+AZ56),0)) ->  | AA46: =IF(BA56="","",ROUND(IF(BA$63<ROUNDDOWN(税率・条件!$C$8/12,0),BA55+BA56,BA55*(((税率・条件!$C$8/12)-BA$62)/BA$61)+BA56),0)) ->  | AB46: =IF(BB56="","",ROUND(IF(BB$63<ROUNDDOWN(税率・条件!$C$8/12,0),BB55+BB56,BB55*(((税率・条件!$C$8/12)-BB$62)/BB$61)+BB56),0)) ->  | AC46: =IF(BC56="","",ROUND(IF(BC$63<ROUNDDOWN(税率・条件!$C$8/12,0),BC55+BC56,BC55*(((税率・条件!$C$8/12)-BC$62)/BC$61)+BC56),0)) ->  | AD46: =IF(BD56="","",ROUND(IF(BD$63<ROUNDDOWN(税率・条件!$C$8/12,0),BD55+BD56,BD55*(((税率・条件!$C$8/12)-BD$62)/BD$61)+BD56),0)) ->  | AE46: =IF(BE56="","",ROUND(IF(BE$63<ROUNDDOWN(税率・条件!$C$8/12,0),BE55+BE56,BE55*(((税率・条件!$C$8/12)-BE$62)/BE$61)+BE56),0)) ->  | AF46: =IF(BF56="","",ROUND(IF(BF$63<ROUNDDOWN(税率・条件!$C$8/12,0),BF55+BF56,BF55*(((税率・条件!$C$8/12)-BF$62)/BF$61)+BF56),0)) ->  | AG46: =IF(BG56="","",ROUND(IF(BG$63<ROUNDDOWN(税率・条件!$C$8/12,0),BG55+BG56,BG55*(((税率・条件!$C$8/12)-BG$62)/BG$61)+BG56),0)) ->  | AH46: =IF(BH56="","",ROUND(IF(BH$63<ROUNDDOWN(税率・条件!$C$8/12,0),BH55+BH56,BH55*(((税率・条件!$C$8/12)-BH$62)/BH$61)+BH56),0)) ->  | AI46: =IF(BI56="","",ROUND(IF(BI$63<ROUNDDOWN(税率・条件!$C$8/12,0),BI55+BI56,BI55*(((税率・条件!$C$8/12)-BI$62)/BI$61)+BI56),0)) ->  | AL46: =IF(BJ56="","",ROUND(IF(BJ$63<ROUNDDOWN(税率・条件!$C$8/12,0),BJ55+BJ56,BJ55*(((税率・条件!$C$8/12)-BJ$62)/BJ$61)+BJ56),0)) ->  | AO46: =IF(BK56="","",ROUND(IF(BK$63<ROUNDDOWN(税率・条件!$C$8/12,0),BK55+BK56,BK55*(((税率・条件!$C$8/12)-BK$62)/BK$61)+BK56),0)) ->  | AR46: =IF(X14="","",SUM(Z46:AQ46)) ->  | AY46: １応益 | AZ46: =IF(AJ4="",IF(AJ20="","",ROUND(SUM($W4:$W5)/12,0)),ROUND(SUM($V4:$W5)/12,0)) -> 
B47: 収入の範囲 | C47: 率 | D47: 控除額 | L47: =IF(OR(AW20="",M33<>"申告有"),"",IF(AI20=IF(AU20=1,AU3+12,IF(AT20=1,AT3+12,IF(AS20=1,AS3+12,IF(AR20=1,AR3,IF(AQ20=1,AQ3,IF(AP20=1,AP3,IF(AO20=1,AO3,IF(AN20=1,AN3,IF(AM20=1,AM3,IF(AL20=1,AL3,IF(AK20=1,AK3,IF(AJ20=1,AJ3,""))))))))))))-IF(AW20<4,AW20+12,AW20)+1,"","※ 注意！！！"&CHAR(10)&"年度途中で中抜け期間があります。再加入時の軽減率が異なる場合があります。")) ->  | X47: ７ | Z47: =IF(AZ58="","",ROUND(IF(AZ$63<ROUNDDOWN(税率・条件!$C$8/12,0),AZ57+AZ58,AZ57*(((税率・条件!$C$8/12)-AZ$62)/AZ$61)+AZ58),0)) ->  | AA47: =IF(BA58="","",ROUND(IF(BA$63<ROUNDDOWN(税率・条件!$C$8/12,0),BA57+BA58,BA57*(((税率・条件!$C$8/12)-BA$62)/BA$61)+BA58),0)) ->  | AB47: =IF(BB58="","",ROUND(IF(BB$63<ROUNDDOWN(税率・条件!$C$8/12,0),BB57+BB58,BB57*(((税率・条件!$C$8/12)-BB$62)/BB$61)+BB58),0)) ->  | AC47: =IF(BC58="","",ROUND(IF(BC$63<ROUNDDOWN(税率・条件!$C$8/12,0),BC57+BC58,BC57*(((税率・条件!$C$8/12)-BC$62)/BC$61)+BC58),0)) ->  | AD47: =IF(BD58="","",ROUND(IF(BD$63<ROUNDDOWN(税率・条件!$C$8/12,0),BD57+BD58,BD57*(((税率・条件!$C$8/12)-BD$62)/BD$61)+BD58),0)) ->  | AE47: =IF(BE58="","",ROUND(IF(BE$63<ROUNDDOWN(税率・条件!$C$8/12,0),BE57+BE58,BE57*(((税率・条件!$C$8/12)-BE$62)/BE$61)+BE58),0)) ->  | AF47: =IF(BF58="","",ROUND(IF(BF$63<ROUNDDOWN(税率・条件!$C$8/12,0),BF57+BF58,BF57*(((税率・条件!$C$8/12)-BF$62)/BF$61)+BF58),0)) ->  | AG47: =IF(BG58="","",ROUND(IF(BG$63<ROUNDDOWN(税率・条件!$C$8/12,0),BG57+BG58,BG57*(((税率・条件!$C$8/12)-BG$62)/BG$61)+BG58),0)) ->  | AH47: =IF(BH58="","",ROUND(IF(BH$63<ROUNDDOWN(税率・条件!$C$8/12,0),BH57+BH58,BH57*(((税率・条件!$C$8/12)-BH$62)/BH$61)+BH58),0)) ->  | AI47: =IF(BI58="","",ROUND(IF(BI$63<ROUNDDOWN(税率・条件!$C$8/12,0),BI57+BI58,BI57*(((税率・条件!$C$8/12)-BI$62)/BI$61)+BI58),0)) ->  | AL47: =IF(BJ58="","",ROUND(IF(BJ$63<ROUNDDOWN(税率・条件!$C$8/12,0),BJ57+BJ58,BJ57*(((税率・条件!$C$8/12)-BJ$62)/BJ$61)+BJ58),0)) ->  | AO47: =IF(BK58="","",ROUND(IF(BK$63<ROUNDDOWN(税率・条件!$C$8/12,0),BK57+BK58,BK57*(((税率・条件!$C$8/12)-BK$62)/BK$61)+BK58),0)) ->  | AR47: =IF(X16="","",SUM(Z47:AQ47)) ->  | AY47: ２応能 | AZ47: =IF(AJ6="","",ROUND((SUM($T6:$U7)/12),0)) -> 
B48: 1 | C48: 100 | D48: 1100000 | X48: ８ | Z48: =IF(AZ60="","",ROUND(IF(AZ$63<ROUNDDOWN(税率・条件!$C$8/12,0),AZ59+AZ60,AZ59*(((税率・条件!$C$8/12)-AZ$62)/AZ$61)+AZ60),0)) ->  | AA48: =IF(BA60="","",ROUND(IF(BA$63<ROUNDDOWN(税率・条件!$C$8/12,0),BA59+BA60,BA59*(((税率・条件!$C$8/12)-BA$62)/BA$61)+BA60),0)) ->  | AB48: =IF(BB60="","",ROUND(IF(BB$63<ROUNDDOWN(税率・条件!$C$8/12,0),BB59+BB60,BB59*(((税率・条件!$C$8/12)-BB$62)/BB$61)+BB60),0)) ->  | AC48: =IF(BC60="","",ROUND(IF(BC$63<ROUNDDOWN(税率・条件!$C$8/12,0),BC59+BC60,BC59*(((税率・条件!$C$8/12)-BC$62)/BC$61)+BC60),0)) ->  | AD48: =IF(BD60="","",ROUND(IF(BD$63<ROUNDDOWN(税率・条件!$C$8/12,0),BD59+BD60,BD59*(((税率・条件!$C$8/12)-BD$62)/BD$61)+BD60),0)) ->  | AE48: =IF(BE60="","",ROUND(IF(BE$63<ROUNDDOWN(税率・条件!$C$8/12,0),BE59+BE60,BE59*(((税率・条件!$C$8/12)-BE$62)/BE$61)+BE60),0)) ->  | AF48: =IF(BF60="","",ROUND(IF(BF$63<ROUNDDOWN(税率・条件!$C$8/12,0),BF59+BF60,BF59*(((税率・条件!$C$8/12)-BF$62)/BF$61)+BF60),0)) ->  | AG48: =IF(BG60="","",ROUND(IF(BG$63<ROUNDDOWN(税率・条件!$C$8/12,0),BG59+BG60,BG59*(((税率・条件!$C$8/12)-BG$62)/BG$61)+BG60),0)) ->  | AH48: =IF(BH60="","",ROUND(IF(BH$63<ROUNDDOWN(税率・条件!$C$8/12,0),BH59+BH60,BH59*(((税率・条件!$C$8/12)-BH$62)/BH$61)+BH60),0)) ->  | AI48: =IF(BI60="","",ROUND(IF(BI$63<ROUNDDOWN(税率・条件!$C$8/12,0),BI59+BI60,BI59*(((税率・条件!$C$8/12)-BI$62)/BI$61)+BI60),0)) ->  | AL48: =IF(BJ60="","",ROUND(IF(BJ$63<ROUNDDOWN(税率・条件!$C$8/12,0),BJ59+BJ60,BJ59*(((税率・条件!$C$8/12)-BJ$62)/BJ$61)+BJ60),0)) ->  | AO48: =IF(BK60="","",ROUND(IF(BK$63<ROUNDDOWN(税率・条件!$C$8/12,0),BK59+BK60,BK59*(((税率・条件!$C$8/12)-BK$62)/BK$61)+BK60),0)) ->  | AR48: =IF(X18="","",SUM(Z48:AQ48)) ->  | AY48: ２応益 | AZ48: =IF(AJ6="","",ROUND(SUM($V6:$W7)/12,0)) -> 
B49: 3300000 | C49: 75 | D49: 275000 | X49: 小 計 | Z49: =SUM(Z41:Z48) -> 0 | AA49: =SUM(AA41:AA48) -> 0 | AB49: 0 | AC49: 0 | AD49: 0 | AE49: 0 | AF49: 0 | AG49: 0 | AH49: 0 | AI49: =SUM(AI41:AK48) -> 0 | AL49: =SUM(AL41:AN48) -> 0 | AO49: =SUM(AO41:AQ48) -> 0 | AR49: =SUM(AR41:AT48) -> 0 | AY49: ３応能 | AZ49: =IF(AJ8="","",ROUND((SUM($T8:$U9)/12),0)) -> 
B50: 4100000 | C50: 85 | D50: 685000 | Y50: 月割り限度額適用 | Z50: =IF(AZ$63<ROUNDDOWN(税率・条件!$C$8/12,0),"","該当") ->  | AA50: =IF(BA$63<ROUNDDOWN(税率・条件!$C$8/12,0),"","該当") ->  | AB50: =IF(BB$63<ROUNDDOWN(税率・条件!$C$8/12,0),"","該当") ->  | AC50: =IF(BC$63<ROUNDDOWN(税率・条件!$C$8/12,0),"","該当") ->  | AD50: =IF(BD$63<ROUNDDOWN(税率・条件!$C$8/12,0),"","該当") ->  | AE50: =IF(BE$63<ROUNDDOWN(税率・条件!$C$8/12,0),"","該当") ->  | AF50: =IF(BF$63<ROUNDDOWN(税率・条件!$C$8/12,0),"","該当") ->  | AG50: =IF(BG$63<ROUNDDOWN(税率・条件!$C$8/12,0),"","該当") ->  | AH50: =IF(BH$63<ROUNDDOWN(税率・条件!$C$8/12,0),"","該当") ->  | AI50: =IF(BI$63<ROUNDDOWN(税率・条件!$C$8/12,0),"","該当") ->  | AL50: =IF(BJ$63<ROUNDDOWN(税率・条件!$C$8/12,0),"","該当") ->  | AO50: =IF(BK$63<ROUNDDOWN(税率・条件!$C$8/12,0),"","該当") ->  | AY50: ３応益 | AZ50: =IF(AJ8="","",ROUND(SUM($V8:$W9)/12,0)) -> 
B51: 7700000 | C51: 95 | D51: 1455000 | AY51: ４応能 | AZ51: =IF(AJ10="","",ROUND((SUM($T10:$U11)/12),0)) -> 
B52: 10000001 | C52: 100 | D52: 1955000 | X52: ="支援分各個人月別計（令和"&DBCS(税率・条件!C1)&"年度税率）" -> 支援分各個人月別計（令和５年度税率） | AD52: ※主は未加入だが、平等割のみ計上している場合、網掛けとなります。 | AY52: ４応益 | AZ52: =IF(AJ10="","",ROUND(SUM($V10:$W11)/12,0)) -> 
Y53: 年齢 区分 | Z53: 保険税（調整後数値） | AY53: ５応能 | AZ53: =IF(AJ12="","",ROUND((SUM($T12:$U13)/12),0)) -> 
L54: =IF(入力!C25="軽減なし","","平等割は"&入力!C25&"で計算してます。") ->  | Z54: ４月 | AA54: ５月 | AB54: ６月 | AC54: ７月 | AD54: ８月 | AE54: ９月 | AF54: １０月 | AG54: １１月 | AH54: １２月 | AI54: １月 | AL54: ２月 | AO54: ３月 | AR54: 計 | AY54: ５応益 | AZ54: =IF(AJ12="","",ROUND(SUM($V12:$W13)/12,0)) -> 
X55: =X41 -> 1 | Z55: =IF(AZ69="","",ROUND(IF(AZ$86<ROUNDDOWN(税率・条件!$C$13/12,0),AZ68+AZ69,AZ68*(((税率・条件!$C$13/12)-AZ$85)/AZ$84)+AZ69),0)) ->  | AA55: =IF(BA69="","",ROUND(IF(BA$86<ROUNDDOWN(税率・条件!$C$13/12,0),BA68+BA69,BA68*(((税率・条件!$C$13/12)-BA$85)/BA$84)+BA69),0)) ->  | AB55: =IF(BB69="","",ROUND(IF(BB$86<ROUNDDOWN(税率・条件!$C$13/12,0),BB68+BB69,BB68*(((税率・条件!$C$13/12)-BB$85)/BB$84)+BB69),0)) ->  | AC55: =IF(BC69="","",ROUND(IF(BC$86<ROUNDDOWN(税率・条件!$C$13/12,0),BC68+BC69,BC68*(((税率・条件!$C$13/12)-BC$85)/BC$84)+BC69),0)) ->  | AD55: =IF(BD69="","",ROUND(IF(BD$86<ROUNDDOWN(税率・条件!$C$13/12,0),BD68+BD69,BD68*(((税率・条件!$C$13/12)-BD$85)/BD$84)+BD69),0)) ->  | AE55: =IF(BE69="","",ROUND(IF(BE$86<ROUNDDOWN(税率・条件!$C$13/12,0),BE68+BE69,BE68*(((税率・条件!$C$13/12)-BE$85)/BE$84)+BE69),0)) ->  | AF55: =IF(BF69="","",ROUND(IF(BF$86<ROUNDDOWN(税率・条件!$C$13/12,0),BF68+BF69,BF68*(((税率・条件!$C$13/12)-BF$85)/BF$84)+BF69),0)) ->  | AG55: =IF(BG69="","",ROUND(IF(BG$86<ROUNDDOWN(税率・条件!$C$13/12,0),BG68+BG69,BG68*(((税率・条件!$C$13/12)-BG$85)/BG$84)+BG69),0)) ->  | AH55: =IF(BH69="","",ROUND(IF(BH$86<ROUNDDOWN(税率・条件!$C$13/12,0),BH68+BH69,BH68*(((税率・条件!$C$13/12)-BH$85)/BH$84)+BH69),0)) ->  | AI55: =IF(BI69="","",ROUND(IF(BI$86<ROUNDDOWN(税率・条件!$C$13/12,0),BI68+BI69,BI68*(((税率・条件!$C$13/12)-BI$85)/BI$84)+BI69),0)) ->  | AL55: =IF(BJ69="","",ROUND(IF(BJ$86<ROUNDDOWN(税率・条件!$C$13/12,0),BJ68+BJ69,BJ68*(((税率・条件!$C$13/12)-BJ$85)/BJ$84)+BJ69),0)) ->  | AO55: =IF(BK69="","",ROUND(IF(BK$86<ROUNDDOWN(税率・条件!$C$13/12,0),BK68+BK69,BK68*(((税率・条件!$C$13/12)-BK$85)/BK$84)+BK69),0)) ->  | AR55: =IF(AC4="","",SUM(Z55:AQ55)) ->  | AY55: ６応能 | AZ55: =IF(AJ14="","",ROUND((SUM($T14:$U15)/12),0)) -> 
X56: ２ | Z56: =IF(AZ71="","",ROUND(IF(AZ$86<ROUNDDOWN(税率・条件!$C$13/12,0),AZ70+AZ71,AZ70*(((税率・条件!$C$13/12)-AZ$85)/AZ$84)+AZ71),0)) ->  | AA56: =IF(BA71="","",ROUND(IF(BA$86<ROUNDDOWN(税率・条件!$C$13/12,0),BA70+BA71,BA70*(((税率・条件!$C$13/12)-BA$85)/BA$84)+BA71),0)) ->  | AB56: =IF(BB71="","",ROUND(IF(BB$86<ROUNDDOWN(税率・条件!$C$13/12,0),BB70+BB71,BB70*(((税率・条件!$C$13/12)-BB$85)/BB$84)+BB71),0)) ->  | AC56: =IF(BC71="","",ROUND(IF(BC$86<ROUNDDOWN(税率・条件!$C$13/12,0),BC70+BC71,BC70*(((税率・条件!$C$13/12)-BC$85)/BC$84)+BC71),0)) ->  | AD56: =IF(BD71="","",ROUND(IF(BD$86<ROUNDDOWN(税率・条件!$C$13/12,0),BD70+BD71,BD70*(((税率・条件!$C$13/12)-BD$85)/BD$84)+BD71),0)) ->  | AE56: =IF(BE71="","",ROUND(IF(BE$86<ROUNDDOWN(税率・条件!$C$13/12,0),BE70+BE71,BE70*(((税率・条件!$C$13/12)-BE$85)/BE$84)+BE71),0)) ->  | AF56: =IF(BF71="","",ROUND(IF(BF$86<ROUNDDOWN(税率・条件!$C$13/12,0),BF70+BF71,BF70*(((税率・条件!$C$13/12)-BF$85)/BF$84)+BF71),0)) ->  | AG56: =IF(BG71="","",ROUND(IF(BG$86<ROUNDDOWN(税率・条件!$C$13/12,0),BG70+BG71,BG70*(((税率・条件!$C$13/12)-BG$85)/BG$84)+BG71),0)) ->  | AH56: =IF(BH71="","",ROUND(IF(BH$86<ROUNDDOWN(税率・条件!$C$13/12,0),BH70+BH71,BH70*(((税率・条件!$C$13/12)-BH$85)/BH$84)+BH71),0)) ->  | AI56: =IF(BI71="","",ROUND(IF(BI$86<ROUNDDOWN(税率・条件!$C$13/12,0),BI70+BI71,BI70*(((税率・条件!$C$13/12)-BI$85)/BI$84)+BI71),0)) ->  | AL56: =IF(BJ71="","",ROUND(IF(BJ$86<ROUNDDOWN(税率・条件!$C$13/12,0),BJ70+BJ71,BJ70*(((税率・条件!$C$13/12)-BJ$85)/BJ$84)+BJ71),0)) ->  | AO56: =IF(BK71="","",ROUND(IF(BK$86<ROUNDDOWN(税率・条件!$C$13/12,0),BK70+BK71,BK70*(((税率・条件!$C$13/12)-BK$85)/BK$84)+BK71),0)) ->  | AR56: =IF(AC6="","",SUM(Z56:AQ56)) ->  | AY56: ６応益 | AZ56: =IF(AJ14="","",ROUND(SUM($V14:$W15)/12,0)) -> 
X57: ３ | Z57: =IF(AZ73="","",ROUND(IF(AZ$86<ROUNDDOWN(税率・条件!$C$13/12,0),AZ72+AZ73,AZ72*(((税率・条件!$C$13/12)-AZ$85)/AZ$84)+AZ73),0)) ->  | AA57: =IF(BA73="","",ROUND(IF(BA$86<ROUNDDOWN(税率・条件!$C$13/12,0),BA72+BA73,BA72*(((税率・条件!$C$13/12)-BA$85)/BA$84)+BA73),0)) ->  | AB57: =IF(BB73="","",ROUND(IF(BB$86<ROUNDDOWN(税率・条件!$C$13/12,0),BB72+BB73,BB72*(((税率・条件!$C$13/12)-BB$85)/BB$84)+BB73),0)) ->  | AC57: =IF(BC73="","",ROUND(IF(BC$86<ROUNDDOWN(税率・条件!$C$13/12,0),BC72+BC73,BC72*(((税率・条件!$C$13/12)-BC$85)/BC$84)+BC73),0)) ->  | AD57: =IF(BD73="","",ROUND(IF(BD$86<ROUNDDOWN(税率・条件!$C$13/12,0),BD72+BD73,BD72*(((税率・条件!$C$13/12)-BD$85)/BD$84)+BD73),0)) ->  | AE57: =IF(BE73="","",ROUND(IF(BE$86<ROUNDDOWN(税率・条件!$C$13/12,0),BE72+BE73,BE72*(((税率・条件!$C$13/12)-BE$85)/BE$84)+BE73),0)) ->  | AF57: =IF(BF73="","",ROUND(IF(BF$86<ROUNDDOWN(税率・条件!$C$13/12,0),BF72+BF73,BF72*(((税率・条件!$C$13/12)-BF$85)/BF$84)+BF73),0)) ->  | AG57: =IF(BG73="","",ROUND(IF(BG$86<ROUNDDOWN(税率・条件!$C$13/12,0),BG72+BG73,BG72*(((税率・条件!$C$13/12)-BG$85)/BG$84)+BG73),0)) ->  | AH57: =IF(BH73="","",ROUND(IF(BH$86<ROUNDDOWN(税率・条件!$C$13/12,0),BH72+BH73,BH72*(((税率・条件!$C$13/12)-BH$85)/BH$84)+BH73),0)) ->  | AI57: =IF(BI73="","",ROUND(IF(BI$86<ROUNDDOWN(税率・条件!$C$13/12,0),BI72+BI73,BI72*(((税率・条件!$C$13/12)-BI$85)/BI$84)+BI73),0)) ->  | AL57: =IF(BJ73="","",ROUND(IF(BJ$86<ROUNDDOWN(税率・条件!$C$13/12,0),BJ72+BJ73,BJ72*(((税率・条件!$C$13/12)-BJ$85)/BJ$84)+BJ73),0)) ->  | AO57: =IF(BK73="","",ROUND(IF(BK$86<ROUNDDOWN(税率・条件!$C$13/12,0),BK72+BK73,BK72*(((税率・条件!$C$13/12)-BK$85)/BK$84)+BK73),0)) ->  | AR57: =IF(AC8="","",SUM(Z57:AQ57)) ->  | AY57: ７応能 | AZ57: =IF(AJ16="","",ROUND((SUM($T16:$U17)/12),0)) -> 
X58: ４ | Z58: =IF(AZ75="","",ROUND(IF(AZ$86<ROUNDDOWN(税率・条件!$C$13/12,0),AZ74+AZ75,AZ74*(((税率・条件!$C$13/12)-AZ$85)/AZ$84)+AZ75),0)) ->  | AA58: =IF(BA75="","",ROUND(IF(BA$86<ROUNDDOWN(税率・条件!$C$13/12,0),BA74+BA75,BA74*(((税率・条件!$C$13/12)-BA$85)/BA$84)+BA75),0)) ->  | AB58: =IF(BB75="","",ROUND(IF(BB$86<ROUNDDOWN(税率・条件!$C$13/12,0),BB74+BB75,BB74*(((税率・条件!$C$13/12)-BB$85)/BB$84)+BB75),0)) ->  | AC58: =IF(BC75="","",ROUND(IF(BC$86<ROUNDDOWN(税率・条件!$C$13/12,0),BC74+BC75,BC74*(((税率・条件!$C$13/12)-BC$85)/BC$84)+BC75),0)) ->  | AD58: =IF(BD75="","",ROUND(IF(BD$86<ROUNDDOWN(税率・条件!$C$13/12,0),BD74+BD75,BD74*(((税率・条件!$C$13/12)-BD$85)/BD$84)+BD75),0)) ->  | AE58: =IF(BE75="","",ROUND(IF(BE$86<ROUNDDOWN(税率・条件!$C$13/12,0),BE74+BE75,BE74*(((税率・条件!$C$13/12)-BE$85)/BE$84)+BE75),0)) ->  | AF58: =IF(BF75="","",ROUND(IF(BF$86<ROUNDDOWN(税率・条件!$C$13/12,0),BF74+BF75,BF74*(((税率・条件!$C$13/12)-BF$85)/BF$84)+BF75),0)) ->  | AG58: =IF(BG75="","",ROUND(IF(BG$86<ROUNDDOWN(税率・条件!$C$13/12,0),BG74+BG75,BG74*(((税率・条件!$C$13/12)-BG$85)/BG$84)+BG75),0)) ->  | AH58: =IF(BH75="","",ROUND(IF(BH$86<ROUNDDOWN(税率・条件!$C$13/12,0),BH74+BH75,BH74*(((税率・条件!$C$13/12)-BH$85)/BH$84)+BH75),0)) ->  | AI58: =IF(BI75="","",ROUND(IF(BI$86<ROUNDDOWN(税率・条件!$C$13/12,0),BI74+BI75,BI74*(((税率・条件!$C$13/12)-BI$85)/BI$84)+BI75),0)) ->  | AL58: =IF(BJ75="","",ROUND(IF(BJ$86<ROUNDDOWN(税率・条件!$C$13/12,0),BJ74+BJ75,BJ74*(((税率・条件!$C$13/12)-BJ$85)/BJ$84)+BJ75),0)) ->  | AO58: =IF(BK75="","",ROUND(IF(BK$86<ROUNDDOWN(税率・条件!$C$13/12,0),BK74+BK75,BK74*(((税率・条件!$C$13/12)-BK$85)/BK$84)+BK75),0)) ->  | AR58: =IF(AC10="","",SUM(Z58:AQ58)) ->  | AY58: ７応益 | AZ58: =IF(AJ16="","",ROUND(SUM($V16:$W17)/12,0)) -> 
X59: ５ | Z59: =IF(AZ77="","",ROUND(IF(AZ$86<ROUNDDOWN(税率・条件!$C$13/12,0),AZ76+AZ77,AZ76*(((税率・条件!$C$13/12)-AZ$85)/AZ$84)+AZ77),0)) ->  | AA59: =IF(BA77="","",ROUND(IF(BA$86<ROUNDDOWN(税率・条件!$C$13/12,0),BA76+BA77,BA76*(((税率・条件!$C$13/12)-BA$85)/BA$84)+BA77),0)) ->  | AB59: =IF(BB77="","",ROUND(IF(BB$86<ROUNDDOWN(税率・条件!$C$13/12,0),BB76+BB77,BB76*(((税率・条件!$C$13/12)-BB$85)/BB$84)+BB77),0)) ->  | AC59: =IF(BC77="","",ROUND(IF(BC$86<ROUNDDOWN(税率・条件!$C$13/12,0),BC76+BC77,BC76*(((税率・条件!$C$13/12)-BC$85)/BC$84)+BC77),0)) ->  | AD59: =IF(BD77="","",ROUND(IF(BD$86<ROUNDDOWN(税率・条件!$C$13/12,0),BD76+BD77,BD76*(((税率・条件!$C$13/12)-BD$85)/BD$84)+BD77),0)) ->  | AE59: =IF(BE77="","",ROUND(IF(BE$86<ROUNDDOWN(税率・条件!$C$13/12,0),BE76+BE77,BE76*(((税率・条件!$C$13/12)-BE$85)/BE$84)+BE77),0)) ->  | AF59: =IF(BF77="","",ROUND(IF(BF$86<ROUNDDOWN(税率・条件!$C$13/12,0),BF76+BF77,BF76*(((税率・条件!$C$13/12)-BF$85)/BF$84)+BF77),0)) ->  | AG59: =IF(BG77="","",ROUND(IF(BG$86<ROUNDDOWN(税率・条件!$C$13/12,0),BG76+BG77,BG76*(((税率・条件!$C$13/12)-BG$85)/BG$84)+BG77),0)) ->  | AH59: =IF(BH77="","",ROUND(IF(BH$86<ROUNDDOWN(税率・条件!$C$13/12,0),BH76+BH77,BH76*(((税率・条件!$C$13/12)-BH$85)/BH$84)+BH77),0)) ->  | AI59: =IF(BI77="","",ROUND(IF(BI$86<ROUNDDOWN(税率・条件!$C$13/12,0),BI76+BI77,BI76*(((税率・条件!$C$13/12)-BI$85)/BI$84)+BI77),0)) ->  | AL59: =IF(BJ77="","",ROUND(IF(BJ$86<ROUNDDOWN(税率・条件!$C$13/12,0),BJ76+BJ77,BJ76*(((税率・条件!$C$13/12)-BJ$85)/BJ$84)+BJ77),0)) ->  | AO59: =IF(BK77="","",ROUND(IF(BK$86<ROUNDDOWN(税率・条件!$C$13/12,0),BK76+BK77,BK76*(((税率・条件!$C$13/12)-BK$85)/BK$84)+BK77),0)) ->  | AR59: =IF(AC12="","",SUM(Z59:AQ59)) ->  | AY59: ８応能 | AZ59: =IF(AJ18="","",ROUND((SUM($T18:$U19)/12),0)) -> 
X60: ６ | Z60: =IF(AZ79="","",ROUND(IF(AZ$86<ROUNDDOWN(税率・条件!$C$13/12,0),AZ78+AZ79,AZ78*(((税率・条件!$C$13/12)-AZ$85)/AZ$84)+AZ79),0)) ->  | AA60: =IF(BA79="","",ROUND(IF(BA$86<ROUNDDOWN(税率・条件!$C$13/12,0),BA78+BA79,BA78*(((税率・条件!$C$13/12)-BA$85)/BA$84)+BA79),0)) ->  | AB60: =IF(BB79="","",ROUND(IF(BB$86<ROUNDDOWN(税率・条件!$C$13/12,0),BB78+BB79,BB78*(((税率・条件!$C$13/12)-BB$85)/BB$84)+BB79),0)) ->  | AC60: =IF(BC79="","",ROUND(IF(BC$86<ROUNDDOWN(税率・条件!$C$13/12,0),BC78+BC79,BC78*(((税率・条件!$C$13/12)-BC$85)/BC$84)+BC79),0)) ->  | AD60: =IF(BD79="","",ROUND(IF(BD$86<ROUNDDOWN(税率・条件!$C$13/12,0),BD78+BD79,BD78*(((税率・条件!$C$13/12)-BD$85)/BD$84)+BD79),0)) ->  | AE60: =IF(BE79="","",ROUND(IF(BE$86<ROUNDDOWN(税率・条件!$C$13/12,0),BE78+BE79,BE78*(((税率・条件!$C$13/12)-BE$85)/BE$84)+BE79),0)) ->  | AF60: =IF(BF79="","",ROUND(IF(BF$86<ROUNDDOWN(税率・条件!$C$13/12,0),BF78+BF79,BF78*(((税率・条件!$C$13/12)-BF$85)/BF$84)+BF79),0)) ->  | AG60: =IF(BG79="","",ROUND(IF(BG$86<ROUNDDOWN(税率・条件!$C$13/12,0),BG78+BG79,BG78*(((税率・条件!$C$13/12)-BG$85)/BG$84)+BG79),0)) ->  | AH60: =IF(BH79="","",ROUND(IF(BH$86<ROUNDDOWN(税率・条件!$C$13/12,0),BH78+BH79,BH78*(((税率・条件!$C$13/12)-BH$85)/BH$84)+BH79),0)) ->  | AI60: =IF(BI79="","",ROUND(IF(BI$86<ROUNDDOWN(税率・条件!$C$13/12,0),BI78+BI79,BI78*(((税率・条件!$C$13/12)-BI$85)/BI$84)+BI79),0)) ->  | AL60: =IF(BJ79="","",ROUND(IF(BJ$86<ROUNDDOWN(税率・条件!$C$13/12,0),BJ78+BJ79,BJ78*(((税率・条件!$C$13/12)-BJ$85)/BJ$84)+BJ79),0)) ->  | AO60: =IF(BK79="","",ROUND(IF(BK$86<ROUNDDOWN(税率・条件!$C$13/12,0),BK78+BK79,BK78*(((税率・条件!$C$13/12)-BK$85)/BK$84)+BK79),0)) ->  | AR60: =IF(AC14="","",SUM(Z60:AQ60)) ->  | AY60: ８応益 | AZ60: =IF(AJ18="","",ROUND(SUM($V18:$W19)/12,0)) -> 
X61: ７ | Z61: =IF(AZ81="","",ROUND(IF(AZ$86<ROUNDDOWN(税率・条件!$C$13/12,0),AZ80+AZ81,AZ80*(((税率・条件!$C$13/12)-AZ$85)/AZ$84)+AZ81),0)) ->  | AA61: =IF(BA81="","",ROUND(IF(BA$86<ROUNDDOWN(税率・条件!$C$13/12,0),BA80+BA81,BA80*(((税率・条件!$C$13/12)-BA$85)/BA$84)+BA81),0)) ->  | AB61: =IF(BB81="","",ROUND(IF(BB$86<ROUNDDOWN(税率・条件!$C$13/12,0),BB80+BB81,BB80*(((税率・条件!$C$13/12)-BB$85)/BB$84)+BB81),0)) ->  | AC61: =IF(BC81="","",ROUND(IF(BC$86<ROUNDDOWN(税率・条件!$C$13/12,0),BC80+BC81,BC80*(((税率・条件!$C$13/12)-BC$85)/BC$84)+BC81),0)) ->  | AD61: =IF(BD81="","",ROUND(IF(BD$86<ROUNDDOWN(税率・条件!$C$13/12,0),BD80+BD81,BD80*(((税率・条件!$C$13/12)-BD$85)/BD$84)+BD81),0)) ->  | AE61: =IF(BE81="","",ROUND(IF(BE$86<ROUNDDOWN(税率・条件!$C$13/12,0),BE80+BE81,BE80*(((税率・条件!$C$13/12)-BE$85)/BE$84)+BE81),0)) ->  | AF61: =IF(BF81="","",ROUND(IF(BF$86<ROUNDDOWN(税率・条件!$C$13/12,0),BF80+BF81,BF80*(((税率・条件!$C$13/12)-BF$85)/BF$84)+BF81),0)) ->  | AG61: =IF(BG81="","",ROUND(IF(BG$86<ROUNDDOWN(税率・条件!$C$13/12,0),BG80+BG81,BG80*(((税率・条件!$C$13/12)-BG$85)/BG$84)+BG81),0)) ->  | AH61: =IF(BH81="","",ROUND(IF(BH$86<ROUNDDOWN(税率・条件!$C$13/12,0),BH80+BH81,BH80*(((税率・条件!$C$13/12)-BH$85)/BH$84)+BH81),0)) ->  | AI61: =IF(BI81="","",ROUND(IF(BI$86<ROUNDDOWN(税率・条件!$C$13/12,0),BI80+BI81,BI80*(((税率・条件!$C$13/12)-BI$85)/BI$84)+BI81),0)) ->  | AL61: =IF(BJ81="","",ROUND(IF(BJ$86<ROUNDDOWN(税率・条件!$C$13/12,0),BJ80+BJ81,BJ80*(((税率・条件!$C$13/12)-BJ$85)/BJ$84)+BJ81),0)) ->  | AO61: =IF(BK81="","",ROUND(IF(BK$86<ROUNDDOWN(税率・条件!$C$13/12,0),BK80+BK81,BK80*(((税率・条件!$C$13/12)-BK$85)/BK$84)+BK81),0)) ->  | AR61: =IF(AC16="","",SUM(Z61:AQ61)) ->  | AY61: 計応能 | AZ61: =SUM(AZ45,AZ47,AZ49,AZ51,AZ53,AZ55,AZ57,AZ59) -> 0 | BA61: =SUM(BA45,BA47,BA49,BA51,BA53,BA55,BA57,BA59) -> 0 | BB61: 0 | BC61: 0 | BD61: 0 | BE61: 0 | BF61: 0 | BG61: 0 | BH61: 0 | BI61: 0 | BJ61: 0 | BK61: 0
X62: ８ | Z62: =IF(AZ83="","",ROUND(IF(AZ$86<ROUNDDOWN(税率・条件!$C$13/12,0),AZ82+AZ83,AZ82*(((税率・条件!$C$13/12)-AZ$85)/AZ$84)+AZ83),0)) ->  | AA62: =IF(BA83="","",ROUND(IF(BA$86<ROUNDDOWN(税率・条件!$C$13/12,0),BA82+BA83,BA82*(((税率・条件!$C$13/12)-BA$85)/BA$84)+BA83),0)) ->  | AB62: =IF(BB83="","",ROUND(IF(BB$86<ROUNDDOWN(税率・条件!$C$13/12,0),BB82+BB83,BB82*(((税率・条件!$C$13/12)-BB$85)/BB$84)+BB83),0)) ->  | AC62: =IF(BC83="","",ROUND(IF(BC$86<ROUNDDOWN(税率・条件!$C$13/12,0),BC82+BC83,BC82*(((税率・条件!$C$13/12)-BC$85)/BC$84)+BC83),0)) ->  | AD62: =IF(BD83="","",ROUND(IF(BD$86<ROUNDDOWN(税率・条件!$C$13/12,0),BD82+BD83,BD82*(((税率・条件!$C$13/12)-BD$85)/BD$84)+BD83),0)) ->  | AE62: =IF(BE83="","",ROUND(IF(BE$86<ROUNDDOWN(税率・条件!$C$13/12,0),BE82+BE83,BE82*(((税率・条件!$C$13/12)-BE$85)/BE$84)+BE83),0)) ->  | AF62: =IF(BF83="","",ROUND(IF(BF$86<ROUNDDOWN(税率・条件!$C$13/12,0),BF82+BF83,BF82*(((税率・条件!$C$13/12)-BF$85)/BF$84)+BF83),0)) ->  | AG62: =IF(BG83="","",ROUND(IF(BG$86<ROUNDDOWN(税率・条件!$C$13/12,0),BG82+BG83,BG82*(((税率・条件!$C$13/12)-BG$85)/BG$84)+BG83),0)) ->  | AH62: =IF(BH83="","",ROUND(IF(BH$86<ROUNDDOWN(税率・条件!$C$13/12,0),BH82+BH83,BH82*(((税率・条件!$C$13/12)-BH$85)/BH$84)+BH83),0)) ->  | AI62: =IF(BI83="","",ROUND(IF(BI$86<ROUNDDOWN(税率・条件!$C$13/12,0),BI82+BI83,BI82*(((税率・条件!$C$13/12)-BI$85)/BI$84)+BI83),0)) ->  | AL62: =IF(BJ83="","",ROUND(IF(BJ$86<ROUNDDOWN(税率・条件!$C$13/12,0),BJ82+BJ83,BJ82*(((税率・条件!$C$13/12)-BJ$85)/BJ$84)+BJ83),0)) ->  | AO62: =IF(BK83="","",ROUND(IF(BK$86<ROUNDDOWN(税率・条件!$C$13/12,0),BK82+BK83,BK82*(((税率・条件!$C$13/12)-BK$85)/BK$84)+BK83),0)) ->  | AR62: =IF(AC18="","",SUM(Z62:AQ62)) ->  | AY62: 計応益 | AZ62: =SUM(AZ46,AZ48,AZ50,AZ52,AZ54,AZ56,AZ58,AZ60) -> 0 | BA62: =SUM(BA46,BA48,BA50,BA52,BA54,BA56,BA58,BA60) -> 0 | BB62: 0 | BC62: 0 | BD62: 0 | BE62: 0 | BF62: 0 | BG62: 0 | BH62: 0 | BI62: 0 | BJ62: 0 | BK62: 0
X63: 小 計 | Z63: =SUM(Z55:Z62) -> 0 | AA63: =SUM(AA55:AA62) -> 0 | AB63: 0 | AC63: 0 | AD63: 0 | AE63: 0 | AF63: 0 | AG63: 0 | AH63: 0 | AI63: =SUM(AI55:AK62) -> 0 | AL63: =SUM(AL55:AN62) -> 0 | AO63: =SUM(AO55:AQ62) -> 0 | AR63: =SUM(AR55:AT62) -> 0 | AY63: 計 | AZ63: =SUM(AZ61:AZ62) -> 0 | BA63: =SUM(BA61:BA62) -> 0 | BB63: 0 | BC63: 0 | BD63: 0 | BE63: 0 | BF63: 0 | BG63: 0 | BH63: 0 | BI63: 0 | BJ63: 0 | BK63: 0
Y64: 月割り限度額適用 | Z64: =IF(AZ$86<ROUNDDOWN(税率・条件!$C$13/12,0),"","該当") ->  | AA64: =IF(BA$86<ROUNDDOWN(税率・条件!$C$13/12,0),"","該当") ->  | AB64: =IF(BB$86<ROUNDDOWN(税率・条件!$C$13/12,0),"","該当") ->  | AC64: =IF(BC$86<ROUNDDOWN(税率・条件!$C$13/12,0),"","該当") ->  | AD64: =IF(BD$86<ROUNDDOWN(税率・条件!$C$13/12,0),"","該当") ->  | AE64: =IF(BE$86<ROUNDDOWN(税率・条件!$C$13/12,0),"","該当") ->  | AF64: =IF(BF$86<ROUNDDOWN(税率・条件!$C$13/12,0),"","該当") ->  | AG64: =IF(BG$86<ROUNDDOWN(税率・条件!$C$13/12,0),"","該当") ->  | AH64: =IF(BH$86<ROUNDDOWN(税率・条件!$C$13/12,0),"","該当") ->  | AI64: =IF(BI$86<ROUNDDOWN(税率・条件!$C$13/12,0),"","該当") ->  | AL64: =IF(BJ$86<ROUNDDOWN(税率・条件!$C$13/12,0),"","該当") ->  | AO64: =IF(BK$86<ROUNDDOWN(税率・条件!$C$13/12,0),"","該当") -> 
X66: ="介護分各個人月別計（令和"&DBCS(税率・条件!C1)&"年度税率）" -> 介護分各個人月別計（令和５年度税率） | AD66: ※主が未加入又は介護非該当だが、平等割のみ計上している場合、網掛けとなります。 | AZ66: 支援税額（月割分で計算。端数処理前）
Y67: 年齢 区分 | Z67: 保険税（調整後数値） | AZ67: 4 | BA67: 5 | BB67: 6 | BC67: 7 | BD67: 8 | BE67: 9 | BF67: 10 | BG67: 11 | BH67: 12 | BI67: 1 | BJ67: 2 | BK67: 3
Z68: ４月 | AA68: ５月 | AB68: ６月 | AC68: ７月 | AD68: ８月 | AE68: ９月 | AF68: １０月 | AG68: １１月 | AH68: １２月 | AI68: １月 | AL68: ２月 | AO68: ３月 | AR68: 計 | AY68: １応能 | AZ68: =IF(AND(AJ4="",AJ20=1),0,IF(AJ4="","",ROUND((SUM($Y4:$Z5)/12),0))) -> 
X69: =X55 -> 1 | Z69: =IF(AZ92="","",ROUND(IF(AZ$109<ROUNDDOWN(税率・条件!$C$18/12,0),AZ91+AZ92,AZ91*(((税率・条件!$C$18/12)-AZ$108)/AZ$107)+AZ92),0)) ->  | AA69: =IF(BA92="","",ROUND(IF(BA$109<ROUNDDOWN(税率・条件!$C$18/12,0),BA91+BA92,BA91*(((税率・条件!$C$18/12)-BA$108)/BA$107)+BA92),0)) ->  | AB69: =IF(BB92="","",ROUND(IF(BB$109<ROUNDDOWN(税率・条件!$C$18/12,0),BB91+BB92,BB91*(((税率・条件!$C$18/12)-BB$108)/BB$107)+BB92),0)) ->  | AC69: =IF(BC92="","",ROUND(IF(BC$109<ROUNDDOWN(税率・条件!$C$18/12,0),BC91+BC92,BC91*(((税率・条件!$C$18/12)-BC$108)/BC$107)+BC92),0)) ->  | AD69: =IF(BD92="","",ROUND(IF(BD$109<ROUNDDOWN(税率・条件!$C$18/12,0),BD91+BD92,BD91*(((税率・条件!$C$18/12)-BD$108)/BD$107)+BD92),0)) ->  | AE69: =IF(BE92="","",ROUND(IF(BE$109<ROUNDDOWN(税率・条件!$C$18/12,0),BE91+BE92,BE91*(((税率・条件!$C$18/12)-BE$108)/BE$107)+BE92),0)) ->  | AF69: =IF(BF92="","",ROUND(IF(BF$109<ROUNDDOWN(税率・条件!$C$18/12,0),BF91+BF92,BF91*(((税率・条件!$C$18/12)-BF$108)/BF$107)+BF92),0)) ->  | AG69: =IF(BG92="","",ROUND(IF(BG$109<ROUNDDOWN(税率・条件!$C$18/12,0),BG91+BG92,BG91*(((税率・条件!$C$18/12)-BG$108)/BG$107)+BG92),0)) ->  | AH69: =IF(BH92="","",ROUND(IF(BH$109<ROUNDDOWN(税率・条件!$C$18/12,0),BH91+BH92,BH91*(((税率・条件!$C$18/12)-BH$108)/BH$107)+BH92),0)) ->  | AI69: =IF(BI92="","",ROUND(IF(BI$109<ROUNDDOWN(税率・条件!$C$18/12,0),BI91+BI92,BI91*(((税率・条件!$C$18/12)-BI$108)/BI$107)+BI92),0)) ->  | AL69: =IF(BJ92="","",ROUND(IF(BJ$109<ROUNDDOWN(税率・条件!$C$18/12,0),BJ91+BJ92,BJ91*(((税率・条件!$C$18/12)-BJ$108)/BJ$107)+BJ92),0)) ->  | AO69: =IF(BK92="","",ROUND(IF(BK$109<ROUNDDOWN(税率・条件!$C$18/12,0),BK91+BK92,BK91*(((税率・条件!$C$18/12)-BK$108)/BK$107)+BK92),0)) ->  | AR69: =IF(AH4="","",SUM(Z69:AQ69)) ->  | AY69: １応益 | AZ69: =IF(AJ4="",IF(AJ20="","",ROUND(SUM($AB4:$AB5)/12,0)),ROUND(SUM($AA4:$AB5)/12,0)) -> 
X70: ２ | Z70: =IF(AZ94="","",ROUND(IF(AZ$109<ROUNDDOWN(税率・条件!$C$18/12,0),AZ93+AZ94,AZ93*(((税率・条件!$C$18/12)-AZ$108)/AZ$107)+AZ94),0)) ->  | AA70: =IF(BA94="","",ROUND(IF(BA$109<ROUNDDOWN(税率・条件!$C$18/12,0),BA93+BA94,BA93*(((税率・条件!$C$18/12)-BA$108)/BA$107)+BA94),0)) ->  | AB70: =IF(BB94="","",ROUND(IF(BB$109<ROUNDDOWN(税率・条件!$C$18/12,0),BB93+BB94,BB93*(((税率・条件!$C$18/12)-BB$108)/BB$107)+BB94),0)) ->  | AC70: =IF(BC94="","",ROUND(IF(BC$109<ROUNDDOWN(税率・条件!$C$18/12,0),BC93+BC94,BC93*(((税率・条件!$C$18/12)-BC$108)/BC$107)+BC94),0)) ->  | AD70: =IF(BD94="","",ROUND(IF(BD$109<ROUNDDOWN(税率・条件!$C$18/12,0),BD93+BD94,BD93*(((税率・条件!$C$18/12)-BD$108)/BD$107)+BD94),0)) ->  | AE70: =IF(BE94="","",ROUND(IF(BE$109<ROUNDDOWN(税率・条件!$C$18/12,0),BE93+BE94,BE93*(((税率・条件!$C$18/12)-BE$108)/BE$107)+BE94),0)) ->  | AF70: =IF(BF94="","",ROUND(IF(BF$109<ROUNDDOWN(税率・条件!$C$18/12,0),BF93+BF94,BF93*(((税率・条件!$C$18/12)-BF$108)/BF$107)+BF94),0)) ->  | AG70: =IF(BG94="","",ROUND(IF(BG$109<ROUNDDOWN(税率・条件!$C$18/12,0),BG93+BG94,BG93*(((税率・条件!$C$18/12)-BG$108)/BG$107)+BG94),0)) ->  | AH70: =IF(BH94="","",ROUND(IF(BH$109<ROUNDDOWN(税率・条件!$C$18/12,0),BH93+BH94,BH93*(((税率・条件!$C$18/12)-BH$108)/BH$107)+BH94),0)) ->  | AI70: =IF(BI94="","",ROUND(IF(BI$109<ROUNDDOWN(税率・条件!$C$18/12,0),BI93+BI94,BI93*(((税率・条件!$C$18/12)-BI$108)/BI$107)+BI94),0)) ->  | AL70: =IF(BJ94="","",ROUND(IF(BJ$109<ROUNDDOWN(税率・条件!$C$18/12,0),BJ93+BJ94,BJ93*(((税率・条件!$C$18/12)-BJ$108)/BJ$107)+BJ94),0)) ->  | AO70: =IF(BK94="","",ROUND(IF(BK$109<ROUNDDOWN(税率・条件!$C$18/12,0),BK93+BK94,BK93*(((税率・条件!$C$18/12)-BK$108)/BK$107)+BK94),0)) ->  | AR70: =IF(AH6="","",SUM(Z70:AQ70)) ->  | AY70: ２応能 | AZ70: =IF(AJ6="","",ROUND((SUM($Y6:$Z7)/12),0)) -> 
X71: ３ | Z71: =IF(AZ96="","",ROUND(IF(AZ$109<ROUNDDOWN(税率・条件!$C$18/12,0),AZ95+AZ96,AZ95*(((税率・条件!$C$18/12)-AZ$108)/AZ$107)+AZ96),0)) ->  | AA71: =IF(BA96="","",ROUND(IF(BA$109<ROUNDDOWN(税率・条件!$C$18/12,0),BA95+BA96,BA95*(((税率・条件!$C$18/12)-BA$108)/BA$107)+BA96),0)) ->  | AB71: =IF(BB96="","",ROUND(IF(BB$109<ROUNDDOWN(税率・条件!$C$18/12,0),BB95+BB96,BB95*(((税率・条件!$C$18/12)-BB$108)/BB$107)+BB96),0)) ->  | AC71: =IF(BC96="","",ROUND(IF(BC$109<ROUNDDOWN(税率・条件!$C$18/12,0),BC95+BC96,BC95*(((税率・条件!$C$18/12)-BC$108)/BC$107)+BC96),0)) ->  | AD71: =IF(BD96="","",ROUND(IF(BD$109<ROUNDDOWN(税率・条件!$C$18/12,0),BD95+BD96,BD95*(((税率・条件!$C$18/12)-BD$108)/BD$107)+BD96),0)) ->  | AE71: =IF(BE96="","",ROUND(IF(BE$109<ROUNDDOWN(税率・条件!$C$18/12,0),BE95+BE96,BE95*(((税率・条件!$C$18/12)-BE$108)/BE$107)+BE96),0)) ->  | AF71: =IF(BF96="","",ROUND(IF(BF$109<ROUNDDOWN(税率・条件!$C$18/12,0),BF95+BF96,BF95*(((税率・条件!$C$18/12)-BF$108)/BF$107)+BF96),0)) ->  | AG71: =IF(BG96="","",ROUND(IF(BG$109<ROUNDDOWN(税率・条件!$C$18/12,0),BG95+BG96,BG95*(((税率・条件!$C$18/12)-BG$108)/BG$107)+BG96),0)) ->  | AH71: =IF(BH96="","",ROUND(IF(BH$109<ROUNDDOWN(税率・条件!$C$18/12,0),BH95+BH96,BH95*(((税率・条件!$C$18/12)-BH$108)/BH$107)+BH96),0)) ->  | AI71: =IF(BI96="","",ROUND(IF(BI$109<ROUNDDOWN(税率・条件!$C$18/12,0),BI95+BI96,BI95*(((税率・条件!$C$18/12)-BI$108)/BI$107)+BI96),0)) ->  | AL71: =IF(BJ96="","",ROUND(IF(BJ$109<ROUNDDOWN(税率・条件!$C$18/12,0),BJ95+BJ96,BJ95*(((税率・条件!$C$18/12)-BJ$108)/BJ$107)+BJ96),0)) ->  | AO71: =IF(BK96="","",ROUND(IF(BK$109<ROUNDDOWN(税率・条件!$C$18/12,0),BK95+BK96,BK95*(((税率・条件!$C$18/12)-BK$108)/BK$107)+BK96),0)) ->  | AR71: =IF(AH8="","",SUM(Z71:AQ71)) ->  | AY71: ２応益 | AZ71: =IF(AJ6="","",ROUND(SUM($AA6:$AB7)/12,0)) -> 
X72: ４ | Z72: =IF(AZ98="","",ROUND(IF(AZ$109<ROUNDDOWN(税率・条件!$C$18/12,0),AZ97+AZ98,AZ97*(((税率・条件!$C$18/12)-AZ$108)/AZ$107)+AZ98),0)) ->  | AA72: =IF(BA98="","",ROUND(IF(BA$109<ROUNDDOWN(税率・条件!$C$18/12,0),BA97+BA98,BA97*(((税率・条件!$C$18/12)-BA$108)/BA$107)+BA98),0)) ->  | AB72: =IF(BB98="","",ROUND(IF(BB$109<ROUNDDOWN(税率・条件!$C$18/12,0),BB97+BB98,BB97*(((税率・条件!$C$18/12)-BB$108)/BB$107)+BB98),0)) ->  | AC72: =IF(BC98="","",ROUND(IF(BC$109<ROUNDDOWN(税率・条件!$C$18/12,0),BC97+BC98,BC97*(((税率・条件!$C$18/12)-BC$108)/BC$107)+BC98),0)) ->  | AD72: =IF(BD98="","",ROUND(IF(BD$109<ROUNDDOWN(税率・条件!$C$18/12,0),BD97+BD98,BD97*(((税率・条件!$C$18/12)-BD$108)/BD$107)+BD98),0)) ->  | AE72: =IF(BE98="","",ROUND(IF(BE$109<ROUNDDOWN(税率・条件!$C$18/12,0),BE97+BE98,BE97*(((税率・条件!$C$18/12)-BE$108)/BE$107)+BE98),0)) ->  | AF72: =IF(BF98="","",ROUND(IF(BF$109<ROUNDDOWN(税率・条件!$C$18/12,0),BF97+BF98,BF97*(((税率・条件!$C$18/12)-BF$108)/BF$107)+BF98),0)) ->  | AG72: =IF(BG98="","",ROUND(IF(BG$109<ROUNDDOWN(税率・条件!$C$18/12,0),BG97+BG98,BG97*(((税率・条件!$C$18/12)-BG$108)/BG$107)+BG98),0)) ->  | AH72: =IF(BH98="","",ROUND(IF(BH$109<ROUNDDOWN(税率・条件!$C$18/12,0),BH97+BH98,BH97*(((税率・条件!$C$18/12)-BH$108)/BH$107)+BH98),0)) ->  | AI72: =IF(BI98="","",ROUND(IF(BI$109<ROUNDDOWN(税率・条件!$C$18/12,0),BI97+BI98,BI97*(((税率・条件!$C$18/12)-BI$108)/BI$107)+BI98),0)) ->  | AL72: =IF(BJ98="","",ROUND(IF(BJ$109<ROUNDDOWN(税率・条件!$C$18/12,0),BJ97+BJ98,BJ97*(((税率・条件!$C$18/12)-BJ$108)/BJ$107)+BJ98),0)) ->  | AO72: =IF(BK98="","",ROUND(IF(BK$109<ROUNDDOWN(税率・条件!$C$18/12,0),BK97+BK98,BK97*(((税率・条件!$C$18/12)-BK$108)/BK$107)+BK98),0)) ->  | AR72: =IF(AH10="","",SUM(Z72:AQ72)) ->  | AY72: ３応能 | AZ72: =IF(AJ8="","",ROUND((SUM($Y8:$Z9)/12),0)) -> 
X73: ５ | Z73: =IF(AZ100="","",ROUND(IF(AZ$109<ROUNDDOWN(税率・条件!$C$18/12,0),AZ99+AZ100,AZ99*(((税率・条件!$C$18/12)-AZ$108)/AZ$107)+AZ100),0)) ->  | AA73: =IF(BA100="","",ROUND(IF(BA$109<ROUNDDOWN(税率・条件!$C$18/12,0),BA99+BA100,BA99*(((税率・条件!$C$18/12)-BA$108)/BA$107)+BA100),0)) ->  | AB73: =IF(BB100="","",ROUND(IF(BB$109<ROUNDDOWN(税率・条件!$C$18/12,0),BB99+BB100,BB99*(((税率・条件!$C$18/12)-BB$108)/BB$107)+BB100),0)) ->  | AC73: =IF(BC100="","",ROUND(IF(BC$109<ROUNDDOWN(税率・条件!$C$18/12,0),BC99+BC100,BC99*(((税率・条件!$C$18/12)-BC$108)/BC$107)+BC100),0)) ->  | AD73: =IF(BD100="","",ROUND(IF(BD$109<ROUNDDOWN(税率・条件!$C$18/12,0),BD99+BD100,BD99*(((税率・条件!$C$18/12)-BD$108)/BD$107)+BD100),0)) ->  | AE73: =IF(BE100="","",ROUND(IF(BE$109<ROUNDDOWN(税率・条件!$C$18/12,0),BE99+BE100,BE99*(((税率・条件!$C$18/12)-BE$108)/BE$107)+BE100),0)) ->  | AF73: =IF(BF100="","",ROUND(IF(BF$109<ROUNDDOWN(税率・条件!$C$18/12,0),BF99+BF100,BF99*(((税率・条件!$C$18/12)-BF$108)/BF$107)+BF100),0)) ->  | AG73: =IF(BG100="","",ROUND(IF(BG$109<ROUNDDOWN(税率・条件!$C$18/12,0),BG99+BG100,BG99*(((税率・条件!$C$18/12)-BG$108)/BG$107)+BG100),0)) ->  | AH73: =IF(BH100="","",ROUND(IF(BH$109<ROUNDDOWN(税率・条件!$C$18/12,0),BH99+BH100,BH99*(((税率・条件!$C$18/12)-BH$108)/BH$107)+BH100),0)) ->  | AI73: =IF(BI100="","",ROUND(IF(BI$109<ROUNDDOWN(税率・条件!$C$18/12,0),BI99+BI100,BI99*(((税率・条件!$C$18/12)-BI$108)/BI$107)+BI100),0)) ->  | AL73: =IF(BJ100="","",ROUND(IF(BJ$109<ROUNDDOWN(税率・条件!$C$18/12,0),BJ99+BJ100,BJ99*(((税率・条件!$C$18/12)-BJ$108)/BJ$107)+BJ100),0)) ->  | AO73: =IF(BK100="","",ROUND(IF(BK$109<ROUNDDOWN(税率・条件!$C$18/12,0),BK99+BK100,BK99*(((税率・条件!$C$18/12)-BK$108)/BK$107)+BK100),0)) ->  | AR73: =IF(AH12="","",SUM(Z73:AQ73)) ->  | AY73: ３応益 | AZ73: =IF(AJ8="","",ROUND(SUM($AA8:$AB9)/12,0)) -> 
X74: ６ | Z74: =IF(AZ102="","",ROUND(IF(AZ$109<ROUNDDOWN(税率・条件!$C$18/12,0),AZ101+AZ102,AZ101*(((税率・条件!$C$18/12)-AZ$108)/AZ$107)+AZ102),0)) ->  | AA74: =IF(BA102="","",ROUND(IF(BA$109<ROUNDDOWN(税率・条件!$C$18/12,0),BA101+BA102,BA101*(((税率・条件!$C$18/12)-BA$108)/BA$107)+BA102),0)) ->  | AB74: =IF(BB102="","",ROUND(IF(BB$109<ROUNDDOWN(税率・条件!$C$18/12,0),BB101+BB102,BB101*(((税率・条件!$C$18/12)-BB$108)/BB$107)+BB102),0)) ->  | AC74: =IF(BC102="","",ROUND(IF(BC$109<ROUNDDOWN(税率・条件!$C$18/12,0),BC101+BC102,BC101*(((税率・条件!$C$18/12)-BC$108)/BC$107)+BC102),0)) ->  | AD74: =IF(BD102="","",ROUND(IF(BD$109<ROUNDDOWN(税率・条件!$C$18/12,0),BD101+BD102,BD101*(((税率・条件!$C$18/12)-BD$108)/BD$107)+BD102),0)) ->  | AE74: =IF(BE102="","",ROUND(IF(BE$109<ROUNDDOWN(税率・条件!$C$18/12,0),BE101+BE102,BE101*(((税率・条件!$C$18/12)-BE$108)/BE$107)+BE102),0)) ->  | AF74: =IF(BF102="","",ROUND(IF(BF$109<ROUNDDOWN(税率・条件!$C$18/12,0),BF101+BF102,BF101*(((税率・条件!$C$18/12)-BF$108)/BF$107)+BF102),0)) ->  | AG74: =IF(BG102="","",ROUND(IF(BG$109<ROUNDDOWN(税率・条件!$C$18/12,0),BG101+BG102,BG101*(((税率・条件!$C$18/12)-BG$108)/BG$107)+BG102),0)) ->  | AH74: =IF(BH102="","",ROUND(IF(BH$109<ROUNDDOWN(税率・条件!$C$18/12,0),BH101+BH102,BH101*(((税率・条件!$C$18/12)-BH$108)/BH$107)+BH102),0)) ->  | AI74: =IF(BI102="","",ROUND(IF(BI$109<ROUNDDOWN(税率・条件!$C$18/12,0),BI101+BI102,BI101*(((税率・条件!$C$18/12)-BI$108)/BI$107)+BI102),0)) ->  | AL74: =IF(BJ102="","",ROUND(IF(BJ$109<ROUNDDOWN(税率・条件!$C$18/12,0),BJ101+BJ102,BJ101*(((税率・条件!$C$18/12)-BJ$108)/BJ$107)+BJ102),0)) ->  | AO74: =IF(BK102="","",ROUND(IF(BK$109<ROUNDDOWN(税率・条件!$C$18/12,0),BK101+BK102,BK101*(((税率・条件!$C$18/12)-BK$108)/BK$107)+BK102),0)) ->  | AR74: =IF(AH14="","",SUM(Z74:AQ74)) ->  | AY74: ４応能 | AZ74: =IF(AJ10="","",ROUND((SUM($Y10:$Z11)/12),0)) -> 
X75: ７ | Z75: =IF(AZ104="","",ROUND(IF(AZ$109<ROUNDDOWN(税率・条件!$C$18/12,0),AZ103+AZ104,AZ103*(((税率・条件!$C$18/12)-AZ$108)/AZ$107)+AZ104),0)) ->  | AA75: =IF(BA104="","",ROUND(IF(BA$109<ROUNDDOWN(税率・条件!$C$18/12,0),BA103+BA104,BA103*(((税率・条件!$C$18/12)-BA$108)/BA$107)+BA104),0)) ->  | AB75: =IF(BB104="","",ROUND(IF(BB$109<ROUNDDOWN(税率・条件!$C$18/12,0),BB103+BB104,BB103*(((税率・条件!$C$18/12)-BB$108)/BB$107)+BB104),0)) ->  | AC75: =IF(BC104="","",ROUND(IF(BC$109<ROUNDDOWN(税率・条件!$C$18/12,0),BC103+BC104,BC103*(((税率・条件!$C$18/12)-BC$108)/BC$107)+BC104),0)) ->  | AD75: =IF(BD104="","",ROUND(IF(BD$109<ROUNDDOWN(税率・条件!$C$18/12,0),BD103+BD104,BD103*(((税率・条件!$C$18/12)-BD$108)/BD$107)+BD104),0)) ->  | AE75: =IF(BE104="","",ROUND(IF(BE$109<ROUNDDOWN(税率・条件!$C$18/12,0),BE103+BE104,BE103*(((税率・条件!$C$18/12)-BE$108)/BE$107)+BE104),0)) ->  | AF75: =IF(BF104="","",ROUND(IF(BF$109<ROUNDDOWN(税率・条件!$C$18/12,0),BF103+BF104,BF103*(((税率・条件!$C$18/12)-BF$108)/BF$107)+BF104),0)) ->  | AG75: =IF(BG104="","",ROUND(IF(BG$109<ROUNDDOWN(税率・条件!$C$18/12,0),BG103+BG104,BG103*(((税率・条件!$C$18/12)-BG$108)/BG$107)+BG104),0)) ->  | AH75: =IF(BH104="","",ROUND(IF(BH$109<ROUNDDOWN(税率・条件!$C$18/12,0),BH103+BH104,BH103*(((税率・条件!$C$18/12)-BH$108)/BH$107)+BH104),0)) ->  | AI75: =IF(BI104="","",ROUND(IF(BI$109<ROUNDDOWN(税率・条件!$C$18/12,0),BI103+BI104,BI103*(((税率・条件!$C$18/12)-BI$108)/BI$107)+BI104),0)) ->  | AL75: =IF(BJ104="","",ROUND(IF(BJ$109<ROUNDDOWN(税率・条件!$C$18/12,0),BJ103+BJ104,BJ103*(((税率・条件!$C$18/12)-BJ$108)/BJ$107)+BJ104),0)) ->  | AO75: =IF(BK104="","",ROUND(IF(BK$109<ROUNDDOWN(税率・条件!$C$18/12,0),BK103+BK104,BK103*(((税率・条件!$C$18/12)-BK$108)/BK$107)+BK104),0)) ->  | AR75: =IF(AH16="","",SUM(Z75:AQ75)) ->  | AY75: ４応益 | AZ75: =IF(AJ10="","",ROUND(SUM($AA10:$AB11)/12,0)) -> 
X76: ８ | Z76: =IF(AZ106="","",ROUND(IF(AZ$109<ROUNDDOWN(税率・条件!$C$18/12,0),AZ105+AZ106,AZ105*(((税率・条件!$C$18/12)-AZ$108)/AZ$107)+AZ106),0)) ->  | AA76: =IF(BA106="","",ROUND(IF(BA$109<ROUNDDOWN(税率・条件!$C$18/12,0),BA105+BA106,BA105*(((税率・条件!$C$18/12)-BA$108)/BA$107)+BA106),0)) ->  | AB76: =IF(BB106="","",ROUND(IF(BB$109<ROUNDDOWN(税率・条件!$C$18/12,0),BB105+BB106,BB105*(((税率・条件!$C$18/12)-BB$108)/BB$107)+BB106),0)) ->  | AC76: =IF(BC106="","",ROUND(IF(BC$109<ROUNDDOWN(税率・条件!$C$18/12,0),BC105+BC106,BC105*(((税率・条件!$C$18/12)-BC$108)/BC$107)+BC106),0)) ->  | AD76: =IF(BD106="","",ROUND(IF(BD$109<ROUNDDOWN(税率・条件!$C$18/12,0),BD105+BD106,BD105*(((税率・条件!$C$18/12)-BD$108)/BD$107)+BD106),0)) ->  | AE76: =IF(BE106="","",ROUND(IF(BE$109<ROUNDDOWN(税率・条件!$C$18/12,0),BE105+BE106,BE105*(((税率・条件!$C$18/12)-BE$108)/BE$107)+BE106),0)) ->  | AF76: =IF(BF106="","",ROUND(IF(BF$109<ROUNDDOWN(税率・条件!$C$18/12,0),BF105+BF106,BF105*(((税率・条件!$C$18/12)-BF$108)/BF$107)+BF106),0)) ->  | AG76: =IF(BG106="","",ROUND(IF(BG$109<ROUNDDOWN(税率・条件!$C$18/12,0),BG105+BG106,BG105*(((税率・条件!$C$18/12)-BG$108)/BG$107)+BG106),0)) ->  | AH76: =IF(BH106="","",ROUND(IF(BH$109<ROUNDDOWN(税率・条件!$C$18/12,0),BH105+BH106,BH105*(((税率・条件!$C$18/12)-BH$108)/BH$107)+BH106),0)) ->  | AI76: =IF(BI106="","",ROUND(IF(BI$109<ROUNDDOWN(税率・条件!$C$18/12,0),BI105+BI106,BI105*(((税率・条件!$C$18/12)-BI$108)/BI$107)+BI106),0)) ->  | AL76: =IF(BJ106="","",ROUND(IF(BJ$109<ROUNDDOWN(税率・条件!$C$18/12,0),BJ105+BJ106,BJ105*(((税率・条件!$C$18/12)-BJ$108)/BJ$107)+BJ106),0)) ->  | AO76: =IF(BK106="","",ROUND(IF(BK$109<ROUNDDOWN(税率・条件!$C$18/12,0),BK105+BK106,BK105*(((税率・条件!$C$18/12)-BK$108)/BK$107)+BK106),0)) ->  | AR76: =IF(AH18="","",SUM(Z76:AQ76)) ->  | AY76: ５応能 | AZ76: =IF(AJ12="","",ROUND((SUM($Y12:$Z13)/12),0)) -> 
X77: 小 計 | Z77: =SUM(Z69:Z76) -> 0 | AA77: =SUM(AA69:AA76) -> 0 | AB77: 0 | AC77: 0 | AD77: 0 | AE77: 0 | AF77: 0 | AG77: 0 | AH77: 0 | AI77: =SUM(AI69:AK76) -> 0 | AL77: =SUM(AL69:AN76) -> 0 | AO77: =SUM(AO69:AQ76) -> 0 | AR77: =SUM(AR69:AT76) -> 0 | AY77: ５応益 | AZ77: =IF(AJ12="","",ROUND(SUM($AA12:$AB13)/12,0)) -> 
Y78: 月割り限度額適用 | Z78: =IF(AZ$109<ROUNDDOWN(税率・条件!$C$18/12,0),"","該当") ->  | AA78: =IF(BA$109<ROUNDDOWN(税率・条件!$C$18/12,0),"","該当") ->  | AB78: =IF(BB$109<ROUNDDOWN(税率・条件!$C$18/12,0),"","該当") ->  | AC78: =IF(BC$109<ROUNDDOWN(税率・条件!$C$18/12,0),"","該当") ->  | AD78: =IF(BD$109<ROUNDDOWN(税率・条件!$C$18/12,0),"","該当") ->  | AE78: =IF(BE$109<ROUNDDOWN(税率・条件!$C$18/12,0),"","該当") ->  | AF78: =IF(BF$109<ROUNDDOWN(税率・条件!$C$18/12,0),"","該当") ->  | AG78: =IF(BG$109<ROUNDDOWN(税率・条件!$C$18/12,0),"","該当") ->  | AH78: =IF(BH$109<ROUNDDOWN(税率・条件!$C$18/12,0),"","該当") ->  | AI78: =IF(BI$109<ROUNDDOWN(税率・条件!$C$18/12,0),"","該当") ->  | AL78: =IF(BJ$109<ROUNDDOWN(税率・条件!$C$18/12,0),"","該当") ->  | AO78: =IF(BK$109<ROUNDDOWN(税率・条件!$C$18/12,0),"","該当") ->  | AY78: ６応能 | AZ78: =IF(AJ14="","",ROUND((SUM($Y14:$Z15)/12),0)) -> 
AY79: ６応益 | AZ79: =IF(AJ14="","",ROUND(SUM($AA14:$AB15)/12,0)) -> 
X80: 医療･支援・介護 計 | Z80: =SUM(Z49,Z63,Z77) -> 0 | AA80: =SUM(AA49,AA63,AA77) -> 0 | AB80: 0 | AC80: 0 | AD80: 0 | AE80: 0 | AF80: 0 | AG80: 0 | AH80: 0 | AI80: 0 | AL80: 0 | AO80: 0 | AR80: 0 | AY80: ７応能 | AZ80: =IF(AJ16="","",ROUND((SUM($Y16:$Z17)/12),0)) -> 
AY81: ７応益 | AZ81: =IF(AJ16="","",ROUND(SUM($AA16:$AB17)/12,0)) -> 
AY82: ８応能 | AZ82: =IF(AJ18="","",ROUND((SUM($Y18:$Z19)/12),0)) -> 
AY83: ８応益 | AZ83: =IF(AJ18="","",ROUND(SUM($AA18:$AB19)/12,0)) -> 
AY84: 計応能 | AZ84: =SUM(AZ68,AZ70,AZ72,AZ74,AZ76,AZ78,AZ80,AZ82) -> 0 | BA84: =SUM(BA68,BA70,BA72,BA74,BA76,BA78,BA80,BA82) -> 0 | BB84: 0 | BC84: 0 | BD84: 0 | BE84: 0 | BF84: 0 | BG84: 0 | BH84: 0 | BI84: 0 | BJ84: 0 | BK84: 0
AY85: 計応益 | AZ85: =SUM(AZ69,AZ71,AZ73,AZ75,AZ77,AZ79,AZ81,AZ83) -> 0 | BA85: =SUM(BA69,BA71,BA73,BA75,BA77,BA79,BA81,BA83) -> 0 | BB85: 0 | BC85: 0 | BD85: 0 | BE85: 0 | BF85: 0 | BG85: 0 | BH85: 0 | BI85: 0 | BJ85: 0 | BK85: 0
AY86: 計 | AZ86: =SUM(AZ84:AZ85) -> 0 | BA86: =SUM(BA84:BA85) -> 0 | BB86: =SUM(BB84:BB85) -> 0 | BC86: =SUM(BC84:BC85) -> 0 | BD86: =SUM(BD84:BD85) -> 0 | BE86: =SUM(BE84:BE85) -> 0 | BF86: =SUM(BF84:BF85) -> 0 | BG86: =SUM(BG84:BG85) -> 0 | BH86: =SUM(BH84:BH85) -> 0 | BI86: =SUM(BI84:BI85) -> 0 | BJ86: =SUM(BJ84:BJ85) -> 0 | BK86: =SUM(BK84:BK85) -> 0
AZ89: 介護税額（月割分で計算。端数処理前）
AZ90: 4 | BA90: 5 | BB90: 6 | BC90: 7 | BD90: 8 | BE90: 9 | BF90: 10 | BG90: 11 | BH90: 12 | BI90: 1 | BJ90: 2 | BK90: 3
AY91: １応能 | AZ91: =IF(AND(AJ5="",AJ21=1),0,IF(AJ5="","",ROUND((SUM($AD4:$AE5)/12),0))) -> 
AY92: １応益 | AZ92: =IF(AJ5="",IF(AJ21="","",ROUND(SUM($AG4:$AG5)/12,0)),ROUND(SUM($AF4:$AG5)/12,0)) -> 
AY93: ２応能 | AZ93: =IF(AJ7="","",ROUND((SUM($AD6:$AE7)/12),0)) -> 
AY94: ２応益 | AZ94: =IF(AJ7="","",ROUND(SUM($AF6:$AG7)/12,0)) -> 
AY95: ３応能 | AZ95: =IF(AJ9="","",ROUND((SUM($AD8:$AE9)/12),0)) -> 
AY96: ３応益 | AZ96: =IF(AJ9="","",ROUND(SUM($AF8:$AG9)/12,0)) -> 
AY97: ４応能 | AZ97: =IF(AJ11="","",ROUND((SUM($AD10:$AE11)/12),0)) -> 
AY98: ４応益 | AZ98: =IF(AJ11="","",ROUND(SUM($AF10:$AG11)/12,0)) -> 
AY99: ５応能 | AZ99: =IF(AJ13="","",ROUND((SUM($AD12:$AE13)/12),0)) -> 
AY100: ５応益 | AZ100: =IF(AJ13="","",ROUND(SUM($AF12:$AG13)/12,0)) -> 
AY101: ６応能 | AZ101: =IF(AJ15="","",ROUND((SUM($AD14:$AE15)/12),0)) -> 
AY102: ６応益 | AZ102: =IF(AJ15="","",ROUND(SUM($AF14:$AG15)/12,0)) -> 
AY103: ７応能 | AZ103: =IF(AJ17="","",ROUND((SUM($AD16:$AE17)/12),0)) -> 
AY104: ７応益 | AZ104: =IF(AJ17="","",ROUND(SUM($AF16:$AG17)/12,0)) -> 
AY105: ８応能 | AZ105: =IF(AJ19="","",ROUND((SUM($AD18:$AE19)/12),0)) -> 
AY106: ８応益 | AZ106: =IF(AJ19="","",ROUND(SUM($AF18:$AG19)/12,0)) -> 
AY107: 計応能 | AZ107: =SUM(AZ91,AZ93,AZ95,AZ97,AZ99,AZ101,AZ103,AZ105) -> 0 | BA107: =SUM(BA91,BA93,BA95,BA97,BA99,BA101,BA103,BA105) -> 0 | BB107: 0 | BC107: 0 | BD107: 0 | BE107: 0 | BF107: 0 | BG107: 0 | BH107: 0 | BI107: 0 | BJ107: 0 | BK107: 0
AY108: 計応益 | AZ108: =SUM(AZ92,AZ94,AZ96,AZ98,AZ100,AZ102,AZ104,AZ106) -> 0 | BA108: =SUM(BA92,BA94,BA96,BA98,BA100,BA102,BA104,BA106) -> 0 | BB108: 0 | BC108: 0 | BD108: 0 | BE108: 0 | BF108: 0 | BG108: 0 | BH108: 0 | BI108: 0 | BJ108: 0 | BK108: 0
AY109: 計 | AZ109: =SUM(AZ107:AZ108) -> 0 | BA109: =SUM(BA107:BA108) -> 0 | BB109: =SUM(BB107:BB108) -> 0 | BC109: =SUM(BC107:BC108) -> 0 | BD109: =SUM(BD107:BD108) -> 0 | BE109: =SUM(BE107:BE108) -> 0 | BF109: =SUM(BF107:BF108) -> 0 | BG109: =SUM(BG107:BG108) -> 0 | BH109: =SUM(BH107:BH108) -> 0 | BI109: =SUM(BI107:BI108) -> 0 | BJ109: =SUM(BJ107:BJ108) -> 0 | BK109: =SUM(BK107:BK108) -> 0

Sheet 税率・条件 (hidden)
A1: 年度 | C1: 5
C3: 全地区
A4: 医療分 | B4: 所得割（％） | C4: 6.4 | F4: 基本 | G4: 加算 | H4: 率
B5: 資産割（％） | C5: 0 | E5: 7割5割2割 | F5: 430000 | H5: 0.7
B6: 均等割（円） | C6: 24200 | F6: 430000 | G6: 290000 | H6: 0.5
B7: 平等割（円） | C7: 21400 | F7: 430000 | G7: 535000 | H7: 0.2
B8: 最高限度額（円） | C8: 650000
A9: 後期支援分 | B9: 所得割（％） | C9: 2.2 | E9: 年金軽減判定加算額 | G9: 150000
B10: 資産割（％） | C10: 0
B11: 均等割（円） | C11: 7400 | E11: 未就学児均等割 減額率 | H11: 0.5
B12: 平等割（円） | C12: 5800
B13: 最高限度額（円） | C13: 220000
A14: 介護分 | B14: 所得割（％） | C14: 2
B15: 資産割（％） | C15: 0
B16: 均等割（円） | C16: 9400
B17: 平等割（円） | C17: 6100
B18: 最高限度額（円） | C18: 170000

Sheet Sheet1 (hidden)
H3: 平等割1/2軽減 | M3: 平等割1/4軽減
A4: H24旧高崎 | C4: 軽減なし | D4: ７割 | E4: ５割 | F4: ２割 | H4: 軽減なし | I4: ７割 | J4: ５割 | K4: ２割 | M4: 軽減なし | N4: ７割 | O4: ５割 | P4: ２割
A5: 医療 | B5: 均等割（円） | C5: 29000 | D5: =C5*0.3 -> 8700 | E5: =C5*0.5 -> 14500 | F5: =C5*0.8 -> 23200
B6: 平等割（円） | C6: 25500 | D6: 7650 | E6: 12750 | F6: 20400 | H6: =C6*0.5 -> 12750 | I6: =D6*0.5 -> 3825 | J6: =E6*0.5 -> 6375 | K6: =F6*0.5 -> 10200 | M6: =C6*0.75 -> 19125 | N6: =D6*0.75 -> 5737.5 | O6: =E6*0.75 -> 9562.5 | P6: =F6*0.75 -> 15300
A7: 支援 | B7: 均等割（円） | C7: 7400 | D7: 2220 | E7: 3700 | F7: 5920
B8: 平等割（円） | C8: 5800 | D8: 1740 | E8: 2900 | F8: 4640 | H8: =C8*0.5 -> 2900 | I8: =D8*0.5 -> 870 | J8: =E8*0.5 -> 1450 | K8: =F8*0.5 -> 2320 | M8: =C8*0.75 -> 4350 | N8: =D8*0.75 -> 1305 | O8: =E8*0.75 -> 2175 | P8: =F8*0.75 -> 3480
A9: 介護 | B9: 均等割（円） | C9: 9400 | D9: 2820 | E9: 4700 | F9: 7520
B10: 平等割（円） | C10: 6100 | D10: 1830 | E10: 3050 | F10: 4880
A12: H24吉井 | C12: 軽減なし | D12: ７割 | E12: ５割 | F12: ２割 | H12: 軽減なし | I12: ７割 | J12: ５割 | K12: ２割 | M12: 軽減なし | N12: ７割 | O12: ５割 | P12: ２割
A13: 医療 | B13: 均等割（円） | C13: 21500 | D13: =C13*0.3 -> 6450 | E13: =C13*0.5 -> 10750 | F13: =C13*0.8 -> 17200
B14: 平等割（円） | C14: 24500 | D14: 7350 | E14: 12250 | F14: 19600 | H14: =C14*0.5 -> 12250 | I14: =D14*0.5 -> 3675 | J14: =E14*0.5 -> 6125 | K14: =F14*0.5 -> 9800 | M14: =C14*0.75 -> 18375 | N14: =D14*0.75 -> 5512.5 | O14: =E14*0.75 -> 9187.5 | P14: =F14*0.75 -> 14700
A15: 支援 | B15: 均等割（円） | C15: 8500 | D15: 2550 | E15: 4250 | F15: 6800
B16: 平等割（円） | C16: 2800 | D16: 840 | E16: 1400 | F16: 2240 | H16: =C16*0.5 -> 1400 | I16: =D16*0.5 -> 420 | J16: =E16*0.5 -> 700 | K16: =F16*0.5 -> 1120 | M16: =C16*0.75 -> 2100 | N16: =D16*0.75 -> 630 | O16: =E16*0.75 -> 1050 | P16: =F16*0.75 -> 1680
A17: 介護 | B17: 均等割（円） | C17: 10500 | D17: 3150 | E17: 5250 | F17: 8400
B18: 平等割（円） | C18: 3000 | D18: 900 | E18: 1500 | F18: 2400
H21: 平等割1/2軽減 | M21: 平等割1/4軽減
A22: H25旧高崎 | C22: 軽減なし | D22: ７割 | E22: ５割 | F22: ２割 | H22: 軽減なし | I22: ７割 | J22: ５割 | K22: ２割 | M22: 軽減なし | N22: ７割 | O22: ５割 | P22: ２割
A23: 医療 | B23: 均等割（円） | C23: 25000 | D23: =C23*0.3 -> 7500 | E23: =C23*0.5 -> 12500 | F23: =C23*0.8 -> 20000
B24: 平等割（円） | C24: 23500 | D24: 7050 | E24: 11750 | F24: 18800 | H24: =C24*0.5 -> 11750 | I24: =D24*0.5 -> 3525 | J24: =E24*0.5 -> 5875 | K24: =F24*0.5 -> 9400 | M24: =C24*0.75 -> 17625 | N24: =D24*0.75 -> 5287.5 | O24: =E24*0.75 -> 8812.5 | P24: =F24*0.75 -> 14100
A25: 支援 | B25: 均等割（円） | C25: 7400 | D25: 2220 | E25: 3700 | F25: 5920
B26: 平等割（円） | C26: 5800 | D26: 1740 | E26: 2900 | F26: 4640 | H26: =C26*0.5 -> 2900 | I26: =D26*0.5 -> 870 | J26: =E26*0.5 -> 1450 | K26: =F26*0.5 -> 2320 | M26: =C26*0.75 -> 4350 | N26: =D26*0.75 -> 1305 | O26: =E26*0.75 -> 2175 | P26: =F26*0.75 -> 3480
A27: 介護 | B27: 均等割（円） | C27: 9400 | D27: 2820 | E27: 4700 | F27: 7520
B28: 平等割（円） | C28: 6100 | D28: 1830 | E28: 3050 | F28: 4880
A30: H25吉井 | C30: 軽減なし | D30: ７割 | E30: ５割 | F30: ２割 | H30: 軽減なし | I30: ７割 | J30: ５割 | K30: ２割 | M30: 軽減なし | N30: ７割 | O30: ５割 | P30: ２割
A31: 医療 | B31: 均等割（円） | C31: 23000 | D31: =C31*0.3 -> 6900 | E31: =C31*0.5 -> 11500 | F31: =C31*0.8 -> 18400
B32: 平等割（円） | C32: 23500 | D32: 7050 | E32: 11750 | F32: 18800 | H32: =C32*0.5 -> 11750 | I32: =D32*0.5 -> 3525 | J32: =E32*0.5 -> 5875 | K32: =F32*0.5 -> 9400 | M32: =C32*0.75 -> 17625 | N32: =D32*0.75 -> 5287.5 | O32: =E32*0.75 -> 8812.5 | P32: =F32*0.75 -> 14100
A33: 支援 | B33: 均等割（円） | C33: 8000 | D33: 2400 | E33: 4000 | F33: 6400
B34: 平等割（円） | C34: 3800 | D34: 1140 | E34: 1900 | F34: 3040 | H34: =C34*0.5 -> 1900 | I34: =D34*0.5 -> 570 | J34: =E34*0.5 -> 950 | K34: =F34*0.5 -> 1520 | M34: =C34*0.75 -> 2850 | N34: =D34*0.75 -> 855 | O34: =E34*0.75 -> 1425 | P34: =F34*0.75 -> 2280
A35: 介護 | B35: 均等割（円） | C35: 10000 | D35: 3000 | E35: 5000 | F35: 8000
B36: 平等割（円） | C36: 4000 | D36: 1200 | E36: 2000 | F36: 3200
H39: 平等割1/2軽減 | M39: 平等割1/4軽減
A40: H26旧高崎 | C40: 軽減なし | D40: ７割 | E40: ５割 | F40: ２割 | H40: 軽減なし | I40: ７割 | J40: ５割 | K40: ２割 | M40: 軽減なし | N40: ７割 | O40: ５割 | P40: ２割
A41: 医療 | B41: 均等割（円） | C41: 25000 | D41: =C41*0.3 -> 7500 | E41: =C41*0.5 -> 12500 | F41: =C41*0.8 -> 20000
B42: 平等割（円） | C42: 23500 | D42: 7050 | E42: 11750 | F42: 18800 | H42: =C42*0.5 -> 11750 | I42: =D42*0.5 -> 3525 | J42: =E42*0.5 -> 5875 | K42: =F42*0.5 -> 9400 | M42: =C42*0.75 -> 17625 | N42: =D42*0.75 -> 5287.5 | O42: =E42*0.75 -> 8812.5 | P42: =F42*0.75 -> 14100
A43: 支援 | B43: 均等割（円） | C43: 7400 | D43: 2220 | E43: 3700 | F43: 5920
B44: 平等割（円） | C44: 5800 | D44: 1740 | E44: 2900 | F44: 4640 | H44: =C44*0.5 -> 2900 | I44: =D44*0.5 -> 870 | J44: =E44*0.5 -> 1450 | K44: =F44*0.5 -> 2320 | M44: =C44*0.75 -> 4350 | N44: =D44*0.75 -> 1305 | O44: =E44*0.75 -> 2175 | P44: =F44*0.75 -> 3480
A45: 介護 | B45: 均等割（円） | C45: 9400 | D45: 2820 | E45: 4700 | F45: 7520
B46: 平等割（円） | C46: 6100 | D46: 1830 | E46: 3050 | F46: 4880
A48: H26吉井 | C48: 軽減なし | D48: ７割 | E48: ５割 | F48: ２割 | H48: 軽減なし | I48: ７割 | J48: ５割 | K48: ２割 | M48: 軽減なし | N48: ７割 | O48: ５割 | P48: ２割
A49: 医療 | B49: 均等割（円） | C49: 24000 | D49: =C49*0.3 -> 7200 | E49: =C49*0.5 -> 12000 | F49: =C49*0.8 -> 19200
B50: 平等割（円） | C50: 23500 | D50: 7050 | E50: 11750 | F50: 18800 | H50: =C50*0.5 -> 11750 | I50: =D50*0.5 -> 3525 | J50: =E50*0.5 -> 5875 | K50: =F50*0.5 -> 9400 | M50: =C50*0.75 -> 17625 | N50: =D50*0.75 -> 5287.5 | O50: =E50*0.75 -> 8812.5 | P50: =F50*0.75 -> 14100
A51: 支援 | B51: 均等割（円） | C51: 7400 | D51: 2220 | E51: 3700 | F51: 5920
B52: 平等割（円） | C52: 4800 | D52: 1440 | E52: 2400 | F52: 3840 | H52: =C52*0.5 -> 2400 | I52: =D52*0.5 -> 720 | J52: =E52*0.5 -> 1200 | K52: =F52*0.5 -> 1920 | M52: =C52*0.75 -> 3600 | N52: =D52*0.75 -> 1080 | O52: =E52*0.75 -> 1800 | P52: =F52*0.75 -> 2880
A53: 介護 | B53: 均等割（円） | C53: 9400 | D53: 2820 | E53: 4700 | F53: 7520
B54: 平等割（円） | C54: 5000 | D54: 1500 | E54: 2500 | F54: 4000
H57: 平等割1/2軽減 | M57: 平等割1/4軽減
A58: H27旧高崎 | C58: 軽減なし | D58: ７割 | E58: ５割 | F58: ２割 | H58: 軽減なし | I58: ７割 | J58: ５割 | K58: ２割 | M58: 軽減なし | N58: ７割 | O58: ５割 | P58: ２割
A59: 医療 | B59: 均等割（円） | C59: 25000 | D59: =C59*0.3 -> 7500 | E59: =C59*0.5 -> 12500 | F59: =C59*0.8 -> 20000
B60: 平等割（円） | C60: 23500 | D60: 7050 | E60: 11750 | F60: 18800 | H60: =C60*0.5 -> 11750 | I60: =D60*0.5 -> 3525 | J60: =E60*0.5 -> 5875 | K60: =F60*0.5 -> 9400 | M60: =C60*0.75 -> 17625 | N60: =D60*0.75 -> 5287.5 | O60: =E60*0.75 -> 8812.5 | P60: =F60*0.75 -> 14100
A61: 支援 | B61: 均等割（円） | C61: 7400 | D61: 2220 | E61: 3700 | F61: 5920
B62: 平等割（円） | C62: 5800 | D62: 1740 | E62: 2900 | F62: 4640 | H62: =C62*0.5 -> 2900 | I62: =D62*0.5 -> 870 | J62: =E62*0.5 -> 1450 | K62: =F62*0.5 -> 2320 | M62: =C62*0.75 -> 4350 | N62: =D62*0.75 -> 1305 | O62: =E62*0.75 -> 2175 | P62: =F62*0.75 -> 3480
A63: 介護 | B63: 均等割（円） | C63: 9400 | D63: 2820 | E63: 4700 | F63: 7520
B64: 平等割（円） | C64: 6100 | D64: 1830 | E64: 3050 | F64: 4880
A66: H27吉井 | C66: 軽減なし | D66: ７割 | E66: ５割 | F66: ２割 | H66: 軽減なし | I66: ７割 | J66: ５割 | K66: ２割 | M66: 軽減なし | N66: ７割 | O66: ５割 | P66: ２割
A67: 医療 | B67: 均等割（円） | C67: 25000 | D67: =C67*0.3 -> 7500 | E67: =C67*0.5 -> 12500 | F67: =C67*0.8 -> 20000
B68: 平等割（円） | C68: 23500 | D68: 7050 | E68: 11750 | F68: 18800 | H68: =C68*0.5 -> 11750 | I68: =D68*0.5 -> 3525 | J68: =E68*0.5 -> 5875 | K68: =F68*0.5 -> 9400 | M68: =C68*0.75 -> 17625 | N68: =D68*0.75 -> 5287.5 | O68: =E68*0.75 -> 8812.5 | P68: =F68*0.75 -> 14100
A69: 支援 | B69: 均等割（円） | C69: 7400 | D69: 2220 | E69: 3700 | F69: 5920
B70: 平等割（円） | C70: 5800 | D70: 1740 | E70: 2900 | F70: 4640 | H70: =C70*0.5 -> 2900 | I70: =D70*0.5 -> 870 | J70: =E70*0.5 -> 1450 | K70: =F70*0.5 -> 2320 | M70: =C70*0.75 -> 4350 | N70: =D70*0.75 -> 1305 | O70: =E70*0.75 -> 2175 | P70: =F70*0.75 -> 3480
A71: 介護 | B71: 均等割（円） | C71: 9400 | D71: 2820 | E71: 4700 | F71: 7520
B72: 平等割（円） | C72: 6100 | D72: 1830 | E72: 3050 | F72: 4880
H75: 平等割1/2軽減 | M75: 平等割1/4軽減
A76: H27旧高崎 | C76: 軽減なし | D76: ７割 | E76: ５割 | F76: ２割 | H76: 軽減なし | I76: ７割 | J76: ５割 | K76: ２割 | M76: 軽減なし | N76: ７割 | O76: ５割 | P76: ２割
A77: 医療 | B77: 均等割（円） | C77: 25000 | D77: =C77*0.3 -> 7500 | E77: =C77*0.5 -> 12500 | F77: =C77*0.8 -> 20000
B78: 平等割（円） | C78: 23500 | D78: 7050 | E78: 11750 | F78: 18800 | H78: =C78*0.5 -> 11750 | I78: =D78*0.5 -> 3525 | J78: =E78*0.5 -> 5875 | K78: =F78*0.5 -> 9400 | M78: =C78*0.75 -> 17625 | N78: =D78*0.75 -> 5287.5 | O78: =E78*0.75 -> 8812.5 | P78: =F78*0.75 -> 14100
A79: 支援 | B79: 均等割（円） | C79: 7400 | D79: 2220 | E79: 3700 | F79: 5920
B80: 平等割（円） | C80: 5800 | D80: 1740 | E80: 2900 | F80: 4640 | H80: =C80*0.5 -> 2900 | I80: =D80*0.5 -> 870 | J80: =E80*0.5 -> 1450 | K80: =F80*0.5 -> 2320 | M80: =C80*0.75 -> 4350 | N80: =D80*0.75 -> 1305 | O80: =E80*0.75 -> 2175 | P80: =F80*0.75 -> 3480
A81: 介護 | B81: 均等割（円） | C81: 9400 | D81: 2820 | E81: 4700 | F81: 7520
B82: 平等割（円） | C82: 6100 | D82: 1830 | E82: 3050 | F82: 4880
A84: H27吉井 | C84: 軽減なし | D84: ７割 | E84: ５割 | F84: ２割 | H84: 軽減なし | I84: ７割 | J84: ５割 | K84: ２割 | M84: 軽減なし | N84: ７割 | O84: ５割 | P84: ２割
A85: 医療 | B85: 均等割（円） | C85: 25000 | D85: =C85*0.3 -> 7500 | E85: =C85*0.5 -> 12500 | F85: =C85*0.8 -> 20000
B86: 平等割（円） | C86: 23500 | D86: 7050 | E86: 11750 | F86: 18800 | H86: =C86*0.5 -> 11750 | I86: =D86*0.5 -> 3525 | J86: =E86*0.5 -> 5875 | K86: =F86*0.5 -> 9400 | M86: =C86*0.75 -> 17625 | N86: =D86*0.75 -> 5287.5 | O86: =E86*0.75 -> 8812.5 | P86: =F86*0.75 -> 14100
A87: 支援 | B87: 均等割（円） | C87: 7400 | D87: 2220 | E87: 3700 | F87: 5920
B88: 平等割（円） | C88: 5800 | D88: 1740 | E88: 2900 | F88: 4640 | H88: =C88*0.5 -> 2900 | I88: =D88*0.5 -> 870 | J88: =E88*0.5 -> 1450 | K88: =F88*0.5 -> 2320 | M88: =C88*0.75 -> 4350 | N88: =D88*0.75 -> 1305 | O88: =E88*0.75 -> 2175 | P88: =F88*0.75 -> 3480
A89: 介護 | B89: 均等割（円） | C89: 9400 | D89: 2820 | E89: 4700 | F89: 7520
B90: 平等割（円） | C90: 6100 | D90: 1830 | E90: 3050 | F90: 4880
H93: 平等割1/2軽減 | M93: 平等割1/4軽減
A94: H27旧高崎 | C94: 軽減なし | D94: ７割 | E94: ５割 | F94: ２割 | H94: 軽減なし | I94: ７割 | J94: ５割 | K94: ２割 | M94: 軽減なし | N94: ７割 | O94: ５割 | P94: ２割
A95: 医療 | B95: 均等割（円） | C95: 25000 | D95: =C95*0.3 -> 7500 | E95: =C95*0.5 -> 12500 | F95: =C95*0.8 -> 20000
B96: 平等割（円） | C96: 23500 | D96: 7050 | E96: 11750 | F96: 18800 | H96: =C96*0.5 -> 11750 | I96: =D96*0.5 -> 3525 | J96: =E96*0.5 -> 5875 | K96: =F96*0.5 -> 9400 | M96: =C96*0.75 -> 17625 | N96: =D96*0.75 -> 5287.5 | O96: =E96*0.75 -> 8812.5 | P96: =F96*0.75 -> 14100
A97: 支援 | B97: 均等割（円） | C97: 7400 | D97: 2220 | E97: 3700 | F97: 5920
B98: 平等割（円） | C98: 5800 | D98: 1740 | E98: 2900 | F98: 4640 | H98: =C98*0.5 -> 2900 | I98: =D98*0.5 -> 870 | J98: =E98*0.5 -> 1450 | K98: =F98*0.5 -> 2320 | M98: =C98*0.75 -> 4350 | N98: =D98*0.75 -> 1305 | O98: =E98*0.75 -> 2175 | P98: =F98*0.75 -> 3480
A99: 介護 | B99: 均等割（円） | C99: 9400 | D99: 2820 | E99: 4700 | F99: 7520
B100: 平等割（円） | C100: 6100 | D100: 1830 | E100: 3050 | F100: 4880
A102: H27吉井 | C102: 軽減なし | D102: ７割 | E102: ５割 | F102: ２割 | H102: 軽減なし | I102: ７割 | J102: ５割 | K102: ２割 | M102: 軽減なし | N102: ７割 | O102: ５割 | P102: ２割
A103: 医療 | B103: 均等割（円） | C103: 25000 | D103: =C103*0.3 -> 7500 | E103: =C103*0.5 -> 12500 | F103: =C103*0.8 -> 20000
B104: 平等割（円） | C104: 23500 | D104: 7050 | E104: 11750 | F104: 18800 | H104: =C104*0.5 -> 11750 | I104: =D104*0.5 -> 3525 | J104: =E104*0.5 -> 5875 | K104: =F104*0.5 -> 9400 | M104: =C104*0.75 -> 17625 | N104: =D104*0.75 -> 5287.5 | O104: =E104*0.75 -> 8812.5 | P104: =F104*0.75 -> 14100
A105: 支援 | B105: 均等割（円） | C105: 7400 | D105: 2220 | E105: 3700 | F105: 5920
B106: 平等割（円） | C106: 5800 | D106: 1740 | E106: 2900 | F106: 4640 | H106: =C106*0.5 -> 2900 | I106: =D106*0.5 -> 870 | J106: =E106*0.5 -> 1450 | K106: =F106*0.5 -> 2320 | M106: =C106*0.75 -> 4350 | N106: =D106*0.75 -> 1305 | O106: =E106*0.75 -> 2175 | P106: =F106*0.75 -> 3480
A107: 介護 | B107: 均等割（円） | C107: 9400 | D107: 2820 | E107: 4700 | F107: 7520
B108: 平等割（円） | C108: 6100 | D108: 1830 | E108: 3050 | F108: 4880
H111: 平等割1/2軽減 | M111: 平等割1/4軽減
A112: H28旧高崎 | C112: 軽減なし | D112: ７割 | E112: ５割 | F112: ２割 | H112: 軽減なし | I112: ７割 | J112: ５割 | K112: ２割 | M112: 軽減なし | N112: ７割 | O112: ５割 | P112: ２割
A113: 医療 | B113: 均等割（円） | C113: 25000 | D113: =C113*0.3 -> 7500 | E113: =C113*0.5 -> 12500 | F113: =C113*0.8 -> 20000
B114: 平等割（円） | C114: 23500 | D114: 7050 | E114: 11750 | F114: 18800 | H114: =C114*0.5 -> 11750 | I114: =D114*0.5 -> 3525 | J114: =E114*0.5 -> 5875 | K114: =F114*0.5 -> 9400 | M114: =C114*0.75 -> 17625 | N114: =D114*0.75 -> 5287.5 | O114: =E114*0.75 -> 8812.5 | P114: =F114*0.75 -> 14100
A115: 支援 | B115: 均等割（円） | C115: 7400 | D115: 2220 | E115: 3700 | F115: 5920
B116: 平等割（円） | C116: 5800 | D116: 1740 | E116: 2900 | F116: 4640 | H116: =C116*0.5 -> 2900 | I116: =D116*0.5 -> 870 | J116: =E116*0.5 -> 1450 | K116: =F116*0.5 -> 2320 | M116: =C116*0.75 -> 4350 | N116: =D116*0.75 -> 1305 | O116: =E116*0.75 -> 2175 | P116: =F116*0.75 -> 3480
A117: 介護 | B117: 均等割（円） | C117: 9400 | D117: 2820 | E117: 4700 | F117: 7520
B118: 平等割（円） | C118: 6100 | D118: 1830 | E118: 3050 | F118: 4880
A120: H28吉井 | C120: 軽減なし | D120: ７割 | E120: ５割 | F120: ２割 | H120: 軽減なし | I120: ７割 | J120: ５割 | K120: ２割 | M120: 軽減なし | N120: ７割 | O120: ５割 | P120: ２割
A121: 医療 | B121: 均等割（円） | C121: 25000 | D121: =C121*0.3 -> 7500 | E121: =C121*0.5 -> 12500 | F121: =C121*0.8 -> 20000
B122: 平等割（円） | C122: 23500 | D122: 7050 | E122: 11750 | F122: 18800 | H122: =C122*0.5 -> 11750 | I122: =D122*0.5 -> 3525 | J122: =E122*0.5 -> 5875 | K122: =F122*0.5 -> 9400 | M122: =C122*0.75 -> 17625 | N122: =D122*0.75 -> 5287.5 | O122: =E122*0.75 -> 8812.5 | P122: =F122*0.75 -> 14100
A123: 支援 | B123: 均等割（円） | C123: 7400 | D123: 2220 | E123: 3700 | F123: 5920
B124: 平等割（円） | C124: 5800 | D124: 1740 | E124: 2900 | F124: 4640 | H124: =C124*0.5 -> 2900 | I124: =D124*0.5 -> 870 | J124: =E124*0.5 -> 1450 | K124: =F124*0.5 -> 2320 | M124: =C124*0.75 -> 4350 | N124: =D124*0.75 -> 1305 | O124: =E124*0.75 -> 2175 | P124: =F124*0.75 -> 3480
A125: 介護 | B125: 均等割（円） | C125: 9400 | D125: 2820 | E125: 4700 | F125: 7520
B126: 平等割（円） | C126: 6100 | D126: 1830 | E126: 3050 | F126: 4880
H128: 平等割1/2軽減 | M128: 平等割1/4軽減
A129: H29旧高崎 | C129: 軽減なし | D129: ７割 | E129: ５割 | F129: ２割 | H129: 軽減なし | I129: ７割 | J129: ５割 | K129: ２割 | M129: 軽減なし | N129: ７割 | O129: ５割 | P129: ２割
A130: 医療 | B130: 均等割（円） | C130: 25000 | D130: =C130*0.3 -> 7500 | E130: =C130*0.5 -> 12500 | F130: =C130*0.8 -> 20000
B131: 平等割（円） | C131: 23500 | D131: 7050 | E131: 11750 | F131: 18800 | H131: =C131*0.5 -> 11750 | I131: =D131*0.5 -> 3525 | J131: =E131*0.5 -> 5875 | K131: =F131*0.5 -> 9400 | M131: =C131*0.75 -> 17625 | N131: =D131*0.75 -> 5287.5 | O131: =E131*0.75 -> 8812.5 | P131: =F131*0.75 -> 14100
A132: 支援 | B132: 均等割（円） | C132: 7400 | D132: 2220 | E132: 3700 | F132: 5920
B133: 平等割（円） | C133: 5800 | D133: 1740 | E133: 2900 | F133: 4640 | H133: =C133*0.5 -> 2900 | I133: =D133*0.5 -> 870 | J133: =E133*0.5 -> 1450 | K133: =F133*0.5 -> 2320 | M133: =C133*0.75 -> 4350 | N133: =D133*0.75 -> 1305 | O133: =E133*0.75 -> 2175 | P133: =F133*0.75 -> 3480
A134: 介護 | B134: 均等割（円） | C134: 9400 | D134: 2820 | E134: 4700 | F134: 7520
B135: 平等割（円） | C135: 6100 | D135: 1830 | E135: 3050 | F135: 4880
H137: 平等割1/2軽減 | M137: 平等割1/4軽減
A138: H30旧高崎 | C138: 軽減なし | D138: ７割 | E138: ５割 | F138: ２割 | H138: 軽減なし | I138: ７割 | J138: ５割 | K138: ２割 | M138: 軽減なし | N138: ７割 | O138: ５割 | P138: ２割
A139: 医療 | B139: 均等割（円） | C139: 25000 | D139: =C139*0.3 -> 7500 | E139: =C139*0.5 -> 12500 | F139: =C139*0.8 -> 20000
B140: 平等割（円） | C140: 23500 | D140: 7050 | E140: 11750 | F140: 18800 | H140: =C140*0.5 -> 11750 | I140: =D140*0.5 -> 3525 | J140: =E140*0.5 -> 5875 | K140: =F140*0.5 -> 9400 | M140: =C140*0.75 -> 17625 | N140: =D140*0.75 -> 5287.5 | O140: =E140*0.75 -> 8812.5 | P140: =F140*0.75 -> 14100
A141: 支援 | B141: 均等割（円） | C141: 7400 | D141: 2220 | E141: 3700 | F141: 5920
B142: 平等割（円） | C142: 5800 | D142: 1740 | E142: 2900 | F142: 4640 | H142: =C142*0.5 -> 2900 | I142: =D142*0.5 -> 870 | J142: =E142*0.5 -> 1450 | K142: =F142*0.5 -> 2320 | M142: =C142*0.75 -> 4350 | N142: =D142*0.75 -> 1305 | O142: =E142*0.75 -> 2175 | P142: =F142*0.75 -> 3480
A143: 介護 | B143: 均等割（円） | C143: 9400 | D143: 2820 | E143: 4700 | F143: 7520
B144: 平等割（円） | C144: 6100 | D144: 1830 | E144: 3050 | F144: 4880
H146: 平等割1/2軽減 | M146: 平等割1/4軽減
A147: H31旧高崎 | C147: 軽減なし | D147: ７割 | E147: ５割 | F147: ２割 | H147: 軽減なし | I147: ７割 | J147: ５割 | K147: ２割 | M147: 軽減なし | N147: ７割 | O147: ５割 | P147: ２割
A148: 医療 | B148: 均等割（円） | C148: 25000 | D148: =C148*0.3 -> 7500 | E148: =C148*0.5 -> 12500 | F148: =C148*0.8 -> 20000
B149: 平等割（円） | C149: 23500 | D149: 7050 | E149: 11750 | F149: 18800 | H149: =C149*0.5 -> 11750 | I149: =D149*0.5 -> 3525 | J149: =E149*0.5 -> 5875 | K149: =F149*0.5 -> 9400 | M149: =C149*0.75 -> 17625 | N149: =D149*0.75 -> 5287.5 | O149: =E149*0.75 -> 8812.5 | P149: =F149*0.75 -> 14100
A150: 支援 | B150: 均等割（円） | C150: 7400 | D150: 2220 | E150: 3700 | F150: 5920
B151: 平等割（円） | C151: 5800 | D151: 1740 | E151: 2900 | F151: 4640 | H151: =C151*0.5 -> 2900 | I151: =D151*0.5 -> 870 | J151: =E151*0.5 -> 1450 | K151: =F151*0.5 -> 2320 | M151: =C151*0.75 -> 4350 | N151: =D151*0.75 -> 1305 | O151: =E151*0.75 -> 2175 | P151: =F151*0.75 -> 3480
A152: 介護 | B152: 均等割（円） | C152: 9400 | D152: 2820 | E152: 4700 | F152: 7520
B153: 平等割（円） | C153: 6100 | D153: 1830 | E153: 3050 | F153: 4880
A155: R02旧高崎 | C155: 軽減なし | D155: ７割 | E155: ５割 | F155: ２割 | H155: 軽減なし | I155: ７割 | J155: ５割 | K155: ２割 | M155: 軽減なし | N155: ７割 | O155: ５割 | P155: ２割
A156: 医療 | B156: 均等割（円） | C156: 25000 | D156: =C156*0.3 -> 7500 | E156: =C156*0.5 -> 12500 | F156: =C156*0.8 -> 20000
B157: 平等割（円） | C157: 23500 | D157: 7050 | E157: 11750 | F157: 18800 | H157: =C157*0.5 -> 11750 | I157: =D157*0.5 -> 3525 | J157: =E157*0.5 -> 5875 | K157: =F157*0.5 -> 9400 | M157: =C157*0.75 -> 17625 | N157: =D157*0.75 -> 5287.5 | O157: =E157*0.75 -> 8812.5 | P157: =F157*0.75 -> 14100
A158: 支援 | B158: 均等割（円） | C158: 7400 | D158: 2220 | E158: 3700 | F158: 5920
B159: 平等割（円） | C159: 5800 | D159: 1740 | E159: 2900 | F159: 4640 | H159: =C159*0.5 -> 2900 | I159: =D159*0.5 -> 870 | J159: =E159*0.5 -> 1450 | K159: =F159*0.5 -> 2320 | M159: =C159*0.75 -> 4350 | N159: =D159*0.75 -> 1305 | O159: =E159*0.75 -> 2175 | P159: =F159*0.75 -> 3480
A160: 介護 | B160: 均等割（円） | C160: 9400 | D160: 2820 | E160: 4700 | F160: 7520
B161: 平等割（円） | C161: 6100 | D161: 1830 | E161: 3050 | F161: 4880
A163: R03旧高崎 | C163: 軽減なし | D163: ７割 | E163: ５割 | F163: ２割 | H163: 軽減なし | I163: ７割 | J163: ５割 | K163: ２割 | M163: 軽減なし | N163: ７割 | O163: ５割 | P163: ２割
A164: 医療 | B164: 均等割（円） | C164: 25000 | D164: =C164*0.3 -> 7500 | E164: =C164*0.5 -> 12500 | F164: =C164*0.8 -> 20000
B165: 平等割（円） | C165: 23500 | D165: 7050 | E165: 11750 | F165: 18800 | H165: =C165*0.5 -> 11750 | I165: =D165*0.5 -> 3525 | J165: =E165*0.5 -> 5875 | K165: =F165*0.5 -> 9400 | M165: =C165*0.75 -> 17625 | N165: =D165*0.75 -> 5287.5 | O165: =E165*0.75 -> 8812.5 | P165: =F165*0.75 -> 14100
A166: 支援 | B166: 均等割（円） | C166: 7400 | D166: 2220 | E166: 3700 | F166: 5920
B167: 平等割（円） | C167: 5800 | D167: 1740 | E167: 2900 | F167: 4640 | H167: =C167*0.5 -> 2900 | I167: =D167*0.5 -> 870 | J167: =E167*0.5 -> 1450 | K167: =F167*0.5 -> 2320 | M167: =C167*0.75 -> 4350 | N167: =D167*0.75 -> 1305 | O167: =E167*0.75 -> 2175 | P167: =F167*0.75 -> 3480
A168: 介護 | B168: 均等割（円） | C168: 9400 | D168: 2820 | E168: 4700 | F168: 7520
B169: 平等割（円） | C169: 6100 | D169: 1830 | E169: 3050 | F169: 4880
